Workbook

Sheet Cashflow Model
G1: 120 | H1: 119 | I1: 118 | J1: 117 | K1: 116 | L1: 115 | M1: 114 | N1: 113 | O1: 112 | P1: 111 | Q1: 110 | R1: 109 | S1: 108 | T1: 107 | U1: 106 | V1: 105 | W1: 104 | X1: 103 | Y1: 102 | Z1: 101 | AA1: 100 | AB1: 99 | AC1: 98 | AD1: 97 | AE1: 96 | AF1: 95 | AG1: 94 | AH1: 93 | AI1: 92 | AJ1: 91 | AK1: 90 | AL1: 89 | AM1: 88 | AN1: 87 | AO1: 86 | AP1: 85 | AQ1: 84 | AR1: 83 | AS1: 82 | AT1: 81 | AU1: 80 | AV1: 79 | AW1: 78 | AX1: 77 | AY1: 76 | AZ1: 75 | BA1: 74 | BB1: 73 | BC1: 72 | BD1: 71 | BE1: 70 | BF1: 69 | BG1: 68 | BH1: 67 | BI1: 66 | BJ1: 65 | BK1: 64 | BL1: 63 | BM1: 62 | BN1: 61 | BO1: 60 | BP1: 59 | BQ1: 58 | BR1: 57 | BS1: 56 | BT1: 55 | BU1: 54 | BV1: 53 | BW1: 52 | BX1: 51 | BY1: 50 | BZ1: 49 | CA1: 48 | CB1: 47 | CC1: 46 | CD1: 45 | CE1: 44 | CF1: 43 | CG1: 42 | CH1: 41 | CI1: 40 | CJ1: 39 | CK1: 38 | CL1: 37 | CM1: 36 | CN1: 35 | CO1: 34 | CP1: 33 | CQ1: 32 | CR1: 31 | CS1: 30 | CT1: 29 | CU1: 28 | CV1: 27 | CW1: 26 | CX1: 25 | CY1: 24 | CZ1: 23 | DA1: 22 | DB1: 21 | DC1: 20 | DD1: 19 | DE1: 18 | DF1: 17 | DG1: 16 | DH1: 15 | DI1: 14 | DJ1: 13 | DK1: 12 | DL1: 11 | DM1: 10 | DN1: 9 | DO1: 8 | DP1: 7 | DQ1: 6 | DR1: 5 | DS1: 4 | DT1: 3 | DU1: 2 | DV1: 1 | DW1: 0
G2: Control Column | H2: Year 1_Jan | I2: Feb | J2: March | K2: April | L2: May | M2: June | N2: July | O2: Aug | P2: Sept | Q2: Oct | R2: Nov | S2: Dec | T2: Year 2_Jan | U2: Feb | V2: March | W2: April | X2: May | Y2: June | Z2: July | AA2: Aug | AB2: Sept | AC2: Oct | AD2: Nov | AE2: Dec | AF2: Year 3_Jan | AG2: Feb | AH2: March | AI2: April | AJ2: May | AK2: June | AL2: July | AM2: Aug | AN2: Sept | AO2: Oct | AP2: Nov | AQ2: Dec | AR2: Year 4_Jan | AS2: Feb | AT2: March | AU2: April | AV2: May | AW2: June | AX2: July | AY2: Aug | AZ2: Sept | BA2: Oct | BB2: Nov | BC2: Dec | BD2: Year 5_Jan | BE2: Feb | BF2: March | BG2: April | BH2: May | BI2: June | BJ2: July | BK2: Aug | BL2: Sept | BM2: Oct | BN2: Nov | BO2: Dec | BP2: Year 6_Jan | BQ2: Feb | BR2: March | BS2: April | BT2: May | BU2: June | BV2: July | BW2: Aug | BX2: Sept | BY2: Oct | BZ2: Nov | CA2: Dec | CB2: Year 7_Jan | CC2: Feb | CD2: March | CE2: April | CF2: May | CG2: June | CH2: July | CI2: Aug | CJ2: Sept | CK2: Oct | CL2: Nov | CM2: Dec | CN2: Year 8_Jan | CO2: Feb | CP2: March | CQ2: April | CR2: May | CS2: June | CT2: July | CU2: Aug | CV2: Sept | CW2: Oct | CX2: Nov | CY2: Dec | CZ2: Year 9_Jan | DA2: Feb | DB2: March | DC2: April | DD2: May | DE2: June | DF2: July | DG2: Aug | DH2: Sept | DI2: Oct | DJ2: Nov | DK2: Dec | DL2: Year 10_Jan | DM2: Feb | DN2: March | DO2: April | DP2: May | DQ2: June | DR2: July | DS2: Aug | DT2: Sept | DU2: Oct | DV2: Nov | DW2: Dec | DX2: Ending Adjust
A3: Regimes | B3: I | C3: II | E3: Starting Regime | F3: =IF(RAND()<$B$8,1,2) -> 1 | G3: 0 | H3: =IF(F3=1,IF(RAND()>$B$7,1,2),IF(RAND()>$C$7,2,1)) -> 1 | I3: =IF(H3=1,IF(RAND()>$B$7,1,2),IF(RAND()>$C$7,2,1)) -> 1 | J3: 1 | K3: 1 | L3: 1 | M3: 1 | N3: 1 | O3: 1 | P3: 1 | Q3: 1 | R3: 1 | S3: =IF(R3=1,IF(RAND()>$B$7,1,2),IF(RAND()>$C$7,2,1)) -> 1 | T3: =IF(S3=1,IF(RAND()>$B$7,1,2),IF(RAND()>$C$7,2,1)) -> 1 | U3: =IF(T3=1,IF(RAND()>$B$7,1,2),IF(RAND()>$C$7,2,1)) -> 1 | V3: =IF(U3=1,IF(RAND()>$B$7,1,2),IF(RAND()>$C$7,2,1)) -> 1 | W3: 1 | X3: 1 | Y3: 1 | Z3: 1 | AA3: 1 | AB3: 1 | AC3: 1 | AD3: 1 | AE3: 1 | AF3: =IF(AE3=1,IF(RAND()>$B$7,1,2),IF(RAND()>$C$7,2,1)) -> 1 | AG3: =IF(AF3=1,IF(RAND()>$B$7,1,2),IF(RAND()>$C$7,2,1)) -> 1 | AH3: =IF(AG3=1,IF(RAND()>$B$7,1,2),IF(RAND()>$C$7,2,1)) -> 1 | AI3: 1 | AJ3: 1 | AK3: 1 | AL3: 1 | AM3: 1 | AN3: 1 | AO3: 1 | AP3: 1 | AQ3: 1 | AR3: =IF(AQ3=1,IF(RAND()>$B$7,1,2),IF(RAND()>$C$7,2,1)) -> 1 | AS3: =IF(AR3=1,IF(RAND()>$B$7,1,2),IF(RAND()>$C$7,2,1)) -> 1 | AT3: =IF(AS3=1,IF(RAND()>$B$7,1,2),IF(RAND()>$C$7,2,1)) -> 1 | AU3: =IF(AT3=1,IF(RAND()>$B$7,1,2),IF(RAND()>$C$7,2,1)) -> 2 | AV3: =IF(AU3=1,IF(RAND()>$B$7,1,2),IF(RAND()>$C$7,2,1)) -> 2 | AW3: =IF(AV3=1,IF(RAND()>$B$7,1,2),IF(RAND()>$C$7,2,1)) -> 1 | AX3: =IF(AW3=1,IF(RAND()>$B$7,1,2),IF(RAND()>$C$7,2,1)) -> 1 | AY3: =IF(AX3=1,IF(RAND()>$B$7,1,2),IF(RAND()>$C$7,2,1)) -> 1 | AZ3: =IF(AY3=1,IF(RAND()>$B$7,1,2),IF(RAND()>$C$7,2,1)) -> 1 | BA3: =IF(AZ3=1,IF(RAND()>$B$7,1,2),IF(RAND()>$C$7,2,1)) -> 1 | BB3: =IF(BA3=1,IF(RAND()>$B$7,1,2),IF(RAND()>$C$7,2,1)) -> 1 | BC3: =IF(BB3=1,IF(RAND()>$B$7,1,2),IF(RAND()>$C$7,2,1)) -> 1 | BD3: =IF(BC3=1,IF(RAND()>$B$7,1,2),IF(RAND()>$C$7,2,1)) -> 1 | BE3: =IF(BD3=1,IF(RAND()>$B$7,1,2),IF(RAND()>$C$7,2,1)) -> 1 | BF3: =IF(BE3=1,IF(RAND()>$B$7,1,2),IF(RAND()>$C$7,2,1)) -> 1 | BG3: =IF(BF3=1,IF(RAND()>$B$7,1,2),IF(RAND()>$C$7,2,1)) -> 1 | BH3: =IF(BG3=1,IF(RAND()>$B$7,1,2),IF(RAND()>$C$7,2,1)) -> 1 | BI3: =IF(BH3=1,IF(RAND()>$B$7,1,2),IF(RAND()>$C$7,2,1)) -> 1 | BJ3: =IF(BI3=1,IF(RAND()>$B$7,1,2),IF(RAND()>$C$7,2,1)) -> 2 | BK3: =IF(BJ3=1,IF(RAND()>$B$7,1,2),IF(RAND()>$C$7,2,1)) -> 2 | BL3: =IF(BK3=1,IF(RAND()>$B$7,1,2),IF(RAND()>$C$7,2,1)) -> 2 | BM3: =IF(BL3=1,IF(RAND()>$B$7,1,2),IF(RAND()>$C$7,2,1)) -> 1 | BN3: =IF(BM3=1,IF(RAND()>$B$7,1,2),IF(RAND()>$C$7,2,1)) -> 1 | BO3: =IF(BN3=1,IF(RAND()>$B$7,1,2),IF(RAND()>$C$7,2,1)) -> 2 | BP3: =IF(BO3=1,IF(RAND()>$B$7,1,2),IF(RAND()>$C$7,2,1)) -> 2 | BQ3: =IF(BP3=1,IF(RAND()>$B$7,1,2),IF(RAND()>$C$7,2,1)) -> 2 | BR3: =IF(BQ3=1,IF(RAND()>$B$7,1,2),IF(RAND()>$C$7,2,1)) -> 2 | BS3: =IF(BR3=1,IF(RAND()>$B$7,1,2),IF(RAND()>$C$7,2,1)) -> 2 | BT3: =IF(BS3=1,IF(RAND()>$B$7,1,2),IF(RAND()>$C$7,2,1)) -> 2 | BU3: =IF(BT3=1,IF(RAND()>$B$7,1,2),IF(RAND()>$C$7,2,1)) -> 2 | BV3: =IF(BU3=1,IF(RAND()>$B$7,1,2),IF(RAND()>$C$7,2,1)) -> 2 | BW3: =IF(BV3=1,IF(RAND()>$B$7,1,2),IF(RAND()>$C$7,2,1)) -> 2 | BX3: =IF(BW3=1,IF(RAND()>$B$7,1,2),IF(RAND()>$C$7,2,1)) -> 2 | BY3: =IF(BX3=1,IF(RAND()>$B$7,1,2),IF(RAND()>$C$7,2,1)) -> 2 | BZ3: =IF(BY3=1,IF(RAND()>$B$7,1,2),IF(RAND()>$C$7,2,1)) -> 2 | CA3: =IF(BZ3=1,IF(RAND()>$B$7,1,2),IF(RAND()>$C$7,2,1)) -> 2 | CB3: =IF(CA3=1,IF(RAND()>$B$7,1,2),IF(RAND()>$C$7,2,1)) -> 2 | CC3: =IF(CB3=1,IF(RAND()>$B$7,1,2),IF(RAND()>$C$7,2,1)) -> 2 | CD3: =IF(CC3=1,IF(RAND()>$B$7,1,2),IF(RAND()>$C$7,2,1)) -> 2 | CE3: =IF(CD3=1,IF(RAND()>$B$7,1,2),IF(RAND()>$C$7,2,1)) -> 2 | CF3: =IF(CE3=1,IF(RAND()>$B$7,1,2),IF(RAND()>$C$7,2,1)) -> 2 | CG3: =IF(CF3=1,IF(RAND()>$B$7,1,2),IF(RAND()>$C$7,2,1)) -> 2 | CH3: =IF(CG3=1,IF(RAND()>$B$7,1,2),IF(RAND()>$C$7,2,1)) -> 2 | CI3: =IF(CH3=1,IF(RAND()>$B$7,1,2),IF(RAND()>$C$7,2,1)) -> 2 | CJ3: =IF(CI3=1,IF(RAND()>$B$7,1,2),IF(RAND()>$C$7,2,1)) -> 2 | CK3: =IF(CJ3=1,IF(RAND()>$B$7,1,2),IF(RAND()>$C$7,2,1)) -> 2 | CL3: =IF(CK3=1,IF(RAND()>$B$7,1,2),IF(RAND()>$C$7,2,1)) -> 2 | CM3: =IF(CL3=1,IF(RAND()>$B$7,1,2),IF(RAND()>$C$7,2,1)) -> 2 | CN3: =IF(CM3=1,IF(RAND()>$B$7,1,2),IF(RAND()>$C$7,2,1)) -> 2 | CO3: =IF(CN3=1,IF(RAND()>$B$7,1,2),IF(RAND()>$C$7,2,1)) -> 2 | CP3: =IF(CO3=1,IF(RAND()>$B$7,1,2),IF(RAND()>$C$7,2,1)) -> 2 | CQ3: =IF(CP3=1,IF(RAND()>$B$7,1,2),IF(RAND()>$C$7,2,1)) -> 2 | CR3: =IF(CQ3=1,IF(RAND()>$B$7,1,2),IF(RAND()>$C$7,2,1)) -> 2 | CS3: =IF(CR3=1,IF(RAND()>$B$7,1,2),IF(RAND()>$C$7,2,1)) -> 2 | CT3: =IF(CS3=1,IF(RAND()>$B$7,1,2),IF(RAND()>$C$7,2,1)) -> 2 | CU3: =IF(CT3=1,IF(RAND()>$B$7,1,2),IF(RAND()>$C$7,2,1)) -> 2 | CV3: =IF(CU3=1,IF(RAND()>$B$7,1,2),IF(RAND()>$C$7,2,1)) -> 2 | CW3: =IF(CV3=1,IF(RAND()>$B$7,1,2),IF(RAND()>$C$7,2,1)) -> 2 | CX3: =IF(CW3=1,IF(RAND()>$B$7,1,2),IF(RAND()>$C$7,2,1)) -> 1 | CY3: =IF(CX3=1,IF(RAND()>$B$7,1,2),IF(RAND()>$C$7,2,1)) -> 1 | CZ3: =IF(CY3=1,IF(RAND()>$B$7,1,2),IF(RAND()>$C$7,2,1)) -> 2 | DA3: =IF(CZ3=1,IF(RAND()>$B$7,1,2),IF(RAND()>$C$7,2,1)) -> 2 | DB3: =IF(DA3=1,IF(RAND()>$B$7,1,2),IF(RAND()>$C$7,2,1)) -> 2 | DC3: =IF(DB3=1,IF(RAND()>$B$7,1,2),IF(RAND()>$C$7,2,1)) -> 2 | DD3: =IF(DC3=1,IF(RAND()>$B$7,1,2),IF(RAND()>$C$7,2,1)) -> 2 | DE3: =IF(DD3=1,IF(RAND()>$B$7,1,2),IF(RAND()>$C$7,2,1)) -> 2 | DF3: =IF(DE3=1,IF(RAND()>$B$7,1,2),IF(RAND()>$C$7,2,1)) -> 2 | DG3: =IF(DF3=1,IF(RAND()>$B$7,1,2),IF(RAND()>$C$7,2,1)) -> 2 | DH3: =IF(DG3=1,IF(RAND()>$B$7,1,2),IF(RAND()>$C$7,2,1)) -> 2 | DI3: =IF(DH3=1,IF(RAND()>$B$7,1,2),IF(RAND()>$C$7,2,1)) -> 1 | DJ3: =IF(DI3=1,IF(RAND()>$B$7,1,2),IF(RAND()>$C$7,2,1)) -> 1 | DK3: =IF(DJ3=1,IF(RAND()>$B$7,1,2),IF(RAND()>$C$7,2,1)) -> 1 | DL3: =IF(DK3=1,IF(RAND()>$B$7,1,2),IF(RAND()>$C$7,2,1)) -> 1 | DM3: =IF(DL3=1,IF(RAND()>$B$7,1,2),IF(RAND()>$C$7,2,1)) -> 1 | DN3: =IF(DM3=1,IF(RAND()>$B$7,1,2),IF(RAND()>$C$7,2,1)) -> 1 | DO3: =IF(DN3=1,IF(RAND()>$B$7,1,2),IF(RAND()>$C$7,2,1)) -> 1 | DP3: =IF(DO3=1,IF(RAND()>$B$7,1,2),IF(RAND()>$C$7,2,1)) -> 1 | DQ3: =IF(DP3=1,IF(RAND()>$B$7,1,2),IF(RAND()>$C$7,2,1)) -> 1 | DR3: =IF(DQ3=1,IF(RAND()>$B$7,1,2),IF(RAND()>$C$7,2,1)) -> 1 | DS3: =IF(DR3=1,IF(RAND()>$B$7,1,2),IF(RAND()>$C$7,2,1)) -> 1 | DT3: =IF(DS3=1,IF(RAND()>$B$7,1,2),IF(RAND()>$C$7,2,1)) -> 1 | DU3: =IF(DT3=1,IF(RAND()>$B$7,1,2),IF(RAND()>$C$7,2,1)) -> 1 | DV3: =IF(DU3=1,IF(RAND()>$B$7,1,2),IF(RAND()>$C$7,2,1)) -> 1 | DW3: =IF(DV3=1,IF(RAND()>$B$7,1,2),IF(RAND()>$C$7,2,1)) -> 1
A4: Monthly Drift | B4: 0.0107 | C4: -0.011 | E4: Pre-Adjusted Values | F4: Montly Factors | G4: 1 | H4: =IF(H3=1,EXP($B$6+$B$5*NORMSINV(RAND())),EXP($C$6+$C$5*NORMSINV(RAND()))) -> 1.05367281 | I4: =IF(I3=1,EXP($B$6+$B$5*NORMSINV(RAND())),EXP($C$6+$C$5*NORMSINV(RAND()))) -> 1.017907561 | J4: 1.030126593 | K4: 0.9786073464 | L4: 0.9653710506 | M4: 0.9589285567 | N4: 1.014595842 | O4: 1.002378556 | P4: 1.0037527 | Q4: 0.9497009347 | R4: 1.016428663 | S4: 0.9931508638 | T4: =IF(T3=1,EXP($B$6+$B$5*NORMSINV(RAND())),EXP($C$6+$C$5*NORMSINV(RAND()))) -> 1.007487429 | U4: 0.9832365005 | V4: 1.032706604 | W4: 1.017423687 | X4: 0.9846952868 | Y4: 0.9659147943 | Z4: =IF(Z3=1,EXP($B$6+$B$5*NORMSINV(RAND())),EXP($C$6+$C$5*NORMSINV(RAND()))) -> 1.003812529 | AA4: =IF(AA3=1,EXP($B$6+$B$5*NORMSINV(RAND())),EXP($C$6+$C$5*NORMSINV(RAND()))) -> 1.034248468 | AB4: =IF(AB3=1,EXP($B$6+$B$5*NORMSINV(RAND())),EXP($C$6+$C$5*NORMSINV(RAND()))) -> 1.024478562 | AC4: =IF(AC3=1,EXP($B$6+$B$5*NORMSINV(RAND())),EXP($C$6+$C$5*NORMSINV(RAND()))) -> 0.9937152267 | AD4: =IF(AD3=1,EXP($B$6+$B$5*NORMSINV(RAND())),EXP($C$6+$C$5*NORMSINV(RAND()))) -> 1.006360126 | AE4: =IF(AE3=1,EXP($B$6+$B$5*NORMSINV(RAND())),EXP($C$6+$C$5*NORMSINV(RAND()))) -> 0.9902480447 | AF4: =IF(AF3=1,EXP($B$6+$B$5*NORMSINV(RAND())),EXP($C$6+$C$5*NORMSINV(RAND()))) -> 0.9637122633 | AG4: 1.043772456 | AH4: 1.026607557 | AI4: 0.9659470185 | AJ4: 0.9943890656 | AK4: 1.055737187 | AL4: =IF(AL3=1,EXP($B$6+$B$5*NORMSINV(RAND())),EXP($C$6+$C$5*NORMSINV(RAND()))) -> 0.9731994269 | AM4: =IF(AM3=1,EXP($B$6+$B$5*NORMSINV(RAND())),EXP($C$6+$C$5*NORMSINV(RAND()))) -> 0.9944951172 | AN4: =IF(AN3=1,EXP($B$6+$B$5*NORMSINV(RAND())),EXP($C$6+$C$5*NORMSINV(RAND()))) -> 1.019314683 | AO4: =IF(AO3=1,EXP($B$6+$B$5*NORMSINV(RAND())),EXP($C$6+$C$5*NORMSINV(RAND()))) -> 0.9990919569 | AP4: =IF(AP3=1,EXP($B$6+$B$5*NORMSINV(RAND())),EXP($C$6+$C$5*NORMSINV(RAND()))) -> 0.9845024766 | AQ4: =IF(AQ3=1,EXP($B$6+$B$5*NORMSINV(RAND())),EXP($C$6+$C$5*NORMSINV(RAND()))) -> 1.015572362 | AR4: 1.061706355 | AS4: 1.001980931 | AT4: 1.037759206 | AU4: 0.9542283448 | AV4: 0.9570056443 | AW4: 1.036125215 | AX4: 1.001021354 | AY4: 1.057728755 | AZ4: 1.093118044 | BA4: 1.01422096 | BB4: 0.9390502539 | BC4: =IF(BC3=1,EXP($B$6+$B$5*NORMSINV(RAND())),EXP($C$6+$C$5*NORMSINV(RAND()))) -> 1.041374727 | BD4: 1.041626097 | BE4: 1.00445084 | BF4: 0.9271263562 | BG4: 0.9268120504 | BH4: 1.030261692 | BI4: 1.016788742 | BJ4: 1.081286595 | BK4: 0.9899890114 | BL4: 0.9439411747 | BM4: 0.9770840478 | BN4: 0.997602996 | BO4: =IF(BO3=1,EXP($B$6+$B$5*NORMSINV(RAND())),EXP($C$6+$C$5*NORMSINV(RAND()))) -> 1.023127851 | BP4: 1.042110033 | BQ4: 0.949116171 | BR4: 0.8981437869 | BS4: 1.067567944 | BT4: 0.9399352818 | BU4: 0.9923425718 | BV4: 0.9993024146 | BW4: 0.8940285532 | BX4: 0.927200281 | BY4: 0.9356153462 | BZ4: 0.9101957998 | CA4: 1.029470947 | CB4: 0.9729638478 | CC4: 0.9718940848 | CD4: 0.9363493411 | CE4: 1.036149665 | CF4: 1.109096351 | CG4: 1.021727329 | CH4: 1.058414803 | CI4: 0.9310816653 | CJ4: 0.9817129871 | CK4: 0.997533302 | CL4: 1.044555435 | CM4: 1.075006191 | CN4: 1.036712142 | CO4: 0.9631075129 | CP4: 1.129702759 | CQ4: 0.9114835686 | CR4: 0.9796077292 | CS4: 1.067378619 | CT4: 1.094406243 | CU4: 1.030866747 | CV4: 1.083805468 | CW4: 0.92758247 | CX4: 1.009144175 | CY4: 1.023595804 | CZ4: 1.017160387 | DA4: 0.968904857 | DB4: 1.084589403 | DC4: 0.9749989632 | DD4: 0.9851027113 | DE4: 1.154864601 | DF4: 0.9999529292 | DG4: 0.9930605332 | DH4: 1.123444874 | DI4: 1.029523635 | DJ4: 0.9918237511 | DK4: 1.117253922 | DL4: 0.985912376 | DM4: 1.082769866 | DN4: 0.9841263222 | DO4: 1.05154827 | DP4: =IF(DP3=1,EXP($B$6+$B$5*NORMSINV(RAND())),EXP($C$6+$C$5*NORMSINV(RAND()))) -> 1.042197792 | DQ4: 0.9922046904 | DR4: 1.036176633 | DS4: 0.9958877218 | DT4: 0.9768079712 | DU4: 1.037488501 | DV4: 1.026734343 | DW4: =IF(DW3=1,EXP($B$6+$B$5*NORMSINV(RAND())),EXP($C$6+$C$5*NORMSINV(RAND()))) -> 1.015371558
A5: Monthly Volatility | B5: 0.0325 | C5: 0.0635 | E5: Post-Adjusted Values | G5: 0 | H5: =H4 -> 1.05367281 | I5: =I4 -> 1.017907561 | J5: =J4 -> 1.030126593 | K5: 0.9786073464 | L5: 0.9653710506 | M5: 0.9589285567 | N5: 1.014595842 | O5: 1.002378556 | P5: 1.0037527 | Q5: 0.9497009347 | R5: 1.016428663 | S5: =IF(PRODUCT(H4:S4)>$B$11,$B$11/PRODUCT(H4:R4),IF(PRODUCT(H4:S4)<$B$12,$B$12/PRODUCT(H4:R4),S4)) -> 1.064584776 | T5: =IF(PRODUCT(I4:T4)>$B$11,$B$11/PRODUCT(I4:S4),IF(PRODUCT(I4:T4)<$B$12,$B$12/PRODUCT(I4:S4),T4)) -> 1.129459856 | U5: =IF(PRODUCT(J4:U4)>$B$11,$B$11/PRODUCT(J4:T4),IF(PRODUCT(J4:U4)<$B$12,$B$12/PRODUCT(J4:T4),U4)) -> 1.141141512 | V5: 1.195562021 | W5: 1.132931438 | X5: =IF(PRODUCT(M4:X4)>$B$11,$B$11/PRODUCT(M4:W4),IF(PRODUCT(M4:X4)<$B$12,$B$12/PRODUCT(M4:W4),X4)) -> 1.074969283 | Y5: 1.046840335 | Z5: 1.099599941 | AA5: 1.098029133 | AB5: 1.065652733 | AC5: 0.9937152267 | AD5: 1.010449591 | AE5: 0.9971866519 | AF5: 1.014546832 | AG5: 1.043772456 | AH5: =IF(PRODUCT(W4:AH4)>$B$11,$B$11/PRODUCT(W4:AG4),IF(PRODUCT(W4:AH4)<$B$12,$B$12/PRODUCT(W4:AG4),AH4)) -> 1.026607557 | AI5: =IF(PRODUCT(X4:AI4)>$B$11,$B$11/PRODUCT(X4:AH4),IF(PRODUCT(X4:AI4)<$B$12,$B$12/PRODUCT(X4:AH4),AI4)) -> 1.014965348 | AJ5: =IF(PRODUCT(Y4:AJ4)>$B$11,$B$11/PRODUCT(Y4:AI4),IF(PRODUCT(Y4:AJ4)<$B$12,$B$12/PRODUCT(Y4:AI4),AJ4)) -> 1.034665023 | AK5: 1.055737187 | AL5: 0.9731994269 | AM5: 1.0155518 | AN5: 1.046170091 | AO5: 1.019896178 | AP5: 1.027315693 | AQ5: =IF(PRODUCT(AF4:AQ4)>$B$11,$B$11/PRODUCT(AF4:AP4),IF(PRODUCT(AF4:AQ4)<$B$12,$B$12/PRODUCT(AF4:AP4),AQ4)) -> 1.033311119 | AR5: =IF(PRODUCT(AG4:AR4)>$B$11,$B$11/PRODUCT(AG4:AQ4),IF(PRODUCT(AG4:AR4)<$B$12,$B$12/PRODUCT(AG4:AQ4),AR4)) -> 1.055253397 | AS5: =IF(PRODUCT(AH4:AS4)>$B$11,$B$11/PRODUCT(AH4:AR4),IF(PRODUCT(AH4:AS4)<$B$12,$B$12/PRODUCT(AH4:AR4),AS4)) -> 1.001980931 | AT5: =IF(PRODUCT(AI4:AT4)>$B$11,$B$11/PRODUCT(AI4:AS4),IF(PRODUCT(AI4:AT4)<$B$12,$B$12/PRODUCT(AI4:AS4),AT4)) -> 1.037759206 | AU5: =IF(PRODUCT(AJ4:AU4)>$B$11,$B$11/PRODUCT(AJ4:AT4),IF(PRODUCT(AJ4:AU4)<$B$12,$B$12/PRODUCT(AJ4:AT4),AU4)) -> 0.9542283448 | AV5: =IF(PRODUCT(AK4:AV4)>$B$11,$B$11/PRODUCT(AK4:AU4),IF(PRODUCT(AK4:AV4)<$B$12,$B$12/PRODUCT(AK4:AU4),AV4)) -> 0.9580204271 | AW5: =IF(PRODUCT(AL4:AW4)>$B$11,$B$11/PRODUCT(AL4:AV4),IF(PRODUCT(AL4:AW4)<$B$12,$B$12/PRODUCT(AL4:AV4),AW4)) -> 1.056856662 | AX5: =IF(PRODUCT(AM4:AX4)>$B$11,$B$11/PRODUCT(AM4:AW4),IF(PRODUCT(AM4:AX4)<$B$12,$B$12/PRODUCT(AM4:AW4),AX4)) -> 1.001021354 | AY5: =IF(PRODUCT(AN4:AY4)>$B$11,$B$11/PRODUCT(AN4:AX4),IF(PRODUCT(AN4:AY4)<$B$12,$B$12/PRODUCT(AN4:AX4),AY4)) -> 1.057728755 | AZ5: =IF(PRODUCT(AO4:AZ4)>$B$11,$B$11/PRODUCT(AO4:AY4),IF(PRODUCT(AO4:AZ4)<$B$12,$B$12/PRODUCT(AO4:AY4),AZ4)) -> 1.022793873 | BA5: =IF(PRODUCT(AP4:BA4)>$B$11,$B$11/PRODUCT(AP4:AZ4),IF(PRODUCT(AP4:BA4)<$B$12,$B$12/PRODUCT(AP4:AZ4),BA4)) -> 0.9348168183 | BB5: =IF(PRODUCT(AQ4:BB4)>$B$11,$B$11/PRODUCT(AQ4:BA4),IF(PRODUCT(AQ4:BB4)<$B$12,$B$12/PRODUCT(AQ4:BA4),BB4)) -> 0.9074250175 | BC5: =IF(PRODUCT(AR4:BC4)>$B$11,$B$11/PRODUCT(AR4:BB4),IF(PRODUCT(AR4:BC4)<$B$12,$B$12/PRODUCT(AR4:BB4),BC4)) -> 0.9813700224 | BD5: =IF(PRODUCT(AS4:BD4)>$B$11,$B$11/PRODUCT(AS4:BC4),IF(PRODUCT(AS4:BD4)<$B$12,$B$12/PRODUCT(AS4:BC4),BD4)) -> 1.000530129 | BE5: =IF(PRODUCT(AT4:BE4)>$B$11,$B$11/PRODUCT(AT4:BD4),IF(PRODUCT(AT4:BE4)<$B$12,$B$12/PRODUCT(AT4:BD4),BE4)) -> 0.9624491101 | BF5: =IF(PRODUCT(AU4:BF4)>$B$11,$B$11/PRODUCT(AU4:BE4),IF(PRODUCT(AU4:BF4)<$B$12,$B$12/PRODUCT(AU4:BE4),BF4)) -> 0.9271263562 | BG5: =IF(PRODUCT(AV4:BG4)>$B$11,$B$11/PRODUCT(AV4:BF4),IF(PRODUCT(AV4:BG4)<$B$12,$B$12/PRODUCT(AV4:BF4),BG4)) -> 0.950976806 | BH5: =IF(PRODUCT(AW4:BH4)>$B$11,$B$11/PRODUCT(AW4:BG4),IF(PRODUCT(AW4:BH4)<$B$12,$B$12/PRODUCT(AW4:BG4),BH4)) -> 1.030261692 | BI5: =IF(PRODUCT(AX4:BI4)>$B$11,$B$11/PRODUCT(AX4:BH4),IF(PRODUCT(AX4:BI4)<$B$12,$B$12/PRODUCT(AX4:BH4),BI4)) -> 1.016788742 | BJ5: =IF(PRODUCT(AY4:BJ4)>$B$11,$B$11/PRODUCT(AY4:BI4),IF(PRODUCT(AY4:BJ4)<$B$12,$B$12/PRODUCT(AY4:BI4),BJ4)) -> 1.046307169 | BK5: =IF(PRODUCT(AZ4:BK4)>$B$11,$B$11/PRODUCT(AZ4:BJ4),IF(PRODUCT(AZ4:BK4)<$B$12,$B$12/PRODUCT(AZ4:BJ4),BK4)) -> 0.9899890114 | BL5: =IF(PRODUCT(BA4:BL4)>$B$11,$B$11/PRODUCT(BA4:BK4),IF(PRODUCT(BA4:BL4)<$B$12,$B$12/PRODUCT(BA4:BK4),BL4)) -> 1.050123163 | BM5: =IF(PRODUCT(BB4:BM4)>$B$11,$B$11/PRODUCT(BB4:BL4),IF(PRODUCT(BB4:BM4)<$B$12,$B$12/PRODUCT(BB4:BL4),BM4)) -> 1.128308576 | BN5: =IF(PRODUCT(BC4:BN4)>$B$11,$B$11/PRODUCT(BC4:BM4),IF(PRODUCT(BC4:BN4)<$B$12,$B$12/PRODUCT(BC4:BM4),BN4)) -> 1.084388244 | BO5: =IF(PRODUCT(BD4:BO4)>$B$11,$B$11/PRODUCT(BD4:BN4),IF(PRODUCT(BD4:BO4)<$B$12,$B$12/PRODUCT(BD4:BN4),BO4)) -> 1.131967843 | BP5: =IF(PRODUCT(BE4:BP4)>$B$11,$B$11/PRODUCT(BE4:BO4),IF(PRODUCT(BE4:BP4)<$B$12,$B$12/PRODUCT(BE4:BO4),BP4)) -> 1.152433926 | BQ5: =IF(PRODUCT(BF4:BQ4)>$B$11,$B$11/PRODUCT(BF4:BP4),IF(PRODUCT(BF4:BQ4)<$B$12,$B$12/PRODUCT(BF4:BP4),BQ4)) -> 1.110787909 | BR5: =IF(PRODUCT(BG4:BR4)>$B$11,$B$11/PRODUCT(BG4:BQ4),IF(PRODUCT(BG4:BR4)<$B$12,$B$12/PRODUCT(BG4:BQ4),BR4)) -> 1.085052366 | BS5: =IF(PRODUCT(BH4:BS4)>$B$11,$B$11/PRODUCT(BH4:BR4),IF(PRODUCT(BH4:BS4)<$B$12,$B$12/PRODUCT(BH4:BR4),BS4)) -> 1.11968665 | BT5: =IF(PRODUCT(BI4:BT4)>$B$11,$B$11/PRODUCT(BI4:BS4),IF(PRODUCT(BI4:BT4)<$B$12,$B$12/PRODUCT(BI4:BS4),BT4)) -> 1.080559105 | BU5: =IF(PRODUCT(BJ4:BU4)>$B$11,$B$11/PRODUCT(BJ4:BT4),IF(PRODUCT(BJ4:BU4)<$B$12,$B$12/PRODUCT(BJ4:BT4),BU4)) -> 1.16891062 | BV5: =IF(PRODUCT(BK4:BV4)>$B$11,$B$11/PRODUCT(BK4:BU4),IF(PRODUCT(BK4:BV4)<$B$12,$B$12/PRODUCT(BK4:BU4),BV4)) -> 1.273680502 | BW5: =IF(PRODUCT(BL4:BW4)>$B$11,$B$11/PRODUCT(BL4:BV4),IF(PRODUCT(BL4:BW4)<$B$12,$B$12/PRODUCT(BL4:BV4),BW4)) -> 1.261809921 | BX5: =IF(PRODUCT(BM4:BX4)>$B$11,$B$11/PRODUCT(BM4:BW4),IF(PRODUCT(BM4:BX4)<$B$12,$B$12/PRODUCT(BM4:BW4),BX4)) -> 1.332255368 | BY5: =IF(PRODUCT(BN4:BY4)>$B$11,$B$11/PRODUCT(BN4:BX4),IF(PRODUCT(BN4:BY4)<$B$12,$B$12/PRODUCT(BN4:BX4),BY4)) -> 1.403931269 | BZ5: =IF(PRODUCT(BO4:BZ4)>$B$11,$B$11/PRODUCT(BO4:BY4),IF(PRODUCT(BO4:BZ4)<$B$12,$B$12/PRODUCT(BO4:BY4),BZ4)) -> 1.496946417 | CA5: =IF(PRODUCT(BP4:CA4)>$B$11,$B$11/PRODUCT(BP4:BZ4),IF(PRODUCT(BP4:CA4)<$B$12,$B$12/PRODUCT(BP4:BZ4),CA4)) -> 1.682679234 | CB5: =IF(PRODUCT(BQ4:CB4)>$B$11,$B$11/PRODUCT(BQ4:CA4),IF(PRODUCT(BQ4:CB4)<$B$12,$B$12/PRODUCT(BQ4:CA4),CB4)) -> 1.703337931 | CC5: =IF(PRODUCT(BR4:CC4)>$B$11,$B$11/PRODUCT(BR4:CB4),IF(PRODUCT(BR4:CC4)<$B$12,$B$12/PRODUCT(BR4:CB4),CC4)) -> 1.661588535 | CD5: =IF(PRODUCT(BS4:CD4)>$B$11,$B$11/PRODUCT(BS4:CC4),IF(PRODUCT(BS4:CD4)<$B$12,$B$12/PRODUCT(BS4:CC4),CD4)) -> 1.535502112 | CE5: =IF(PRODUCT(BT4:CE4)>$B$11,$B$11/PRODUCT(BT4:CD4),IF(PRODUCT(BT4:CE4)<$B$12,$B$12/PRODUCT(BT4:CD4),CE4)) -> 1.750685091 | CF5: =IF(PRODUCT(BU4:CF4)>$B$11,$B$11/PRODUCT(BU4:CE4),IF(PRODUCT(BU4:CF4)<$B$12,$B$12/PRODUCT(BU4:CE4),CF4)) -> 1.588120654 | CG5: =IF(PRODUCT(BV4:CG4)>$B$11,$B$11/PRODUCT(BV4:CF4),IF(PRODUCT(BV4:CG4)<$B$12,$B$12/PRODUCT(BV4:CF4),CG4)) -> 1.42094033 | CH5: =IF(PRODUCT(BW4:CH4)>$B$11,$B$11/PRODUCT(BW4:CG4),IF(PRODUCT(BW4:CH4)<$B$12,$B$12/PRODUCT(BW4:CG4),CH4)) -> 1.389753471 | CI5: =IF(PRODUCT(BX4:CI4)>$B$11,$B$11/PRODUCT(BX4:CH4),IF(PRODUCT(BX4:CI4)<$B$12,$B$12/PRODUCT(BX4:CH4),CI4)) -> 1.173905809 | CJ5: =IF(PRODUCT(BY4:CJ4)>$B$11,$B$11/PRODUCT(BY4:CI4),IF(PRODUCT(BY4:CJ4)<$B$12,$B$12/PRODUCT(BY4:CI4),CJ4)) -> 1.169012168 | CK5: =IF(PRODUCT(BZ4:CK4)>$B$11,$B$11/PRODUCT(BZ4:CJ4),IF(PRODUCT(BZ4:CK4)<$B$12,$B$12/PRODUCT(BZ4:CJ4),CK4)) -> 1.114119644 | CL5: =IF(PRODUCT(CA4:CL4)>$B$11,$B$11/PRODUCT(CA4:CK4),IF(PRODUCT(CA4:CL4)<$B$12,$B$12/PRODUCT(CA4:CK4),CL4)) -> 1.044555435 | CM5: =IF(PRODUCT(CB4:CM4)>$B$11,$B$11/PRODUCT(CB4:CL4),IF(PRODUCT(CB4:CM4)<$B$12,$B$12/PRODUCT(CB4:CL4),CM4)) -> 1.075006191 | CN5: =IF(PRODUCT(CC4:CN4)>$B$11,$B$11/PRODUCT(CC4:CM4),IF(PRODUCT(CC4:CN4)<$B$12,$B$12/PRODUCT(CC4:CM4),CN4)) -> 0.9758807242 | CO5: =IF(PRODUCT(CD4:CO4)>$B$11,$B$11/PRODUCT(CD4:CN4),IF(PRODUCT(CD4:CO4)<$B$12,$B$12/PRODUCT(CD4:CN4),CO4)) -> 0.914866012 | CP5: =IF(PRODUCT(CE4:CP4)>$B$11,$B$11/PRODUCT(CE4:CO4),IF(PRODUCT(CE4:CP4)<$B$12,$B$12/PRODUCT(CE4:CO4),CP4)) -> 0.8894481417 | CQ5: =IF(PRODUCT(CF4:CQ4)>$B$11,$B$11/PRODUCT(CF4:CP4),IF(PRODUCT(CF4:CQ4)<$B$12,$B$12/PRODUCT(CF4:CP4),CQ4)) -> 0.815791045 | CR5: =IF(PRODUCT(CG4:CR4)>$B$11,$B$11/PRODUCT(CG4:CQ4),IF(PRODUCT(CG4:CR4)<$B$12,$B$12/PRODUCT(CG4:CQ4),CR4)) -> 0.9796077292 | CS5: =IF(PRODUCT(CH4:CS4)>$B$11,$B$11/PRODUCT(CH4:CR4),IF(PRODUCT(CH4:CS4)<$B$12,$B$12/PRODUCT(CH4:CR4),CS4)) -> 1.035338045 | CT5: =IF(PRODUCT(CI4:CT4)>$B$11,$B$11/PRODUCT(CI4:CS4),IF(PRODUCT(CI4:CT4)<$B$12,$B$12/PRODUCT(CI4:CS4),CT4)) -> 1.026643304 | CU5: =IF(PRODUCT(CJ4:CU4)>$B$11,$B$11/PRODUCT(CJ4:CT4),IF(PRODUCT(CJ4:CU4)<$B$12,$B$12/PRODUCT(CJ4:CT4),CU4)) -> 0.8734313818 | CV5: =IF(PRODUCT(CK4:CV4)>$B$11,$B$11/PRODUCT(CK4:CU4),IF(PRODUCT(CK4:CV4)<$B$12,$B$12/PRODUCT(CK4:CU4),CV4)) -> 0.8317844509 | CW5: =IF(PRODUCT(CL4:CW4)>$B$11,$B$11/PRODUCT(CL4:CV4),IF(PRODUCT(CL4:CW4)<$B$12,$B$12/PRODUCT(CL4:CV4),CW4)) -> 0.7655734485 | CX5: =IF(PRODUCT(CM4:CX4)>$B$11,$B$11/PRODUCT(CM4:CW4),IF(PRODUCT(CM4:CX4)<$B$12,$B$12/PRODUCT(CM4:CW4),CX4)) -> 0.8621162351 | CY5: =IF(PRODUCT(CN4:CY4)>$B$11,$B$11/PRODUCT(CN4:CX4),IF(PRODUCT(CN4:CY4)<$B$12,$B$12/PRODUCT(CN4:CX4),CY4)) -> 0.9183824403 | CZ5: =IF(PRODUCT(CO4:CZ4)>$B$11,$B$11/PRODUCT(CO4:CY4),IF(PRODUCT(CO4:CZ4)<$B$12,$B$12/PRODUCT(CO4:CY4),CZ4)) -> 0.9301505766 | DA5: =IF(PRODUCT(CP4:DA4)>$B$11,$B$11/PRODUCT(CP4:CZ4),IF(PRODUCT(CP4:DA4)<$B$12,$B$12/PRODUCT(CP4:CZ4),DA4)) -> 0.8807214867 | DB5: =IF(PRODUCT(CQ4:DB4)>$B$11,$B$11/PRODUCT(CQ4:DA4),IF(PRODUCT(CQ4:DB4)<$B$12,$B$12/PRODUCT(CQ4:DA4),DB4)) -> 1.026884617 | DC5: =IF(PRODUCT(CR4:DC4)>$B$11,$B$11/PRODUCT(CR4:DB4),IF(PRODUCT(CR4:DC4)<$B$12,$B$12/PRODUCT(CR4:DB4),DC4)) -> 0.8629887526 | DD5: =IF(PRODUCT(CS4:DD4)>$B$11,$B$11/PRODUCT(CS4:DC4),IF(PRODUCT(CS4:DD4)<$B$12,$B$12/PRODUCT(CS4:DC4),DD4)) -> 0.8670680526 | DE5: =IF(PRODUCT(CT4:DE4)>$B$11,$B$11/PRODUCT(CT4:DD4),IF(PRODUCT(CT4:DE4)<$B$12,$B$12/PRODUCT(CT4:DD4),DE4)) -> 0.9394856905 | DF5: =IF(PRODUCT(CU4:DF4)>$B$11,$B$11/PRODUCT(CU4:DE4),IF(PRODUCT(CU4:DF4)<$B$12,$B$12/PRODUCT(CU4:DE4),DF4)) -> 0.8903026419 | DG5: =IF(PRODUCT(CV4:DG4)>$B$11,$B$11/PRODUCT(CV4:DF4),IF(PRODUCT(CV4:DG4)<$B$12,$B$12/PRODUCT(CV4:DF4),DG4)) -> 0.9178265908 | DH5: =IF(PRODUCT(CW4:DH4)>$B$11,$B$11/PRODUCT(CW4:DG4),IF(PRODUCT(CW4:DH4)<$B$12,$B$12/PRODUCT(CW4:DG4),DH4)) -> 1.001696719 | DI5: =IF(PRODUCT(CX4:DI4)>$B$11,$B$11/PRODUCT(CX4:DH4),IF(PRODUCT(CX4:DI4)<$B$12,$B$12/PRODUCT(CX4:DH4),DI4)) -> 0.8270599998 | DJ5: =IF(PRODUCT(CY4:DJ4)>$B$11,$B$11/PRODUCT(CY4:DI4),IF(PRODUCT(CY4:DJ4)<$B$12,$B$12/PRODUCT(CY4:DI4),DJ4)) -> 0.8106883155 | DK5: =IF(PRODUCT(CZ4:DK4)>$B$11,$B$11/PRODUCT(CZ4:DJ4),IF(PRODUCT(CZ4:DK4)<$B$12,$B$12/PRODUCT(CZ4:DJ4),DK4)) -> 0.8366578812 | DL5: =IF(PRODUCT(DA4:DL4)>$B$11,$B$11/PRODUCT(DA4:DK4),IF(PRODUCT(DA4:DL4)<$B$12,$B$12/PRODUCT(DA4:DK4),DL4)) -> 0.7617026329 | DM5: =IF(PRODUCT(DB4:DM4)>$B$11,$B$11/PRODUCT(DB4:DL4),IF(PRODUCT(DB4:DM4)<$B$12,$B$12/PRODUCT(DB4:DL4),DM4)) -> 0.7485628526 | DN5: =IF(PRODUCT(DC4:DN4)>$B$11,$B$11/PRODUCT(DC4:DM4),IF(PRODUCT(DC4:DN4)<$B$12,$B$12/PRODUCT(DC4:DM4),DN4)) -> 0.7498207721 | DO5: =IF(PRODUCT(DD4:DO4)>$B$11,$B$11/PRODUCT(DD4:DN4),IF(PRODUCT(DD4:DO4)<$B$12,$B$12/PRODUCT(DD4:DN4),DO4)) -> 0.7428664988 | DP5: =IF(PRODUCT(DE4:DP4)>$B$11,$B$11/PRODUCT(DE4:DO4),IF(PRODUCT(DE4:DP4)<$B$12,$B$12/PRODUCT(DE4:DO4),DP4)) -> 0.6959260197 | DQ5: =IF(PRODUCT(DF4:DQ4)>$B$11,$B$11/PRODUCT(DF4:DP4),IF(PRODUCT(DF4:DQ4)<$B$12,$B$12/PRODUCT(DF4:DP4),DQ4)) -> 0.771159113 | DR5: =IF(PRODUCT(DG4:DR4)>$B$11,$B$11/PRODUCT(DG4:DQ4),IF(PRODUCT(DG4:DR4)<$B$12,$B$12/PRODUCT(DG4:DQ4),DR4)) -> 0.7771811818 | DS5: =IF(PRODUCT(DH4:DS4)>$B$11,$B$11/PRODUCT(DH4:DR4),IF(PRODUCT(DH4:DS4)<$B$12,$B$12/PRODUCT(DH4:DR4),DS4)) -> 0.7448420801 | DT5: =IF(PRODUCT(DI4:DT4)>$B$11,$B$11/PRODUCT(DI4:DS4),IF(PRODUCT(DI4:DT4)<$B$12,$B$12/PRODUCT(DI4:DS4),DT4)) -> 0.8402443349 | DU5: =IF(PRODUCT(DJ4:DU4)>$B$11,$B$11/PRODUCT(DJ4:DT4),IF(PRODUCT(DJ4:DU4)<$B$12,$B$12/PRODUCT(DJ4:DT4),DU4)) -> 0.8855900312 | DV5: =IF(PRODUCT(DK4:DV4)>$B$11,$B$11/PRODUCT(DK4:DU4),IF(PRODUCT(DK4:DV4)<$B$12,$B$12/PRODUCT(DK4:DU4),DV4)) -> 0.8466110479 | DW5: =IF(PRODUCT(DL4:DW4)>$B$11,$B$11/PRODUCT(DL4:DV4),IF(PRODUCT(DL4:DW4)<$B$12,$B$12/PRODUCT(DL4:DV4),DW4)) -> 0.9212504875
A6: Monthly Mean | B6: =B4-0.5*B5^2 -> 0.010171875 | C6: =C4-0.5*C5^2 -> -0.013016125 | E6: January | F6: BOM_Pre_CF_Balance | G6: 0 | H6: =$B$17 -> 0 | I6: =H13 -> 1053.67281 | J6: =I13 -> 1072.541521 | K6: 1104.853543 | L6: 1081.217794 | M6: 1043.776357 | N6: 1000.906956 | O6: 1015.516036 | P6: 1017.931497 | Q6: 1021.751488 | R6: =Q13 -> 970.3583436 | S6: =R13 -> 986.3000337 | T6: =S13 -> 1050 | U6: =T13 -> 2065.34923 | V6: =U13 -> 2030.726749 | W6: 2097.144924 | X6: =W13 -> 2133.684922 | Y6: 2101.029486 | Z6: 2029.415464 | AA6: 2037.152669 | AB6: 2106.922026 | AC6: =AB13 -> 2158.496448 | AD6: =AC13 -> 2144.930787 | AE6: =AD13 -> 2158.572817 | AF6: =AE13 -> 2152.5 | AG6: =AF13 -> 3038.10291 | AH6: =AG13 -> 3171.088137 | AI6: =AH13 -> 3255.463047 | AJ6: =AI13 -> 3144.604824 | AK6: =AJ13 -> 3126.960653 | AL6: =AK13 -> 3301.248644 | AM6: =AL13 -> 3212.773289 | AN6: =AM13 -> 3195.087348 | AO6: =AN13 -> 3256.799449 | AP6: =AO13 -> 3253.842135 | AQ6: =AP13 -> 3203.41564 | AR6: =AQ13 -> 3310.125 | AS6: =AR13 -> 4576.087105 | AT6: =AS13 -> 4585.152019 | AU6: =AT13 -> 4758.283718 | AV6: =AU13 -> 4540.489196 | AW6: =AV13 -> 4345.273789 | AX6: =AW13 -> 4502.247738 | AY6: =AX13 -> 4506.846129 | AZ6: =AY13 -> 4767.020746 | BA6: =AZ13 -> 5210.916395 | BB6: =BA13 -> 5285.020631 | BC6: =BB13 -> 4962.899965 | BD6: =BC13 -> 4870.44125 | BE6: =BD13 -> 6114.804808 | BF6: =BE13 -> 6142.020827 | BG6: =BF13 -> 5694.429389 | BH6: =BG13 -> 5277.665778 | BI6: =BH13 -> 5437.376872 | BJ6: =BI13 -> 5528.663587 | BK6: =BJ13 -> 5978.069828 | BL6: =BK13 -> 5918.223439 | BM6: =BL13 -> 5586.454785 | BN6: =BM13 -> 5458.435854 | BO6: =BN13 -> 5445.351962 | BP6: =BO13 -> 6163.963313 | BQ6: =BP13 -> 7465.638045 | BR6: =BQ13 -> 7085.757796 | BS6: =BR13 -> 6364.02934 | BT6: =BS13 -> 6794.033715 | BU6: =BT13 -> 6385.951994 | BV6: =BU13 -> 6337.052025 | BW6: =BV13 -> 6332.63139 | BX6: =BW13 -> 5661.55328 | BY6: =BX13 -> 5249.393792 | BZ6: =BY13 -> 4911.41339 | CA6: =BZ13 -> 4470.347839 | CB6: =CA13 -> 7522.161478 | CC6: =CB13 -> 8291.755023 | CD6: =CC13 -> 8058.70766 | CE6: =CD13 -> 7545.765608 | CF6: =CE13 -> 7818.542509 | CG6: =CF13 -> 8671.516964 | CH6: =CG13 -> 8859.92587 | CI6: =CH13 -> 9377.476693 | CJ6: =CI13 -> 8731.196616 | CK6: =CJ13 -> 8571.52911 | CL6: =CK13 -> 8550.385736 | CM6: =CL13 -> 8931.351895 | CN6: =CM13 -> 9601.25858 | CO6: =CN13 -> 10990.45349 | CP6: =CO13 -> 10584.98833 | CQ6: =CP13 -> 11957.89052 | CR6: =CQ13 -> 10899.42073 | CS6: =CR13 -> 10677.15679 | CT6: =CS13 -> 11396.56887 | CU6: =CT13 -> 12472.47612 | CV6: =CU13 -> 12857.46089 | CW6: =CV13 -> 13934.98642 | CX6: =CW13 -> 12925.84912 | CY6: =CX13 -> 13044.04534 | CZ6: =CY13 -> 11979.42219 | DA6: =CZ13 -> 13202.1541 | DB6: =DA13 -> 12791.63124 | DC6: =DB13 -> 13873.66768 | DD6: =DC13 -> 13526.8116 | DE6: =DD13 -> 13325.29879 | DF6: =DE13 -> 15388.91586 | DG6: =DF13 -> 15388.1915 | DH6: =DG13 -> 15281.40565 | DI6: =DH13 -> 17167.81684 | DJ6: =DI13 -> 17674.67319 | DK6: =DJ13 -> 17530.16067 | DL6: =DK13 -> 14666.74708 | DM6: =DL13 -> 15446.03984 | DN6: =DM13 -> 16724.50649 | DO6: =DN13 -> 16459.02706 | DP6: =DO13 -> 17307.46143 | DQ6: =DP13 -> 18037.7981 | DR6: =DQ13 -> 17897.18788 | DS6: =DR13 -> 18544.64788 | DT6: =DS13 -> 18468.38713 | DU6: =DT13 -> 18040.06776 | DV6: =DU13 -> 18716.36285 | DW6: =DV13 -> 19216.73252
A7: Chance to Switch | B7: 0.0523 | C7: 0.1516 | F7: BOM_POS_CF | G7: 0 | H7: =$B$14 -> 1000 | I7: 0 | J7: 0 | K7: 0 | L7: 0 | M7: 0 | N7: 0 | O7: 0 | P7: 0 | Q7: 0 | R7: 0 | S7: 0 | T7: =S95*(1+$C$14) -> 1000 | U7: 0 | V7: 0 | W7: 0 | X7: 0 | Y7: 0 | Z7: 0 | AA7: 0 | AB7: 0 | AC7: 0 | AD7: 0 | AE7: 0 | AF7: =AE95*(1+$C$14) -> 1000 | AG7: 0 | AH7: 0 | AI7: 0 | AJ7: 0 | AK7: 0 | AL7: 0 | AM7: 0 | AN7: 0 | AO7: 0 | AP7: 0 | AQ7: 0 | AR7: =AQ95*(1+$C$14) -> 1000 | AS7: 0 | AT7: 0 | AU7: 0 | AV7: 0 | AW7: 0 | AX7: 0 | AY7: 0 | AZ7: 0 | BA7: 0 | BB7: 0 | BC7: 0 | BD7: =BC95*(1+$C$14) -> 1000 | BE7: 0 | BF7: 0 | BG7: 0 | BH7: 0 | BI7: 0 | BJ7: 0 | BK7: 0 | BL7: 0 | BM7: 0 | BN7: 0 | BO7: 0 | BP7: =BO95*(1+$C$14) -> 1000 | BQ7: 0 | BR7: 0 | BS7: 0 | BT7: 0 | BU7: 0 | BV7: 0 | BW7: 0 | BX7: 0 | BY7: 0 | BZ7: 0 | CA7: 0 | CB7: =CA95*(1+$C$14) -> 1000 | CC7: 0 | CD7: 0 | CE7: 0 | CF7: 0 | CG7: 0 | CH7: 0 | CI7: 0 | CJ7: 0 | CK7: 0 | CL7: 0 | CM7: 0 | CN7: =CM95*(1+$C$14) -> 1000 | CO7: 0 | CP7: 0 | CQ7: 0 | CR7: 0 | CS7: 0 | CT7: 0 | CU7: 0 | CV7: 0 | CW7: 0 | CX7: 0 | CY7: 0 | CZ7: =CY95*(1+$C$14) -> 1000 | DA7: 0 | DB7: 0 | DC7: 0 | DD7: 0 | DE7: 0 | DF7: 0 | DG7: 0 | DH7: 0 | DI7: 0 | DJ7: 0 | DK7: 0 | DL7: =DK95*(1+$C$14) -> 1000 | DM7: 0 | DN7: 0 | DO7: 0 | DP7: 0 | DQ7: 0 | DR7: 0 | DS7: 0 | DT7: 0 | DU7: 0 | DV7: 0 | DW7: 0
A8: Overall Duration | B8: =C7/(C7+B7) -> 0.7435017165 | C8: =1-B8 -> 0.2564982835 | F8: BOM_NEG_CF | G8: 0 | H8: =IF($B$18=0,0,H6*(1-(1/($B$18+1)))/(1-(1/($B$18+1))^G$1)) -> 0 | I8: 0 | J8: 0 | K8: 0 | L8: 0 | M8: 0 | N8: 0 | O8: 0 | P8: 0 | Q8: 0 | R8: 0 | S8: 0 | T8: =IF($B$18=0,0,S$102*(1-(1/($B$18+1)))/(1-(1/($B$18+1))^S$1)) -> 0 | U8: 0 | V8: 0 | W8: 0 | X8: 0 | Y8: 0 | Z8: 0 | AA8: 0 | AB8: 0 | AC8: 0 | AD8: 0 | AE8: 0 | AF8: =IF($B$18=0,0,AE$102*(1-(1/($B$18+1)))/(1-(1/($B$18+1))^AE$1)) -> 0 | AG8: 0 | AH8: 0 | AI8: 0 | AJ8: 0 | AK8: 0 | AL8: 0 | AM8: 0 | AN8: 0 | AO8: 0 | AP8: 0 | AQ8: 0 | AR8: =IF($B$18=0,0,AQ$102*(1-(1/($B$18+1)))/(1-(1/($B$18+1))^AQ$1)) -> 0 | AS8: 0 | AT8: 0 | AU8: 0 | AV8: 0 | AW8: 0 | AX8: 0 | AY8: 0 | AZ8: 0 | BA8: 0 | BB8: 0 | BC8: 0 | BD8: =IF($B$18=0,0,BC$102*(1-(1/($B$18+1)))/(1-(1/($B$18+1))^BC$1)) -> 0 | BE8: 0 | BF8: 0 | BG8: 0 | BH8: 0 | BI8: 0 | BJ8: 0 | BK8: 0 | BL8: 0 | BM8: 0 | BN8: 0 | BO8: 0 | BP8: =IF($B$18=0,0,BO$102*(1-(1/($B$18+1)))/(1-(1/($B$18+1))^BO$1)) -> 0 | BQ8: 0 | BR8: 0 | BS8: 0 | BT8: 0 | BU8: 0 | BV8: 0 | BW8: 0 | BX8: 0 | BY8: 0 | BZ8: 0 | CA8: 0 | CB8: =IF($B$18=0,0,CA$102*(1-(1/($B$18+1)))/(1-(1/($B$18+1))^CA$1)) -> 0 | CC8: 0 | CD8: 0 | CE8: 0 | CF8: 0 | CG8: 0 | CH8: 0 | CI8: 0 | CJ8: 0 | CK8: 0 | CL8: 0 | CM8: 0 | CN8: =IF($B$18=0,0,CM$102*(1-(1/($B$18+1)))/(1-(1/($B$18+1))^CM$1)) -> 0 | CO8: 0 | CP8: 0 | CQ8: 0 | CR8: 0 | CS8: 0 | CT8: 0 | CU8: 0 | CV8: 0 | CW8: 0 | CX8: 0 | CY8: 0 | CZ8: =IF($B$18=0,0,CY$102*(1-(1/($B$18+1)))/(1-(1/($B$18+1))^CY$1)) -> 0 | DA8: 0 | DB8: 0 | DC8: 0 | DD8: 0 | DE8: 0 | DF8: 0 | DG8: 0 | DH8: 0 | DI8: 0 | DJ8: 0 | DK8: 0 | DL8: =IF($B$18=0,0,DK$102*(1-(1/($B$18+1)))/(1-(1/($B$18+1))^DK$1)) -> 0 | DM8: 0 | DN8: 0 | DO8: 0 | DP8: 0 | DQ8: 0 | DR8: 0 | DS8: 0 | DT8: 0 | DU8: 0 | DV8: 0 | DW8: 0
F9: BOM_COI | G9: 0 | H9: =$B$15 -> 0 | I9: 0 | J9: 0 | K9: 0 | L9: 0 | M9: 0 | N9: 0 | O9: 0 | P9: 0 | Q9: 0 | R9: 0 | S9: 0 | T9: =$B$15 -> 0 | U9: 0 | V9: 0 | W9: 0 | X9: 0 | Y9: 0 | Z9: 0 | AA9: 0 | AB9: 0 | AC9: 0 | AD9: 0 | AE9: 0 | AF9: =$B$15 -> 0 | AG9: 0 | AH9: 0 | AI9: 0 | AJ9: 0 | AK9: 0 | AL9: 0 | AM9: 0 | AN9: 0 | AO9: 0 | AP9: 0 | AQ9: 0 | AR9: =$B$15 -> 0 | AS9: 0 | AT9: 0 | AU9: 0 | AV9: 0 | AW9: 0 | AX9: 0 | AY9: 0 | AZ9: 0 | BA9: 0 | BB9: 0 | BC9: 0 | BD9: =$B$15 -> 0 | BE9: 0 | BF9: 0 | BG9: 0 | BH9: 0 | BI9: 0 | BJ9: 0 | BK9: 0 | BL9: 0 | BM9: 0 | BN9: 0 | BO9: 0 | BP9: =$B$15 -> 0 | BQ9: 0 | BR9: 0 | BS9: 0 | BT9: 0 | BU9: 0 | BV9: 0 | BW9: 0 | BX9: 0 | BY9: 0 | BZ9: 0 | CA9: 0 | CB9: =$B$15 -> 0 | CC9: 0 | CD9: 0 | CE9: 0 | CF9: 0 | CG9: 0 | CH9: 0 | CI9: 0 | CJ9: 0 | CK9: 0 | CL9: 0 | CM9: 0 | CN9: =$B$15 -> 0 | CO9: 0 | CP9: 0 | CQ9: 0 | CR9: 0 | CS9: 0 | CT9: 0 | CU9: 0 | CV9: 0 | CW9: 0 | CX9: 0 | CY9: 0 | CZ9: =$B$15 -> 0 | DA9: 0 | DB9: 0 | DC9: 0 | DD9: 0 | DE9: 0 | DF9: 0 | DG9: 0 | DH9: 0 | DI9: 0 | DJ9: 0 | DK9: 0 | DL9: =$B$15 -> 0 | DM9: 0 | DN9: 0 | DO9: 0 | DP9: 0 | DQ9: 0 | DR9: 0 | DS9: 0 | DT9: 0 | DU9: 0 | DV9: 0 | DW9: 0
A10: Adjust Rate | B10: Annually | C10: Monthly | F10: BOM_Expenses | G10: 0 | H10: =$B$16 -> 0 | I10: 0 | J10: 0 | K10: 0 | L10: 0 | M10: 0 | N10: 0 | O10: 0 | P10: 0 | Q10: 0 | R10: 0 | S10: 0 | T10: =$B$16 -> 0 | U10: 0 | V10: 0 | W10: 0 | X10: 0 | Y10: 0 | Z10: 0 | AA10: 0 | AB10: 0 | AC10: 0 | AD10: 0 | AE10: 0 | AF10: =$B$16 -> 0 | AG10: 0 | AH10: 0 | AI10: 0 | AJ10: 0 | AK10: 0 | AL10: 0 | AM10: 0 | AN10: 0 | AO10: 0 | AP10: 0 | AQ10: 0 | AR10: =$B$16 -> 0 | AS10: 0 | AT10: 0 | AU10: 0 | AV10: 0 | AW10: 0 | AX10: 0 | AY10: 0 | AZ10: 0 | BA10: 0 | BB10: 0 | BC10: 0 | BD10: =$B$16 -> 0 | BE10: 0 | BF10: 0 | BG10: 0 | BH10: 0 | BI10: 0 | BJ10: 0 | BK10: 0 | BL10: 0 | BM10: 0 | BN10: 0 | BO10: 0 | BP10: =$B$16 -> 0 | BQ10: 0 | BR10: 0 | BS10: 0 | BT10: 0 | BU10: 0 | BV10: 0 | BW10: 0 | BX10: 0 | BY10: 0 | BZ10: 0 | CA10: 0 | CB10: =$B$16 -> 0 | CC10: 0 | CD10: 0 | CE10: 0 | CF10: 0 | CG10: 0 | CH10: 0 | CI10: 0 | CJ10: 0 | CK10: 0 | CL10: 0 | CM10: 0 | CN10: =$B$16 -> 0 | CO10: 0 | CP10: 0 | CQ10: 0 | CR10: 0 | CS10: 0 | CT10: 0 | CU10: 0 | CV10: 0 | CW10: 0 | CX10: 0 | CY10: 0 | CZ10: =$B$16 -> 0 | DA10: 0 | DB10: 0 | DC10: 0 | DD10: 0 | DE10: 0 | DF10: 0 | DG10: 0 | DH10: 0 | DI10: 0 | DJ10: 0 | DK10: 0 | DL10: =$B$16 -> 0 | DM10: 0 | DN10: 0 | DO10: 0 | DP10: 0 | DQ10: 0 | DR10: 0 | DS10: 0 | DT10: 0 | DU10: 0 | DV10: 0 | DW10: 0
A11: Annual Upper Limit | B11: 1.13 | C11: =B11^(1/12) -> 1.010236844 | F11: BOM_Post_CF_Balance | G11: 0 | H11: =H6+H7-H8-H9-H10 -> 1000 | I11: 1053.67281 | J11: 1072.541521 | K11: 1104.853543 | L11: 1081.217794 | M11: 1043.776357 | N11: 1000.906956 | O11: 1015.516036 | P11: 1017.931497 | Q11: 1021.751488 | R11: 970.3583436 | S11: 986.3000337 | T11: 2050 | U11: 2065.34923 | V11: 2030.726749 | W11: 2097.144924 | X11: 2133.684922 | Y11: 2101.029486 | Z11: 2029.415464 | AA11: 2037.152669 | AB11: 2106.922026 | AC11: 2158.496448 | AD11: 2144.930787 | AE11: 2158.572817 | AF11: =AF6+AF7-AF8-AF9-AF10 -> 3152.5 | AG11: 3038.10291 | AH11: 3171.088137 | AI11: 3255.463047 | AJ11: 3144.604824 | AK11: 3126.960653 | AL11: 3301.248644 | AM11: 3212.773289 | AN11: 3195.087348 | AO11: 3256.799449 | AP11: 3253.842135 | AQ11: 3203.41564 | AR11: 4310.125 | AS11: 4576.087105 | AT11: 4585.152019 | AU11: 4758.283718 | AV11: 4540.489196 | AW11: 4345.273789 | AX11: 4502.247738 | AY11: 4506.846129 | AZ11: 4767.020746 | BA11: 5210.916395 | BB11: 5285.020631 | BC11: 4962.899965 | BD11: 5870.44125 | BE11: 6114.804808 | BF11: 6142.020827 | BG11: 5694.429389 | BH11: 5277.665778 | BI11: 5437.376872 | BJ11: 5528.663587 | BK11: 5978.069828 | BL11: 5918.223439 | BM11: 5586.454785 | BN11: 5458.435854 | BO11: 5445.351962 | BP11: 7163.963313 | BQ11: 7465.638045 | BR11: 7085.757796 | BS11: 6364.02934 | BT11: 6794.033715 | BU11: 6385.951994 | BV11: 6337.052025 | BW11: 6332.63139 | BX11: 5661.55328 | BY11: 5249.393792 | BZ11: 4911.41339 | CA11: 4470.347839 | CB11: 8522.161478 | CC11: 8291.755023 | CD11: 8058.70766 | CE11: 7545.765608 | CF11: 7818.542509 | CG11: 8671.516964 | CH11: 8859.92587 | CI11: 9377.476693 | CJ11: 8731.196616 | CK11: 8571.52911 | CL11: 8550.385736 | CM11: 8931.351895 | CN11: 10601.25858 | CO11: 10990.45349 | CP11: 10584.98833 | CQ11: 11957.89052 | CR11: =CR6+CR7-CR8-CR9-CR10 -> 10899.42073 | CS11: 10677.15679 | CT11: 11396.56887 | CU11: 12472.47612 | CV11: 12857.46089 | CW11: 13934.98642 | CX11: 12925.84912 | CY11: 13044.04534 | CZ11: 12979.42219 | DA11: 13202.1541 | DB11: 12791.63124 | DC11: 13873.66768 | DD11: 13526.8116 | DE11: 13325.29879 | DF11: 15388.91586 | DG11: 15388.1915 | DH11: 15281.40565 | DI11: 17167.81684 | DJ11: 17674.67319 | DK11: 17530.16067 | DL11: =DL6+DL7-DL8-DL9-DL10 -> 15666.74708 | DM11: 15446.03984 | DN11: 16724.50649 | DO11: 16459.02706 | DP11: 17307.46143 | DQ11: 18037.7981 | DR11: 17897.18788 | DS11: 18544.64788 | DT11: 18468.38713 | DU11: 18040.06776 | DV11: 18716.36285 | DW11: 19216.73252
A12: Annual Lower Limit | B12: 1.05 | C12: =B12^(1/12) -> 1.004074124 | F12: BOM_Post_CF_Balance_ADJ | G12: 0 | H12: =IF(H11<0,0,H11) -> 1000 | I12: =IF(I11<0,0,IF(I19<=0,IF(I11+I19<=0,0,I11+I19),I11)) -> 1053.67281 | J12: =IF(J11<0,0,IF(J27+J11<=0,0,IF(J27>=0,J11,J27+J11))) -> 1072.541521 | K12: =IF(K11<0,0,IF(K11+K35<=0,0,IF(K35>=0,K11,K11+K35))) -> 1104.853543 | L12: =IF(L11<0,0,IF(L11+L43<=0,0,IF(L43>=0,L11,L11+L43))) -> 1081.217794 | M12: =IF(M11<0,0,IF(M11+M51<=0,0,IF(M51>=0,M11,M11+M51))) -> 1043.776357 | N12: =IF(N11<0,0,IF(N11+N59<=0,0,IF(N59>=0,N11,N11+N59))) -> 1000.906956 | O12: =IF(O11<0,0,IF(O11+O67<=0,0,IF(O67>=0,O11,O11+O67))) -> 1015.516036 | P12: =IF(P11<0,0,IF(P11+P75<=0,0,IF(P75>=0,P11,P11+P75))) -> 1017.931497 | Q12: =IF(Q11<0,0,IF(Q11+Q83<=0,0,IF(Q83>=0,Q11,Q11+Q83))) -> 1021.751488 | R12: =IF(R11<0,0,IF(R11+R91<=0,0,IF(R91>=0,R11,R11+R91))) -> 970.3583436 | S12: =IF(S11<0,0,IF(S11+S99<=0,0,IF(S99>=0,S11,S11+S99))) -> 986.3000337 | T12: =IF(T11<=0,IF(T$103<=0,T$103,0),T11) -> 2050 | U12: =IF(U11<0,0,IF(U11+U19<=0,0,IF(U19>=0,U11,U11+U19))) -> 2065.34923 | V12: =IF(V11<0,0,IF(V11+V27<=0,0,IF(V27>=0,V11,V11+V27))) -> 2030.726749 | W12: =IF(W11<0,0,IF(W11+W35<=0,0,IF(W35>=0,W11,W11+W35))) -> 2097.144924 | X12: =IF(X11<0,0,IF(X11+X43<=0,0,IF(X43>=0,X11,X11+X43))) -> 2133.684922 | Y12: =IF(Y11<0,0,IF(Y11+Y51<=0,0,IF(Y51>=0,Y11,Y11+Y51))) -> 2101.029486 | Z12: =IF(Z11<0,0,IF(Z11+Z59<=0,0,IF(Z59>=0,Z11,Z11+Z59))) -> 2029.415464 | AA12: =IF(AA11<0,0,IF(AA11+AA67<=0,0,IF(AA67>=0,AA11,AA11+AA67))) -> 2037.152669 | AB12: =IF(AB11<0,0,IF(AB11+AB75<=0,0,IF(AB75>=0,AB11,AB11+AB75))) -> 2106.922026 | AC12: =IF(AC11<0,0,IF(AC11+AC83<=0,0,IF(AC83>=0,AC11,AC11+AC83))) -> 2158.496448 | AD12: =IF(AD11<0,0,IF(AD11+AD91<=0,0,IF(AD91>=0,AD11,AD11+AD91))) -> 2144.930787 | AE12: =IF(AE11<0,0,IF(AE11+AE99<=0,0,IF(AE99>=0,AE11,AE11+AE99))) -> 2158.572817 | AF12: =IF(AF11<=0,IF(AF$103<=0,AF$103,0),AF11) -> 3152.5 | AG12: =IF(AG11<0,0,IF(AG11+AG19<=0,0,IF(AG19>=0,AG11,AG11+AG19))) -> 3038.10291 | AH12: =IF(AH11<0,0,IF(AH11+AH27<=0,0,IF(AH27>=0,AH11,AH11+AH27))) -> 3171.088137 | AI12: =IF(AI11<0,0,IF(AI11+AI35<=0,0,IF(AI35>=0,AI11,AI11+AI35))) -> 3255.463047 | AJ12: =IF(AJ11<0,0,IF(AJ11+AJ43<=0,0,IF(AJ43>=0,AJ11,AJ11+AJ43))) -> 3144.604824 | AK12: =IF(AK11<0,0,IF(AK11+AK51<=0,0,IF(AK51>=0,AK11,AK11+AK51))) -> 3126.960653 | AL12: =IF(AL11<0,0,IF(AL11+AL59<=0,0,IF(AL59>=0,AL11,AL11+AL59))) -> 3301.248644 | AM12: =IF(AM11<0,0,IF(AM11+AM67<=0,0,IF(AM67>=0,AM11,AM11+AM67))) -> 3212.773289 | AN12: =IF(AN11<0,0,IF(AN11+AN75<=0,0,IF(AN75>=0,AN11,AN11+AN75))) -> 3195.087348 | AO12: =IF(AO11<0,0,IF(AO11+AO83<=0,0,IF(AO83>=0,AO11,AO11+AO83))) -> 3256.799449 | AP12: =IF(AP11<0,0,IF(AP11+AP91<=0,0,IF(AP91>=0,AP11,AP11+AP91))) -> 3253.842135 | AQ12: =IF(AQ11<0,0,IF(AQ11+AQ99<=0,0,IF(AQ99>=0,AQ11,AQ11+AQ99))) -> 3203.41564 | AR12: =IF(AR11<=0,IF(AR$103<=0,AR$103,0),AR11) -> 4310.125 | AS12: =IF(AS11<0,0,IF(AS11+AS19<=0,0,IF(AS19>=0,AS11,AS11+AS19))) -> 4576.087105 | AT12: =IF(AT11<0,0,IF(AT11+AT27<=0,0,IF(AT27>=0,AT11,AT11+AT27))) -> 4585.152019 | AU12: =IF(AU11<0,0,IF(AU11+AU35<=0,0,IF(AU35>=0,AU11,AU11+AU35))) -> 4758.283718 | AV12: =IF(AV11<0,0,IF(AV11+AV43<=0,0,IF(AV43>=0,AV11,AV11+AV43))) -> 4540.489196 | AW12: =IF(AW11<0,0,IF(AW11+AW51<=0,0,IF(AW51>=0,AW11,AW11+AW51))) -> 4345.273789 | AX12: =IF(AX11<0,0,IF(AX11+AX59<=0,0,IF(AX59>=0,AX11,AX11+AX59))) -> 4502.247738 | AY12: =IF(AY11<0,0,IF(AY11+AY67<=0,0,IF(AY67>=0,AY11,AY11+AY67))) -> 4506.846129 | AZ12: =IF(AZ11<0,0,IF(AZ11+AZ75<=0,0,IF(AZ75>=0,AZ11,AZ11+AZ75))) -> 4767.020746 | BA12: =IF(BA11<0,0,IF(BA11+BA83<=0,0,IF(BA83>=0,BA11,BA11+BA83))) -> 5210.916395 | BB12: =IF(BB11<0,0,IF(BB11+BB91<=0,0,IF(BB91>=0,BB11,BB11+BB91))) -> 5285.020631 | BC12: =IF(BC11<0,0,IF(BC11+BC99<=0,0,IF(BC99>=0,BC11,BC11+BC99))) -> 4962.899965 | BD12: =IF(BD11<=0,IF(BD$103<=0,BD$103,0),BD11) -> 5870.44125 | BE12: =IF(BE11<0,0,IF(BE11+BE19<=0,0,IF(BE19>=0,BE11,BE11+BE19))) -> 6114.804808 | BF12: =IF(BF11<0,0,IF(BF11+BF27<=0,0,IF(BF27>=0,BF11,BF11+BF27))) -> 6142.020827 | BG12: =IF(BG11<0,0,IF(BG11+BG35<=0,0,IF(BG35>=0,BG11,BG11+BG35))) -> 5694.429389 | BH12: =IF(BH11<0,0,IF(BH11+BH43<=0,0,IF(BH43>=0,BH11,BH11+BH43))) -> 5277.665778 | BI12: =IF(BI11<0,0,IF(BI11+BI51<=0,0,IF(BI51>=0,BI11,BI11+BI51))) -> 5437.376872 | BJ12: =IF(BJ11<0,0,IF(BJ11+BJ59<=0,0,IF(BJ59>=0,BJ11,BJ11+BJ59))) -> 5528.663587 | BK12: =IF(BK11<0,0,IF(BK11+BK67<=0,0,IF(BK67>=0,BK11,BK11+BK67))) -> 5978.069828 | BL12: =IF(BL11<0,0,IF(BL11+BL75<=0,0,IF(BL75>=0,BL11,BL11+BL75))) -> 5918.223439 | BM12: =IF(BM11<0,0,IF(BM11+BM83<=0,0,IF(BM83>=0,BM11,BM11+BM83))) -> 5586.454785 | BN12: =IF(BN11<0,0,IF(BN11+BN91<=0,0,IF(BN91>=0,BN11,BN11+BN91))) -> 5458.435854 | BO12: =IF(BO11<0,0,IF(BO11+BO99<=0,0,IF(BO99>=0,BO11,BO11+BO99))) -> 5445.351962 | BP12: =IF(BP11<=0,IF(BP$103<=0,BP$103,0),BP11) -> 7163.963313 | BQ12: =IF(BQ11<0,0,IF(BQ11+BQ19<=0,0,IF(BQ19>=0,BQ11,BQ11+BQ19))) -> 7465.638045 | BR12: =IF(BR11<0,0,IF(BR11+BR27<=0,0,IF(BR27>=0,BR11,BR11+BR27))) -> 7085.757796 | BS12: =IF(BS11<0,0,IF(BS11+BS35<=0,0,IF(BS35>=0,BS11,BS11+BS35))) -> 6364.02934 | BT12: =IF(BT11<0,0,IF(BT11+BT43<=0,0,IF(BT43>=0,BT11,BT11+BT43))) -> 6794.033715 | BU12: =IF(BU11<0,0,IF(BU11+BU51<=0,0,IF(BU51>=0,BU11,BU11+BU51))) -> 6385.951994 | BV12: =IF(BV11<0,0,IF(BV11+BV59<=0,0,IF(BV59>=0,BV11,BV11+BV59))) -> 6337.052025 | BW12: =IF(BW11<0,0,IF(BW11+BW67<=0,0,IF(BW67>=0,BW11,BW11+BW67))) -> 6332.63139 | BX12: =IF(BX11<0,0,IF(BX11+BX75<=0,0,IF(BX75>=0,BX11,BX11+BX75))) -> 5661.55328 | BY12: =IF(BY11<0,0,IF(BY11+BY83<=0,0,IF(BY83>=0,BY11,BY11+BY83))) -> 5249.393792 | BZ12: =IF(BZ11<0,0,IF(BZ11+BZ91<=0,0,IF(BZ91>=0,BZ11,BZ11+BZ91))) -> 4911.41339 | CA12: =IF(CA11<0,0,IF(CA11+CA99<=0,0,IF(CA99>=0,CA11,CA11+CA99))) -> 4470.347839 | CB12: =IF(CB11<=0,IF(CB$103<=0,CB$103,0),CB11) -> 8522.161478 | CC12: =IF(CC11<0,0,IF(CC11+CC19<=0,0,IF(CC19>=0,CC11,CC11+CC19))) -> 8291.755023 | CD12: =IF(CD11<0,0,IF(CD11+CD27<=0,0,IF(CD27>=0,CD11,CD11+CD27))) -> 8058.70766 | CE12: =IF(CE11<0,0,IF(CE11+CE35<=0,0,IF(CE35>=0,CE11,CE11+CE35))) -> 7545.765608 | CF12: =IF(CF11<0,0,IF(CF11+CF43<=0,0,IF(CF43>=0,CF11,CF11+CF43))) -> 7818.542509 | CG12: =IF(CG11<0,0,IF(CG11+CG51<=0,0,IF(CG51>=0,CG11,CG11+CG51))) -> 8671.516964 | CH12: =IF(CH11<0,0,IF(CH11+CH59<=0,0,IF(CH59>=0,CH11,CH11+CH59))) -> 8859.92587 | CI12: =IF(CI11<0,0,IF(CI11+CI67<=0,0,IF(CI67>=0,CI11,CI11+CI67))) -> 9377.476693 | CJ12: =IF(CJ11<0,0,IF(CJ11+CJ75<=0,0,IF(CJ75>=0,CJ11,CJ11+CJ75))) -> 8731.196616 | CK12: =IF(CK11<0,0,IF(CK11+CK83<=0,0,IF(CK83>=0,CK11,CK11+CK83))) -> 8571.52911 | CL12: =IF(CL11<0,0,IF(CL11+CL91<=0,0,IF(CL91>=0,CL11,CL11+CL91))) -> 8550.385736 | CM12: =IF(CM11<0,0,IF(CM11+CM99<=0,0,IF(CM99>=0,CM11,CM11+CM99))) -> 8931.351895 | CN12: =IF(CN11<=0,IF(CN$103<=0,CN$103,0),CN11) -> 10601.25858 | CO12: =IF(CO11<0,0,IF(CO11+CO19<=0,0,IF(CO19>=0,CO11,CO11+CO19))) -> 10990.45349 | CP12: =IF(CP11<0,0,IF(CP11+CP27<=0,0,IF(CP27>=0,CP11,CP11+CP27))) -> 10584.98833 | CQ12: =IF(CQ11<0,0,IF(CQ11+CQ35<=0,0,IF(CQ35>=0,CQ11,CQ11+CQ35))) -> 11957.89052 | CR12: =IF(CR11<0,0,IF(CR11+CR43<=0,0,IF(CR43>=0,CR11,CR11+CR43))) -> 10899.42073 | CS12: =IF(CS11<0,0,IF(CS11+CS51<=0,0,IF(CS51>=0,CS11,CS11+CS51))) -> 10677.15679 | CT12: =IF(CT11<0,0,IF(CT11+CT59<=0,0,IF(CT59>=0,CT11,CT11+CT59))) -> 11396.56887 | CU12: =IF(CU11<0,0,IF(CU11+CU67<=0,0,IF(CU67>=0,CU11,CU11+CU67))) -> 12472.47612 | CV12: =IF(CV11<0,0,IF(CV11+CV75<=0,0,IF(CV75>=0,CV11,CV11+CV75))) -> 12857.46089 | CW12: =IF(CW11<0,0,IF(CW11+CW83<=0,0,IF(CW83>=0,CW11,CW11+CW83))) -> 13934.98642 | CX12: =IF(CX11<0,0,IF(CX11+CX91<=0,0,IF(CX91>=0,CX11,CX11+CX91))) -> 12925.84912 | CY12: =IF(CY11<0,0,IF(CY11+CY99<=0,0,IF(CY99>=0,CY11,CY11+CY99))) -> 13044.04534 | CZ12: =IF(CZ11<=0,IF(CZ$103<=0,CZ$103,0),CZ11) -> 12979.42219 | DA12: =IF(DA11<0,0,IF(DA11+DA19<=0,0,IF(DA19>=0,DA11,DA11+DA19))) -> 13202.1541 | DB12: =IF(DB11<0,0,IF(DB11+DB27<=0,0,IF(DB27>=0,DB11,DB11+DB27))) -> 12791.63124 | DC12: =IF(DC11<0,0,IF(DC11+DC35<=0,0,IF(DC35>=0,DC11,DC11+DC35))) -> 13873.66768 | DD12: =IF(DD11<0,0,IF(DD11+DD43<=0,0,IF(DD43>=0,DD11,DD11+DD43))) -> 13526.8116 | DE12: =IF(DE11<0,0,IF(DE11+DE51<=0,0,IF(DE51>=0,DE11,DE11+DE51))) -> 13325.29879 | DF12: =IF(DF11<0,0,IF(DF11+DF59<=0,0,IF(DF59>=0,DF11,DF11+DF59))) -> 15388.91586 | DG12: =IF(DG11<0,0,IF(DG11+DG67<=0,0,IF(DG67>=0,DG11,DG11+DG67))) -> 15388.1915 | DH12: =IF(DH11<0,0,IF(DH11+DH75<=0,0,IF(DH75>=0,DH11,DH11+DH75))) -> 15281.40565 | DI12: =IF(DI11<0,0,IF(DI11+DI83<=0,0,IF(DI83>=0,DI11,DI11+DI83))) -> 17167.81684 | DJ12: =IF(DJ11<0,0,IF(DJ11+DJ91<=0,0,IF(DJ91>=0,DJ11,DJ11+DJ91))) -> 17674.67319 | DK12: =IF(DK11<0,0,IF(DK11+DK99<=0,0,IF(DK99>=0,DK11,DK11+DK99))) -> 17530.16067 | DL12: =IF(DL11<=0,IF(DL$103<=0,DL$103,0),DL11) -> 15666.74708 | DM12: =IF(DM11<0,0,IF(DM11+DM19<=0,0,IF(DM19>=0,DM11,DM11+DM19))) -> 15446.03984 | DN12: =IF(DN11<0,0,IF(DN11+DN27<=0,0,IF(DN27>=0,DN11,DN11+DN27))) -> 16724.50649 | DO12: =IF(DO11<0,0,IF(DO11+DO35<=0,0,IF(DO35>=0,DO11,DO11+DO35))) -> 16459.02706 | DP12: =IF(DP11<0,0,IF(DP11+DP43<=0,0,IF(DP43>=0,DP11,DP11+DP43))) -> 17307.46143 | DQ12: =IF(DQ11<0,0,IF(DQ11+DQ51<=0,0,IF(DQ51>=0,DQ11,DQ11+DQ51))) -> 18037.7981 | DR12: =IF(DR11<0,0,IF(DR11+DR59<=0,0,IF(DR59>=0,DR11,DR11+DR59))) -> 17897.18788 | DS12: =IF(DS11<0,0,IF(DS11+DS67<=0,0,IF(DS67>=0,DS11,DS11+DS67))) -> 18544.64788 | DT12: =IF(DT11<0,0,IF(DT11+DT75<=0,0,IF(DT75>=0,DT11,DT11+DT75))) -> 18468.38713 | DU12: =IF(DU11<0,0,IF(DU11+DU83<=0,0,IF(DU83>=0,DU11,DU11+DU83))) -> 18040.06776 | DV12: =IF(DV11<0,0,IF(DV11+DV91<=0,0,IF(DV91>=0,DV11,DV11+DV91))) -> 18716.36285 | DW12: =IF(DW11<0,0,IF(DW11+DW99<=0,0,IF(DW99>=0,DW11,DW11+DW99))) -> 19216.73252
C13: Compound | F13: EOM_Balance | G13: 0 | H13: =H12*H4 -> 1053.67281 | I13: =I12*I4 -> 1072.541521 | J13: =J12*J4 -> 1104.853543 | K13: =K12*K4 -> 1081.217794 | L13: =L12*L4 -> 1043.776357 | M13: 1000.906956 | N13: 1015.516036 | O13: 1017.931497 | P13: 1021.751488 | Q13: 970.3583436 | R13: 986.3000337 | S13: =S12*S5 -> 1050 | T13: =T12*T4 -> 2065.34923 | U13: =U12*U4 -> 2030.726749 | V13: 2097.144924 | W13: 2133.684922 | X13: 2101.029486 | Y13: 2029.415464 | Z13: 2037.152669 | AA13: 2106.922026 | AB13: 2158.496448 | AC13: 2144.930787 | AD13: 2158.572817 | AE13: =AE12*AE5 -> 2152.5 | AF13: =AF12*AF4 -> 3038.10291 | AG13: =AG12*AG4 -> 3171.088137 | AH13: 3255.463047 | AI13: 3144.604824 | AJ13: 3126.960653 | AK13: 3301.248644 | AL13: 3212.773289 | AM13: 3195.087348 | AN13: 3256.799449 | AO13: 3253.842135 | AP13: 3203.41564 | AQ13: =AQ12*AQ5 -> 3310.125 | AR13: =AR12*AR4 -> 4576.087105 | AS13: =AS12*AS4 -> 4585.152019 | AT13: 4758.283718 | AU13: 4540.489196 | AV13: 4345.273789 | AW13: 4502.247738 | AX13: 4506.846129 | AY13: 4767.020746 | AZ13: 5210.916395 | BA13: 5285.020631 | BB13: 4962.899965 | BC13: =BC12*BC5 -> 4870.44125 | BD13: =BD12*BD4 -> 6114.804808 | BE13: =BE12*BE4 -> 6142.020827 | BF13: 5694.429389 | BG13: 5277.665778 | BH13: 5437.376872 | BI13: 5528.663587 | BJ13: 5978.069828 | BK13: 5918.223439 | BL13: 5586.454785 | BM13: 5458.435854 | BN13: 5445.351962 | BO13: =BO12*BO5 -> 6163.963313 | BP13: =BP12*BP4 -> 7465.638045 | BQ13: =BQ12*BQ4 -> 7085.757796 | BR13: 6364.02934 | BS13: 6794.033715 | BT13: 6385.951994 | BU13: 6337.052025 | BV13: 6332.63139 | BW13: 5661.55328 | BX13: 5249.393792 | BY13: 4911.41339 | BZ13: 4470.347839 | CA13: =CA12*CA5 -> 7522.161478 | CB13: =CB12*CB4 -> 8291.755023 | CC13: =CC12*CC4 -> 8058.70766 | CD13: 7545.765608 | CE13: 7818.542509 | CF13: 8671.516964 | CG13: 8859.92587 | CH13: 9377.476693 | CI13: 8731.196616 | CJ13: 8571.52911 | CK13: 8550.385736 | CL13: 8931.351895 | CM13: =CM12*CM5 -> 9601.25858 | CN13: =CN12*CN4 -> 10990.45349 | CO13: =CO12*CO4 -> 10584.98833 | CP13: 11957.89052 | CQ13: 10899.42073 | CR13: 10677.15679 | CS13: 11396.56887 | CT13: 12472.47612 | CU13: 12857.46089 | CV13: 13934.98642 | CW13: 12925.84912 | CX13: 13044.04534 | CY13: =CY12*CY5 -> 11979.42219 | CZ13: =CZ12*CZ4 -> 13202.1541 | DA13: =DA12*DA4 -> 12791.63124 | DB13: 13873.66768 | DC13: 13526.8116 | DD13: 13325.29879 | DE13: 15388.91586 | DF13: 15388.1915 | DG13: 15281.40565 | DH13: 17167.81684 | DI13: 17674.67319 | DJ13: 17530.16067 | DK13: =DK12*DK5 -> 14666.74708 | DL13: =DL12*DL4 -> 15446.03984 | DM13: =DM12*DM4 -> 16724.50649 | DN13: 16459.02706 | DO13: 17307.46143 | DP13: 18037.7981 | DQ13: 17897.18788 | DR13: 18544.64788 | DS13: 18468.38713 | DT13: 18040.06776 | DU13: 18716.36285 | DV13: 19216.73252 | DW13: =DW12*DX13 -> 17703.4242 | DX13: =DW5 -> 0.9212504875
A14: Initial CF Positive | B14: 1000 | C14: 0 | E14: Feb | F14: BOM_Pre_CF_Balance | G14: 0 | H14: 0 | I14: 0 | J14: =I21 -> 1017.907561 | K14: =J21 -> 1048.573649 | L14: =K21 -> 1026.141876 | M14: 990.6076607 | N14: 949.9219743 | O14: 963.7868852 | P14: 966.0793063 | Q14: 969.7047116 | R14: 920.929471 | S14: 936.0591109 | T14: 929.6479145 | U14: =T21 -> 1050 | V14: 2015.634826 | W14: 2081.559395 | X14: 2117.827836 | Y14: 2085.415088 | Z14: 2014.333286 | AA14: 2022.01299 | AB14: 2091.263836 | AC14: 2142.454969 | AD14: 2128.990125 | AE14: 2142.530769 | AF14: =AE21 -> 2121.636905 | AG14: =AF21 -> 2152.5 | AH14: =AG21 -> 3290.492669 | AI14: =AH21 -> 3378.044642 | AJ14: =AI21 -> 3263.01215 | AK14: =AJ21 -> 3244.703603 | AL14: =AK21 -> 3425.554255 | AM14: =AL21 -> 3333.747438 | AN14: =AM21 -> 3315.395549 | AO14: =AN21 -> 3379.431364 | AP14: =AO21 -> 3376.362695 | AQ14: =AP21 -> 3324.037435 | AR14: =AQ21 -> 3375.800551 | AS14: =AR21 -> 3562.325 | AT14: =AS21 -> 4571.362652 | AU14: =AT21 -> 4743.973676 | AV14: =AU21 -> 4526.834148 | AW14: =AV21 -> 4332.205831 | AX14: =AW21 -> 4488.707697 | AY14: =AX21 -> 4493.292259 | AZ14: =AY21 -> 4752.684428 | BA14: =AZ21 -> 5195.245107 | BB14: =BA21 -> 5269.126482 | BC14: =BB21 -> 4947.974561 | BD14: =BC21 -> 5152.695656 | BE14: =BD21 -> 5155.42725 | BF14: =BE21 -> 6182.824073 | BG14: =BF21 -> 5732.259154 | BH14: =BG21 -> 5312.726859 | BI14: =BH21 -> 5473.498961 | BJ14: =BI21 -> 5565.392121 | BK14: =BJ21 -> 6017.783899 | BL14: =BK21 -> 5957.539933 | BM14: =BL21 -> 5623.567243 | BN14: =BM21 -> 5494.697845 | BO14: =BN21 -> 5481.527032 | BP14: =BO21 -> 5608.302974 | BQ14: =BP21 -> 6463.198612 | BR14: =BQ21 -> 7083.442491 | BS14: =BR21 -> 6361.949863 | BT14: =BS21 -> 6791.813732 | BU14: =BT21 -> 6383.865354 | BV14: =BU21 -> 6334.981364 | BW14: =BV21 -> 6330.562173 | BX14: =BW21 -> 5659.703341 | BY14: =BX21 -> 5247.678528 | BZ14: =BY21 -> 4909.808563 | CA14: =BZ21 -> 4468.887132 | CB14: =CA21 -> 4600.589467 | CC14: =CB21 -> 7836.358543 | CD14: =CC21 -> 8588.0046 | CE14: =CD21 -> 8041.372448 | CF14: =CE21 -> 8332.065371 | CG14: =CF21 -> 9241.063296 | CH14: =CG21 -> 9441.846923 | CI14: =CH21 -> 9993.39055 | CJ14: =CI21 -> 9304.662715 | CK14: =CJ21 -> 9134.508227 | CL14: =CK21 -> 9111.976154 | CM14: =CL21 -> 9517.964218 | CN14: =CM21 -> 10231.87046 | CO14: =CN21 -> 9985.085154 | CP14: =CO21 -> 10579.81804 | CQ14: =CP21 -> 11952.04963 | CR14: =CQ21 -> 10894.09685 | CS14: =CR21 -> 10671.94148 | CT14: =CS21 -> 11391.00216 | CU14: =CT21 -> 12466.38388 | CV14: =CU21 -> 12851.1806 | CW14: =CV21 -> 13928.1798 | CX14: =CW21 -> 12919.53542 | CY14: =CX21 -> 13037.67392 | CZ14: =CY21 -> 13345.30832 | DA14: =CZ21 -> 12413.14622 | DB14: =DA21 -> 12996.06252 | DC14: =DB21 -> 14095.39169 | DD14: =DC21 -> 13742.99228 | DE14: =DD21 -> 13538.25896 | DF14: =DE21 -> 15634.85603 | DG14: =DF21 -> 15634.12008 | DH14: =DG21 -> 15525.62763 | DI14: =DH21 -> 17442.18677 | DJ14: =DI21 -> 17957.14352 | DK14: =DJ21 -> 17810.32144 | DL14: =DK21 -> 19898.65149 | DM14: =DL21 -> 15156.85523 | DN14: =DM21 -> 17494.15598 | DO14: =DN21 -> 17216.45938 | DP14: =DO21 -> 18103.93808 | DQ14: =DP21 -> 18867.8843 | DR14: =DQ21 -> 18720.8033 | DS14: =DR21 -> 19398.05894 | DT14: =DS21 -> 19318.28872 | DU14: =DT21 -> 18870.25841 | DV14: =DU21 -> 19577.67611 | DW14: =DV21 -> 20101.07242
A15: COI | B15: 0 | F15: BOM_POS_CF | G15: 0 | H15: 0 | I15: =H7*(1+$C$14) -> 1000 | J15: 0 | K15: 0 | L15: 0 | M15: 0 | N15: 0 | O15: 0 | P15: 0 | Q15: 0 | R15: 0 | S15: 0 | T15: 0 | U15: =T7*(1+$C$14) -> 1000 | V15: 0 | W15: 0 | X15: 0 | Y15: 0 | Z15: 0 | AA15: 0 | AB15: 0 | AC15: 0 | AD15: 0 | AE15: 0 | AF15: 0 | AG15: =AF7*(1+$C$14) -> 1000 | AH15: 0 | AI15: 0 | AJ15: 0 | AK15: 0 | AL15: 0 | AM15: 0 | AN15: 0 | AO15: 0 | AP15: 0 | AQ15: 0 | AR15: 0 | AS15: =AR7*(1+$C$14) -> 1000 | AT15: 0 | AU15: 0 | AV15: 0 | AW15: 0 | AX15: 0 | AY15: 0 | AZ15: 0 | BA15: 0 | BB15: 0 | BC15: 0 | BD15: 0 | BE15: =BD7*(1+$C$14) -> 1000 | BF15: 0 | BG15: 0 | BH15: 0 | BI15: 0 | BJ15: 0 | BK15: 0 | BL15: 0 | BM15: 0 | BN15: 0 | BO15: 0 | BP15: 0 | BQ15: =BP7*(1+$C$14) -> 1000 | BR15: 0 | BS15: 0 | BT15: 0 | BU15: 0 | BV15: 0 | BW15: 0 | BX15: 0 | BY15: 0 | BZ15: 0 | CA15: 0 | CB15: 0 | CC15: =CB7*(1+$C$14) -> 1000 | CD15: 0 | CE15: 0 | CF15: 0 | CG15: 0 | CH15: 0 | CI15: 0 | CJ15: 0 | CK15: 0 | CL15: 0 | CM15: 0 | CN15: 0 | CO15: =CN7*(1+$C$14) -> 1000 | CP15: 0 | CQ15: 0 | CR15: 0 | CS15: 0 | CT15: 0 | CU15: 0 | CV15: 0 | CW15: 0 | CX15: 0 | CY15: 0 | CZ15: 0 | DA15: =CZ7*(1+$C$14) -> 1000 | DB15: 0 | DC15: 0 | DD15: 0 | DE15: 0 | DF15: 0 | DG15: 0 | DH15: 0 | DI15: 0 | DJ15: 0 | DK15: 0 | DL15: 0 | DM15: =DL7*(1+$C$14) -> 1000 | DN15: 0 | DO15: 0 | DP15: 0 | DQ15: 0 | DR15: 0 | DS15: 0 | DT15: 0 | DU15: 0 | DV15: 0 | DW15: 0
A16: Expenses | B16: 0 | F16: BOM_NEG_CF | G16: 0 | H16: 0 | I16: =IF($B$18=0,0,H$102*(1-(1/($B$18+1)))/(1-(1/($B$18+1))^H$1)) -> 0 | J16: 0 | K16: 0 | L16: 0 | M16: 0 | N16: 0 | O16: 0 | P16: 0 | Q16: 0 | R16: 0 | S16: 0 | T16: 0 | U16: =IF($B$18=0,0,T$102*(1-(1/($B$18+1)))/(1-(1/($B$18+1))^T$1)) -> 0 | V16: 0 | W16: 0 | X16: 0 | Y16: 0 | Z16: 0 | AA16: 0 | AB16: 0 | AC16: 0 | AD16: 0 | AE16: 0 | AF16: 0 | AG16: =IF($B$18=0,0,AF$102*(1-(1/($B$18+1)))/(1-(1/($B$18+1))^AF$1)) -> 0 | AH16: 0 | AI16: 0 | AJ16: 0 | AK16: 0 | AL16: 0 | AM16: 0 | AN16: 0 | AO16: 0 | AP16: 0 | AQ16: 0 | AR16: 0 | AS16: =IF($B$18=0,0,AR$102*(1-(1/($B$18+1)))/(1-(1/($B$18+1))^AR$1)) -> 0 | AT16: 0 | AU16: 0 | AV16: 0 | AW16: 0 | AX16: 0 | AY16: 0 | AZ16: 0 | BA16: 0 | BB16: 0 | BC16: 0 | BD16: 0 | BE16: =IF($B$18=0,0,BD$102*(1-(1/($B$18+1)))/(1-(1/($B$18+1))^BD$1)) -> 0 | BF16: 0 | BG16: 0 | BH16: 0 | BI16: 0 | BJ16: 0 | BK16: 0 | BL16: 0 | BM16: 0 | BN16: 0 | BO16: 0 | BP16: 0 | BQ16: =IF($B$18=0,0,BP$102*(1-(1/($B$18+1)))/(1-(1/($B$18+1))^BP$1)) -> 0 | BR16: 0 | BS16: 0 | BT16: 0 | BU16: 0 | BV16: 0 | BW16: 0 | BX16: 0 | BY16: 0 | BZ16: 0 | CA16: 0 | CB16: 0 | CC16: =IF($B$18=0,0,CB$102*(1-(1/($B$18+1)))/(1-(1/($B$18+1))^CB$1)) -> 0 | CD16: 0 | CE16: 0 | CF16: 0 | CG16: 0 | CH16: 0 | CI16: 0 | CJ16: 0 | CK16: 0 | CL16: 0 | CM16: 0 | CN16: 0 | CO16: =IF($B$18=0,0,CN$102*(1-(1/($B$18+1)))/(1-(1/($B$18+1))^CN$1)) -> 0 | CP16: 0 | CQ16: 0 | CR16: 0 | CS16: 0 | CT16: 0 | CU16: 0 | CV16: 0 | CW16: 0 | CX16: 0 | CY16: 0 | CZ16: 0 | DA16: =IF($B$18=0,0,CZ$102*(1-(1/($B$18+1)))/(1-(1/($B$18+1))^CZ$1)) -> 0 | DB16: 0 | DC16: 0 | DD16: 0 | DE16: 0 | DF16: 0 | DG16: 0 | DH16: 0 | DI16: 0 | DJ16: 0 | DK16: 0 | DL16: 0 | DM16: =IF($B$18=0,0,DL$102*(1-(1/($B$18+1)))/(1-(1/($B$18+1))^DL$1)) -> 0 | DN16: 0 | DO16: 0 | DP16: 0 | DQ16: 0 | DR16: 0 | DS16: 0 | DT16: 0 | DU16: 0 | DV16: 0 | DW16: 0
A17: Initial Lumpsum Deposit | B17: 0 | F17: BOM_COI | G17: 0 | H17: 0 | I17: =$B$15 -> 0 | J17: 0 | K17: 0 | L17: 0 | M17: 0 | N17: 0 | O17: 0 | P17: 0 | Q17: 0 | R17: 0 | S17: 0 | T17: 0 | U17: =$B$15 -> 0 | V17: 0 | W17: 0 | X17: 0 | Y17: 0 | Z17: 0 | AA17: 0 | AB17: 0 | AC17: 0 | AD17: 0 | AE17: 0 | AF17: 0 | AG17: =$B$15 -> 0 | AH17: 0 | AI17: 0 | AJ17: 0 | AK17: 0 | AL17: 0 | AM17: 0 | AN17: 0 | AO17: 0 | AP17: 0 | AQ17: 0 | AR17: 0 | AS17: =$B$15 -> 0 | AT17: 0 | AU17: 0 | AV17: 0 | AW17: 0 | AX17: 0 | AY17: 0 | AZ17: 0 | BA17: 0 | BB17: 0 | BC17: 0 | BD17: 0 | BE17: =$B$15 -> 0 | BF17: 0 | BG17: 0 | BH17: 0 | BI17: 0 | BJ17: 0 | BK17: 0 | BL17: 0 | BM17: 0 | BN17: 0 | BO17: 0 | BP17: 0 | BQ17: =$B$15 -> 0 | BR17: 0 | BS17: 0 | BT17: 0 | BU17: 0 | BV17: 0 | BW17: 0 | BX17: 0 | BY17: 0 | BZ17: 0 | CA17: 0 | CB17: 0 | CC17: =$B$15 -> 0 | CD17: 0 | CE17: 0 | CF17: 0 | CG17: 0 | CH17: 0 | CI17: 0 | CJ17: 0 | CK17: 0 | CL17: 0 | CM17: 0 | CN17: 0 | CO17: =$B$15 -> 0 | CP17: 0 | CQ17: 0 | CR17: 0 | CS17: 0 | CT17: 0 | CU17: 0 | CV17: 0 | CW17: 0 | CX17: 0 | CY17: 0 | CZ17: 0 | DA17: =$B$15 -> 0 | DB17: 0 | DC17: 0 | DD17: 0 | DE17: 0 | DF17: 0 | DG17: 0 | DH17: 0 | DI17: 0 | DJ17: 0 | DK17: 0 | DL17: 0 | DM17: =$B$15 -> 0 | DN17: 0 | DO17: 0 | DP17: 0 | DQ17: 0 | DR17: 0 | DS17: 0 | DT17: 0 | DU17: 0 | DV17: 0 | DW17: 0
A18: Withdrawal Rate assumed | B18: 0 | F18: BOM_Expenses | G18: 0 | H18: 0 | I18: =$B$16 -> 0 | J18: 0 | K18: 0 | L18: 0 | M18: 0 | N18: 0 | O18: 0 | P18: 0 | Q18: 0 | R18: 0 | S18: 0 | T18: 0 | U18: =$B$16 -> 0 | V18: 0 | W18: 0 | X18: 0 | Y18: 0 | Z18: 0 | AA18: 0 | AB18: 0 | AC18: 0 | AD18: 0 | AE18: 0 | AF18: 0 | AG18: =$B$16 -> 0 | AH18: 0 | AI18: 0 | AJ18: 0 | AK18: 0 | AL18: 0 | AM18: 0 | AN18: 0 | AO18: 0 | AP18: 0 | AQ18: 0 | AR18: 0 | AS18: =$B$16 -> 0 | AT18: 0 | AU18: 0 | AV18: 0 | AW18: 0 | AX18: 0 | AY18: 0 | AZ18: 0 | BA18: 0 | BB18: 0 | BC18: 0 | BD18: 0 | BE18: =$B$16 -> 0 | BF18: 0 | BG18: 0 | BH18: 0 | BI18: 0 | BJ18: 0 | BK18: 0 | BL18: 0 | BM18: 0 | BN18: 0 | BO18: 0 | BP18: 0 | BQ18: =$B$16 -> 0 | BR18: 0 | BS18: 0 | BT18: 0 | BU18: 0 | BV18: 0 | BW18: 0 | BX18: 0 | BY18: 0 | BZ18: 0 | CA18: 0 | CB18: 0 | CC18: =$B$16 -> 0 | CD18: 0 | CE18: 0 | CF18: 0 | CG18: 0 | CH18: 0 | CI18: 0 | CJ18: 0 | CK18: 0 | CL18: 0 | CM18: 0 | CN18: 0 | CO18: =$B$16 -> 0 | CP18: 0 | CQ18: 0 | CR18: 0 | CS18: 0 | CT18: 0 | CU18: 0 | CV18: 0 | CW18: 0 | CX18: 0 | CY18: 0 | CZ18: 0 | DA18: =$B$16 -> 0 | DB18: 0 | DC18: 0 | DD18: 0 | DE18: 0 | DF18: 0 | DG18: 0 | DH18: 0 | DI18: 0 | DJ18: 0 | DK18: 0 | DL18: 0 | DM18: =$B$16 -> 0 | DN18: 0 | DO18: 0 | DP18: 0 | DQ18: 0 | DR18: 0 | DS18: 0 | DT18: 0 | DU18: 0 | DV18: 0 | DW18: 0
A19: Annuities Rate @Time t | B19: =IF(B18=0,0,1-(1/($B$18+1))/(1-(1/($B$18+1)))) -> 0 | C19: ^(n-t) | F19: BOM_Post_CF_Balance | G19: 0 | H19: 0 | I19: =I14+I15-I16-I17-I18 -> 1000 | J19: =J14+J15-J16-J17-J18 -> 1017.907561 | K19: =K14+K15-K16-K17-K18 -> 1048.573649 | L19: =L14+L15-L16-L17-L18 -> 1026.141876 | M19: 990.6076607 | N19: 949.9219743 | O19: 963.7868852 | P19: 966.0793063 | Q19: 969.7047116 | R19: 920.929471 | S19: 936.0591109 | T19: 929.6479145 | U19: =U14+U15-U16-U17-U18 -> 2050 | V19: 2015.634826 | W19: =W14+W15-W16-W17-W18 -> 2081.559395 | X19: 2117.827836 | Y19: 2085.415088 | Z19: 2014.333286 | AA19: 2022.01299 | AB19: 2091.263836 | AC19: 2142.454969 | AD19: 2128.990125 | AE19: 2142.530769 | AF19: =AF14+AF15-AF16-AF17-AF18 -> 2121.636905 | AG19: =AG14+AG15-AG16-AG17-AG18 -> 3152.5 | AH19: =AH14+AH15-AH16-AH17-AH18 -> 3290.492669 | AI19: =AI14+AI15-AI16-AI17-AI18 -> 3378.044642 | AJ19: =AJ14+AJ15-AJ16-AJ17-AJ18 -> 3263.01215 | AK19: 3244.703603 | AL19: 3425.554255 | AM19: 3333.747438 | AN19: 3315.395549 | AO19: 3379.431364 | AP19: 3376.362695 | AQ19: 3324.037435 | AR19: 3375.800551 | AS19: =AS14+AS15-AS16-AS17-AS18 -> 4562.325 | AT19: =AT14+AT15-AT16-AT17-AT18 -> 4571.362652 | AU19: =AU14+AU15-AU16-AU17-AU18 -> 4743.973676 | AV19: =AV14+AV15-AV16-AV17-AV18 -> 4526.834148 | AW19: 4332.205831 | AX19: 4488.707697 | AY19: 4493.292259 | AZ19: 4752.684428 | BA19: 5195.245107 | BB19: 5269.126482 | BC19: 4947.974561 | BD19: 5152.695656 | BE19: =BE14+BE15-BE16-BE17-BE18 -> 6155.42725 | BF19: =BF14+BF15-BF16-BF17-BF18 -> 6182.824073 | BG19: =BG14+BG15-BG16-BG17-BG18 -> 5732.259154 | BH19: =BH14+BH15-BH16-BH17-BH18 -> 5312.726859 | BI19: 5473.498961 | BJ19: 5565.392121 | BK19: 6017.783899 | BL19: 5957.539933 | BM19: 5623.567243 | BN19: 5494.697845 | BO19: 5481.527032 | BP19: 5608.302974 | BQ19: =BQ14+BQ15-BQ16-BQ17-BQ18 -> 7463.198612 | BR19: =BR14+BR15-BR16-BR17-BR18 -> 7083.442491 | BS19: =BS14+BS15-BS16-BS17-BS18 -> 6361.949863 | BT19: =BT14+BT15-BT16-BT17-BT18 -> 6791.813732 | BU19: 6383.865354 | BV19: 6334.981364 | BW19: 6330.562173 | BX19: 5659.703341 | BY19: 5247.678528 | BZ19: 4909.808563 | CA19: 4468.887132 | CB19: 4600.589467 | CC19: =CC14+CC15-CC16-CC17-CC18 -> 8836.358543 | CD19: =CD14+CD15-CD16-CD17-CD18 -> 8588.0046 | CE19: =CE14+CE15-CE16-CE17-CE18 -> 8041.372448 | CF19: =CF14+CF15-CF16-CF17-CF18 -> 8332.065371 | CG19: 9241.063296 | CH19: 9441.846923 | CI19: 9993.39055 | CJ19: 9304.662715 | CK19: 9134.508227 | CL19: 9111.976154 | CM19: 9517.964218 | CN19: 10231.87046 | CO19: =CO14+CO15-CO16-CO17-CO18 -> 10985.08515 | CP19: =CP14+CP15-CP16-CP17-CP18 -> 10579.81804 | CQ19: =CQ14+CQ15-CQ16-CQ17-CQ18 -> 11952.04963 | CR19: =CR14+CR15-CR16-CR17-CR18 -> 10894.09685 | CS19: 10671.94148 | CT19: 11391.00216 | CU19: 12466.38388 | CV19: 12851.1806 | CW19: 13928.1798 | CX19: 12919.53542 | CY19: 13037.67392 | CZ19: 13345.30832 | DA19: =DA14+DA15-DA16-DA17-DA18 -> 13413.14622 | DB19: =DB14+DB15-DB16-DB17-DB18 -> 12996.06252 | DC19: =DC14+DC15-DC16-DC17-DC18 -> 14095.39169 | DD19: =DD14+DD15-DD16-DD17-DD18 -> 13742.99228 | DE19: 13538.25896 | DF19: 15634.85603 | DG19: 15634.12008 | DH19: 15525.62763 | DI19: 17442.18677 | DJ19: 17957.14352 | DK19: 17810.32144 | DL19: =DL14+DL15-DL16-DL17-DL18 -> 19898.65149 | DM19: =DM14+DM15-DM16-DM17-DM18 -> 16156.85523 | DN19: =DN14+DN15-DN16-DN17-DN18 -> 17494.15598 | DO19: =DO14+DO15-DO16-DO17-DO18 -> 17216.45938 | DP19: =DP14+DP15-DP16-DP17-DP18 -> 18103.93808 | DQ19: 18867.8843 | DR19: 18720.8033 | DS19: 19398.05894 | DT19: 19318.28872 | DU19: 18870.25841 | DV19: 19577.67611 | DW19: 20101.07242
A20: Ranked Cumulative IRRs | B20: Ranks | C20: IRR inteval | D20: Cumulative Prob | F20: BOM_Post_CF_Balance_ADJ | G20: 0 | H20: 0 | I20: =IF(I19<=0,IF(I12<=0,I19,IF(I11+I19<=0,I11+I19,0)),I19) -> 1000 | J20: =IF(J19<=0,0,IF(J11+J27<=0,IF(J11+J19+J27<=0,0,J11+J19+J27),J19)) -> 1017.907561 | K20: =IF(K103<=0,0,IF(K19<=0,0,IF(K11+K35<=0,IF(K11=0,IF(K19+K35<=0,0,K19+K35),K19*K103/(K103-K11-K35)),K19))) -> 1048.573649 | L20: =IF(L103<=0,0,IF(L19<=0,0,IF(L11+L43<=0,IF(L11=0,IF(L19+L43<=0,0,L19+L43),L19*L103/(L103-L11-L43)),L19))) -> 1026.141876 | M20: =IF(M103<=0,0,IF(M19<=0,0,IF(M11+M51<=0,IF(M11=0,IF(M19+M51<=0,0,M19+M51),M19*M103/(M103-M11-M51)),M19))) -> 990.6076607 | N20: =IF(N103<=0,0,IF(N19<=0,0,IF(N11+N59<=0,IF(N11=0,IF(N19+N59<=0,0,N19+N59),N19*N103/(N103-N11-N59)),N19))) -> 949.9219743 | O20: =IF(O103<=0,0,IF(O19<=0,0,IF(O11+O67<=0,IF(O11=0,IF(O19+O67<=0,0,O19+O67),O19*O103/(O103-O11-O67)),O19))) -> 963.7868852 | P20: =IF(P103<=0,0,IF(P19<=0,0,IF(P11+P75<=0,IF(P11=0,IF(P19+P75<=0,0,P19+P75),P19*P103/(P103-P11-P75)),P19))) -> 966.0793063 | Q20: =IF(Q103<=0,0,IF(Q19<=0,0,IF(Q11+Q83<=0,IF(Q11=0,IF(Q19+Q83<=0,0,Q19+Q83),Q19*Q103/(Q103-Q11-Q83)),Q19))) -> 969.7047116 | R20: =IF(R103<=0,0,IF(R19<=0,0,IF(R11+R91<=0,IF(R11=0,IF(R19+R91<=0,0,R19+R91),R19*R103/(R103-R11-R91)),R19))) -> 920.929471 | S20: =IF(S103<=0,0,IF(S19<=0,0,IF(S11+S99<=0,IF(S11=0,IF(S19+S99<=0,0,S19+S99),S19*S103/(S103-S11-S99)),S19))) -> 936.0591109 | T20: =IF(T19<0,0,IF(T11+T19<=0,0,IF(T11>=0,T19,T11+T19))) -> 929.6479145 | U20: =IF(U19<=0,IF(U$103<=0,U$103,0),U19) -> 2050 | V20: =IF(V103<=0,0,IF(V19<=0,0,IF(V11+V27<=0,IF(V11=0,IF(V19+V27<=0,0,V19+V27),V19*V103/(V103-V11-V27)),V19))) -> 2015.634826 | W20: =IF(W103<=0,0,IF(W19<=0,0,IF(W11+W35<=0,IF(W11=0,IF(W19+W35<=0,0,W19+W35),W19*W103/(W103-W11-W35)),W19))) -> 2081.559395 | X20: =IF(X103<=0,0,IF(X19<=0,0,IF(X11+X43<=0,IF(X11=0,IF(X19+X43<=0,0,X19+X43),X19*X103/(X103-X11-X43)),X19))) -> 2117.827836 | Y20: =IF(Y103<=0,0,IF(Y19<=0,0,IF(Y11+Y51<=0,IF(Y11=0,IF(Y19+Y51<=0,0,Y19+Y51),Y19*Y103/(Y103-Y11-Y51)),Y19))) -> 2085.415088 | Z20: =IF(Z103<=0,0,IF(Z19<=0,0,IF(Z11+Z59<=0,IF(Z11=0,IF(Z19+Z59<=0,0,Z19+Z59),Z19*Z103/(Z103-Z11-Z59)),Z19))) -> 2014.333286 | AA20: =IF(AA103<=0,0,IF(AA19<=0,0,IF(AA11+AA67<=0,IF(AA11=0,IF(AA19+AA67<=0,0,AA19+AA67),AA19*AA103/(AA103-AA11-AA67)),AA19))) -> 2022.01299 | AB20: =IF(AB103<=0,0,IF(AB19<=0,0,IF(AB11+AB75<=0,IF(AB11=0,IF(AB19+AB75<=0,0,AB19+AB75),AB19*AB103/(AB103-AB11-AB75)),AB19))) -> 2091.263836 | AC20: =IF(AC103<=0,0,IF(AC19<=0,0,IF(AC11+AC83<=0,IF(AC11=0,IF(AC19+AC83<=0,0,AC19+AC83),AC19*AC103/(AC103-AC11-AC83)),AC19))) -> 2142.454969 | AD20: =IF(AD103<=0,0,IF(AD19<=0,0,IF(AD11+AD91<=0,IF(AD11=0,IF(AD19+AD91<=0,0,AD19+AD91),AD19*AD103/(AD103-AD11-AD91)),AD19))) -> 2128.990125 | AE20: =IF(AE103<=0,0,IF(AE19<=0,0,IF(AE11+AE99<=0,IF(AE11=0,IF(AE19+AE99<=0,0,AE19+AE99),AE19*AE103/(AE103-AE11-AE99)),AE19))) -> 2142.530769 | AF20: =IF(AF19<0,0,IF(AF11+AF19<=0,0,IF(AF11>=0,AF19,AF11+AF19))) -> 2121.636905 | AG20: =IF(AG19<=0,IF(AG$103<=0,AG$103,0),AG19) -> 3152.5 | AH20: =IF(AH103<=0,0,IF(AH19<=0,0,IF(AH11+AH27<=0,IF(AH11=0,IF(AH19+AH27<=0,0,AH19+AH27),AH19*AH103/(AH103-AH11-AH27)),AH19))) -> 3290.492669 | AI20: =IF(AI103<=0,0,IF(AI19<=0,0,IF(AI11+AI35<=0,IF(AI11=0,IF(AI19+AI35<=0,0,AI19+AI35),AI19*AI103/(AI103-AI11-AI35)),AI19))) -> 3378.044642 | AJ20: =IF(AJ103<=0,0,IF(AJ19<=0,0,IF(AJ11+AJ43<=0,IF(AJ11=0,IF(AJ19+AJ43<=0,0,AJ19+AJ43),AJ19*AJ103/(AJ103-AJ11-AJ43)),AJ19))) -> 3263.01215 | AK20: =IF(AK103<=0,0,IF(AK19<=0,0,IF(AK11+AK51<=0,IF(AK11=0,IF(AK19+AK51<=0,0,AK19+AK51),AK19*AK103/(AK103-AK11-AK51)),AK19))) -> 3244.703603 | AL20: =IF(AL103<=0,0,IF(AL19<=0,0,IF(AL11+AL59<=0,IF(AL11=0,IF(AL19+AL59<=0,0,AL19+AL59),AL19*AL103/(AL103-AL11-AL59)),AL19))) -> 3425.554255 | AM20: =IF(AM103<=0,0,IF(AM19<=0,0,IF(AM11+AM67<=0,IF(AM11=0,IF(AM19+AM67<=0,0,AM19+AM67),AM19*AM103/(AM103-AM11-AM67)),AM19))) -> 3333.747438 | AN20: =IF(AN103<=0,0,IF(AN19<=0,0,IF(AN11+AN75<=0,IF(AN11=0,IF(AN19+AN75<=0,0,AN19+AN75),AN19*AN103/(AN103-AN11-AN75)),AN19))) -> 3315.395549 | AO20: =IF(AO103<=0,0,IF(AO19<=0,0,IF(AO11+AO83<=0,IF(AO11=0,IF(AO19+AO83<=0,0,AO19+AO83),AO19*AO103/(AO103-AO11-AO83)),AO19))) -> 3379.431364 | AP20: =IF(AP103<=0,0,IF(AP19<=0,0,IF(AP11+AP91<=0,IF(AP11=0,IF(AP19+AP91<=0,0,AP19+AP91),AP19*AP103/(AP103-AP11-AP91)),AP19))) -> 3376.362695 | AQ20: =IF(AQ103<=0,0,IF(AQ19<=0,0,IF(AQ11+AQ99<=0,IF(AQ11=0,IF(AQ19+AQ99<=0,0,AQ19+AQ99),AQ19*AQ103/(AQ103-AQ11-AQ99)),AQ19))) -> 3324.037435 | AR20: =IF(AR19<0,0,IF(AR11+AR19<=0,0,IF(AR11>=0,AR19,AR11+AR19))) -> 3375.800551 | AS20: =IF(AS19<=0,IF(AS$103<=0,AS$103,0),AS19) -> 4562.325 | AT20: =IF(AT103<=0,0,IF(AT19<=0,0,IF(AT11+AT27<=0,IF(AT11=0,IF(AT19+AT27<=0,0,AT19+AT27),AT19*AT103/(AT103-AT11-AT27)),AT19))) -> 4571.362652 | AU20: =IF(AU103<=0,0,IF(AU19<=0,0,IF(AU11+AU35<=0,IF(AU11=0,IF(AU19+AU35<=0,0,AU19+AU35),AU19*AU103/(AU103-AU11-AU35)),AU19))) -> 4743.973676 | AV20: =IF(AV103<=0,0,IF(AV19<=0,0,IF(AV11+AV43<=0,IF(AV11=0,IF(AV19+AV43<=0,0,AV19+AV43),AV19*AV103/(AV103-AV11-AV43)),AV19))) -> 4526.834148 | AW20: =IF(AW103<=0,0,IF(AW19<=0,0,IF(AW11+AW51<=0,IF(AW11=0,IF(AW19+AW51<=0,0,AW19+AW51),AW19*AW103/(AW103-AW11-AW51)),AW19))) -> 4332.205831 | AX20: =IF(AX103<=0,0,IF(AX19<=0,0,IF(AX11+AX59<=0,IF(AX11=0,IF(AX19+AX59<=0,0,AX19+AX59),AX19*AX103/(AX103-AX11-AX59)),AX19))) -> 4488.707697 | AY20: =IF(AY103<=0,0,IF(AY19<=0,0,IF(AY11+AY67<=0,IF(AY11=0,IF(AY19+AY67<=0,0,AY19+AY67),AY19*AY103/(AY103-AY11-AY67)),AY19))) -> 4493.292259 | AZ20: =IF(AZ103<=0,0,IF(AZ19<=0,0,IF(AZ11+AZ75<=0,IF(AZ11=0,IF(AZ19+AZ75<=0,0,AZ19+AZ75),AZ19*AZ103/(AZ103-AZ11-AZ75)),AZ19))) -> 4752.684428 | BA20: =IF(BA103<=0,0,IF(BA19<=0,0,IF(BA11+BA83<=0,IF(BA11=0,IF(BA19+BA83<=0,0,BA19+BA83),BA19*BA103/(BA103-BA11-BA83)),BA19))) -> 5195.245107 | BB20: =IF(BB103<=0,0,IF(BB19<=0,0,IF(BB11+BB91<=0,IF(BB11=0,IF(BB19+BB91<=0,0,BB19+BB91),BB19*BB103/(BB103-BB11-BB91)),BB19))) -> 5269.126482 | BC20: =IF(BC103<=0,0,IF(BC19<=0,0,IF(BC11+BC99<=0,IF(BC11=0,IF(BC19+BC99<=0,0,BC19+BC99),BC19*BC103/(BC103-BC11-BC99)),BC19))) -> 4947.974561 | BD20: =IF(BD19<0,0,IF(BD11+BD19<=0,0,IF(BD11>=0,BD19,BD11+BD19))) -> 5152.695656 | BE20: =IF(BE19<=0,IF(BE$103<=0,BE$103,0),BE19) -> 6155.42725 | BF20: =IF(BF103<=0,0,IF(BF19<=0,0,IF(BF11+BF27<=0,IF(BF11=0,IF(BF19+BF27<=0,0,BF19+BF27),BF19*BF103/(BF103-BF11-BF27)),BF19))) -> 6182.824073 | BG20: =IF(BG103<=0,0,IF(BG19<=0,0,IF(BG11+BG35<=0,IF(BG11=0,IF(BG19+BG35<=0,0,BG19+BG35),BG19*BG103/(BG103-BG11-BG35)),BG19))) -> 5732.259154 | BH20: =IF(BH103<=0,0,IF(BH19<=0,0,IF(BH11+BH43<=0,IF(BH11=0,IF(BH19+BH43<=0,0,BH19+BH43),BH19*BH103/(BH103-BH11-BH43)),BH19))) -> 5312.726859 | BI20: =IF(BI103<=0,0,IF(BI19<=0,0,IF(BI11+BI51<=0,IF(BI11=0,IF(BI19+BI51<=0,0,BI19+BI51),BI19*BI103/(BI103-BI11-BI51)),BI19))) -> 5473.498961 | BJ20: =IF(BJ103<=0,0,IF(BJ19<=0,0,IF(BJ11+BJ59<=0,IF(BJ11=0,IF(BJ19+BJ59<=0,0,BJ19+BJ59),BJ19*BJ103/(BJ103-BJ11-BJ59)),BJ19))) -> 5565.392121 | BK20: =IF(BK103<=0,0,IF(BK19<=0,0,IF(BK11+BK67<=0,IF(BK11=0,IF(BK19+BK67<=0,0,BK19+BK67),BK19*BK103/(BK103-BK11-BK67)),BK19))) -> 6017.783899 | BL20: =IF(BL103<=0,0,IF(BL19<=0,0,IF(BL11+BL75<=0,IF(BL11=0,IF(BL19+BL75<=0,0,BL19+BL75),BL19*BL103/(BL103-BL11-BL75)),BL19))) -> 5957.539933 | BM20: =IF(BM103<=0,0,IF(BM19<=0,0,IF(BM11+BM83<=0,IF(BM11=0,IF(BM19+BM83<=0,0,BM19+BM83),BM19*BM103/(BM103-BM11-BM83)),BM19))) -> 5623.567243 | BN20: =IF(BN103<=0,0,IF(BN19<=0,0,IF(BN11+BN91<=0,IF(BN11=0,IF(BN19+BN91<=0,0,BN19+BN91),BN19*BN103/(BN103-BN11-BN91)),BN19))) -> 5494.697845 | BO20: =IF(BO103<=0,0,IF(BO19<=0,0,IF(BO11+BO99<=0,IF(BO11=0,IF(BO19+BO99<=0,0,BO19+BO99),BO19*BO103/(BO103-BO11-BO99)),BO19))) -> 5481.527032 | BP20: =IF(BP19<0,0,IF(BP11+BP19<=0,0,IF(BP11>=0,BP19,BP11+BP19))) -> 5608.302974 | BQ20: =IF(BQ19<=0,IF(BQ$103<=0,BQ$103,0),BQ19) -> 7463.198612 | BR20: =IF(BR103<=0,0,IF(BR19<=0,0,IF(BR11+BR27<=0,IF(BR11=0,IF(BR19+BR27<=0,0,BR19+BR27),BR19*BR103/(BR103-BR11-BR27)),BR19))) -> 7083.442491 | BS20: =IF(BS103<=0,0,IF(BS19<=0,0,IF(BS11+BS35<=0,IF(BS11=0,IF(BS19+BS35<=0,0,BS19+BS35),BS19*BS103/(BS103-BS11-BS35)),BS19))) -> 6361.949863 | BT20: =IF(BT103<=0,0,IF(BT19<=0,0,IF(BT11+BT43<=0,IF(BT11=0,IF(BT19+BT43<=0,0,BT19+BT43),BT19*BT103/(BT103-BT11-BT43)),BT19))) -> 6791.813732 | BU20: =IF(BU103<=0,0,IF(BU19<=0,0,IF(BU11+BU51<=0,IF(BU11=0,IF(BU19+BU51<=0,0,BU19+BU51),BU19*BU103/(BU103-BU11-BU51)),BU19))) -> 6383.865354 | BV20: =IF(BV103<=0,0,IF(BV19<=0,0,IF(BV11+BV59<=0,IF(BV11=0,IF(BV19+BV59<=0,0,BV19+BV59),BV19*BV103/(BV103-BV11-BV59)),BV19))) -> 6334.981364 | BW20: =IF(BW103<=0,0,IF(BW19<=0,0,IF(BW11+BW67<=0,IF(BW11=0,IF(BW19+BW67<=0,0,BW19+BW67),BW19*BW103/(BW103-BW11-BW67)),BW19))) -> 6330.562173 | BX20: =IF(BX103<=0,0,IF(BX19<=0,0,IF(BX11+BX75<=0,IF(BX11=0,IF(BX19+BX75<=0,0,BX19+BX75),BX19*BX103/(BX103-BX11-BX75)),BX19))) -> 5659.703341 | BY20: =IF(BY103<=0,0,IF(BY19<=0,0,IF(BY11+BY83<=0,IF(BY11=0,IF(BY19+BY83<=0,0,BY19+BY83),BY19*BY103/(BY103-BY11-BY83)),BY19))) -> 5247.678528 | BZ20: =IF(BZ103<=0,0,IF(BZ19<=0,0,IF(BZ11+BZ91<=0,IF(BZ11=0,IF(BZ19+BZ91<=0,0,BZ19+BZ91),BZ19*BZ103/(BZ103-BZ11-BZ91)),BZ19))) -> 4909.808563 | CA20: =IF(CA103<=0,0,IF(CA19<=0,0,IF(CA11+CA99<=0,IF(CA11=0,IF(CA19+CA99<=0,0,CA19+CA99),CA19*CA103/(CA103-CA11-CA99)),CA19))) -> 4468.887132 | CB20: =IF(CB19<0,0,IF(CB11+CB19<=0,0,IF(CB11>=0,CB19,CB11+CB19))) -> 4600.589467 | CC20: =IF(CC19<=0,IF(CC$103<=0,CC$103,0),CC19) -> 8836.358543 | CD20: =IF(CD103<=0,0,IF(CD19<=0,0,IF(CD11+CD27<=0,IF(CD11=0,IF(CD19+CD27<=0,0,CD19+CD27),CD19*CD103/(CD103-CD11-CD27)),CD19))) -> 8588.0046 | CE20: =IF(CE103<=0,0,IF(CE19<=0,0,IF(CE11+CE35<=0,IF(CE11=0,IF(CE19+CE35<=0,0,CE19+CE35),CE19*CE103/(CE103-CE11-CE35)),CE19))) -> 8041.372448 | CF20: =IF(CF103<=0,0,IF(CF19<=0,0,IF(CF11+CF43<=0,IF(CF11=0,IF(CF19+CF43<=0,0,CF19+CF43),CF19*CF103/(CF103-CF11-CF43)),CF19))) -> 8332.065371 | CG20: =IF(CG103<=0,0,IF(CG19<=0,0,IF(CG11+CG51<=0,IF(CG11=0,IF(CG19+CG51<=0,0,CG19+CG51),CG19*CG103/(CG103-CG11-CG51)),CG19))) -> 9241.063296 | CH20: =IF(CH103<=0,0,IF(CH19<=0,0,IF(CH11+CH59<=0,IF(CH11=0,IF(CH19+CH59<=0,0,CH19+CH59),CH19*CH103/(CH103-CH11-CH59)),CH19))) -> 9441.846923 | CI20: =IF(CI103<=0,0,IF(CI19<=0,0,IF(CI11+CI67<=0,IF(CI11=0,IF(CI19+CI67<=0,0,CI19+CI67),CI19*CI103/(CI103-CI11-CI67)),CI19))) -> 9993.39055 | CJ20: =IF(CJ103<=0,0,IF(CJ19<=0,0,IF(CJ11+CJ75<=0,IF(CJ11=0,IF(CJ19+CJ75<=0,0,CJ19+CJ75),CJ19*CJ103/(CJ103-CJ11-CJ75)),CJ19))) -> 9304.662715 | CK20: =IF(CK103<=0,0,IF(CK19<=0,0,IF(CK11+CK83<=0,IF(CK11=0,IF(CK19+CK83<=0,0,CK19+CK83),CK19*CK103/(CK103-CK11-CK83)),CK19))) -> 9134.508227 | CL20: =IF(CL103<=0,0,IF(CL19<=0,0,IF(CL11+CL91<=0,IF(CL11=0,IF(CL19+CL91<=0,0,CL19+CL91),CL19*CL103/(CL103-CL11-CL91)),CL19))) -> 9111.976154 | CM20: =IF(CM103<=0,0,IF(CM19<=0,0,IF(CM11+CM99<=0,IF(CM11=0,IF(CM19+CM99<=0,0,CM19+CM99),CM19*CM103/(CM103-CM11-CM99)),CM19))) -> 9517.964218 | CN20: =IF(CN19<0,0,IF(CN11+CN19<=0,0,IF(CN11>=0,CN19,CN11+CN19))) -> 10231.87046 | CO20: =IF(CO19<=0,IF(CO$103<=0,CO$103,0),CO19) -> 10985.08515 | CP20: =IF(CP103<=0,0,IF(CP19<=0,0,IF(CP11+CP27<=0,IF(CP11=0,IF(CP19+CP27<=0,0,CP19+CP27),CP19*CP103/(CP103-CP11-CP27)),CP19))) -> 10579.81804 | CQ20: =IF(CQ103<=0,0,IF(CQ19<=0,0,IF(CQ11+CQ35<=0,IF(CQ11=0,IF(CQ19+CQ35<=0,0,CQ19+CQ35),CQ19*CQ103/(CQ103-CQ11-CQ35)),CQ19))) -> 11952.04963 | CR20: =IF(CR103<=0,0,IF(CR19<=0,0,IF(CR11+CR43<=0,IF(CR11=0,IF(CR19+CR43<=0,0,CR19+CR43),CR19*CR103/(CR103-CR11-CR43)),CR19))) -> 10894.09685 | CS20: =IF(CS103<=0,0,IF(CS19<=0,0,IF(CS11+CS51<=0,IF(CS11=0,IF(CS19+CS51<=0,0,CS19+CS51),CS19*CS103/(CS103-CS11-CS51)),CS19))) -> 10671.94148 | CT20: =IF(CT103<=0,0,IF(CT19<=0,0,IF(CT11+CT59<=0,IF(CT11=0,IF(CT19+CT59<=0,0,CT19+CT59),CT19*CT103/(CT103-CT11-CT59)),CT19))) -> 11391.00216 | CU20: =IF(CU103<=0,0,IF(CU19<=0,0,IF(CU11+CU67<=0,IF(CU11=0,IF(CU19+CU67<=0,0,CU19+CU67),CU19*CU103/(CU103-CU11-CU67)),CU19))) -> 12466.38388 | CV20: =IF(CV103<=0,0,IF(CV19<=0,0,IF(CV11+CV75<=0,IF(CV11=0,IF(CV19+CV75<=0,0,CV19+CV75),CV19*CV103/(CV103-CV11-CV75)),CV19))) -> 12851.1806 | CW20: =IF(CW103<=0,0,IF(CW19<=0,0,IF(CW11+CW83<=0,IF(CW11=0,IF(CW19+CW83<=0,0,CW19+CW83),CW19*CW103/(CW103-CW11-CW83)),CW19))) -> 13928.1798 | CX20: =IF(CX103<=0,0,IF(CX19<=0,0,IF(CX11+CX91<=0,IF(CX11=0,IF(CX19+CX91<=0,0,CX19+CX91),CX19*CX103/(CX103-CX11-CX91)),CX19))) -> 12919.53542 | CY20: =IF(CY103<=0,0,IF(CY19<=0,0,IF(CY11+CY99<=0,IF(CY11=0,IF(CY19+CY99<=0,0,CY19+CY99),CY19*CY103/(CY103-CY11-CY99)),CY19))) -> 13037.67392 | CZ20: =IF(CZ19<0,0,IF(CZ11+CZ19<=0,0,IF(CZ11>=0,CZ19,CZ11+CZ19))) -> 13345.30832 | DA20: =IF(DA19<=0,IF(DA$103<=0,DA$103,0),DA19) -> 13413.14622 | DB20: =IF(DB103<=0,0,IF(DB19<=0,0,IF(DB11+DB27<=0,IF(DB11=0,IF(DB19+DB27<=0,0,DB19+DB27),DB19*DB103/(DB103-DB11-DB27)),DB19))) -> 12996.06252 | DC20: =IF(DC103<=0,0,IF(DC19<=0,0,IF(DC11+DC35<=0,IF(DC11=0,IF(DC19+DC35<=0,0,DC19+DC35),DC19*DC103/(DC103-DC11-DC35)),DC19))) -> 14095.39169 | DD20: =IF(DD103<=0,0,IF(DD19<=0,0,IF(DD11+DD43<=0,IF(DD11=0,IF(DD19+DD43<=0,0,DD19+DD43),DD19*DD103/(DD103-DD11-DD43)),DD19))) -> 13742.99228 | DE20: =IF(DE103<=0,0,IF(DE19<=0,0,IF(DE11+DE51<=0,IF(DE11=0,IF(DE19+DE51<=0,0,DE19+DE51),DE19*DE103/(DE103-DE11-DE51)),DE19))) -> 13538.25896 | DF20: =IF(DF103<=0,0,IF(DF19<=0,0,IF(DF11+DF59<=0,IF(DF11=0,IF(DF19+DF59<=0,0,DF19+DF59),DF19*DF103/(DF103-DF11-DF59)),DF19))) -> 15634.85603 | DG20: =IF(DG103<=0,0,IF(DG19<=0,0,IF(DG11+DG67<=0,IF(DG11=0,IF(DG19+DG67<=0,0,DG19+DG67),DG19*DG103/(DG103-DG11-DG67)),DG19))) -> 15634.12008 | DH20: =IF(DH103<=0,0,IF(DH19<=0,0,IF(DH11+DH75<=0,IF(DH11=0,IF(DH19+DH75<=0,0,DH19+DH75),DH19*DH103/(DH103-DH11-DH75)),DH19))) -> 15525.62763 | DI20: =IF(DI103<=0,0,IF(DI19<=0,0,IF(DI11+DI83<=0,IF(DI11=0,IF(DI19+DI83<=0,0,DI19+DI83),DI19*DI103/(DI103-DI11-DI83)),DI19))) -> 17442.18677 | DJ20: =IF(DJ103<=0,0,IF(DJ19<=0,0,IF(DJ11+DJ91<=0,IF(DJ11=0,IF(DJ19+DJ91<=0,0,DJ19+DJ91),DJ19*DJ103/(DJ103-DJ11-DJ91)),DJ19))) -> 17957.14352 | DK20: =IF(DK103<=0,0,IF(DK19<=0,0,IF(DK11+DK99<=0,IF(DK11=0,IF(DK19+DK99<=0,0,DK19+DK99),DK19*DK103/(DK103-DK11-DK99)),DK19))) -> 17810.32144 | DL20: =IF(DL19<0,0,IF(DL11+DL19<=0,0,IF(DL11>=0,DL19,DL11+DL19))) -> 19898.65149 | DM20: =IF(DM19<=0,IF(DM$103<=0,DM$103,0),DM19) -> 16156.85523 | DN20: =IF(DN103<=0,0,IF(DN19<=0,0,IF(DN11+DN27<=0,IF(DN11=0,IF(DN19+DN27<=0,0,DN19+DN27),DN19*DN103/(DN103-DN11-DN27)),DN19))) -> 17494.15598 | DO20: =IF(DO103<=0,0,IF(DO19<=0,0,IF(DO11+DO35<=0,IF(DO11=0,IF(DO19+DO35<=0,0,DO19+DO35),DO19*DO103/(DO103-DO11-DO35)),DO19))) -> 17216.45938 | DP20: =IF(DP103<=0,0,IF(DP19<=0,0,IF(DP11+DP43<=0,IF(DP11=0,IF(DP19+DP43<=0,0,DP19+DP43),DP19*DP103/(DP103-DP11-DP43)),DP19))) -> 18103.93808 | DQ20: =IF(DQ103<=0,0,IF(DQ19<=0,0,IF(DQ11+DQ51<=0,IF(DQ11=0,IF(DQ19+DQ51<=0,0,DQ19+DQ51),DQ19*DQ103/(DQ103-DQ11-DQ51)),DQ19))) -> 18867.8843 | DR20: =IF(DR103<=0,0,IF(DR19<=0,0,IF(DR11+DR59<=0,IF(DR11=0,IF(DR19+DR59<=0,0,DR19+DR59),DR19*DR103/(DR103-DR11-DR59)),DR19))) -> 18720.8033 | DS20: =IF(DS103<=0,0,IF(DS19<=0,0,IF(DS11+DS67<=0,IF(DS11=0,IF(DS19+DS67<=0,0,DS19+DS67),DS19*DS103/(DS103-DS11-DS67)),DS19))) -> 19398.05894 | DT20: =IF(DT103<=0,0,IF(DT19<=0,0,IF(DT11+DT75<=0,IF(DT11=0,IF(DT19+DT75<=0,0,DT19+DT75),DT19*DT103/(DT103-DT11-DT75)),DT19))) -> 19318.28872 | DU20: =IF(DU103<=0,0,IF(DU19<=0,0,IF(DU11+DU83<=0,IF(DU11=0,IF(DU19+DU83<=0,0,DU19+DU83),DU19*DU103/(DU103-DU11-DU83)),DU19))) -> 18870.25841 | DV20: =IF(DV103<=0,0,IF(DV19<=0,0,IF(DV11+DV91<=0,IF(DV11=0,IF(DV19+DV91<=0,0,DV19+DV91),DV19*DV103/(DV103-DV11-DV91)),DV19))) -> 19577.67611 | DW20: =IF(DW103<=0,0,IF(DW19<=0,0,IF(DW11+DW99<=0,IF(DW11=0,IF(DW19+DW99<=0,0,DW19+DW99),DW19*DW103/(DW103-DW11-DW99)),DW19))) -> 20101.07242
A21: 0 | B21: 1 | C21: 0 | D21: =(VLOOKUP((C21+1)^(1/12)-1,$A$21:$B$10021,2)-1)/10000 -> 0 | F21: EOM_Balance | G21: 0 | H21: 0 | I21: =I20*I4 -> 1017.907561 | J21: =J20*J4 -> 1048.573649 | K21: =K20*K4 -> 1026.141876 | L21: =L20*L4 -> 990.6076607 | M21: 949.9219743 | N21: 963.7868852 | O21: 966.0793063 | P21: 969.7047116 | Q21: 920.929471 | R21: 936.0591109 | S21: 929.6479145 | T21: =T20*T5 -> 1050 | U21: =U20*U4 -> 2015.634826 | V21: =V20*V4 -> 2081.559395 | W21: =W20*W4 -> 2117.827836 | X21: 2085.415088 | Y21: 2014.333286 | Z21: 2022.01299 | AA21: 2091.263836 | AB21: 2142.454969 | AC21: 2128.990125 | AD21: =AD20*AD4 -> 2142.530769 | AE21: =AE20*AE4 -> 2121.636905 | AF21: =AF20*AF5 -> 2152.5 | AG21: =AG20*AG4 -> 3290.492669 | AH21: =AH20*AH4 -> 3378.044642 | AI21: =AI20*AI4 -> 3263.01215 | AJ21: 3244.703603 | AK21: 3425.554255 | AL21: 3333.747438 | AM21: 3315.395549 | AN21: 3379.431364 | AO21: 3376.362695 | AP21: =AP20*AP4 -> 3324.037435 | AQ21: =AQ20*AQ4 -> 3375.800551 | AR21: =AR20*AR5 -> 3562.325 | AS21: =AS20*AS4 -> 4571.362652 | AT21: =AT20*AT4 -> 4743.973676 | AU21: =AU20*AU4 -> 4526.834148 | AV21: 4332.205831 | AW21: 4488.707697 | AX21: 4493.292259 | AY21: 4752.684428 | AZ21: 5195.245107 | BA21: 5269.126482 | BB21: =BB20*BB4 -> 4947.974561 | BC21: =BC20*BC4 -> 5152.695656 | BD21: =BD20*BD5 -> 5155.42725 | BE21: =BE20*BE4 -> 6182.824073 | BF21: =BF20*BF4 -> 5732.259154 | BG21: =BG20*BG4 -> 5312.726859 | BH21: 5473.498961 | BI21: 5565.392121 | BJ21: 6017.783899 | BK21: 5957.539933 | BL21: 5623.567243 | BM21: 5494.697845 | BN21: =BN20*BN4 -> 5481.527032 | BO21: =BO20*BO4 -> 5608.302974 | BP21: =BP20*BP5 -> 6463.198612 | BQ21: =BQ20*BQ4 -> 7083.442491 | BR21: =BR20*BR4 -> 6361.949863 | BS21: =BS20*BS4 -> 6791.813732 | BT21: 6383.865354 | BU21: 6334.981364 | BV21: 6330.562173 | BW21: 5659.703341 | BX21: 5247.678528 | BY21: 4909.808563 | BZ21: =BZ20*BZ4 -> 4468.887132 | CA21: =CA20*CA4 -> 4600.589467 | CB21: =CB20*CB5 -> 7836.358543 | CC21: =CC20*CC4 -> 8588.0046 | CD21: =CD20*CD4 -> 8041.372448 | CE21: =CE20*CE4 -> 8332.065371 | CF21: 9241.063296 | CG21: 9441.846923 | CH21: 9993.39055 | CI21: 9304.662715 | CJ21: 9134.508227 | CK21: 9111.976154 | CL21: =CL20*CL4 -> 9517.964218 | CM21: =CM20*CM4 -> 10231.87046 | CN21: =CN20*CN5 -> 9985.085154 | CO21: =CO20*CO4 -> 10579.81804 | CP21: =CP20*CP4 -> 11952.04963 | CQ21: =CQ20*CQ4 -> 10894.09685 | CR21: 10671.94148 | CS21: 11391.00216 | CT21: 12466.38388 | CU21: 12851.1806 | CV21: 13928.1798 | CW21: 12919.53542 | CX21: =CX20*CX4 -> 13037.67392 | CY21: =CY20*CY4 -> 13345.30832 | CZ21: =CZ20*CZ5 -> 12413.14622 | DA21: =DA20*DA4 -> 12996.06252 | DB21: =DB20*DB4 -> 14095.39169 | DC21: =DC20*DC4 -> 13742.99228 | DD21: 13538.25896 | DE21: 15634.85603 | DF21: 15634.12008 | DG21: 15525.62763 | DH21: 17442.18677 | DI21: 17957.14352 | DJ21: =DJ20*DJ4 -> 17810.32144 | DK21: =DK20*DK4 -> 19898.65149 | DL21: =DL20*DL5 -> 15156.85523 | DM21: =DM20*DM4 -> 17494.15598 | DN21: =DN20*DN4 -> 17216.45938 | DO21: =DO20*DO4 -> 18103.93808 | DP21: 18867.8843 | DQ21: 18720.8033 | DR21: 19398.05894 | DS21: 19318.28872 | DT21: 18870.25841 | DU21: 19577.67611 | DV21: =DV20*DV4 -> 20101.07242 | DW21: =DW20*DX21 -> 18072.24367 | DX21: =IF(PRODUCT(DM4:DW4)>($B$11)^(11/12),($B$11)^(11/12)/PRODUCT(DM4:DV4),IF(PRODUCT(DM4:DW4)<($B$12)^(11/12),($B$12)^(11/12)/PRODUCT(DM4:DV4),DW4)) -> 0.8990686315
A22: 0.004271267143 | B22: 2 | C22: 0.0002 | D22: =(VLOOKUP((C22+1)^(1/12)-1,$A$21:$B$10021,2)-1)/10000 -> 0 | E22: March | F22: BOM_Pre_CF_Balance | G22: 0 | H22: 0 | I22: 0 | J22: 0 | K22: =J29 -> 1030.126593 | L22: =K29 -> 1008.089452 | M22: 973.1803733 | N22: 933.2104508 | O22: 946.8314429 | P22: 949.0835345 | Q22: 952.6451598 | R22: 904.7279988 | S22: 919.5914701 | T22: 913.2930629 | U22: =T29 -> 920.13128 | V22: 1050 | W22: =V29 -> 2117.048538 | X22: =W29 -> 2153.93533 | Y22: =X29 -> 2120.969967 | Z22: =Y29 -> 2048.676269 | AA22: =Z29 -> 2056.486907 | AB22: =AA29 -> 2126.918432 | AC22: =AB29 -> 2178.982338 | AD22: =AC29 -> 2165.287928 | AE22: =AD29 -> 2179.059431 | AF22: =AE29 -> 2157.809341 | AG22: =AF29 -> 2079.507324 | AH22: =AG29 -> 2170.532467 | AI22: =AH29 -> 3254.892592 | AJ22: =AI29 -> 3144.053795 | AK22: =AJ29 -> 3126.412715 | AL22: =AK29 -> 3300.670166 | AM22: =AL29 -> 3212.210314 | AN22: =AM29 -> 3194.527473 | AO22: =AN29 -> 3256.228759 | AP22: =AO29 -> 3253.271964 | AQ22: =AP29 -> 3202.854305 | AR22: =AQ29 -> 3252.730313 | AS22: =AR29 -> 3453.444446 | AT22: =AS29 -> 3460.285482 | AU22: =AT29 -> 4628.70232 | AV22: =AU29 -> 4416.838953 | AW22: =AV29 -> 4226.939808 | AX22: =AW29 -> 4379.638917 | AY22: =AX29 -> 4384.112081 | AZ22: =AY29 -> 4637.201414 | BA22: =AZ29 -> 5069.00854 | BB22: =BA29 -> 5141.09471 | BC22: =BB29 -> 4827.746293 | BD22: =BC29 -> 5027.492977 | BE22: =BD29 -> 5236.767889 | BF22: =BE29 -> 5040.122594 | BG22: =BF29 -> 5599.956852 | BH22: =BG29 -> 5190.107492 | BI22: =BH29 -> 5347.168924 | BJ22: =BI29 -> 5436.941161 | BK22: =BJ29 -> 5878.891598 | BL22: =BK29 -> 5820.038082 | BM22: =BL29 -> 5493.773583 | BN22: =BM29 -> 5367.878531 | BO22: =BN29 -> 5355.011704 | BP22: =BO29 -> 5478.861619 | BQ22: =BP29 -> 5709.576663 | BR22: =BQ29 -> 6342.128724 | BS22: =BR29 -> 6594.287296 | BT22: =BS29 -> 7039.849728 | BU22: =BT29 -> 6617.003138 | BV22: =BU29 -> 6566.333912 | BW22: =BV29 -> 6561.753333 | BX22: =BW29 -> 5866.394839 | BY22: =BX29 -> 5439.322943 | BZ22: =BY29 -> 5089.114019 | CA22: =BZ29 -> 4632.090205 | CB22: =CA29 -> 4768.602289 | CC22: =CB29 -> 4639.677631 | CD22: =CC29 -> 7709.23516 | CE22: =CD29 -> 8154.886604 | CF22: =CE29 -> 8449.683025 | CG22: =CF29 -> 9371.512608 | CH22: =CG29 -> 9575.130549 | CI22: =CH29 -> 10134.45991 | CJ22: =CI29 -> 9436.009812 | CK22: =CJ29 -> 9263.453379 | CL22: =CK29 -> 9240.603237 | CM22: =CL29 -> 9652.322337 | CN22: =CM29 -> 10376.30627 | CO22: =CN29 -> 10757.2427 | CP22: =CO29 -> 9841.435731 | CQ22: =CP29 -> 12247.59986 | CR22: =CQ29 -> 11163.48602 | CS22: =CR29 -> 10935.83719 | CT22: =CS29 -> 11672.67881 | CU22: =CT29 -> 12774.65256 | CV22: =CU29 -> 13168.96453 | CW22: =CV29 -> 14272.59577 | CX22: =CW29 -> 13239.00963 | CY22: =CX29 -> 13360.06945 | CZ22: =CY29 -> 13675.31104 | DA22: =CZ29 -> 13909.98467 | DB22: =DA29 -> 12250.82238 | DC22: =DB29 -> 14371.70152 | DD22: =DC29 -> 14012.39409 | DE22: =DD29 -> 13803.64741 | DF22: =DE29 -> 15941.34375 | DG22: =DF29 -> 15940.59338 | DH22: =DG29 -> 15829.97416 | DI22: =DH29 -> 17784.10332 | DJ22: =DI29 -> 18309.15469 | DK22: =DJ29 -> 18159.45449 | DL22: =DK29 -> 20288.72175 | DM22: =DL29 -> 20002.90187 | DN22: =DM29 -> 14973.42929 | DO22: =DN29 -> 15719.87222 | DP22: =DO29 -> 16530.20443 | DQ22: =DP29 -> 17227.74256 | DR22: =DQ29 -> 17093.44698 | DS22: =DR29 -> 17711.83034 | DT22: =DS29 -> 17638.99437 | DU22: =DT29 -> 17229.9103 | DV22: =DU29 -> 17875.83381 | DW22: =DV29 -> 18353.73248
A23: 0.004317495399 | B23: 3 | C23: 0.0004 | D23: 0 | F23: BOM_POS_CF | G23: 0 | H23: 0 | I23: 0 | J23: =I15*(1+$C$14) -> 1000 | K23: 0 | L23: 0 | M23: 0 | N23: 0 | O23: 0 | P23: 0 | Q23: 0 | R23: 0 | S23: 0 | T23: 0 | U23: 0 | V23: =U15*(1+$C$14) -> 1000 | W23: 0 | X23: 0 | Y23: 0 | Z23: 0 | AA23: 0 | AB23: 0 | AC23: 0 | AD23: 0 | AE23: 0 | AF23: 0 | AG23: 0 | AH23: =AG15*(1+$C$14) -> 1000 | AI23: 0 | AJ23: 0 | AK23: 0 | AL23: 0 | AM23: 0 | AN23: 0 | AO23: 0 | AP23: 0 | AQ23: 0 | AR23: 0 | AS23: 0 | AT23: =AS15*(1+$C$14) -> 1000 | AU23: 0 | AV23: 0 | AW23: 0 | AX23: 0 | AY23: 0 | AZ23: 0 | BA23: 0 | BB23: 0 | BC23: 0 | BD23: 0 | BE23: 0 | BF23: =BE15*(1+$C$14) -> 1000 | BG23: 0 | BH23: 0 | BI23: 0 | BJ23: 0 | BK23: 0 | BL23: 0 | BM23: 0 | BN23: 0 | BO23: 0 | BP23: 0 | BQ23: 0 | BR23: =BQ15*(1+$C$14) -> 1000 | BS23: 0 | BT23: 0 | BU23: 0 | BV23: 0 | BW23: 0 | BX23: 0 | BY23: 0 | BZ23: 0 | CA23: 0 | CB23: 0 | CC23: 0 | CD23: =CC15*(1+$C$14) -> 1000 | CE23: 0 | CF23: 0 | CG23: 0 | CH23: 0 | CI23: 0 | CJ23: 0 | CK23: 0 | CL23: 0 | CM23: 0 | CN23: 0 | CO23: 0 | CP23: =CO15*(1+$C$14) -> 1000 | CQ23: 0 | CR23: 0 | CS23: 0 | CT23: 0 | CU23: 0 | CV23: 0 | CW23: 0 | CX23: 0 | CY23: 0 | CZ23: 0 | DA23: 0 | DB23: =DA15*(1+$C$14) -> 1000 | DC23: 0 | DD23: 0 | DE23: 0 | DF23: 0 | DG23: 0 | DH23: 0 | DI23: 0 | DJ23: 0 | DK23: 0 | DL23: 0 | DM23: 0 | DN23: =DM15*(1+$C$14) -> 1000 | DO23: 0 | DP23: 0 | DQ23: 0 | DR23: 0 | DS23: 0 | DT23: 0 | DU23: 0 | DV23: 0 | DW23: 0
A24: 0.004338408432 | B24: 4 | C24: 0.0006 | D24: 0 | F24: BOM_NEG_CF | G24: 0 | H24: 0 | I24: 0 | J24: =IF($B$18=0,0,I$102*(1-(1/($B$18+1)))/(1-(1/($B$18+1))^I$1)) -> 0 | K24: 0 | L24: 0 | M24: 0 | N24: 0 | O24: 0 | P24: 0 | Q24: 0 | R24: 0 | S24: 0 | T24: 0 | U24: 0 | V24: =IF($B$18=0,0,U$102*(1-(1/($B$18+1)))/(1-(1/($B$18+1))^U$1)) -> 0 | W24: 0 | X24: 0 | Y24: 0 | Z24: 0 | AA24: 0 | AB24: 0 | AC24: 0 | AD24: 0 | AE24: 0 | AF24: 0 | AG24: 0 | AH24: =IF($B$18=0,0,AG$102*(1-(1/($B$18+1)))/(1-(1/($B$18+1))^AG$1)) -> 0 | AI24: 0 | AJ24: 0 | AK24: 0 | AL24: 0 | AM24: 0 | AN24: 0 | AO24: 0 | AP24: 0 | AQ24: 0 | AR24: 0 | AS24: 0 | AT24: =IF($B$18=0,0,AS$102*(1-(1/($B$18+1)))/(1-(1/($B$18+1))^AS$1)) -> 0 | AU24: 0 | AV24: 0 | AW24: 0 | AX24: 0 | AY24: 0 | AZ24: 0 | BA24: 0 | BB24: 0 | BC24: 0 | BD24: 0 | BE24: 0 | BF24: =IF($B$18=0,0,BE$102*(1-(1/($B$18+1)))/(1-(1/($B$18+1))^BE$1)) -> 0 | BG24: 0 | BH24: 0 | BI24: 0 | BJ24: 0 | BK24: 0 | BL24: 0 | BM24: 0 | BN24: 0 | BO24: 0 | BP24: 0 | BQ24: 0 | BR24: =IF($B$18=0,0,BQ$102*(1-(1/($B$18+1)))/(1-(1/($B$18+1))^BQ$1)) -> 0 | BS24: 0 | BT24: 0 | BU24: 0 | BV24: 0 | BW24: 0 | BX24: 0 | BY24: 0 | BZ24: 0 | CA24: 0 | CB24: 0 | CC24: 0 | CD24: =IF($B$18=0,0,CC$102*(1-(1/($B$18+1)))/(1-(1/($B$18+1))^CC$1)) -> 0 | CE24: 0 | CF24: 0 | CG24: 0 | CH24: 0 | CI24: 0 | CJ24: 0 | CK24: 0 | CL24: 0 | CM24: 0 | CN24: 0 | CO24: 0 | CP24: =IF($B$18=0,0,CO$102*(1-(1/($B$18+1)))/(1-(1/($B$18+1))^CO$1)) -> 0 | CQ24: 0 | CR24: 0 | CS24: 0 | CT24: 0 | CU24: 0 | CV24: 0 | CW24: 0 | CX24: 0 | CY24: 0 | CZ24: 0 | DA24: 0 | DB24: =IF($B$18=0,0,DA$102*(1-(1/($B$18+1)))/(1-(1/($B$18+1))^DA$1)) -> 0 | DC24: 0 | DD24: 0 | DE24: 0 | DF24: 0 | DG24: 0 | DH24: 0 | DI24: 0 | DJ24: 0 | DK24: 0 | DL24: 0 | DM24: 0 | DN24: =IF($B$18=0,0,DM$102*(1-(1/($B$18+1)))/(1-(1/($B$18+1))^DM$1)) -> 0 | DO24: 0 | DP24: 0 | DQ24: 0 | DR24: 0 | DS24: 0 | DT24: 0 | DU24: 0 | DV24: 0 | DW24: 0
A25: 0.004343214519 | B25: 5 | C25: 0.0008 | D25: 0 | F25: BOM_COI | G25: 0 | H25: 0 | I25: 0 | J25: =$B$15 -> 0 | K25: 0 | L25: 0 | M25: 0 | N25: 0 | O25: 0 | P25: 0 | Q25: 0 | R25: 0 | S25: 0 | T25: 0 | U25: 0 | V25: =$B$15 -> 0 | W25: 0 | X25: 0 | Y25: 0 | Z25: 0 | AA25: 0 | AB25: 0 | AC25: 0 | AD25: 0 | AE25: 0 | AF25: 0 | AG25: 0 | AH25: =$B$15 -> 0 | AI25: 0 | AJ25: 0 | AK25: 0 | AL25: 0 | AM25: 0 | AN25: 0 | AO25: 0 | AP25: 0 | AQ25: 0 | AR25: 0 | AS25: 0 | AT25: =$B$15 -> 0 | AU25: 0 | AV25: 0 | AW25: 0 | AX25: 0 | AY25: 0 | AZ25: 0 | BA25: 0 | BB25: 0 | BC25: 0 | BD25: 0 | BE25: 0 | BF25: =$B$15 -> 0 | BG25: 0 | BH25: 0 | BI25: 0 | BJ25: 0 | BK25: 0 | BL25: 0 | BM25: 0 | BN25: 0 | BO25: 0 | BP25: 0 | BQ25: 0 | BR25: =$B$15 -> 0 | BS25: 0 | BT25: 0 | BU25: 0 | BV25: 0 | BW25: 0 | BX25: 0 | BY25: 0 | BZ25: 0 | CA25: 0 | CB25: 0 | CC25: 0 | CD25: =$B$15 -> 0 | CE25: 0 | CF25: 0 | CG25: 0 | CH25: 0 | CI25: 0 | CJ25: 0 | CK25: 0 | CL25: 0 | CM25: 0 | CN25: 0 | CO25: 0 | CP25: =$B$15 -> 0 | CQ25: 0 | CR25: 0 | CS25: 0 | CT25: 0 | CU25: 0 | CV25: 0 | CW25: 0 | CX25: 0 | CY25: 0 | CZ25: 0 | DA25: 0 | DB25: =$B$15 -> 0 | DC25: 0 | DD25: 0 | DE25: 0 | DF25: 0 | DG25: 0 | DH25: 0 | DI25: 0 | DJ25: 0 | DK25: 0 | DL25: 0 | DM25: 0 | DN25: =$B$15 -> 0 | DO25: 0 | DP25: 0 | DQ25: 0 | DR25: 0 | DS25: 0 | DT25: 0 | DU25: 0 | DV25: 0 | DW25: 0
A26: 0.004381046079 | B26: 6 | C26: 0.001 | D26: 0 | F26: BOM_Expenses | G26: 0 | H26: 0 | I26: 0 | J26: =$B$16 -> 0 | K26: 0 | L26: 0 | M26: 0 | N26: 0 | O26: 0 | P26: 0 | Q26: 0 | R26: 0 | S26: 0 | T26: 0 | U26: 0 | V26: =$B$16 -> 0 | W26: 0 | X26: 0 | Y26: 0 | Z26: 0 | AA26: 0 | AB26: 0 | AC26: 0 | AD26: 0 | AE26: 0 | AF26: 0 | AG26: 0 | AH26: =$B$16 -> 0 | AI26: 0 | AJ26: 0 | AK26: 0 | AL26: 0 | AM26: 0 | AN26: 0 | AO26: 0 | AP26: 0 | AQ26: 0 | AR26: 0 | AS26: 0 | AT26: =$B$16 -> 0 | AU26: 0 | AV26: 0 | AW26: 0 | AX26: 0 | AY26: 0 | AZ26: 0 | BA26: 0 | BB26: 0 | BC26: 0 | BD26: 0 | BE26: 0 | BF26: =$B$16 -> 0 | BG26: 0 | BH26: 0 | BI26: 0 | BJ26: 0 | BK26: 0 | BL26: 0 | BM26: 0 | BN26: 0 | BO26: 0 | BP26: 0 | BQ26: 0 | BR26: =$B$16 -> 0 | BS26: 0 | BT26: 0 | BU26: 0 | BV26: 0 | BW26: 0 | BX26: 0 | BY26: 0 | BZ26: 0 | CA26: 0 | CB26: 0 | CC26: 0 | CD26: =$B$16 -> 0 | CE26: 0 | CF26: 0 | CG26: 0 | CH26: 0 | CI26: 0 | CJ26: 0 | CK26: 0 | CL26: 0 | CM26: 0 | CN26: 0 | CO26: 0 | CP26: =$B$16 -> 0 | CQ26: 0 | CR26: 0 | CS26: 0 | CT26: 0 | CU26: 0 | CV26: 0 | CW26: 0 | CX26: 0 | CY26: 0 | CZ26: 0 | DA26: 0 | DB26: =$B$16 -> 0 | DC26: 0 | DD26: 0 | DE26: 0 | DF26: 0 | DG26: 0 | DH26: 0 | DI26: 0 | DJ26: 0 | DK26: 0 | DL26: 0 | DM26: 0 | DN26: =$B$16 -> 0 | DO26: 0 | DP26: 0 | DQ26: 0 | DR26: 0 | DS26: 0 | DT26: 0 | DU26: 0 | DV26: 0 | DW26: 0
A27: 0.004388662518 | B27: 7 | C27: 0.0012 | D27: 0 | F27: BOM_Post_CF_Balance | G27: 0 | H27: 0 | I27: 0 | J27: =J22+J23-J24-J25-J26 -> 1000 | K27: =K22+K23-K24-K25-K26 -> 1030.126593 | L27: =L22+L23-L24-L25-L26 -> 1008.089452 | M27: 973.1803733 | N27: 933.2104508 | O27: 946.8314429 | P27: 949.0835345 | Q27: 952.6451598 | R27: 904.7279988 | S27: 919.5914701 | T27: =T22+T23-T24-T25-T26 -> 913.2930629 | U27: =U22+U23-U24-U25-U26 -> 920.13128 | V27: =V22+V23-V24-V25-V26 -> 2050 | W27: =W22+W23-W24-W25-W26 -> 2117.048538 | X27: 2153.93533 | Y27: 2120.969967 | Z27: 2048.676269 | AA27: 2056.486907 | AB27: 2126.918432 | AC27: 2178.982338 | AD27: 2165.287928 | AE27: 2179.059431 | AF27: =AF22+AF23-AF24-AF25-AF26 -> 2157.809341 | AG27: =AG22+AG23-AG24-AG25-AG26 -> 2079.507324 | AH27: =AH22+AH23-AH24-AH25-AH26 -> 3170.532467 | AI27: =AI22+AI23-AI24-AI25-AI26 -> 3254.892592 | AJ27: 3144.053795 | AK27: 3126.412715 | AL27: 3300.670166 | AM27: 3212.210314 | AN27: 3194.527473 | AO27: 3256.228759 | AP27: 3253.271964 | AQ27: 3202.854305 | AR27: =AR22+AR23-AR24-AR25-AR26 -> 3252.730313 | AS27: =AS22+AS23-AS24-AS25-AS26 -> 3453.444446 | AT27: =AT22+AT23-AT24-AT25-AT26 -> 4460.285482 | AU27: =AU22+AU23-AU24-AU25-AU26 -> 4628.70232 | AV27: 4416.838953 | AW27: 4226.939808 | AX27: 4379.638917 | AY27: 4384.112081 | AZ27: 4637.201414 | BA27: 5069.00854 | BB27: 5141.09471 | BC27: 4827.746293 | BD27: =BD22+BD23-BD24-BD25-BD26 -> 5027.492977 | BE27: =BE22+BE23-BE24-BE25-BE26 -> 5236.767889 | BF27: =BF22+BF23-BF24-BF25-BF26 -> 6040.122594 | BG27: =BG22+BG23-BG24-BG25-BG26 -> 5599.956852 | BH27: 5190.107492 | BI27: 5347.168924 | BJ27: 5436.941161 | BK27: 5878.891598 | BL27: 5820.038082 | BM27: 5493.773583 | BN27: 5367.878531 | BO27: 5355.011704 | BP27: =BP22+BP23-BP24-BP25-BP26 -> 5478.861619 | BQ27: =BQ22+BQ23-BQ24-BQ25-BQ26 -> 5709.576663 | BR27: =BR22+BR23-BR24-BR25-BR26 -> 7342.128724 | BS27: =BS22+BS23-BS24-BS25-BS26 -> 6594.287296 | BT27: 7039.849728 | BU27: 6617.003138 | BV27: 6566.333912 | BW27: 6561.753333 | BX27: 5866.394839 | BY27: 5439.322943 | BZ27: 5089.114019 | CA27: 4632.090205 | CB27: =CB22+CB23-CB24-CB25-CB26 -> 4768.602289 | CC27: =CC22+CC23-CC24-CC25-CC26 -> 4639.677631 | CD27: =CD22+CD23-CD24-CD25-CD26 -> 8709.23516 | CE27: =CE22+CE23-CE24-CE25-CE26 -> 8154.886604 | CF27: 8449.683025 | CG27: 9371.512608 | CH27: 9575.130549 | CI27: 10134.45991 | CJ27: 9436.009812 | CK27: 9263.453379 | CL27: 9240.603237 | CM27: 9652.322337 | CN27: =CN22+CN23-CN24-CN25-CN26 -> 10376.30627 | CO27: =CO22+CO23-CO24-CO25-CO26 -> 10757.2427 | CP27: =CP22+CP23-CP24-CP25-CP26 -> 10841.43573 | CQ27: =CQ22+CQ23-CQ24-CQ25-CQ26 -> 12247.59986 | CR27: 11163.48602 | CS27: 10935.83719 | CT27: 11672.67881 | CU27: 12774.65256 | CV27: 13168.96453 | CW27: 14272.59577 | CX27: 13239.00963 | CY27: 13360.06945 | CZ27: =CZ22+CZ23-CZ24-CZ25-CZ26 -> 13675.31104 | DA27: =DA22+DA23-DA24-DA25-DA26 -> 13909.98467 | DB27: =DB22+DB23-DB24-DB25-DB26 -> 13250.82238 | DC27: =DC22+DC23-DC24-DC25-DC26 -> 14371.70152 | DD27: 14012.39409 | DE27: 13803.64741 | DF27: 15941.34375 | DG27: 15940.59338 | DH27: 15829.97416 | DI27: 17784.10332 | DJ27: 18309.15469 | DK27: 18159.45449 | DL27: =DL22+DL23-DL24-DL25-DL26 -> 20288.72175 | DM27: =DM22+DM23-DM24-DM25-DM26 -> 20002.90187 | DN27: =DN22+DN23-DN24-DN25-DN26 -> 15973.42929 | DO27: =DO22+DO23-DO24-DO25-DO26 -> 15719.87222 | DP27: 16530.20443 | DQ27: 17227.74256 | DR27: 17093.44698 | DS27: 17711.83034 | DT27: 17638.99437 | DU27: 17229.9103 | DV27: 17875.83381 | DW27: 18353.73248
A28: 0.0044080929 | B28: 8 | C28: 0.0014 | D28: 0 | F28: BOM_Post_CF_Balance_ADJ | G28: 0 | H28: 0 | I28: 0 | J28: =IF(J27<=0,IF(J$103<=0,J$103,0),J27) -> 1000 | K28: =IF(K103<=0,0,IF(K27<=0,0,IF(K11+K35<=0,IF(K11=0,IF(K19=0,IF(K27+K35<=0,0,K27+K35),K27*K103/(K103-K19-K35)),K27*K103/(K103-K11-K35)),K27))) -> 1030.126593 | L28: =IF(L103<=0,0,IF(L27<=0,0,IF(L11+L43<=0,IF(L11=0,IF(L19=0,IF(L27+L43<=0,0,L27+L43),L27*L103/(L103-L19-L43)),L27*L103/(L103-L11-L43)),L27))) -> 1008.089452 | M28: =IF(M103<=0,0,IF(M27<=0,0,IF(M11+M51<=0,IF(M11=0,IF(M19=0,IF(M27+M51<=0,0,M27+M51),M27*M103/(M103-M19-M51)),M27*M103/(M103-M11-M51)),M27))) -> 973.1803733 | N28: =IF(N103<=0,0,IF(N27<=0,0,IF(N11+N59<=0,IF(N11=0,IF(N19=0,IF(N27+N59<=0,0,N27+N59),N27*N103/(N103-N19-N59)),N27*N103/(N103-N11-N59)),N27))) -> 933.2104508 | O28: =IF(O103<=0,0,IF(O27<=0,0,IF(O11+O67<=0,IF(O11=0,IF(O19=0,IF(O27+O67<=0,0,O27+O67),O27*O103/(O103-O19-O67)),O27*O103/(O103-O11-O67)),O27))) -> 946.8314429 | P28: =IF(P103<=0,0,IF(P27<=0,0,IF(P11+P75<=0,IF(P11=0,IF(P19=0,IF(P27+P75<=0,0,P27+P75),P27*P103/(P103-P19-P75)),P27*P103/(P103-P11-P75)),P27))) -> 949.0835345 | Q28: =IF(Q103<=0,0,IF(Q27<=0,0,IF(Q11+Q83<=0,IF(Q11=0,IF(Q19=0,IF(Q27+Q83<=0,0,Q27+Q83),Q27*Q103/(Q103-Q19-Q83)),Q27*Q103/(Q103-Q11-Q83)),Q27))) -> 952.6451598 | R28: =IF(R103<=0,0,IF(R27<=0,0,IF(R11+R91<=0,IF(R11=0,IF(R19=0,IF(R27+R91<=0,0,R27+R91),R27*R103/(R103-R19-R91)),R27*R103/(R103-R11-R91)),R27))) -> 904.7279988 | S28: =IF(S103<=0,0,IF(S27<=0,0,IF(S11+S99<=0,IF(S11=0,IF(S19=0,IF(S27+S99<=0,0,S27+S99),S27*S103/(S103-S19-S99)),S27*S103/(S103-S11-S99)),S27))) -> 919.5914701 | T28: =IF(T103<=0,0,IF(T27<=0,0,IF(T11+T19<=0,IF(T19=0,IF(T27+T19<=0,0,T27+T19),T27*T103/(T103-T11-T19)),T27))) -> 913.2930629 | U28: =IF(U103<=0,0,IF(U27<=0,0,IF(U11+U19<=0,IF(U11=0,IF(U27+U19<=0,0,U27+U19),U27*U103/(U103-U11-U19)),U27))) -> 920.13128 | V28: =IF(V27<=0,IF(V$103<=0,V$103,0),V27) -> 2050 | W28: =IF(W103<=0,0,IF(W27<=0,0,IF(W11+W35<=0,IF(W11=0,IF(W19=0,IF(W27+W35<=0,0,W27+W35),W27*W103/(W103-W19-W35)),W27*W103/(W103-W11-W35)),W27))) -> 2117.048538 | X28: =IF(X103<=0,0,IF(X27<=0,0,IF(X11+X43<=0,IF(X11=0,IF(X19=0,IF(X27+X43<=0,0,X27+X43),X27*X103/(X103-X19-X43)),X27*X103/(X103-X11-X43)),X27))) -> 2153.93533 | Y28: =IF(Y103<=0,0,IF(Y27<=0,0,IF(Y11+Y51<=0,IF(Y11=0,IF(Y19=0,IF(Y27+Y51<=0,0,Y27+Y51),Y27*Y103/(Y103-Y19-Y51)),Y27*Y103/(Y103-Y11-Y51)),Y27))) -> 2120.969967 | Z28: =IF(Z103<=0,0,IF(Z27<=0,0,IF(Z11+Z59<=0,IF(Z11=0,IF(Z19=0,IF(Z27+Z59<=0,0,Z27+Z59),Z27*Z103/(Z103-Z19-Z59)),Z27*Z103/(Z103-Z11-Z59)),Z27))) -> 2048.676269 | AA28: =IF(AA103<=0,0,IF(AA27<=0,0,IF(AA11+AA67<=0,IF(AA11=0,IF(AA19=0,IF(AA27+AA67<=0,0,AA27+AA67),AA27*AA103/(AA103-AA19-AA67)),AA27*AA103/(AA103-AA11-AA67)),AA27))) -> 2056.486907 | AB28: =IF(AB103<=0,0,IF(AB27<=0,0,IF(AB11+AB75<=0,IF(AB11=0,IF(AB19=0,IF(AB27+AB75<=0,0,AB27+AB75),AB27*AB103/(AB103-AB19-AB75)),AB27*AB103/(AB103-AB11-AB75)),AB27))) -> 2126.918432 | AC28: =IF(AC103<=0,0,IF(AC27<=0,0,IF(AC11+AC83<=0,IF(AC11=0,IF(AC19=0,IF(AC27+AC83<=0,0,AC27+AC83),AC27*AC103/(AC103-AC19-AC83)),AC27*AC103/(AC103-AC11-AC83)),AC27))) -> 2178.982338 | AD28: =IF(AD103<=0,0,IF(AD27<=0,0,IF(AD11+AD91<=0,IF(AD11=0,IF(AD19=0,IF(AD27+AD91<=0,0,AD27+AD91),AD27*AD103/(AD103-AD19-AD91)),AD27*AD103/(AD103-AD11-AD91)),AD27))) -> 2165.287928 | AE28: =IF(AE103<=0,0,IF(AE27<=0,0,IF(AE11+AE99<=0,IF(AE11=0,IF(AE19=0,IF(AE27+AE99<=0,0,AE27+AE99),AE27*AE103/(AE103-AE19-AE99)),AE27*AE103/(AE103-AE11-AE99)),AE27))) -> 2179.059431 | AF28: =IF(AF103<=0,0,IF(AF27<=0,0,IF(AF11+AF19<=0,IF(AF19=0,IF(AF27+AF19<=0,0,AF27+AF19),AF27*AF103/(AF103-AF11-AF19)),AF27))) -> 2157.809341 | AG28: =IF(AG103<=0,0,IF(AG27<=0,0,IF(AG11+AG19<=0,IF(AG11=0,IF(AG27+AG19<=0,0,AG27+AG19),AG27*AG103/(AG103-AG11-AG19)),AG27))) -> 2079.507324 | AH28: =IF(AH27<=0,IF(AH$103<=0,AH$103,0),AH27) -> 3170.532467 | AI28: =IF(AI103<=0,0,IF(AI27<=0,0,IF(AI11+AI35<=0,IF(AI11=0,IF(AI19=0,IF(AI27+AI35<=0,0,AI27+AI35),AI27*AI103/(AI103-AI19-AI35)),AI27*AI103/(AI103-AI11-AI35)),AI27))) -> 3254.892592 | AJ28: =IF(AJ103<=0,0,IF(AJ27<=0,0,IF(AJ11+AJ43<=0,IF(AJ11=0,IF(AJ19=0,IF(AJ27+AJ43<=0,0,AJ27+AJ43),AJ27*AJ103/(AJ103-AJ19-AJ43)),AJ27*AJ103/(AJ103-AJ11-AJ43)),AJ27))) -> 3144.053795 | AK28: =IF(AK103<=0,0,IF(AK27<=0,0,IF(AK11+AK51<=0,IF(AK11=0,IF(AK19=0,IF(AK27+AK51<=0,0,AK27+AK51),AK27*AK103/(AK103-AK19-AK51)),AK27*AK103/(AK103-AK11-AK51)),AK27))) -> 3126.412715 | AL28: =IF(AL103<=0,0,IF(AL27<=0,0,IF(AL11+AL59<=0,IF(AL11=0,IF(AL19=0,IF(AL27+AL59<=0,0,AL27+AL59),AL27*AL103/(AL103-AL19-AL59)),AL27*AL103/(AL103-AL11-AL59)),AL27))) -> 3300.670166 | AM28: =IF(AM103<=0,0,IF(AM27<=0,0,IF(AM11+AM67<=0,IF(AM11=0,IF(AM19=0,IF(AM27+AM67<=0,0,AM27+AM67),AM27*AM103/(AM103-AM19-AM67)),AM27*AM103/(AM103-AM11-AM67)),AM27))) -> 3212.210314 | AN28: =IF(AN103<=0,0,IF(AN27<=0,0,IF(AN11+AN75<=0,IF(AN11=0,IF(AN19=0,IF(AN27+AN75<=0,0,AN27+AN75),AN27*AN103/(AN103-AN19-AN75)),AN27*AN103/(AN103-AN11-AN75)),AN27))) -> 3194.527473 | AO28: =IF(AO103<=0,0,IF(AO27<=0,0,IF(AO11+AO83<=0,IF(AO11=0,IF(AO19=0,IF(AO27+AO83<=0,0,AO27+AO83),AO27*AO103/(AO103-AO19-AO83)),AO27*AO103/(AO103-AO11-AO83)),AO27))) -> 3256.228759 | AP28: =IF(AP103<=0,0,IF(AP27<=0,0,IF(AP11+AP91<=0,IF(AP11=0,IF(AP19=0,IF(AP27+AP91<=0,0,AP27+AP91),AP27*AP103/(AP103-AP19-AP91)),AP27*AP103/(AP103-AP11-AP91)),AP27))) -> 3253.271964 | AQ28: =IF(AQ103<=0,0,IF(AQ27<=0,0,IF(AQ11+AQ99<=0,IF(AQ11=0,IF(AQ19=0,IF(AQ27+AQ99<=0,0,AQ27+AQ99),AQ27*AQ103/(AQ103-AQ19-AQ99)),AQ27*AQ103/(AQ103-AQ11-AQ99)),AQ27))) -> 3202.854305 | AR28: =IF(AR103<=0,0,IF(AR27<=0,0,IF(AR11+AR19<=0,IF(AR19=0,IF(AR27+AR19<=0,0,AR27+AR19),AR27*AR103/(AR103-AR11-AR19)),AR27))) -> 3252.730313 | AS28: =IF(AS103<=0,0,IF(AS27<=0,0,IF(AS11+AS19<=0,IF(AS11=0,IF(AS27+AS19<=0,0,AS27+AS19),AS27*AS103/(AS103-AS11-AS19)),AS27))) -> 3453.444446 | AT28: =IF(AT27<=0,IF(AT$103<=0,AT$103,0),AT27) -> 4460.285482 | AU28: =IF(AU103<=0,0,IF(AU27<=0,0,IF(AU11+AU35<=0,IF(AU11=0,IF(AU19=0,IF(AU27+AU35<=0,0,AU27+AU35),AU27*AU103/(AU103-AU19-AU35)),AU27*AU103/(AU103-AU11-AU35)),AU27))) -> 4628.70232 | AV28: =IF(AV103<=0,0,IF(AV27<=0,0,IF(AV11+AV43<=0,IF(AV11=0,IF(AV19=0,IF(AV27+AV43<=0,0,AV27+AV43),AV27*AV103/(AV103-AV19-AV43)),AV27*AV103/(AV103-AV11-AV43)),AV27))) -> 4416.838953 | AW28: =IF(AW103<=0,0,IF(AW27<=0,0,IF(AW11+AW51<=0,IF(AW11=0,IF(AW19=0,IF(AW27+AW51<=0,0,AW27+AW51),AW27*AW103/(AW103-AW19-AW51)),AW27*AW103/(AW103-AW11-AW51)),AW27))) -> 4226.939808 | AX28: =IF(AX103<=0,0,IF(AX27<=0,0,IF(AX11+AX59<=0,IF(AX11=0,IF(AX19=0,IF(AX27+AX59<=0,0,AX27+AX59),AX27*AX103/(AX103-AX19-AX59)),AX27*AX103/(AX103-AX11-AX59)),AX27))) -> 4379.638917 | AY28: =IF(AY103<=0,0,IF(AY27<=0,0,IF(AY11+AY67<=0,IF(AY11=0,IF(AY19=0,IF(AY27+AY67<=0,0,AY27+AY67),AY27*AY103/(AY103-AY19-AY67)),AY27*AY103/(AY103-AY11-AY67)),AY27))) -> 4384.112081 | AZ28: =IF(AZ103<=0,0,IF(AZ27<=0,0,IF(AZ11+AZ75<=0,IF(AZ11=0,IF(AZ19=0,IF(AZ27+AZ75<=0,0,AZ27+AZ75),AZ27*AZ103/(AZ103-AZ19-AZ75)),AZ27*AZ103/(AZ103-AZ11-AZ75)),AZ27))) -> 4637.201414 | BA28: =IF(BA103<=0,0,IF(BA27<=0,0,IF(BA11+BA83<=0,IF(BA11=0,IF(BA19=0,IF(BA27+BA83<=0,0,BA27+BA83),BA27*BA103/(BA103-BA19-BA83)),BA27*BA103/(BA103-BA11-BA83)),BA27))) -> 5069.00854 | BB28: =IF(BB103<=0,0,IF(BB27<=0,0,IF(BB11+BB91<=0,IF(BB11=0,IF(BB19=0,IF(BB27+BB91<=0,0,BB27+BB91),BB27*BB103/(BB103-BB19-BB91)),BB27*BB103/(BB103-BB11-BB91)),BB27))) -> 5141.09471 | BC28: =IF(BC103<=0,0,IF(BC27<=0,0,IF(BC11+BC99<=0,IF(BC11=0,IF(BC19=0,IF(BC27+BC99<=0,0,BC27+BC99),BC27*BC103/(BC103-BC19-BC99)),BC27*BC103/(BC103-BC11-BC99)),BC27))) -> 4827.746293 | BD28: =IF(BD103<=0,0,IF(BD27<=0,0,IF(BD11+BD19<=0,IF(BD19=0,IF(BD27+BD19<=0,0,BD27+BD19),BD27*BD103/(BD103-BD11-BD19)),BD27))) -> 5027.492977 | BE28: =IF(BE103<=0,0,IF(BE27<=0,0,IF(BE11+BE19<=0,IF(BE11=0,IF(BE27+BE19<=0,0,BE27+BE19),BE27*BE103/(BE103-BE11-BE19)),BE27))) -> 5236.767889 | BF28: =IF(BF27<=0,IF(BF$103<=0,BF$103,0),BF27) -> 6040.122594 | BG28: =IF(BG103<=0,0,IF(BG27<=0,0,IF(BG11+BG35<=0,IF(BG11=0,IF(BG19=0,IF(BG27+BG35<=0,0,BG27+BG35),BG27*BG103/(BG103-BG19-BG35)),BG27*BG103/(BG103-BG11-BG35)),BG27))) -> 5599.956852 | BH28: =IF(BH103<=0,0,IF(BH27<=0,0,IF(BH11+BH43<=0,IF(BH11=0,IF(BH19=0,IF(BH27+BH43<=0,0,BH27+BH43),BH27*BH103/(BH103-BH19-BH43)),BH27*BH103/(BH103-BH11-BH43)),BH27))) -> 5190.107492 | BI28: =IF(BI103<=0,0,IF(BI27<=0,0,IF(BI11+BI51<=0,IF(BI11=0,IF(BI19=0,IF(BI27+BI51<=0,0,BI27+BI51),BI27*BI103/(BI103-BI19-BI51)),BI27*BI103/(BI103-BI11-BI51)),BI27))) -> 5347.168924 | BJ28: =IF(BJ103<=0,0,IF(BJ27<=0,0,IF(BJ11+BJ59<=0,IF(BJ11=0,IF(BJ19=0,IF(BJ27+BJ59<=0,0,BJ27+BJ59),BJ27*BJ103/(BJ103-BJ19-BJ59)),BJ27*BJ103/(BJ103-BJ11-BJ59)),BJ27))) -> 5436.941161 | BK28: =IF(BK103<=0,0,IF(BK27<=0,0,IF(BK11+BK67<=0,IF(BK11=0,IF(BK19=0,IF(BK27+BK67<=0,0,BK27+BK67),BK27*BK103/(BK103-BK19-BK67)),BK27*BK103/(BK103-BK11-BK67)),BK27))) -> 5878.891598 | BL28: =IF(BL103<=0,0,IF(BL27<=0,0,IF(BL11+BL75<=0,IF(BL11=0,IF(BL19=0,IF(BL27+BL75<=0,0,BL27+BL75),BL27*BL103/(BL103-BL19-BL75)),BL27*BL103/(BL103-BL11-BL75)),BL27))) -> 5820.038082 | BM28: =IF(BM103<=0,0,IF(BM27<=0,0,IF(BM11+BM83<=0,IF(BM11=0,IF(BM19=0,IF(BM27+BM83<=0,0,BM27+BM83),BM27*BM103/(BM103-BM19-BM83)),BM27*BM103/(BM103-BM11-BM83)),BM27))) -> 5493.773583 | BN28: =IF(BN103<=0,0,IF(BN27<=0,0,IF(BN11+BN91<=0,IF(BN11=0,IF(BN19=0,IF(BN27+BN91<=0,0,BN27+BN91),BN27*BN103/(BN103-BN19-BN91)),BN27*BN103/(BN103-BN11-BN91)),BN27))) -> 5367.878531 | BO28: =IF(BO103<=0,0,IF(BO27<=0,0,IF(BO11+BO99<=0,IF(BO11=0,IF(BO19=0,IF(BO27+BO99<=0,0,BO27+BO99),BO27*BO103/(BO103-BO19-BO99)),BO27*BO103/(BO103-BO11-BO99)),BO27))) -> 5355.011704 | BP28: =IF(BP103<=0,0,IF(BP27<=0,0,IF(BP11+BP19<=0,IF(BP19=0,IF(BP27+BP19<=0,0,BP27+BP19),BP27*BP103/(BP103-BP11-BP19)),BP27))) -> 5478.861619 | BQ28: =IF(BQ103<=0,0,IF(BQ27<=0,0,IF(BQ11+BQ19<=0,IF(BQ11=0,IF(BQ27+BQ19<=0,0,BQ27+BQ19),BQ27*BQ103/(BQ103-BQ11-BQ19)),BQ27))) -> 5709.576663 | BR28: =IF(BR27<=0,IF(BR$103<=0,BR$103,0),BR27) -> 7342.128724 | BS28: =IF(BS103<=0,0,IF(BS27<=0,0,IF(BS11+BS35<=0,IF(BS11=0,IF(BS19=0,IF(BS27+BS35<=0,0,BS27+BS35),BS27*BS103/(BS103-BS19-BS35)),BS27*BS103/(BS103-BS11-BS35)),BS27))) -> 6594.287296 | BT28: =IF(BT103<=0,0,IF(BT27<=0,0,IF(BT11+BT43<=0,IF(BT11=0,IF(BT19=0,IF(BT27+BT43<=0,0,BT27+BT43),BT27*BT103/(BT103-BT19-BT43)),BT27*BT103/(BT103-BT11-BT43)),BT27))) -> 7039.849728 | BU28: =IF(BU103<=0,0,IF(BU27<=0,0,IF(BU11+BU51<=0,IF(BU11=0,IF(BU19=0,IF(BU27+BU51<=0,0,BU27+BU51),BU27*BU103/(BU103-BU19-BU51)),BU27*BU103/(BU103-BU11-BU51)),BU27))) -> 6617.003138 | BV28: =IF(BV103<=0,0,IF(BV27<=0,0,IF(BV11+BV59<=0,IF(BV11=0,IF(BV19=0,IF(BV27+BV59<=0,0,BV27+BV59),BV27*BV103/(BV103-BV19-BV59)),BV27*BV103/(BV103-BV11-BV59)),BV27))) -> 6566.333912 | BW28: =IF(BW103<=0,0,IF(BW27<=0,0,IF(BW11+BW67<=0,IF(BW11=0,IF(BW19=0,IF(BW27+BW67<=0,0,BW27+BW67),BW27*BW103/(BW103-BW19-BW67)),BW27*BW103/(BW103-BW11-BW67)),BW27))) -> 6561.753333 | BX28: =IF(BX103<=0,0,IF(BX27<=0,0,IF(BX11+BX75<=0,IF(BX11=0,IF(BX19=0,IF(BX27+BX75<=0,0,BX27+BX75),BX27*BX103/(BX103-BX19-BX75)),BX27*BX103/(BX103-BX11-BX75)),BX27))) -> 5866.394839 | BY28: =IF(BY103<=0,0,IF(BY27<=0,0,IF(BY11+BY83<=0,IF(BY11=0,IF(BY19=0,IF(BY27+BY83<=0,0,BY27+BY83),BY27*BY103/(BY103-BY19-BY83)),BY27*BY103/(BY103-BY11-BY83)),BY27))) -> 5439.322943 | BZ28: =IF(BZ103<=0,0,IF(BZ27<=0,0,IF(BZ11+BZ91<=0,IF(BZ11=0,IF(BZ19=0,IF(BZ27+BZ91<=0,0,BZ27+BZ91),BZ27*BZ103/(BZ103-BZ19-BZ91)),BZ27*BZ103/(BZ103-BZ11-BZ91)),BZ27))) -> 5089.114019 | CA28: =IF(CA103<=0,0,IF(CA27<=0,0,IF(CA11+CA99<=0,IF(CA11=0,IF(CA19=0,IF(CA27+CA99<=0,0,CA27+CA99),CA27*CA103/(CA103-CA19-CA99)),CA27*CA103/(CA103-CA11-CA99)),CA27))) -> 4632.090205 | CB28: =IF(CB103<=0,0,IF(CB27<=0,0,IF(CB11+CB19<=0,IF(CB19=0,IF(CB27+CB19<=0,0,CB27+CB19),CB27*CB103/(CB103-CB11-CB19)),CB27))) -> 4768.602289 | CC28: =IF(CC103<=0,0,IF(CC27<=0,0,IF(CC11+CC19<=0,IF(CC11=0,IF(CC27+CC19<=0,0,CC27+CC19),CC27*CC103/(CC103-CC11-CC19)),CC27))) -> 4639.677631 | CD28: =IF(CD27<=0,IF(CD$103<=0,CD$103,0),CD27) -> 8709.23516 | CE28: =IF(CE103<=0,0,IF(CE27<=0,0,IF(CE11+CE35<=0,IF(CE11=0,IF(CE19=0,IF(CE27+CE35<=0,0,CE27+CE35),CE27*CE103/(CE103-CE19-CE35)),CE27*CE103/(CE103-CE11-CE35)),CE27))) -> 8154.886604 | CF28: =IF(CF103<=0,0,IF(CF27<=0,0,IF(CF11+CF43<=0,IF(CF11=0,IF(CF19=0,IF(CF27+CF43<=0,0,CF27+CF43),CF27*CF103/(CF103-CF19-CF43)),CF27*CF103/(CF103-CF11-CF43)),CF27))) -> 8449.683025 | CG28: =IF(CG103<=0,0,IF(CG27<=0,0,IF(CG11+CG51<=0,IF(CG11=0,IF(CG19=0,IF(CG27+CG51<=0,0,CG27+CG51),CG27*CG103/(CG103-CG19-CG51)),CG27*CG103/(CG103-CG11-CG51)),CG27))) -> 9371.512608 | CH28: =IF(CH103<=0,0,IF(CH27<=0,0,IF(CH11+CH59<=0,IF(CH11=0,IF(CH19=0,IF(CH27+CH59<=0,0,CH27+CH59),CH27*CH103/(CH103-CH19-CH59)),CH27*CH103/(CH103-CH11-CH59)),CH27))) -> 9575.130549 | CI28: =IF(CI103<=0,0,IF(CI27<=0,0,IF(CI11+CI67<=0,IF(CI11=0,IF(CI19=0,IF(CI27+CI67<=0,0,CI27+CI67),CI27*CI103/(CI103-CI19-CI67)),CI27*CI103/(CI103-CI11-CI67)),CI27))) -> 10134.45991 | CJ28: =IF(CJ103<=0,0,IF(CJ27<=0,0,IF(CJ11+CJ75<=0,IF(CJ11=0,IF(CJ19=0,IF(CJ27+CJ75<=0,0,CJ27+CJ75),CJ27*CJ103/(CJ103-CJ19-CJ75)),CJ27*CJ103/(CJ103-CJ11-CJ75)),CJ27))) -> 9436.009812 | CK28: =IF(CK103<=0,0,IF(CK27<=0,0,IF(CK11+CK83<=0,IF(CK11=0,IF(CK19=0,IF(CK27+CK83<=0,0,CK27+CK83),CK27*CK103/(CK103-CK19-CK83)),CK27*CK103/(CK103-CK11-CK83)),CK27))) -> 9263.453379 | CL28: =IF(CL103<=0,0,IF(CL27<=0,0,IF(CL11+CL91<=0,IF(CL11=0,IF(CL19=0,IF(CL27+CL91<=0,0,CL27+CL91),CL27*CL103/(CL103-CL19-CL91)),CL27*CL103/(CL103-CL11-CL91)),CL27))) -> 9240.603237 | CM28: =IF(CM103<=0,0,IF(CM27<=0,0,IF(CM11+CM99<=0,IF(CM11=0,IF(CM19=0,IF(CM27+CM99<=0,0,CM27+CM99),CM27*CM103/(CM103-CM19-CM99)),CM27*CM103/(CM103-CM11-CM99)),CM27))) -> 9652.322337 | CN28: =IF(CN103<=0,0,IF(CN27<=0,0,IF(CN11+CN19<=0,IF(CN19=0,IF(CN27+CN19<=0,0,CN27+CN19),CN27*CN103/(CN103-CN11-CN19)),CN27))) -> 10376.30627 | CO28: =IF(CO103<=0,0,IF(CO27<=0,0,IF(CO11+CO19<=0,IF(CO11=0,IF(CO27+CO19<=0,0,CO27+CO19),CO27*CO103/(CO103-CO11-CO19)),CO27))) -> 10757.2427 | CP28: =IF(CP27<=0,IF(CP$103<=0,CP$103,0),CP27) -> 10841.43573 | CQ28: =IF(CQ103<=0,0,IF(CQ27<=0,0,IF(CQ11+CQ35<=0,IF(CQ11=0,IF(CQ19=0,IF(CQ27+CQ35<=0,0,CQ27+CQ35),CQ27*CQ103/(CQ103-CQ19-CQ35)),CQ27*CQ103/(CQ103-CQ11-CQ35)),CQ27))) -> 12247.59986 | CR28: =IF(CR103<=0,0,IF(CR27<=0,0,IF(CR11+CR43<=0,IF(CR11=0,IF(CR19=0,IF(CR27+CR43<=0,0,CR27+CR43),CR27*CR103/(CR103-CR19-CR43)),CR27*CR103/(CR103-CR11-CR43)),CR27))) -> 11163.48602 | CS28: =IF(CS103<=0,0,IF(CS27<=0,0,IF(CS11+CS51<=0,IF(CS11=0,IF(CS19=0,IF(CS27+CS51<=0,0,CS27+CS51),CS27*CS103/(CS103-CS19-CS51)),CS27*CS103/(CS103-CS11-CS51)),CS27))) -> 10935.83719 | CT28: =IF(CT103<=0,0,IF(CT27<=0,0,IF(CT11+CT59<=0,IF(CT11=0,IF(CT19=0,IF(CT27+CT59<=0,0,CT27+CT59),CT27*CT103/(CT103-CT19-CT59)),CT27*CT103/(CT103-CT11-CT59)),CT27))) -> 11672.67881 | CU28: =IF(CU103<=0,0,IF(CU27<=0,0,IF(CU11+CU67<=0,IF(CU11=0,IF(CU19=0,IF(CU27+CU67<=0,0,CU27+CU67),CU27*CU103/(CU103-CU19-CU67)),CU27*CU103/(CU103-CU11-CU67)),CU27))) -> 12774.65256 | CV28: =IF(CV103<=0,0,IF(CV27<=0,0,IF(CV11+CV75<=0,IF(CV11=0,IF(CV19=0,IF(CV27+CV75<=0,0,CV27+CV75),CV27*CV103/(CV103-CV19-CV75)),CV27*CV103/(CV103-CV11-CV75)),CV27))) -> 13168.96453 | CW28: =IF(CW103<=0,0,IF(CW27<=0,0,IF(CW11+CW83<=0,IF(CW11=0,IF(CW19=0,IF(CW27+CW83<=0,0,CW27+CW83),CW27*CW103/(CW103-CW19-CW83)),CW27*CW103/(CW103-CW11-CW83)),CW27))) -> 14272.59577 | CX28: =IF(CX103<=0,0,IF(CX27<=0,0,IF(CX11+CX91<=0,IF(CX11=0,IF(CX19=0,IF(CX27+CX91<=0,0,CX27+CX91),CX27*CX103/(CX103-CX19-CX91)),CX27*CX103/(CX103-CX11-CX91)),CX27))) -> 13239.00963 | CY28: =IF(CY103<=0,0,IF(CY27<=0,0,IF(CY11+CY99<=0,IF(CY11=0,IF(CY19=0,IF(CY27+CY99<=0,0,CY27+CY99),CY27*CY103/(CY103-CY19-CY99)),CY27*CY103/(CY103-CY11-CY99)),CY27))) -> 13360.06945 | CZ28: =IF(CZ103<=0,0,IF(CZ27<=0,0,IF(CZ11+CZ19<=0,IF(CZ19=0,IF(CZ27+CZ19<=0,0,CZ27+CZ19),CZ27*CZ103/(CZ103-CZ11-CZ19)),CZ27))) -> 13675.31104 | DA28: =IF(DA103<=0,0,IF(DA27<=0,0,IF(DA11+DA19<=0,IF(DA11=0,IF(DA27+DA19<=0,0,DA27+DA19),DA27*DA103/(DA103-DA11-DA19)),DA27))) -> 13909.98467 | DB28: =IF(DB27<=0,IF(DB$103<=0,DB$103,0),DB27) -> 13250.82238 | DC28: =IF(DC103<=0,0,IF(DC27<=0,0,IF(DC11+DC35<=0,IF(DC11=0,IF(DC19=0,IF(DC27+DC35<=0,0,DC27+DC35),DC27*DC103/(DC103-DC19-DC35)),DC27*DC103/(DC103-DC11-DC35)),DC27))) -> 14371.70152 | DD28: =IF(DD103<=0,0,IF(DD27<=0,0,IF(DD11+DD43<=0,IF(DD11=0,IF(DD19=0,IF(DD27+DD43<=0,0,DD27+DD43),DD27*DD103/(DD103-DD19-DD43)),DD27*DD103/(DD103-DD11-DD43)),DD27))) -> 14012.39409 | DE28: =IF(DE103<=0,0,IF(DE27<=0,0,IF(DE11+DE51<=0,IF(DE11=0,IF(DE19=0,IF(DE27+DE51<=0,0,DE27+DE51),DE27*DE103/(DE103-DE19-DE51)),DE27*DE103/(DE103-DE11-DE51)),DE27))) -> 13803.64741 | DF28: =IF(DF103<=0,0,IF(DF27<=0,0,IF(DF11+DF59<=0,IF(DF11=0,IF(DF19=0,IF(DF27+DF59<=0,0,DF27+DF59),DF27*DF103/(DF103-DF19-DF59)),DF27*DF103/(DF103-DF11-DF59)),DF27))) -> 15941.34375 | DG28: =IF(DG103<=0,0,IF(DG27<=0,0,IF(DG11+DG67<=0,IF(DG11=0,IF(DG19=0,IF(DG27+DG67<=0,0,DG27+DG67),DG27*DG103/(DG103-DG19-DG67)),DG27*DG103/(DG103-DG11-DG67)),DG27))) -> 15940.59338 | DH28: =IF(DH103<=0,0,IF(DH27<=0,0,IF(DH11+DH75<=0,IF(DH11=0,IF(DH19=0,IF(DH27+DH75<=0,0,DH27+DH75),DH27*DH103/(DH103-DH19-DH75)),DH27*DH103/(DH103-DH11-DH75)),DH27))) -> 15829.97416 | DI28: =IF(DI103<=0,0,IF(DI27<=0,0,IF(DI11+DI83<=0,IF(DI11=0,IF(DI19=0,IF(DI27+DI83<=0,0,DI27+DI83),DI27*DI103/(DI103-DI19-DI83)),DI27*DI103/(DI103-DI11-DI83)),DI27))) -> 17784.10332 | DJ28: =IF(DJ103<=0,0,IF(DJ27<=0,0,IF(DJ11+DJ91<=0,IF(DJ11=0,IF(DJ19=0,IF(DJ27+DJ91<=0,0,DJ27+DJ91),DJ27*DJ103/(DJ103-DJ19-DJ91)),DJ27*DJ103/(DJ103-DJ11-DJ91)),DJ27))) -> 18309.15469 | DK28: =IF(DK103<=0,0,IF(DK27<=0,0,IF(DK11+DK99<=0,IF(DK11=0,IF(DK19=0,IF(DK27+DK99<=0,0,DK27+DK99),DK27*DK103/(DK103-DK19-DK99)),DK27*DK103/(DK103-DK11-DK99)),DK27))) -> 18159.45449 | DL28: =IF(DL103<=0,0,IF(DL27<=0,0,IF(DL11+DL19<=0,IF(DL19=0,IF(DL27+DL19<=0,0,DL27+DL19),DL27*DL103/(DL103-DL11-DL19)),DL27))) -> 20288.72175 | DM28: =IF(DM103<=0,0,IF(DM27<=0,0,IF(DM11+DM19<=0,IF(DM11=0,IF(DM27+DM19<=0,0,DM27+DM19),DM27*DM103/(DM103-DM11-DM19)),DM27))) -> 20002.90187 | DN28: =IF(DN27<=0,IF(DN$103<=0,DN$103,0),DN27) -> 15973.42929 | DO28: =IF(DO103<=0,0,IF(DO27<=0,0,IF(DO11+DO35<=0,IF(DO11=0,IF(DO19=0,IF(DO27+DO35<=0,0,DO27+DO35),DO27*DO103/(DO103-DO19-DO35)),DO27*DO103/(DO103-DO11-DO35)),DO27))) -> 15719.87222 | DP28: =IF(DP103<=0,0,IF(DP27<=0,0,IF(DP11+DP43<=0,IF(DP11=0,IF(DP19=0,IF(DP27+DP43<=0,0,DP27+DP43),DP27*DP103/(DP103-DP19-DP43)),DP27*DP103/(DP103-DP11-DP43)),DP27))) -> 16530.20443 | DQ28: =IF(DQ103<=0,0,IF(DQ27<=0,0,IF(DQ11+DQ51<=0,IF(DQ11=0,IF(DQ19=0,IF(DQ27+DQ51<=0,0,DQ27+DQ51),DQ27*DQ103/(DQ103-DQ19-DQ51)),DQ27*DQ103/(DQ103-DQ11-DQ51)),DQ27))) -> 17227.74256 | DR28: =IF(DR103<=0,0,IF(DR27<=0,0,IF(DR11+DR59<=0,IF(DR11=0,IF(DR19=0,IF(DR27+DR59<=0,0,DR27+DR59),DR27*DR103/(DR103-DR19-DR59)),DR27*DR103/(DR103-DR11-DR59)),DR27))) -> 17093.44698 | DS28: =IF(DS103<=0,0,IF(DS27<=0,0,IF(DS11+DS67<=0,IF(DS11=0,IF(DS19=0,IF(DS27+DS67<=0,0,DS27+DS67),DS27*DS103/(DS103-DS19-DS67)),DS27*DS103/(DS103-DS11-DS67)),DS27))) -> 17711.83034 | DT28: =IF(DT103<=0,0,IF(DT27<=0,0,IF(DT11+DT75<=0,IF(DT11=0,IF(DT19=0,IF(DT27+DT75<=0,0,DT27+DT75),DT27*DT103/(DT103-DT19-DT75)),DT27*DT103/(DT103-DT11-DT75)),DT27))) -> 17638.99437 | DU28: =IF(DU103<=0,0,IF(DU27<=0,0,IF(DU11+DU83<=0,IF(DU11=0,IF(DU19=0,IF(DU27+DU83<=0,0,DU27+DU83),DU27*DU103/(DU103-DU19-DU83)),DU27*DU103/(DU103-DU11-DU83)),DU27))) -> 17229.9103 | DV28: =IF(DV103<=0,0,IF(DV27<=0,0,IF(DV11+DV91<=0,IF(DV11=0,IF(DV19=0,IF(DV27+DV91<=0,0,DV27+DV91),DV27*DV103/(DV103-DV19-DV91)),DV27*DV103/(DV103-DV11-DV91)),DV27))) -> 17875.83381 | DW28: =IF(DW103<=0,0,IF(DW27<=0,0,IF(DW11+DW99<=0,IF(DW11=0,IF(DW19=0,IF(DW27+DW99<=0,0,DW27+DW99),DW27*DW103/(DW103-DW19-DW99)),DW27*DW103/(DW103-DW11-DW99)),DW27))) -> 18353.73248
A29: 0.004426047732 | B29: 9 | C29: 0.0016 | D29: 0 | F29: EOM_Balance | G29: 0 | H29: 0 | I29: 0 | J29: =J28*J4 -> 1030.126593 | K29: =K28*K4 -> 1008.089452 | L29: =L28*L4 -> 973.1803733 | M29: 933.2104508 | N29: 946.8314429 | O29: 949.0835345 | P29: 952.6451598 | Q29: 904.7279988 | R29: 919.5914701 | S29: 913.2930629 | T29: =T28*T4 -> 920.13128 | U29: =U28*U5 -> 1050 | V29: =V28*V$4 -> 2117.048538 | W29: =W28*W$4 -> 2153.93533 | X29: =X28*X$4 -> 2120.969967 | Y29: 2048.676269 | Z29: 2056.486907 | AA29: 2126.918432 | AB29: 2178.982338 | AC29: 2165.287928 | AD29: 2179.059431 | AE29: 2157.809341 | AF29: =AF28*AF4 -> 2079.507324 | AG29: =AG28*AG5 -> 2170.532467 | AH29: =AH28*AH$4 -> 3254.892592 | AI29: =AI28*AI$4 -> 3144.053795 | AJ29: =AJ28*AJ$4 -> 3126.412715 | AK29: 3300.670166 | AL29: 3212.210314 | AM29: 3194.527473 | AN29: 3256.228759 | AO29: 3253.271964 | AP29: 3202.854305 | AQ29: 3252.730313 | AR29: =AR28*AR4 -> 3453.444446 | AS29: =AS28*AS5 -> 3460.285482 | AT29: =AT28*AT$4 -> 4628.70232 | AU29: =AU28*AU$4 -> 4416.838953 | AV29: =AV28*AV$4 -> 4226.939808 | AW29: 4379.638917 | AX29: 4384.112081 | AY29: 4637.201414 | AZ29: 5069.00854 | BA29: 5141.09471 | BB29: 4827.746293 | BC29: 5027.492977 | BD29: =BD28*BD4 -> 5236.767889 | BE29: =BE28*BE5 -> 5040.122594 | BF29: =BF28*BF$4 -> 5599.956852 | BG29: =BG28*BG$4 -> 5190.107492 | BH29: =BH28*BH$4 -> 5347.168924 | BI29: 5436.941161 | BJ29: 5878.891598 | BK29: 5820.038082 | BL29: 5493.773583 | BM29: 5367.878531 | BN29: 5355.011704 | BO29: 5478.861619 | BP29: =BP28*BP4 -> 5709.576663 | BQ29: =BQ28*BQ5 -> 6342.128724 | BR29: =BR28*BR$4 -> 6594.287296 | BS29: =BS28*BS$4 -> 7039.849728 | BT29: =BT28*BT$4 -> 6617.003138 | BU29: 6566.333912 | BV29: 6561.753333 | BW29: 5866.394839 | BX29: 5439.322943 | BY29: 5089.114019 | BZ29: 4632.090205 | CA29: 4768.602289 | CB29: =CB28*CB4 -> 4639.677631 | CC29: =CC28*CC5 -> 7709.23516 | CD29: =CD28*CD$4 -> 8154.886604 | CE29: =CE28*CE$4 -> 8449.683025 | CF29: =CF28*CF$4 -> 9371.512608 | CG29: 9575.130549 | CH29: 10134.45991 | CI29: 9436.009812 | CJ29: 9263.453379 | CK29: 9240.603237 | CL29: 9652.322337 | CM29: 10376.30627 | CN29: =CN28*CN4 -> 10757.2427 | CO29: =CO28*CO5 -> 9841.435731 | CP29: =CP28*CP$4 -> 12247.59986 | CQ29: =CQ28*CQ$4 -> 11163.48602 | CR29: =CR28*CR$4 -> 10935.83719 | CS29: 11672.67881 | CT29: 12774.65256 | CU29: 13168.96453 | CV29: 14272.59577 | CW29: 13239.00963 | CX29: 13360.06945 | CY29: 13675.31104 | CZ29: =CZ28*CZ4 -> 13909.98467 | DA29: =DA28*DA5 -> 12250.82238 | DB29: =DB28*DB$4 -> 14371.70152 | DC29: =DC28*DC$4 -> 14012.39409 | DD29: =DD28*DD$4 -> 13803.64741 | DE29: 15941.34375 | DF29: 15940.59338 | DG29: 15829.97416 | DH29: 17784.10332 | DI29: 18309.15469 | DJ29: 18159.45449 | DK29: 20288.72175 | DL29: =DL28*DL4 -> 20002.90187 | DM29: =DM28*DM5 -> 14973.42929 | DN29: =DN28*DN$4 -> 15719.87222 | DO29: =DO28*DO$4 -> 16530.20443 | DP29: =DP28*DP$4 -> 17227.74256 | DQ29: 17093.44698 | DR29: 17711.83034 | DS29: 17638.99437 | DT29: 17229.9103 | DU29: 17875.83381 | DV29: 18353.73248 | DW29: =DW28*DX29 -> 17686.02358 | DX29: =IF(PRODUCT(DN4:DW4)>($B$11)^(10/12),($B$11)^(10/12)/PRODUCT(DN4:DV4),IF(PRODUCT(DN4:DW4)<($B$12)^(10/12),($B$12)^(10/12)/PRODUCT(DN4:DV4),DW4)) -> 0.9636199939
A30: 0.004446233021 | B30: 10 | C30: 0.0018 | D30: 0 | E30: April | F30: BOM_Pre_CF_Balance | G30: 0 | H30: 0 | I30: 0 | J30: 0 | K30: 0 | L30: =K37 -> 978.6073464 | M30: =L37 -> 944.7192021 | N30: 905.918221 | O30: 919.1408601 | P30: 921.3270881 | Q30: 924.7845518 | R30: 878.2687533 | S30: 892.6975345 | T30: 886.5833276 | U30: =T37 -> 893.2215575 | V30: =U37 -> 878.2480383 | W30: =V37 -> 1050 | X30: =W37 -> 2085.718559 | Y30: =X37 -> 2053.797235 | Z30: 1983.793134 | AA30: 1991.356403 | AB30: 2059.557308 | AC30: 2109.97231 | AD30: 2096.711612 | AE30: 2110.046961 | AF30: =AE37 -> 2089.469878 | AG30: =AF37 -> 2013.647745 | AH30: =AG37 -> 2101.790053 | AI30: =AH37 -> 2157.713553 | AJ30: =AI37 -> 3050.183992 | AK30: =AJ37 -> 3033.069609 | AL30: =AK37 -> 3202.124378 | AM30: =AL37 -> 3116.305609 | AN30: =AM37 -> 3099.150712 | AO30: =AN37 -> 3159.009827 | AP30: =AO37 -> 3156.14131 | AQ30: =AP37 -> 3107.228936 | AR30: =AQ37 -> 3155.615831 | AS30: =AR37 -> 3350.337383 | AT30: =AS37 -> 3356.974171 | AU30: =AT37 -> 3483.73085 | AV30: =AU37 -> 4278.503068 | AW30: =AV37 -> 4094.551585 | AX30: =AW37 -> 4242.468141 | AY30: =AX37 -> 4246.801204 | AZ30: =AY37 -> 4491.963752 | BA30: =AZ37 -> 4910.246631 | BB30: =BA37 -> 4980.075054 | BC30: =BB37 -> 4676.540744 | BD30: =BC37 -> 4870.03134 | BE30: =BD37 -> 5072.751738 | BF30: =BE37 -> 5095.329745 | BG30: =BF37 -> 4724.0145 | BH30: =BG37 -> 5305.085615 | BI30: =BH37 -> 5465.62648 | BJ30: =BI37 -> 5557.387471 | BK30: =BJ37 -> 6009.128578 | BL30: =BK37 -> 5948.97126 | BM30: =BL37 -> 5615.47892 | BN30: =BM37 -> 5486.794873 | BO30: =BN37 -> 5473.643004 | BP30: =BO37 -> 5600.236605 | BQ30: =BP37 -> 5836.062754 | BR30: =BQ37 -> 5539.101535 | BS30: =BR37 -> 6010.215225 | BT30: =BS37 -> 7483.881052 | BU30: =BT37 -> 7034.363845 | BV30: =BU37 -> 6980.498709 | BW30: =BV37 -> 6975.629215 | BX30: =BW37 -> 6236.411695 | BY30: =BX37 -> 5782.402676 | BZ30: =BY37 -> 5410.104682 | CA30: =BZ37 -> 4924.254558 | CB30: =CA37 -> 5069.377003 | CC30: =CB37 -> 4932.320554 | CD30: =CC37 -> 4793.693171 | CE30: =CD37 -> 7360.725986 | CF30: =CE37 -> 8662.963432 | CG30: =CF37 -> 9608.061129 | CH30: =CG37 -> 9816.818638 | CI30: =CH37 -> 10390.26616 | CJ30: =CI37 -> 9674.186323 | CK30: =CJ37 -> 9497.274352 | CL30: =CK37 -> 9473.847445 | CM30: =CL37 -> 9895.958842 | CN30: =CM37 -> 10638.21702 | CO30: =CN37 -> 11028.76876 | CP30: =CO37 -> 10621.89005 | CQ30: =CP37 -> 9447.620365 | CR30: =CQ37 -> 9522.834294 | CS30: =CR37 -> 9328.642078 | CT30: =CS37 -> 9957.193102 | CU30: =CT37 -> 10897.2143 | CV30: =CU37 -> 11233.57585 | CW30: =CV37 -> 12175.01094 | CX30: =CW37 -> 11293.32672 | CY30: =CX37 -> 11396.59487 | CZ30: =CY37 -> 11665.50669 | DA30: =CZ37 -> 11865.6913 | DB30: =DA37 -> 11496.72593 | DC30: =DB37 -> 11805.81101 | DD30: =DC37 -> 12485.65246 | DE30: =DD37 -> 12299.65009 | DF30: =DE37 -> 14204.43049 | DG30: =DF37 -> 14203.76188 | DH30: =DG37 -> 14105.19535 | DI30: =DH37 -> 15846.4094 | DJ30: =DI37 -> 16314.253 | DK30: =DJ37 -> 16180.86361 | DL30: =DK37 -> 18078.13334 | DM30: =DL37 -> 17823.45539 | DN30: =DM37 -> 19298.70041 | DO30: =DN37 -> 14470.56644 | DP30: =DO37 -> 16268.04738 | DQ30: =DP37 -> 16954.52306 | DR30: =DQ37 -> 16822.35731 | DS30: =DR37 -> 17430.93356 | DT30: =DS37 -> 17359.25271 | DU30: =DT37 -> 16956.65642 | DV30: =DU37 -> 17592.33605 | DW30: =DV37 -> 18062.65559
A31: 0.004454128657 | B31: 11 | C31: 0.002 | D31: 0 | F31: BOM_POS_CF | G31: 0 | H31: 0 | I31: 0 | J31: 0 | K31: =J23*(1+$C$14) -> 1000 | L31: 0 | M31: 0 | N31: 0 | O31: 0 | P31: 0 | Q31: 0 | R31: 0 | S31: 0 | T31: 0 | U31: 0 | V31: 0 | W31: =V23*(1+$C$14) -> 1000 | X31: 0 | Y31: 0 | Z31: 0 | AA31: 0 | AB31: 0 | AC31: 0 | AD31: 0 | AE31: 0 | AF31: 0 | AG31: 0 | AH31: 0 | AI31: =AH23*(1+$C$14) -> 1000 | AJ31: 0 | AK31: 0 | AL31: 0 | AM31: 0 | AN31: 0 | AO31: 0 | AP31: 0 | AQ31: 0 | AR31: 0 | AS31: 0 | AT31: 0 | AU31: =AT23*(1+$C$14) -> 1000 | AV31: 0 | AW31: 0 | AX31: 0 | AY31: 0 | AZ31: 0 | BA31: 0 | BB31: 0 | BC31: 0 | BD31: 0 | BE31: 0 | BF31: 0 | BG31: =BF23*(1+$C$14) -> 1000 | BH31: 0 | BI31: 0 | BJ31: 0 | BK31: 0 | BL31: 0 | BM31: 0 | BN31: 0 | BO31: 0 | BP31: 0 | BQ31: 0 | BR31: 0 | BS31: =BR23*(1+$C$14) -> 1000 | BT31: 0 | BU31: 0 | BV31: 0 | BW31: 0 | BX31: 0 | BY31: 0 | BZ31: 0 | CA31: 0 | CB31: 0 | CC31: 0 | CD31: 0 | CE31: =CD23*(1+$C$14) -> 1000 | CF31: 0 | CG31: 0 | CH31: 0 | CI31: 0 | CJ31: 0 | CK31: 0 | CL31: 0 | CM31: 0 | CN31: 0 | CO31: 0 | CP31: 0 | CQ31: =CP23*(1+$C$14) -> 1000 | CR31: 0 | CS31: 0 | CT31: 0 | CU31: 0 | CV31: 0 | CW31: 0 | CX31: 0 | CY31: 0 | CZ31: 0 | DA31: 0 | DB31: 0 | DC31: =DB23*(1+$C$14) -> 1000 | DD31: 0 | DE31: 0 | DF31: 0 | DG31: 0 | DH31: 0 | DI31: 0 | DJ31: 0 | DK31: 0 | DL31: 0 | DM31: 0 | DN31: 0 | DO31: =DN23*(1+$C$14) -> 1000 | DP31: 0 | DQ31: 0 | DR31: 0 | DS31: 0 | DT31: 0 | DU31: 0 | DV31: 0 | DW31: 0
A32: 0.004454868008 | B32: 12 | C32: 0.0022 | D32: 0 | F32: BOM_NEG_CF | G32: 0 | H32: 0 | I32: 0 | J32: 0 | K32: =IF($B$18=0,0,J$102*(1-(1/($B$18+1)))/(1-(1/($B$18+1))^J$1)) -> 0 | L32: 0 | M32: 0 | N32: 0 | O32: 0 | P32: 0 | Q32: 0 | R32: 0 | S32: 0 | T32: 0 | U32: 0 | V32: 0 | W32: =IF($B$18=0,0,V$102*(1-(1/($B$18+1)))/(1-(1/($B$18+1))^V$1)) -> 0 | X32: 0 | Y32: 0 | Z32: 0 | AA32: 0 | AB32: 0 | AC32: 0 | AD32: 0 | AE32: 0 | AF32: 0 | AG32: 0 | AH32: 0 | AI32: =IF($B$18=0,0,AH$102*(1-(1/($B$18+1)))/(1-(1/($B$18+1))^AH$1)) -> 0 | AJ32: 0 | AK32: 0 | AL32: 0 | AM32: 0 | AN32: 0 | AO32: 0 | AP32: 0 | AQ32: 0 | AR32: 0 | AS32: 0 | AT32: 0 | AU32: =IF($B$18=0,0,AT$102*(1-(1/($B$18+1)))/(1-(1/($B$18+1))^AT$1)) -> 0 | AV32: 0 | AW32: 0 | AX32: 0 | AY32: 0 | AZ32: 0 | BA32: 0 | BB32: 0 | BC32: 0 | BD32: 0 | BE32: 0 | BF32: 0 | BG32: =IF($B$18=0,0,BF$102*(1-(1/($B$18+1)))/(1-(1/($B$18+1))^BF$1)) -> 0 | BH32: 0 | BI32: 0 | BJ32: 0 | BK32: 0 | BL32: 0 | BM32: 0 | BN32: 0 | BO32: 0 | BP32: 0 | BQ32: 0 | BR32: 0 | BS32: =IF($B$18=0,0,BR$102*(1-(1/($B$18+1)))/(1-(1/($B$18+1))^BR$1)) -> 0 | BT32: 0 | BU32: 0 | BV32: 0 | BW32: 0 | BX32: 0 | BY32: 0 | BZ32: 0 | CA32: 0 | CB32: 0 | CC32: 0 | CD32: 0 | CE32: =IF($B$18=0,0,CD$102*(1-(1/($B$18+1)))/(1-(1/($B$18+1))^CD$1)) -> 0 | CF32: 0 | CG32: 0 | CH32: 0 | CI32: 0 | CJ32: 0 | CK32: 0 | CL32: 0 | CM32: 0 | CN32: 0 | CO32: 0 | CP32: 0 | CQ32: =IF($B$18=0,0,CP$102*(1-(1/($B$18+1)))/(1-(1/($B$18+1))^CP$1)) -> 0 | CR32: 0 | CS32: 0 | CT32: 0 | CU32: 0 | CV32: 0 | CW32: 0 | CX32: 0 | CY32: 0 | CZ32: 0 | DA32: 0 | DB32: 0 | DC32: =IF($B$18=0,0,DB$102*(1-(1/($B$18+1)))/(1-(1/($B$18+1))^DB$1)) -> 0 | DD32: 0 | DE32: 0 | DF32: 0 | DG32: 0 | DH32: 0 | DI32: 0 | DJ32: 0 | DK32: 0 | DL32: 0 | DM32: 0 | DN32: 0 | DO32: =IF($B$18=0,0,DN$102*(1-(1/($B$18+1)))/(1-(1/($B$18+1))^DN$1)) -> 0 | DP32: 0 | DQ32: 0 | DR32: 0 | DS32: 0 | DT32: 0 | DU32: 0 | DV32: 0 | DW32: 0
A33: 0.004467952317 | B33: 13 | C33: 0.0024 | D33: 0 | F33: BOM_COI | G33: 0 | H33: 0 | I33: 0 | J33: 0 | K33: =$B$15 -> 0 | L33: 0 | M33: 0 | N33: 0 | O33: 0 | P33: 0 | Q33: 0 | R33: 0 | S33: 0 | T33: 0 | U33: 0 | V33: 0 | W33: =$B$15 -> 0 | X33: 0 | Y33: 0 | Z33: 0 | AA33: 0 | AB33: 0 | AC33: 0 | AD33: 0 | AE33: 0 | AF33: 0 | AG33: 0 | AH33: 0 | AI33: =$B$15 -> 0 | AJ33: 0 | AK33: 0 | AL33: 0 | AM33: 0 | AN33: 0 | AO33: 0 | AP33: 0 | AQ33: 0 | AR33: 0 | AS33: 0 | AT33: 0 | AU33: =$B$15 -> 0 | AV33: 0 | AW33: 0 | AX33: 0 | AY33: 0 | AZ33: 0 | BA33: 0 | BB33: 0 | BC33: 0 | BD33: 0 | BE33: 0 | BF33: 0 | BG33: =$B$15 -> 0 | BH33: 0 | BI33: 0 | BJ33: 0 | BK33: 0 | BL33: 0 | BM33: 0 | BN33: 0 | BO33: 0 | BP33: 0 | BQ33: 0 | BR33: 0 | BS33: =$B$15 -> 0 | BT33: 0 | BU33: 0 | BV33: 0 | BW33: 0 | BX33: 0 | BY33: 0 | BZ33: 0 | CA33: 0 | CB33: 0 | CC33: 0 | CD33: 0 | CE33: =$B$15 -> 0 | CF33: 0 | CG33: 0 | CH33: 0 | CI33: 0 | CJ33: 0 | CK33: 0 | CL33: 0 | CM33: 0 | CN33: 0 | CO33: 0 | CP33: 0 | CQ33: =$B$15 -> 0 | CR33: 0 | CS33: 0 | CT33: 0 | CU33: 0 | CV33: 0 | CW33: 0 | CX33: 0 | CY33: 0 | CZ33: 0 | DA33: 0 | DB33: 0 | DC33: =$B$15 -> 0 | DD33: 0 | DE33: 0 | DF33: 0 | DG33: 0 | DH33: 0 | DI33: 0 | DJ33: 0 | DK33: 0 | DL33: 0 | DM33: 0 | DN33: 0 | DO33: =$B$15 -> 0 | DP33: 0 | DQ33: 0 | DR33: 0 | DS33: 0 | DT33: 0 | DU33: 0 | DV33: 0 | DW33: 0
A34: 0.004480697523 | B34: 14 | C34: 0.0026 | D34: 0 | F34: BOM_Expenses | G34: 0 | H34: 0 | I34: 0 | J34: 0 | K34: =$B$16 -> 0 | L34: 0 | M34: 0 | N34: 0 | O34: 0 | P34: 0 | Q34: 0 | R34: 0 | S34: 0 | T34: 0 | U34: 0 | V34: 0 | W34: =$B$16 -> 0 | X34: 0 | Y34: 0 | Z34: 0 | AA34: 0 | AB34: 0 | AC34: 0 | AD34: 0 | AE34: 0 | AF34: 0 | AG34: 0 | AH34: 0 | AI34: =$B$16 -> 0 | AJ34: 0 | AK34: 0 | AL34: 0 | AM34: 0 | AN34: 0 | AO34: 0 | AP34: 0 | AQ34: 0 | AR34: 0 | AS34: 0 | AT34: 0 | AU34: =$B$16 -> 0 | AV34: 0 | AW34: 0 | AX34: 0 | AY34: 0 | AZ34: 0 | BA34: 0 | BB34: 0 | BC34: 0 | BD34: 0 | BE34: 0 | BF34: 0 | BG34: =$B$16 -> 0 | BH34: 0 | BI34: 0 | BJ34: 0 | BK34: 0 | BL34: 0 | BM34: 0 | BN34: 0 | BO34: 0 | BP34: 0 | BQ34: 0 | BR34: 0 | BS34: =$B$16 -> 0 | BT34: 0 | BU34: 0 | BV34: 0 | BW34: 0 | BX34: 0 | BY34: 0 | BZ34: 0 | CA34: 0 | CB34: 0 | CC34: 0 | CD34: 0 | CE34: =$B$16 -> 0 | CF34: 0 | CG34: 0 | CH34: 0 | CI34: 0 | CJ34: 0 | CK34: 0 | CL34: 0 | CM34: 0 | CN34: 0 | CO34: 0 | CP34: 0 | CQ34: =$B$16 -> 0 | CR34: 0 | CS34: 0 | CT34: 0 | CU34: 0 | CV34: 0 | CW34: 0 | CX34: 0 | CY34: 0 | CZ34: 0 | DA34: 0 | DB34: 0 | DC34: =$B$16 -> 0 | DD34: 0 | DE34: 0 | DF34: 0 | DG34: 0 | DH34: 0 | DI34: 0 | DJ34: 0 | DK34: 0 | DL34: 0 | DM34: 0 | DN34: 0 | DO34: =$B$16 -> 0 | DP34: 0 | DQ34: 0 | DR34: 0 | DS34: 0 | DT34: 0 | DU34: 0 | DV34: 0 | DW34: 0
A35: 0.004488371444 | B35: 15 | C35: 0.0028 | D35: 0 | F35: BOM_Post_CF_Balance | G35: 0 | H35: 0 | I35: 0 | J35: 0 | K35: =K30+K31-K32-K33-K34 -> 1000 | L35: =L30+L31-L32-L33-L34 -> 978.6073464 | M35: 944.7192021 | N35: 905.918221 | O35: 919.1408601 | P35: 921.3270881 | Q35: 924.7845518 | R35: 878.2687533 | S35: 892.6975345 | T35: 886.5833276 | U35: =U30+U31-U32-U33-U34 -> 893.2215575 | V35: =V30+V31-V32-V33-V34 -> 878.2480383 | W35: =W30+W31-W32-W33-W34 -> 2050 | X35: =X30+X31-X32-X33-X34 -> 2085.718559 | Y35: 2053.797235 | Z35: 1983.793134 | AA35: 1991.356403 | AB35: 2059.557308 | AC35: 2109.97231 | AD35: 2096.711612 | AE35: 2110.046961 | AF35: 2089.469878 | AG35: =AG30+AG31-AG32-AG33-AG34 -> 2013.647745 | AH35: =AH30+AH31-AH32-AH33-AH34 -> 2101.790053 | AI35: =AI30+AI31-AI32-AI33-AI34 -> 3157.713553 | AJ35: =AJ30+AJ31-AJ32-AJ33-AJ34 -> 3050.183992 | AK35: 3033.069609 | AL35: 3202.124378 | AM35: 3116.305609 | AN35: 3099.150712 | AO35: 3159.009827 | AP35: 3156.14131 | AQ35: 3107.228936 | AR35: 3155.615831 | AS35: =AS30+AS31-AS32-AS33-AS34 -> 3350.337383 | AT35: =AT30+AT31-AT32-AT33-AT34 -> 3356.974171 | AU35: =AU30+AU31-AU32-AU33-AU34 -> 4483.73085 | AV35: =AV30+AV31-AV32-AV33-AV34 -> 4278.503068 | AW35: 4094.551585 | AX35: 4242.468141 | AY35: 4246.801204 | AZ35: 4491.963752 | BA35: 4910.246631 | BB35: 4980.075054 | BC35: 4676.540744 | BD35: 4870.03134 | BE35: =BE30+BE31-BE32-BE33-BE34 -> 5072.751738 | BF35: =BF30+BF31-BF32-BF33-BF34 -> 5095.329745 | BG35: =BG30+BG31-BG32-BG33-BG34 -> 5724.0145 | BH35: =BH30+BH31-BH32-BH33-BH34 -> 5305.085615 | BI35: 5465.62648 | BJ35: 5557.387471 | BK35: 6009.128578 | BL35: 5948.97126 | BM35: 5615.47892 | BN35: 5486.794873 | BO35: 5473.643004 | BP35: 5600.236605 | BQ35: =BQ30+BQ31-BQ32-BQ33-BQ34 -> 5836.062754 | BR35: =BR30+BR31-BR32-BR33-BR34 -> 5539.101535 | BS35: =BS30+BS31-BS32-BS33-BS34 -> 7010.215225 | BT35: =BT30+BT31-BT32-BT33-BT34 -> 7483.881052 | BU35: 7034.363845 | BV35: 6980.498709 | BW35: 6975.629215 | BX35: 6236.411695 | BY35: 5782.402676 | BZ35: 5410.104682 | CA35: 4924.254558 | CB35: 5069.377003 | CC35: =CC30+CC31-CC32-CC33-CC34 -> 4932.320554 | CD35: =CD30+CD31-CD32-CD33-CD34 -> 4793.693171 | CE35: =CE30+CE31-CE32-CE33-CE34 -> 8360.725986 | CF35: =CF30+CF31-CF32-CF33-CF34 -> 8662.963432 | CG35: 9608.061129 | CH35: 9816.818638 | CI35: 10390.26616 | CJ35: 9674.186323 | CK35: 9497.274352 | CL35: 9473.847445 | CM35: 9895.958842 | CN35: 10638.21702 | CO35: =CO30+CO31-CO32-CO33-CO34 -> 11028.76876 | CP35: =CP30+CP31-CP32-CP33-CP34 -> 10621.89005 | CQ35: =CQ30+CQ31-CQ32-CQ33-CQ34 -> 10447.62036 | CR35: =CR30+CR31-CR32-CR33-CR34 -> 9522.834294 | CS35: 9328.642078 | CT35: 9957.193102 | CU35: 10897.2143 | CV35: 11233.57585 | CW35: 12175.01094 | CX35: 11293.32672 | CY35: 11396.59487 | CZ35: 11665.50669 | DA35: =DA30+DA31-DA32-DA33-DA34 -> 11865.6913 | DB35: =DB30+DB31-DB32-DB33-DB34 -> 11496.72593 | DC35: =DC30+DC31-DC32-DC33-DC34 -> 12805.81101 | DD35: =DD30+DD31-DD32-DD33-DD34 -> 12485.65246 | DE35: 12299.65009 | DF35: 14204.43049 | DG35: 14203.76188 | DH35: 14105.19535 | DI35: 15846.4094 | DJ35: 16314.253 | DK35: 16180.86361 | DL35: =DL30+DL31-DL32-DL33-DL34 -> 18078.13334 | DM35: =DM30+DM31-DM32-DM33-DM34 -> 17823.45539 | DN35: =DN30+DN31-DN32-DN33-DN34 -> 19298.70041 | DO35: =DO30+DO31-DO32-DO33-DO34 -> 15470.56644 | DP35: =DP30+DP31-DP32-DP33-DP34 -> 16268.04738 | DQ35: 16954.52306 | DR35: 16822.35731 | DS35: 17430.93356 | DT35: 17359.25271 | DU35: 16956.65642 | DV35: 17592.33605 | DW35: 18062.65559
A36: 0.004503756546 | B36: 16 | C36: 0.003 | D36: 0 | F36: BOM_Post_CF_Balance_ADJ | G36: 0 | H36: 0 | I36: 0 | J36: 0 | K36: =IF(K35<=0,IF(K$103<=0,K$103,0),K35) -> 1000 | L36: =IF(L103<=0,0,IF(L35<=0,0,IF(L11+L43<=0,IF(L11=0,IF(L19=0,IF(L27=0,IF(L35+L43<=0,0,L35+L43),L35*L103/(L103-L27-L43)),L35*L103/(L103-L19-L43)),L35*L103/(L103-L11-L43)),L35))) -> 978.6073464 | M36: =IF(M103<=0,0,IF(M35<=0,0,IF(M11+M51<=0,IF(M11=0,IF(M19=0,IF(M27=0,IF(M35+M51<=0,0,M35+M51),M35*M103/(M103-M27-M51)),M35*M103/(M103-M19-M51)),M35*M103/(M103-M11-M51)),M35))) -> 944.7192021 | N36: =IF(N103<=0,0,IF(N35<=0,0,IF(N11+N59<=0,IF(N11=0,IF(N19=0,IF(N27=0,IF(N35+N59<=0,0,N35+N59),N35*N103/(N103-N27-N59)),N35*N103/(N103-N19-N59)),N35*N103/(N103-N11-N59)),N35))) -> 905.918221 | O36: =IF(O103<=0,0,IF(O35<=0,0,IF(O11+O67<=0,IF(O11=0,IF(O19=0,IF(O27=0,IF(O35+O67<=0,0,O35+O67),O35*O103/(O103-O27-O67)),O35*O103/(O103-O19-O67)),O35*O103/(O103-O11-O67)),O35))) -> 919.1408601 | P36: =IF(P103<=0,0,IF(P35<=0,0,IF(P11+P75<=0,IF(P11=0,IF(P19=0,IF(P27=0,IF(P35+P75<=0,0,P35+P75),P35*P103/(P103-P27-P75)),P35*P103/(P103-P19-P75)),P35*P103/(P103-P11-P75)),P35))) -> 921.3270881 | Q36: =IF(Q103<=0,0,IF(Q35<=0,0,IF(Q11+Q83<=0,IF(Q11=0,IF(Q19=0,IF(Q27=0,IF(Q35+Q83<=0,0,Q35+Q83),Q35*Q103/(Q103-Q27-Q83)),Q35*Q103/(Q103-Q19-Q83)),Q35*Q103/(Q103-Q11-Q83)),Q35))) -> 924.7845518 | R36: =IF(R103<=0,0,IF(R35<=0,0,IF(R11+R91<=0,IF(R11=0,IF(R19=0,IF(R27=0,IF(R35+R91<=0,0,R35+R91),R35*R103/(R103-R27-R91)),R35*R103/(R103-R19-R91)),R35*R103/(R103-R11-R91)),R35))) -> 878.2687533 | S36: =IF(S103<=0,0,IF(S35<=0,0,IF(S11+S99<=0,IF(S11=0,IF(S19=0,IF(S27=0,IF(S35+S99<=0,0,S35+S99),S35*S103/(S103-S27-S99)),S35*S103/(S103-S19-S99)),S35*S103/(S103-S11-S99)),S35))) -> 892.6975345 | T36: =IF(T103<=0,0,IF(T35<=0,0,IF(T11+T19<=0,IF(T19=0,IF(T27=0,IF(T35+T11<=0,0,T35+T11),T35*T103/(T103-T27-T11)),T35*T103/(T103-T19-T11)),T35))) -> 886.5833276 | U36: =IF(U103<=0,0,IF(U35<=0,0,IF(U11+U19<=0,IF(U11=0,IF(U27=0,IF(U35+U19<=0,0,U35+U19),U35*U103/(U103-U27-U19)),U35*U103/(U103-U11-U19)),U35))) -> 893.2215575 | V36: =IF(V103<=0,0,IF(V35<=0,0,IF(V11+V27<=0,IF(V11=0,IF(V19=0,IF(V35+V27<=0,0,V35+V27),V35*V103/(V103-V19-V27)),V35*V103/(V103-V11-V27)),V35))) -> 878.2480383 | W36: =IF(W35<=0,IF(W$103<=0,W$103,0),W35) -> 2050 | X36: =IF(X103<=0,0,IF(X35<=0,0,IF(X11+X43<=0,IF(X11=0,IF(X19=0,IF(X27=0,IF(X35+X43<=0,0,X35+X43),X35*X103/(X103-X27-X43)),X35*X103/(X103-X19-X43)),X35*X103/(X103-X11-X43)),X35))) -> 2085.718559 | Y36: =IF(Y103<=0,0,IF(Y35<=0,0,IF(Y11+Y51<=0,IF(Y11=0,IF(Y19=0,IF(Y27=0,IF(Y35+Y51<=0,0,Y35+Y51),Y35*Y103/(Y103-Y27-Y51)),Y35*Y103/(Y103-Y19-Y51)),Y35*Y103/(Y103-Y11-Y51)),Y35))) -> 2053.797235 | Z36: =IF(Z103<=0,0,IF(Z35<=0,0,IF(Z11+Z59<=0,IF(Z11=0,IF(Z19=0,IF(Z27=0,IF(Z35+Z59<=0,0,Z35+Z59),Z35*Z103/(Z103-Z27-Z59)),Z35*Z103/(Z103-Z19-Z59)),Z35*Z103/(Z103-Z11-Z59)),Z35))) -> 1983.793134 | AA36: =IF(AA103<=0,0,IF(AA35<=0,0,IF(AA11+AA67<=0,IF(AA11=0,IF(AA19=0,IF(AA27=0,IF(AA35+AA67<=0,0,AA35+AA67),AA35*AA103/(AA103-AA27-AA67)),AA35*AA103/(AA103-AA19-AA67)),AA35*AA103/(AA103-AA11-AA67)),AA35))) -> 1991.356403 | AB36: =IF(AB103<=0,0,IF(AB35<=0,0,IF(AB11+AB75<=0,IF(AB11=0,IF(AB19=0,IF(AB27=0,IF(AB35+AB75<=0,0,AB35+AB75),AB35*AB103/(AB103-AB27-AB75)),AB35*AB103/(AB103-AB19-AB75)),AB35*AB103/(AB103-AB11-AB75)),AB35))) -> 2059.557308 | AC36: =IF(AC103<=0,0,IF(AC35<=0,0,IF(AC11+AC83<=0,IF(AC11=0,IF(AC19=0,IF(AC27=0,IF(AC35+AC83<=0,0,AC35+AC83),AC35*AC103/(AC103-AC27-AC83)),AC35*AC103/(AC103-AC19-AC83)),AC35*AC103/(AC103-AC11-AC83)),AC35))) -> 2109.97231 | AD36: =IF(AD103<=0,0,IF(AD35<=0,0,IF(AD11+AD91<=0,IF(AD11=0,IF(AD19=0,IF(AD27=0,IF(AD35+AD91<=0,0,AD35+AD91),AD35*AD103/(AD103-AD27-AD91)),AD35*AD103/(AD103-AD19-AD91)),AD35*AD103/(AD103-AD11-AD91)),AD35))) -> 2096.711612 | AE36: =IF(AE103<=0,0,IF(AE35<=0,0,IF(AE11+AE99<=0,IF(AE11=0,IF(AE19=0,IF(AE27=0,IF(AE35+AE99<=0,0,AE35+AE99),AE35*AE103/(AE103-AE27-AE99)),AE35*AE103/(AE103-AE19-AE99)),AE35*AE103/(AE103-AE11-AE99)),AE35))) -> 2110.046961 | AF36: =IF(AF103<=0,0,IF(AF35<=0,0,IF(AF11+AF19<=0,IF(AF19=0,IF(AF27=0,IF(AF35+AF11<=0,0,AF35+AF11),AF35*AF103/(AF103-AF27-AF11)),AF35*AF103/(AF103-AF19-AF11)),AF35))) -> 2089.469878 | AG36: =IF(AG103<=0,0,IF(AG35<=0,0,IF(AG11+AG19<=0,IF(AG11=0,IF(AG27=0,IF(AG35+AG19<=0,0,AG35+AG19),AG35*AG103/(AG103-AG27-AG19)),AG35*AG103/(AG103-AG11-AG19)),AG35))) -> 2013.647745 | AH36: =IF(AH103<=0,0,IF(AH35<=0,0,IF(AH11+AH27<=0,IF(AH11=0,IF(AH19=0,IF(AH35+AH27<=0,0,AH35+AH27),AH35*AH103/(AH103-AH19-AH27)),AH35*AH103/(AH103-AH11-AH27)),AH35))) -> 2101.790053 | AI36: =IF(AI35<=0,IF(AI$103<=0,AI$103,0),AI35) -> 3157.713553 | AJ36: =IF(AJ103<=0,0,IF(AJ35<=0,0,IF(AJ11+AJ43<=0,IF(AJ11=0,IF(AJ19=0,IF(AJ27=0,IF(AJ35+AJ43<=0,0,AJ35+AJ43),AJ35*AJ103/(AJ103-AJ27-AJ43)),AJ35*AJ103/(AJ103-AJ19-AJ43)),AJ35*AJ103/(AJ103-AJ11-AJ43)),AJ35))) -> 3050.183992 | AK36: =IF(AK103<=0,0,IF(AK35<=0,0,IF(AK11+AK51<=0,IF(AK11=0,IF(AK19=0,IF(AK27=0,IF(AK35+AK51<=0,0,AK35+AK51),AK35*AK103/(AK103-AK27-AK51)),AK35*AK103/(AK103-AK19-AK51)),AK35*AK103/(AK103-AK11-AK51)),AK35))) -> 3033.069609 | AL36: =IF(AL103<=0,0,IF(AL35<=0,0,IF(AL11+AL59<=0,IF(AL11=0,IF(AL19=0,IF(AL27=0,IF(AL35+AL59<=0,0,AL35+AL59),AL35*AL103/(AL103-AL27-AL59)),AL35*AL103/(AL103-AL19-AL59)),AL35*AL103/(AL103-AL11-AL59)),AL35))) -> 3202.124378 | AM36: =IF(AM103<=0,0,IF(AM35<=0,0,IF(AM11+AM67<=0,IF(AM11=0,IF(AM19=0,IF(AM27=0,IF(AM35+AM67<=0,0,AM35+AM67),AM35*AM103/(AM103-AM27-AM67)),AM35*AM103/(AM103-AM19-AM67)),AM35*AM103/(AM103-AM11-AM67)),AM35))) -> 3116.305609 | AN36: =IF(AN103<=0,0,IF(AN35<=0,0,IF(AN11+AN75<=0,IF(AN11=0,IF(AN19=0,IF(AN27=0,IF(AN35+AN75<=0,0,AN35+AN75),AN35*AN103/(AN103-AN27-AN75)),AN35*AN103/(AN103-AN19-AN75)),AN35*AN103/(AN103-AN11-AN75)),AN35))) -> 3099.150712 | AO36: =IF(AO103<=0,0,IF(AO35<=0,0,IF(AO11+AO83<=0,IF(AO11=0,IF(AO19=0,IF(AO27=0,IF(AO35+AO83<=0,0,AO35+AO83),AO35*AO103/(AO103-AO27-AO83)),AO35*AO103/(AO103-AO19-AO83)),AO35*AO103/(AO103-AO11-AO83)),AO35))) -> 3159.009827 | AP36: =IF(AP103<=0,0,IF(AP35<=0,0,IF(AP11+AP91<=0,IF(AP11=0,IF(AP19=0,IF(AP27=0,IF(AP35+AP91<=0,0,AP35+AP91),AP35*AP103/(AP103-AP27-AP91)),AP35*AP103/(AP103-AP19-AP91)),AP35*AP103/(AP103-AP11-AP91)),AP35))) -> 3156.14131 | AQ36: =IF(AQ103<=0,0,IF(AQ35<=0,0,IF(AQ11+AQ99<=0,IF(AQ11=0,IF(AQ19=0,IF(AQ27=0,IF(AQ35+AQ99<=0,0,AQ35+AQ99),AQ35*AQ103/(AQ103-AQ27-AQ99)),AQ35*AQ103/(AQ103-AQ19-AQ99)),AQ35*AQ103/(AQ103-AQ11-AQ99)),AQ35))) -> 3107.228936 | AR36: =IF(AR103<=0,0,IF(AR35<=0,0,IF(AR11+AR19<=0,IF(AR19=0,IF(AR27=0,IF(AR35+AR11<=0,0,AR35+AR11),AR35*AR103/(AR103-AR27-AR11)),AR35*AR103/(AR103-AR19-AR11)),AR35))) -> 3155.615831 | AS36: =IF(AS103<=0,0,IF(AS35<=0,0,IF(AS11+AS19<=0,IF(AS11=0,IF(AS27=0,IF(AS35+AS19<=0,0,AS35+AS19),AS35*AS103/(AS103-AS27-AS19)),AS35*AS103/(AS103-AS11-AS19)),AS35))) -> 3350.337383 | AT36: =IF(AT103<=0,0,IF(AT35<=0,0,IF(AT11+AT27<=0,IF(AT11=0,IF(AT19=0,IF(AT35+AT27<=0,0,AT35+AT27),AT35*AT103/(AT103-AT19-AT27)),AT35*AT103/(AT103-AT11-AT27)),AT35))) -> 3356.974171 | AU36: =IF(AU35<=0,IF(AU$103<=0,AU$103,0),AU35) -> 4483.73085 | AV36: =IF(AV103<=0,0,IF(AV35<=0,0,IF(AV11+AV43<=0,IF(AV11=0,IF(AV19=0,IF(AV27=0,IF(AV35+AV43<=0,0,AV35+AV43),AV35*AV103/(AV103-AV27-AV43)),AV35*AV103/(AV103-AV19-AV43)),AV35*AV103/(AV103-AV11-AV43)),AV35))) -> 4278.503068 | AW36: =IF(AW103<=0,0,IF(AW35<=0,0,IF(AW11+AW51<=0,IF(AW11=0,IF(AW19=0,IF(AW27=0,IF(AW35+AW51<=0,0,AW35+AW51),AW35*AW103/(AW103-AW27-AW51)),AW35*AW103/(AW103-AW19-AW51)),AW35*AW103/(AW103-AW11-AW51)),AW35))) -> 4094.551585 | AX36: =IF(AX103<=0,0,IF(AX35<=0,0,IF(AX11+AX59<=0,IF(AX11=0,IF(AX19=0,IF(AX27=0,IF(AX35+AX59<=0,0,AX35+AX59),AX35*AX103/(AX103-AX27-AX59)),AX35*AX103/(AX103-AX19-AX59)),AX35*AX103/(AX103-AX11-AX59)),AX35))) -> 4242.468141 | AY36: =IF(AY103<=0,0,IF(AY35<=0,0,IF(AY11+AY67<=0,IF(AY11=0,IF(AY19=0,IF(AY27=0,IF(AY35+AY67<=0,0,AY35+AY67),AY35*AY103/(AY103-AY27-AY67)),AY35*AY103/(AY103-AY19-AY67)),AY35*AY103/(AY103-AY11-AY67)),AY35))) -> 4246.801204 | AZ36: =IF(AZ103<=0,0,IF(AZ35<=0,0,IF(AZ11+AZ75<=0,IF(AZ11=0,IF(AZ19=0,IF(AZ27=0,IF(AZ35+AZ75<=0,0,AZ35+AZ75),AZ35*AZ103/(AZ103-AZ27-AZ75)),AZ35*AZ103/(AZ103-AZ19-AZ75)),AZ35*AZ103/(AZ103-AZ11-AZ75)),AZ35))) -> 4491.963752 | BA36: =IF(BA103<=0,0,IF(BA35<=0,0,IF(BA11+BA83<=0,IF(BA11=0,IF(BA19=0,IF(BA27=0,IF(BA35+BA83<=0,0,BA35+BA83),BA35*BA103/(BA103-BA27-BA83)),BA35*BA103/(BA103-BA19-BA83)),BA35*BA103/(BA103-BA11-BA83)),BA35))) -> 4910.246631 | BB36: =IF(BB103<=0,0,IF(BB35<=0,0,IF(BB11+BB91<=0,IF(BB11=0,IF(BB19=0,IF(BB27=0,IF(BB35+BB91<=0,0,BB35+BB91),BB35*BB103/(BB103-BB27-BB91)),BB35*BB103/(BB103-BB19-BB91)),BB35*BB103/(BB103-BB11-BB91)),BB35))) -> 4980.075054 | BC36: =IF(BC103<=0,0,IF(BC35<=0,0,IF(BC11+BC99<=0,IF(BC11=0,IF(BC19=0,IF(BC27=0,IF(BC35+BC99<=0,0,BC35+BC99),BC35*BC103/(BC103-BC27-BC99)),BC35*BC103/(BC103-BC19-BC99)),BC35*BC103/(BC103-BC11-BC99)),BC35))) -> 4676.540744 | BD36: =IF(BD103<=0,0,IF(BD35<=0,0,IF(BD11+BD19<=0,IF(BD19=0,IF(BD27=0,IF(BD35+BD11<=0,0,BD35+BD11),BD35*BD103/(BD103-BD27-BD11)),BD35*BD103/(BD103-BD19-BD11)),BD35))) -> 4870.03134 | BE36: =IF(BE103<=0,0,IF(BE35<=0,0,IF(BE11+BE19<=0,IF(BE11=0,IF(BE27=0,IF(BE35+BE19<=0,0,BE35+BE19),BE35*BE103/(BE103-BE27-BE19)),BE35*BE103/(BE103-BE11-BE19)),BE35))) -> 5072.751738 | BF36: =IF(BF103<=0,0,IF(BF35<=0,0,IF(BF11+BF27<=0,IF(BF11=0,IF(BF19=0,IF(BF35+BF27<=0,0,BF35+BF27),BF35*BF103/(BF103-BF19-BF27)),BF35*BF103/(BF103-BF11-BF27)),BF35))) -> 5095.329745 | BG36: =IF(BG35<=0,IF(BG$103<=0,BG$103,0),BG35) -> 5724.0145 | BH36: =IF(BH103<=0,0,IF(BH35<=0,0,IF(BH11+BH43<=0,IF(BH11=0,IF(BH19=0,IF(BH27=0,IF(BH35+BH43<=0,0,BH35+BH43),BH35*BH103/(BH103-BH27-BH43)),BH35*BH103/(BH103-BH19-BH43)),BH35*BH103/(BH103-BH11-BH43)),BH35))) -> 5305.085615 | BI36: =IF(BI103<=0,0,IF(BI35<=0,0,IF(BI11+BI51<=0,IF(BI11=0,IF(BI19=0,IF(BI27=0,IF(BI35+BI51<=0,0,BI35+BI51),BI35*BI103/(BI103-BI27-BI51)),BI35*BI103/(BI103-BI19-BI51)),BI35*BI103/(BI103-BI11-BI51)),BI35))) -> 5465.62648 | BJ36: =IF(BJ103<=0,0,IF(BJ35<=0,0,IF(BJ11+BJ59<=0,IF(BJ11=0,IF(BJ19=0,IF(BJ27=0,IF(BJ35+BJ59<=0,0,BJ35+BJ59),BJ35*BJ103/(BJ103-BJ27-BJ59)),BJ35*BJ103/(BJ103-BJ19-BJ59)),BJ35*BJ103/(BJ103-BJ11-BJ59)),BJ35))) -> 5557.387471 | BK36: =IF(BK103<=0,0,IF(BK35<=0,0,IF(BK11+BK67<=0,IF(BK11=0,IF(BK19=0,IF(BK27=0,IF(BK35+BK67<=0,0,BK35+BK67),BK35*BK103/(BK103-BK27-BK67)),BK35*BK103/(BK103-BK19-BK67)),BK35*BK103/(BK103-BK11-BK67)),BK35))) -> 6009.128578 | BL36: =IF(BL103<=0,0,IF(BL35<=0,0,IF(BL11+BL75<=0,IF(BL11=0,IF(BL19=0,IF(BL27=0,IF(BL35+BL75<=0,0,BL35+BL75),BL35*BL103/(BL103-BL27-BL75)),BL35*BL103/(BL103-BL19-BL75)),BL35*BL103/(BL103-BL11-BL75)),BL35))) -> 5948.97126 | BM36: =IF(BM103<=0,0,IF(BM35<=0,0,IF(BM11+BM83<=0,IF(BM11=0,IF(BM19=0,IF(BM27=0,IF(BM35+BM83<=0,0,BM35+BM83),BM35*BM103/(BM103-BM27-BM83)),BM35*BM103/(BM103-BM19-BM83)),BM35*BM103/(BM103-BM11-BM83)),BM35))) -> 5615.47892 | BN36: =IF(BN103<=0,0,IF(BN35<=0,0,IF(BN11+BN91<=0,IF(BN11=0,IF(BN19=0,IF(BN27=0,IF(BN35+BN91<=0,0,BN35+BN91),BN35*BN103/(BN103-BN27-BN91)),BN35*BN103/(BN103-BN19-BN91)),BN35*BN103/(BN103-BN11-BN91)),BN35))) -> 5486.794873 | BO36: =IF(BO103<=0,0,IF(BO35<=0,0,IF(BO11+BO99<=0,IF(BO11=0,IF(BO19=0,IF(BO27=0,IF(BO35+BO99<=0,0,BO35+BO99),BO35*BO103/(BO103-BO27-BO99)),BO35*BO103/(BO103-BO19-BO99)),BO35*BO103/(BO103-BO11-BO99)),BO35))) -> 5473.643004 | BP36: =IF(BP103<=0,0,IF(BP35<=0,0,IF(BP11+BP19<=0,IF(BP19=0,IF(BP27=0,IF(BP35+BP11<=0,0,BP35+BP11),BP35*BP103/(BP103-BP27-BP11)),BP35*BP103/(BP103-BP19-BP11)),BP35))) -> 5600.236605 | BQ36: =IF(BQ103<=0,0,IF(BQ35<=0,0,IF(BQ11+BQ19<=0,IF(BQ11=0,IF(BQ27=0,IF(BQ35+BQ19<=0,0,BQ35+BQ19),BQ35*BQ103/(BQ103-BQ27-BQ19)),BQ35*BQ103/(BQ103-BQ11-BQ19)),BQ35))) -> 5836.062754 | BR36: =IF(BR103<=0,0,IF(BR35<=0,0,IF(BR11+BR27<=0,IF(BR11=0,IF(BR19=0,IF(BR35+BR27<=0,0,BR35+BR27),BR35*BR103/(BR103-BR19-BR27)),BR35*BR103/(BR103-BR11-BR27)),BR35))) -> 5539.101535 | BS36: =IF(BS35<=0,IF(BS$103<=0,BS$103,0),BS35) -> 7010.215225 | BT36: =IF(BT103<=0,0,IF(BT35<=0,0,IF(BT11+BT43<=0,IF(BT11=0,IF(BT19=0,IF(BT27=0,IF(BT35+BT43<=0,0,BT35+BT43),BT35*BT103/(BT103-BT27-BT43)),BT35*BT103/(BT103-BT19-BT43)),BT35*BT103/(BT103-BT11-BT43)),BT35))) -> 7483.881052 | BU36: =IF(BU103<=0,0,IF(BU35<=0,0,IF(BU11+BU51<=0,IF(BU11=0,IF(BU19=0,IF(BU27=0,IF(BU35+BU51<=0,0,BU35+BU51),BU35*BU103/(BU103-BU27-BU51)),BU35*BU103/(BU103-BU19-BU51)),BU35*BU103/(BU103-BU11-BU51)),BU35))) -> 7034.363845 | BV36: =IF(BV103<=0,0,IF(BV35<=0,0,IF(BV11+BV59<=0,IF(BV11=0,IF(BV19=0,IF(BV27=0,IF(BV35+BV59<=0,0,BV35+BV59),BV35*BV103/(BV103-BV27-BV59)),BV35*BV103/(BV103-BV19-BV59)),BV35*BV103/(BV103-BV11-BV59)),BV35))) -> 6980.498709 | BW36: =IF(BW103<=0,0,IF(BW35<=0,0,IF(BW11+BW67<=0,IF(BW11=0,IF(BW19=0,IF(BW27=0,IF(BW35+BW67<=0,0,BW35+BW67),BW35*BW103/(BW103-BW27-BW67)),BW35*BW103/(BW103-BW19-BW67)),BW35*BW103/(BW103-BW11-BW67)),BW35))) -> 6975.629215 | BX36: =IF(BX103<=0,0,IF(BX35<=0,0,IF(BX11+BX75<=0,IF(BX11=0,IF(BX19=0,IF(BX27=0,IF(BX35+BX75<=0,0,BX35+BX75),BX35*BX103/(BX103-BX27-BX75)),BX35*BX103/(BX103-BX19-BX75)),BX35*BX103/(BX103-BX11-BX75)),BX35))) -> 6236.411695 | BY36: =IF(BY103<=0,0,IF(BY35<=0,0,IF(BY11+BY83<=0,IF(BY11=0,IF(BY19=0,IF(BY27=0,IF(BY35+BY83<=0,0,BY35+BY83),BY35*BY103/(BY103-BY27-BY83)),BY35*BY103/(BY103-BY19-BY83)),BY35*BY103/(BY103-BY11-BY83)),BY35))) -> 5782.402676 | BZ36: =IF(BZ103<=0,0,IF(BZ35<=0,0,IF(BZ11+BZ91<=0,IF(BZ11=0,IF(BZ19=0,IF(BZ27=0,IF(BZ35+BZ91<=0,0,BZ35+BZ91),BZ35*BZ103/(BZ103-BZ27-BZ91)),BZ35*BZ103/(BZ103-BZ19-BZ91)),BZ35*BZ103/(BZ103-BZ11-BZ91)),BZ35))) -> 5410.104682 | CA36: =IF(CA103<=0,0,IF(CA35<=0,0,IF(CA11+CA99<=0,IF(CA11=0,IF(CA19=0,IF(CA27=0,IF(CA35+CA99<=0,0,CA35+CA99),CA35*CA103/(CA103-CA27-CA99)),CA35*CA103/(CA103-CA19-CA99)),CA35*CA103/(CA103-CA11-CA99)),CA35))) -> 4924.254558 | CB36: =IF(CB103<=0,0,IF(CB35<=0,0,IF(CB11+CB19<=0,IF(CB19=0,IF(CB27=0,IF(CB35+CB11<=0,0,CB35+CB11),CB35*CB103/(CB103-CB27-CB11)),CB35*CB103/(CB103-CB19-CB11)),CB35))) -> 5069.377003 | CC36: =IF(CC103<=0,0,IF(CC35<=0,0,IF(CC11+CC19<=0,IF(CC11=0,IF(CC27=0,IF(CC35+CC19<=0,0,CC35+CC19),CC35*CC103/(CC103-CC27-CC19)),CC35*CC103/(CC103-CC11-CC19)),CC35))) -> 4932.320554 | CD36: =IF(CD103<=0,0,IF(CD35<=0,0,IF(CD11+CD27<=0,IF(CD11=0,IF(CD19=0,IF(CD35+CD27<=0,0,CD35+CD27),CD35*CD103/(CD103-CD19-CD27)),CD35*CD103/(CD103-CD11-CD27)),CD35))) -> 4793.693171 | CE36: =IF(CE35<=0,IF(CE$103<=0,CE$103,0),CE35) -> 8360.725986 | CF36: =IF(CF103<=0,0,IF(CF35<=0,0,IF(CF11+CF43<=0,IF(CF11=0,IF(CF19=0,IF(CF27=0,IF(CF35+CF43<=0,0,CF35+CF43),CF35*CF103/(CF103-CF27-CF43)),CF35*CF103/(CF103-CF19-CF43)),CF35*CF103/(CF103-CF11-CF43)),CF35))) -> 8662.963432 | CG36: =IF(CG103<=0,0,IF(CG35<=0,0,IF(CG11+CG51<=0,IF(CG11=0,IF(CG19=0,IF(CG27=0,IF(CG35+CG51<=0,0,CG35+CG51),CG35*CG103/(CG103-CG27-CG51)),CG35*CG103/(CG103-CG19-CG51)),CG35*CG103/(CG103-CG11-CG51)),CG35))) -> 9608.061129 | CH36: =IF(CH103<=0,0,IF(CH35<=0,0,IF(CH11+CH59<=0,IF(CH11=0,IF(CH19=0,IF(CH27=0,IF(CH35+CH59<=0,0,CH35+CH59),CH35*CH103/(CH103-CH27-CH59)),CH35*CH103/(CH103-CH19-CH59)),CH35*CH103/(CH103-CH11-CH59)),CH35))) -> 9816.818638 | CI36: =IF(CI103<=0,0,IF(CI35<=0,0,IF(CI11+CI67<=0,IF(CI11=0,IF(CI19=0,IF(CI27=0,IF(CI35+CI67<=0,0,CI35+CI67),CI35*CI103/(CI103-CI27-CI67)),CI35*CI103/(CI103-CI19-CI67)),CI35*CI103/(CI103-CI11-CI67)),CI35))) -> 10390.26616 | CJ36: =IF(CJ103<=0,0,IF(CJ35<=0,0,IF(CJ11+CJ75<=0,IF(CJ11=0,IF(CJ19=0,IF(CJ27=0,IF(CJ35+CJ75<=0,0,CJ35+CJ75),CJ35*CJ103/(CJ103-CJ27-CJ75)),CJ35*CJ103/(CJ103-CJ19-CJ75)),CJ35*CJ103/(CJ103-CJ11-CJ75)),CJ35))) -> 9674.186323 | CK36: =IF(CK103<=0,0,IF(CK35<=0,0,IF(CK11+CK83<=0,IF(CK11=0,IF(CK19=0,IF(CK27=0,IF(CK35+CK83<=0,0,CK35+CK83),CK35*CK103/(CK103-CK27-CK83)),CK35*CK103/(CK103-CK19-CK83)),CK35*CK103/(CK103-CK11-CK83)),CK35))) -> 9497.274352 | CL36: =IF(CL103<=0,0,IF(CL35<=0,0,IF(CL11+CL91<=0,IF(CL11=0,IF(CL19=0,IF(CL27=0,IF(CL35+CL91<=0,0,CL35+CL91),CL35*CL103/(CL103-CL27-CL91)),CL35*CL103/(CL103-CL19-CL91)),CL35*CL103/(CL103-CL11-CL91)),CL35))) -> 9473.847445 | CM36: =IF(CM103<=0,0,IF(CM35<=0,0,IF(CM11+CM99<=0,IF(CM11=0,IF(CM19=0,IF(CM27=0,IF(CM35+CM99<=0,0,CM35+CM99),CM35*CM103/(CM103-CM27-CM99)),CM35*CM103/(CM103-CM19-CM99)),CM35*CM103/(CM103-CM11-CM99)),CM35))) -> 9895.958842 | CN36: =IF(CN103<=0,0,IF(CN35<=0,0,IF(CN11+CN19<=0,IF(CN19=0,IF(CN27=0,IF(CN35+CN11<=0,0,CN35+CN11),CN35*CN103/(CN103-CN27-CN11)),CN35*CN103/(CN103-CN19-CN11)),CN35))) -> 10638.21702 | CO36: =IF(CO103<=0,0,IF(CO35<=0,0,IF(CO11+CO19<=0,IF(CO11=0,IF(CO27=0,IF(CO35+CO19<=0,0,CO35+CO19),CO35*CO103/(CO103-CO27-CO19)),CO35*CO103/(CO103-CO11-CO19)),CO35))) -> 11028.76876 | CP36: =IF(CP103<=0,0,IF(CP35<=0,0,IF(CP11+CP27<=0,IF(CP11=0,IF(CP19=0,IF(CP35+CP27<=0,0,CP35+CP27),CP35*CP103/(CP103-CP19-CP27)),CP35*CP103/(CP103-CP11-CP27)),CP35))) -> 10621.89005 | CQ36: =IF(CQ35<=0,IF(CQ$103<=0,CQ$103,0),CQ35) -> 10447.62036 | CR36: =IF(CR103<=0,0,IF(CR35<=0,0,IF(CR11+CR43<=0,IF(CR11=0,IF(CR19=0,IF(CR27=0,IF(CR35+CR43<=0,0,CR35+CR43),CR35*CR103/(CR103-CR27-CR43)),CR35*CR103/(CR103-CR19-CR43)),CR35*CR103/(CR103-CR11-CR43)),CR35))) -> 9522.834294 | CS36: =IF(CS103<=0,0,IF(CS35<=0,0,IF(CS11+CS51<=0,IF(CS11=0,IF(CS19=0,IF(CS27=0,IF(CS35+CS51<=0,0,CS35+CS51),CS35*CS103/(CS103-CS27-CS51)),CS35*CS103/(CS103-CS19-CS51)),CS35*CS103/(CS103-CS11-CS51)),CS35))) -> 9328.642078 | CT36: =IF(CT103<=0,0,IF(CT35<=0,0,IF(CT11+CT59<=0,IF(CT11=0,IF(CT19=0,IF(CT27=0,IF(CT35+CT59<=0,0,CT35+CT59),CT35*CT103/(CT103-CT27-CT59)),CT35*CT103/(CT103-CT19-CT59)),CT35*CT103/(CT103-CT11-CT59)),CT35))) -> 9957.193102 | CU36: =IF(CU103<=0,0,IF(CU35<=0,0,IF(CU11+CU67<=0,IF(CU11=0,IF(CU19=0,IF(CU27=0,IF(CU35+CU67<=0,0,CU35+CU67),CU35*CU103/(CU103-CU27-CU67)),CU35*CU103/(CU103-CU19-CU67)),CU35*CU103/(CU103-CU11-CU67)),CU35))) -> 10897.2143 | CV36: =IF(CV103<=0,0,IF(CV35<=0,0,IF(CV11+CV75<=0,IF(CV11=0,IF(CV19=0,IF(CV27=0,IF(CV35+CV75<=0,0,CV35+CV75),CV35*CV103/(CV103-CV27-CV75)),CV35*CV103/(CV103-CV19-CV75)),CV35*CV103/(CV103-CV11-CV75)),CV35))) -> 11233.57585 | CW36: =IF(CW103<=0,0,IF(CW35<=0,0,IF(CW11+CW83<=0,IF(CW11=0,IF(CW19=0,IF(CW27=0,IF(CW35+CW83<=0,0,CW35+CW83),CW35*CW103/(CW103-CW27-CW83)),CW35*CW103/(CW103-CW19-CW83)),CW35*CW103/(CW103-CW11-CW83)),CW35))) -> 12175.01094 | CX36: =IF(CX103<=0,0,IF(CX35<=0,0,IF(CX11+CX91<=0,IF(CX11=0,IF(CX19=0,IF(CX27=0,IF(CX35+CX91<=0,0,CX35+CX91),CX35*CX103/(CX103-CX27-CX91)),CX35*CX103/(CX103-CX19-CX91)),CX35*CX103/(CX103-CX11-CX91)),CX35))) -> 11293.32672 | CY36: =IF(CY103<=0,0,IF(CY35<=0,0,IF(CY11+CY99<=0,IF(CY11=0,IF(CY19=0,IF(CY27=0,IF(CY35+CY99<=0,0,CY35+CY99),CY35*CY103/(CY103-CY27-CY99)),CY35*CY103/(CY103-CY19-CY99)),CY35*CY103/(CY103-CY11-CY99)),CY35))) -> 11396.59487 | CZ36: =IF(CZ103<=0,0,IF(CZ35<=0,0,IF(CZ11+CZ19<=0,IF(CZ19=0,IF(CZ27=0,IF(CZ35+CZ11<=0,0,CZ35+CZ11),CZ35*CZ103/(CZ103-CZ27-CZ11)),CZ35*CZ103/(CZ103-CZ19-CZ11)),CZ35))) -> 11665.50669 | DA36: =IF(DA103<=0,0,IF(DA35<=0,0,IF(DA11+DA19<=0,IF(DA11=0,IF(DA27=0,IF(DA35+DA19<=0,0,DA35+DA19),DA35*DA103/(DA103-DA27-DA19)),DA35*DA103/(DA103-DA11-DA19)),DA35))) -> 11865.6913 | DB36: =IF(DB103<=0,0,IF(DB35<=0,0,IF(DB11+DB27<=0,IF(DB11=0,IF(DB19=0,IF(DB35+DB27<=0,0,DB35+DB27),DB35*DB103/(DB103-DB19-DB27)),DB35*DB103/(DB103-DB11-DB27)),DB35))) -> 11496.72593 | DC36: =IF(DC35<=0,IF(DC$103<=0,DC$103,0),DC35) -> 12805.81101 | DD36: =IF(DD103<=0,0,IF(DD35<=0,0,IF(DD11+DD43<=0,IF(DD11=0,IF(DD19=0,IF(DD27=0,IF(DD35+DD43<=0,0,DD35+DD43),DD35*DD103/(DD103-DD27-DD43)),DD35*DD103/(DD103-DD19-DD43)),DD35*DD103/(DD103-DD11-DD43)),DD35))) -> 12485.65246 | DE36: =IF(DE103<=0,0,IF(DE35<=0,0,IF(DE11+DE51<=0,IF(DE11=0,IF(DE19=0,IF(DE27=0,IF(DE35+DE51<=0,0,DE35+DE51),DE35*DE103/(DE103-DE27-DE51)),DE35*DE103/(DE103-DE19-DE51)),DE35*DE103/(DE103-DE11-DE51)),DE35))) -> 12299.65009 | DF36: =IF(DF103<=0,0,IF(DF35<=0,0,IF(DF11+DF59<=0,IF(DF11=0,IF(DF19=0,IF(DF27=0,IF(DF35+DF59<=0,0,DF35+DF59),DF35*DF103/(DF103-DF27-DF59)),DF35*DF103/(DF103-DF19-DF59)),DF35*DF103/(DF103-DF11-DF59)),DF35))) -> 14204.43049 | DG36: =IF(DG103<=0,0,IF(DG35<=0,0,IF(DG11+DG67<=0,IF(DG11=0,IF(DG19=0,IF(DG27=0,IF(DG35+DG67<=0,0,DG35+DG67),DG35*DG103/(DG103-DG27-DG67)),DG35*DG103/(DG103-DG19-DG67)),DG35*DG103/(DG103-DG11-DG67)),DG35))) -> 14203.76188 | DH36: =IF(DH103<=0,0,IF(DH35<=0,0,IF(DH11+DH75<=0,IF(DH11=0,IF(DH19=0,IF(DH27=0,IF(DH35+DH75<=0,0,DH35+DH75),DH35*DH103/(DH103-DH27-DH75)),DH35*DH103/(DH103-DH19-DH75)),DH35*DH103/(DH103-DH11-DH75)),DH35))) -> 14105.19535 | DI36: =IF(DI103<=0,0,IF(DI35<=0,0,IF(DI11+DI83<=0,IF(DI11=0,IF(DI19=0,IF(DI27=0,IF(DI35+DI83<=0,0,DI35+DI83),DI35*DI103/(DI103-DI27-DI83)),DI35*DI103/(DI103-DI19-DI83)),DI35*DI103/(DI103-DI11-DI83)),DI35))) -> 15846.4094 | DJ36: =IF(DJ103<=0,0,IF(DJ35<=0,0,IF(DJ11+DJ91<=0,IF(DJ11=0,IF(DJ19=0,IF(DJ27=0,IF(DJ35+DJ91<=0,0,DJ35+DJ91),DJ35*DJ103/(DJ103-DJ27-DJ91)),DJ35*DJ103/(DJ103-DJ19-DJ91)),DJ35*DJ103/(DJ103-DJ11-DJ91)),DJ35))) -> 16314.253 | DK36: =IF(DK103<=0,0,IF(DK35<=0,0,IF(DK11+DK99<=0,IF(DK11=0,IF(DK19=0,IF(DK27=0,IF(DK35+DK99<=0,0,DK35+DK99),DK35*DK103/(DK103-DK27-DK99)),DK35*DK103/(DK103-DK19-DK99)),DK35*DK103/(DK103-DK11-DK99)),DK35))) -> 16180.86361 | DL36: =IF(DL103<=0,0,IF(DL35<=0,0,IF(DL11+DL19<=0,IF(DL19=0,IF(DL27=0,IF(DL35+DL11<=0,0,DL35+DL11),DL35*DL103/(DL103-DL27-DL11)),DL35*DL103/(DL103-DL19-DL11)),DL35))) -> 18078.13334 | DM36: =IF(DM103<=0,0,IF(DM35<=0,0,IF(DM11+DM19<=0,IF(DM11=0,IF(DM27=0,IF(DM35+DM19<=0,0,DM35+DM19),DM35*DM103/(DM103-DM27-DM19)),DM35*DM103/(DM103-DM11-DM19)),DM35))) -> 17823.45539 | DN36: =IF(DN103<=0,0,IF(DN35<=0,0,IF(DN11+DN27<=0,IF(DN11=0,IF(DN19=0,IF(DN35+DN27<=0,0,DN35+DN27),DN35*DN103/(DN103-DN19-DN27)),DN35*DN103/(DN103-DN11-DN27)),DN35))) -> 19298.70041 | DO36: =IF(DO35<=0,IF(DO$103<=0,DO$103,0),DO35) -> 15470.56644 | DP36: =IF(DP103<=0,0,IF(DP35<=0,0,IF(DP11+DP43<=0,IF(DP11=0,IF(DP19=0,IF(DP27=0,IF(DP35+DP43<=0,0,DP35+DP43),DP35*DP103/(DP103-DP27-DP43)),DP35*DP103/(DP103-DP19-DP43)),DP35*DP103/(DP103-DP11-DP43)),DP35))) -> 16268.04738 | DQ36: =IF(DQ103<=0,0,IF(DQ35<=0,0,IF(DQ11+DQ51<=0,IF(DQ11=0,IF(DQ19=0,IF(DQ27=0,IF(DQ35+DQ51<=0,0,DQ35+DQ51),DQ35*DQ103/(DQ103-DQ27-DQ51)),DQ35*DQ103/(DQ103-DQ19-DQ51)),DQ35*DQ103/(DQ103-DQ11-DQ51)),DQ35))) -> 16954.52306 | DR36: =IF(DR103<=0,0,IF(DR35<=0,0,IF(DR11+DR59<=0,IF(DR11=0,IF(DR19=0,IF(DR27=0,IF(DR35+DR59<=0,0,DR35+DR59),DR35*DR103/(DR103-DR27-DR59)),DR35*DR103/(DR103-DR19-DR59)),DR35*DR103/(DR103-DR11-DR59)),DR35))) -> 16822.35731 | DS36: =IF(DS103<=0,0,IF(DS35<=0,0,IF(DS11+DS67<=0,IF(DS11=0,IF(DS19=0,IF(DS27=0,IF(DS35+DS67<=0,0,DS35+DS67),DS35*DS103/(DS103-DS27-DS67)),DS35*DS103/(DS103-DS19-DS67)),DS35*DS103/(DS103-DS11-DS67)),DS35))) -> 17430.93356 | DT36: =IF(DT103<=0,0,IF(DT35<=0,0,IF(DT11+DT75<=0,IF(DT11=0,IF(DT19=0,IF(DT27=0,IF(DT35+DT75<=0,0,DT35+DT75),DT35*DT103/(DT103-DT27-DT75)),DT35*DT103/(DT103-DT19-DT75)),DT35*DT103/(DT103-DT11-DT75)),DT35))) -> 17359.25271 | DU36: =IF(DU103<=0,0,IF(DU35<=0,0,IF(DU11+DU83<=0,IF(DU11=0,IF(DU19=0,IF(DU27=0,IF(DU35+DU83<=0,0,DU35+DU83),DU35*DU103/(DU103-DU27-DU83)),DU35*DU103/(DU103-DU19-DU83)),DU35*DU103/(DU103-DU11-DU83)),DU35))) -> 16956.65642 | DV36: =IF(DV103<=0,0,IF(DV35<=0,0,IF(DV11+DV91<=0,IF(DV11=0,IF(DV19=0,IF(DV27=0,IF(DV35+DV91<=0,0,DV35+DV91),DV35*DV103/(DV103-DV27-DV91)),DV35*DV103/(DV103-DV19-DV91)),DV35*DV103/(DV103-DV11-DV91)),DV35))) -> 17592.33605 | DW36: =IF(DW103<=0,0,IF(DW35<=0,0,IF(DW11+DW99<=0,IF(DW11=0,IF(DW19=0,IF(DW27=0,IF(DW35+DW99<=0,0,DW35+DW99),DW35*DW103/(DW103-DW27-DW99)),DW35*DW103/(DW103-DW19-DW99)),DW35*DW103/(DW103-DW11-DW99)),DW35))) -> 18062.65559
A37: 0.004510268866 | B37: 17 | C37: 0.0032 | D37: 0 | F37: EOM_Balance | G37: 0 | H37: 0 | I37: 0 | J37: 0 | K37: =K36*K4 -> 978.6073464 | L37: =L36*L4 -> 944.7192021 | M37: =M36*M4 -> 905.918221 | N37: 919.1408601 | O37: 921.3270881 | P37: 924.7845518 | Q37: 878.2687533 | R37: 892.6975345 | S37: 886.5833276 | T37: 893.2215575 | U37: =U36*U4 -> 878.2480383 | V37: =V36*V5 -> 1050 | W37: =W36*W$4 -> 2085.718559 | X37: =X36*X$4 -> 2053.797235 | Y37: =Y36*Y$4 -> 1983.793134 | Z37: 1991.356403 | AA37: 2059.557308 | AB37: 2109.97231 | AC37: 2096.711612 | AD37: 2110.046961 | AE37: 2089.469878 | AF37: =AF36*AF4 -> 2013.647745 | AG37: =AG36*AG4 -> 2101.790053 | AH37: =AH36*AH5 -> 2157.713553 | AI37: =AI36*AI$4 -> 3050.183992 | AJ37: =AJ36*AJ$4 -> 3033.069609 | AK37: =AK36*AK$4 -> 3202.124378 | AL37: 3116.305609 | AM37: 3099.150712 | AN37: 3159.009827 | AO37: 3156.14131 | AP37: 3107.228936 | AQ37: 3155.615831 | AR37: =AR36*AR4 -> 3350.337383 | AS37: =AS36*AS4 -> 3356.974171 | AT37: =AT36*AT5 -> 3483.73085 | AU37: =AU36*AU$4 -> 4278.503068 | AV37: =AV36*AV$4 -> 4094.551585 | AW37: =AW36*AW$4 -> 4242.468141 | AX37: 4246.801204 | AY37: 4491.963752 | AZ37: 4910.246631 | BA37: 4980.075054 | BB37: 4676.540744 | BC37: 4870.03134 | BD37: =BD36*BD4 -> 5072.751738 | BE37: =BE36*BE4 -> 5095.329745 | BF37: =BF36*BF5 -> 4724.0145 | BG37: =BG36*BG$4 -> 5305.085615 | BH37: =BH36*BH$4 -> 5465.62648 | BI37: =BI36*BI$4 -> 5557.387471 | BJ37: 6009.128578 | BK37: 5948.97126 | BL37: 5615.47892 | BM37: 5486.794873 | BN37: 5473.643004 | BO37: 5600.236605 | BP37: =BP36*BP4 -> 5836.062754 | BQ37: =BQ36*BQ4 -> 5539.101535 | BR37: =BR36*BR5 -> 6010.215225 | BS37: =BS36*BS$4 -> 7483.881052 | BT37: =BT36*BT$4 -> 7034.363845 | BU37: =BU36*BU$4 -> 6980.498709 | BV37: 6975.629215 | BW37: 6236.411695 | BX37: 5782.402676 | BY37: 5410.104682 | BZ37: 4924.254558 | CA37: 5069.377003 | CB37: =CB36*CB4 -> 4932.320554 | CC37: =CC36*CC4 -> 4793.693171 | CD37: =CD36*CD5 -> 7360.725986 | CE37: =CE36*CE$4 -> 8662.963432 | CF37: =CF36*CF$4 -> 9608.061129 | CG37: =CG36*CG$4 -> 9816.818638 | CH37: 10390.26616 | CI37: 9674.186323 | CJ37: 9497.274352 | CK37: 9473.847445 | CL37: 9895.958842 | CM37: 10638.21702 | CN37: =CN36*CN4 -> 11028.76876 | CO37: =CO36*CO4 -> 10621.89005 | CP37: =CP36*CP5 -> 9447.620365 | CQ37: =CQ36*CQ$4 -> 9522.834294 | CR37: =CR36*CR$4 -> 9328.642078 | CS37: =CS36*CS$4 -> 9957.193102 | CT37: 10897.2143 | CU37: 11233.57585 | CV37: 12175.01094 | CW37: 11293.32672 | CX37: 11396.59487 | CY37: 11665.50669 | CZ37: =CZ36*CZ4 -> 11865.6913 | DA37: =DA36*DA4 -> 11496.72593 | DB37: =DB36*DB5 -> 11805.81101 | DC37: =DC36*DC$4 -> 12485.65246 | DD37: =DD36*DD$4 -> 12299.65009 | DE37: =DE36*DE$4 -> 14204.43049 | DF37: 14203.76188 | DG37: 14105.19535 | DH37: 15846.4094 | DI37: 16314.253 | DJ37: 16180.86361 | DK37: 18078.13334 | DL37: =DL36*DL4 -> 17823.45539 | DM37: =DM36*DM4 -> 19298.70041 | DN37: =DN36*DN5 -> 14470.56644 | DO37: =DO36*DO$4 -> 16268.04738 | DP37: =DP36*DP$4 -> 16954.52306 | DQ37: =DQ36*DQ$4 -> 16822.35731 | DR37: 17430.93356 | DS37: 17359.25271 | DT37: 16956.65642 | DU37: 17592.33605 | DV37: 18062.65559 | DW37: =DW36*DX37 -> 16955.67361 | DX37: =IF(PRODUCT(DO4:DW4)>($B$11)^(9/12),($B$11)^(9/12)/PRODUCT(DO4:DV4),IF(PRODUCT(DO4:DW4)<($B$12)^(9/12),($B$12)^(9/12)/PRODUCT(DO4:DV4),DW4)) -> 0.9387143281
A38: 0.004514965659 | B38: 18 | C38: 0.0034 | D38: 0 | E38: May | F38: BOM_Pre_CF_Balance | G38: 0 | H38: 0 | I38: 0 | J38: 0 | K38: 0 | L38: 0 | M38: =L45 -> 965.3710506 | N38: =M45 -> 925.7218683 | O38: 939.2335583 | P38: 941.4675778 | Q38: 945.0006228 | R38: 897.4679748 | S38: 912.2121736 | T38: 905.9643082 | U38: 912.7476518 | V38: 897.446807 | W38: 926.7992441 | X38: =W45 -> 1050 | Y38: =X45 -> 2018.625338 | Z38: 1949.820078 | AA38: 1957.253824 | AB38: 2024.286768 | AC38: 2073.838398 | AD38: 2060.804793 | AE38: 2073.911771 | AF38: =AE45 -> 2053.687076 | AG38: =AF45 -> 1979.16342 | AH38: =AG45 -> 2065.796265 | AI38: =AH45 -> 2120.762057 | AJ38: =AI45 -> 2152.5 | AK38: =AJ45 -> 3134.811529 | AL38: =AK45 -> 3309.537106 | AM38: =AL45 -> 3220.839615 | AN38: =AM45 -> 3203.109271 | AO38: =AN45 -> 3264.976312 | AP38: =AO45 -> 3262.011573 | AQ38: =AP45 -> 3211.458472 | AR38: =AQ45 -> 3261.468467 | AS38: =AR45 -> 3462.7218 | AT38: =AS45 -> 3469.581213 | AU38: =AT45 -> 3600.589845 | AV38: =AU45 -> 3435.784888 | AW38: =AV45 -> 4245.071175 | AX38: =AW45 -> 4398.425283 | AY38: =AX45 -> 4402.917634 | AZ38: =AY45 -> 4657.092589 | BA38: =AZ45 -> 5090.751943 | BB38: =BA45 -> 5163.147324 | BC38: =BB45 -> 4848.454806 | BD38: =BC45 -> 5049.058299 | BE38: =BD45 -> 5259.230891 | BF38: =BE45 -> 5282.638887 | BG38: =BF45 -> 4897.673742 | BH38: =BG45 -> 4657.574132 | BI38: =BH45 -> 5828.781896 | BJ38: =BI45 -> 5926.639809 | BK38: =BJ45 -> 6408.396182 | BL38: =BK45 -> 6344.241801 | BM38: =BL45 -> 5988.591058 | BN38: =BM45 -> 5851.356792 | BO38: =BN45 -> 5837.331066 | BP38: =BO45 -> 5972.335991 | BQ38: =BP45 -> 6223.831257 | BR38: =BQ45 -> 5907.138892 | BS38: =BR45 -> 5305.460094 | BT38: =BS45 -> 5940.452839 | BU38: =BT45 -> 6523.576495 | BV38: =BU45 -> 6473.622676 | BW38: =BV45 -> 6469.106772 | BX38: =BW45 -> 5783.566168 | BY38: =BX45 -> 5362.524176 | BZ38: =BY45 -> 5017.259914 | CA38: =BZ45 -> 4566.6889 | CB38: =CA45 -> 4701.273546 | CC38: =CB45 -> 4574.169199 | CD38: =CC45 -> 4445.607987 | CE38: =CD45 -> 4162.64211 | CF38: =CE45 -> 7287.475481 | CG38: =CF45 -> 9191.608812 | CH38: =CG45 -> 9391.317925 | CI38: =CH45 -> 9939.909911 | CJ38: =CI45 -> 9254.867872 | CK38: =CJ45 -> 9085.623984 | CL38: =CK45 -> 9063.212493 | CM38: =CL45 -> 9467.027871 | CN38: =CM45 -> 10177.11357 | CO38: =CN45 -> 10550.73721 | CP38: =CO45 -> 10161.49428 | CQ38: =CP45 -> 11479.46812 | CR38: =CQ45 -> 9364.847293 | CS38: =CR45 -> 10153.48452 | CT38: =CS45 -> 10837.61229 | CU38: =CT45 -> 11860.75055 | CV38: =CU45 -> 12226.85334 | CW38: =CV45 -> 13251.53051 | CX38: =CW45 -> 12291.8874 | CY38: =CX45 -> 12404.28657 | CZ38: =CY45 -> 12696.97568 | DA38: =CZ45 -> 12914.8607 | DB38: =DA45 -> 12513.27126 | DC38: =DB45 -> 13571.7614 | DD38: =DC45 -> 11712.27744 | DE38: =DD45 -> 12522.89897 | DF38: =DE45 -> 14462.25273 | DG38: =DF45 -> 14461.57198 | DH38: =DG45 -> 14361.21638 | DI38: =DH45 -> 16134.03492 | DJ38: =DI45 -> 16610.37027 | DK38: =DJ45 -> 16474.55975 | DL38: =DK45 -> 18406.2665 | DM38: =DL45 -> 18146.96594 | DN38: =DM45 -> 19648.98788 | DO38: =DN45 -> 19337.08618 | DP38: =DO45 -> 14364.87351 | DQ38: =DP45 -> 16013.23725 | DR38: =DQ45 -> 15888.40911 | DS38: =DR45 -> 16463.19826 | DT38: =DS45 -> 16395.49701 | DU38: =DT45 -> 16015.25217 | DV38: =DU45 -> 16615.63996 | DW38: =DV45 -> 17059.84818
A39: 0.004517362143 | B39: 19 | C39: 0.0036 | D39: 0 | F39: BOM_POS_CF | G39: 0 | H39: 0 | I39: 0 | J39: 0 | K39: 0 | L39: =K31*(1+$C$14) -> 1000 | M39: 0 | N39: 0 | O39: 0 | P39: 0 | Q39: 0 | R39: 0 | S39: 0 | T39: 0 | U39: 0 | V39: 0 | W39: 0 | X39: =W31*(1+$C$14) -> 1000 | Y39: 0 | Z39: 0 | AA39: 0 | AB39: 0 | AC39: 0 | AD39: 0 | AE39: 0 | AF39: 0 | AG39: 0 | AH39: 0 | AI39: 0 | AJ39: =AI31*(1+$C$14) -> 1000 | AK39: 0 | AL39: 0 | AM39: 0 | AN39: 0 | AO39: 0 | AP39: 0 | AQ39: 0 | AR39: 0 | AS39: 0 | AT39: 0 | AU39: 0 | AV39: =AU31*(1+$C$14) -> 1000 | AW39: 0 | AX39: 0 | AY39: 0 | AZ39: 0 | BA39: 0 | BB39: 0 | BC39: 0 | BD39: 0 | BE39: 0 | BF39: 0 | BG39: 0 | BH39: =BG31*(1+$C$14) -> 1000 | BI39: 0 | BJ39: 0 | BK39: 0 | BL39: 0 | BM39: 0 | BN39: 0 | BO39: 0 | BP39: 0 | BQ39: 0 | BR39: 0 | BS39: 0 | BT39: =BS31*(1+$C$14) -> 1000 | BU39: 0 | BV39: 0 | BW39: 0 | BX39: 0 | BY39: 0 | BZ39: 0 | CA39: 0 | CB39: 0 | CC39: 0 | CD39: 0 | CE39: 0 | CF39: =CE31*(1+$C$14) -> 1000 | CG39: 0 | CH39: 0 | CI39: 0 | CJ39: 0 | CK39: 0 | CL39: 0 | CM39: 0 | CN39: 0 | CO39: 0 | CP39: 0 | CQ39: 0 | CR39: =CQ31*(1+$C$14) -> 1000 | CS39: 0 | CT39: 0 | CU39: 0 | CV39: 0 | CW39: 0 | CX39: 0 | CY39: 0 | CZ39: 0 | DA39: 0 | DB39: 0 | DC39: 0 | DD39: =DC31*(1+$C$14) -> 1000 | DE39: 0 | DF39: 0 | DG39: 0 | DH39: 0 | DI39: 0 | DJ39: 0 | DK39: 0 | DL39: 0 | DM39: 0 | DN39: 0 | DO39: 0 | DP39: =DO31*(1+$C$14) -> 1000 | DQ39: 0 | DR39: 0 | DS39: 0 | DT39: 0 | DU39: 0 | DV39: 0 | DW39: 0
A40: 0.00452089688 | B40: 20 | C40: 0.0038 | D40: 0 | F40: BOM_NEG_CF | G40: 0 | H40: 0 | I40: 0 | J40: 0 | K40: 0 | L40: =IF($B$18=0,0,K$102*(1-(1/($B$18+1)))/(1-(1/($B$18+1))^K$1)) -> 0 | M40: 0 | N40: 0 | O40: 0 | P40: 0 | Q40: 0 | R40: 0 | S40: 0 | T40: 0 | U40: 0 | V40: 0 | W40: 0 | X40: =IF($B$18=0,0,W$102*(1-(1/($B$18+1)))/(1-(1/($B$18+1))^W$1)) -> 0 | Y40: 0 | Z40: 0 | AA40: 0 | AB40: 0 | AC40: 0 | AD40: 0 | AE40: 0 | AF40: 0 | AG40: 0 | AH40: 0 | AI40: 0 | AJ40: =IF($B$18=0,0,AI$102*(1-(1/($B$18+1)))/(1-(1/($B$18+1))^AI$1)) -> 0 | AK40: 0 | AL40: 0 | AM40: 0 | AN40: 0 | AO40: 0 | AP40: 0 | AQ40: 0 | AR40: 0 | AS40: 0 | AT40: 0 | AU40: 0 | AV40: =IF($B$18=0,0,AU$102*(1-(1/($B$18+1)))/(1-(1/($B$18+1))^AU$1)) -> 0 | AW40: 0 | AX40: 0 | AY40: 0 | AZ40: 0 | BA40: 0 | BB40: 0 | BC40: 0 | BD40: 0 | BE40: 0 | BF40: 0 | BG40: 0 | BH40: =IF($B$18=0,0,BG$102*(1-(1/($B$18+1)))/(1-(1/($B$18+1))^BG$1)) -> 0 | BI40: 0 | BJ40: 0 | BK40: 0 | BL40: 0 | BM40: 0 | BN40: 0 | BO40: 0 | BP40: 0 | BQ40: 0 | BR40: 0 | BS40: 0 | BT40: =IF($B$18=0,0,BS$102*(1-(1/($B$18+1)))/(1-(1/($B$18+1))^BS$1)) -> 0 | BU40: 0 | BV40: 0 | BW40: 0 | BX40: 0 | BY40: 0 | BZ40: 0 | CA40: 0 | CB40: 0 | CC40: 0 | CD40: 0 | CE40: 0 | CF40: =IF($B$18=0,0,CE$102*(1-(1/($B$18+1)))/(1-(1/($B$18+1))^CE$1)) -> 0 | CG40: 0 | CH40: 0 | CI40: 0 | CJ40: 0 | CK40: 0 | CL40: 0 | CM40: 0 | CN40: 0 | CO40: 0 | CP40: 0 | CQ40: 0 | CR40: =IF($B$18=0,0,CQ$102*(1-(1/($B$18+1)))/(1-(1/($B$18+1))^CQ$1)) -> 0 | CS40: 0 | CT40: 0 | CU40: 0 | CV40: 0 | CW40: 0 | CX40: 0 | CY40: 0 | CZ40: 0 | DA40: 0 | DB40: 0 | DC40: 0 | DD40: =IF($B$18=0,0,DC$102*(1-(1/($B$18+1)))/(1-(1/($B$18+1))^DC$1)) -> 0 | DE40: 0 | DF40: 0 | DG40: 0 | DH40: 0 | DI40: 0 | DJ40: 0 | DK40: 0 | DL40: 0 | DM40: 0 | DN40: 0 | DO40: 0 | DP40: =IF($B$18=0,0,DO$102*(1-(1/($B$18+1)))/(1-(1/($B$18+1))^DO$1)) -> 0 | DQ40: 0 | DR40: 0 | DS40: 0 | DT40: 0 | DU40: 0 | DV40: 0 | DW40: 0
A41: 0.004557698514 | B41: 21 | C41: 0.004 | D41: 0 | F41: BOM_COI | G41: 0 | H41: 0 | I41: 0 | J41: 0 | K41: 0 | L41: =$B$15 -> 0 | M41: 0 | N41: 0 | O41: 0 | P41: 0 | Q41: 0 | R41: 0 | S41: 0 | T41: 0 | U41: 0 | V41: 0 | W41: 0 | X41: =$B$15 -> 0 | Y41: 0 | Z41: 0 | AA41: 0 | AB41: 0 | AC41: 0 | AD41: 0 | AE41: 0 | AF41: 0 | AG41: 0 | AH41: 0 | AI41: 0 | AJ41: =$B$15 -> 0 | AK41: 0 | AL41: 0 | AM41: 0 | AN41: 0 | AO41: 0 | AP41: 0 | AQ41: 0 | AR41: 0 | AS41: 0 | AT41: 0 | AU41: 0 | AV41: =$B$15 -> 0 | AW41: 0 | AX41: 0 | AY41: 0 | AZ41: 0 | BA41: 0 | BB41: 0 | BC41: 0 | BD41: 0 | BE41: 0 | BF41: 0 | BG41: 0 | BH41: =$B$15 -> 0 | BI41: 0 | BJ41: 0 | BK41: 0 | BL41: 0 | BM41: 0 | BN41: 0 | BO41: 0 | BP41: 0 | BQ41: 0 | BR41: 0 | BS41: 0 | BT41: =$B$15 -> 0 | BU41: 0 | BV41: 0 | BW41: 0 | BX41: 0 | BY41: 0 | BZ41: 0 | CA41: 0 | CB41: 0 | CC41: 0 | CD41: 0 | CE41: 0 | CF41: =$B$15 -> 0 | CG41: 0 | CH41: 0 | CI41: 0 | CJ41: 0 | CK41: 0 | CL41: 0 | CM41: 0 | CN41: 0 | CO41: 0 | CP41: 0 | CQ41: 0 | CR41: =$B$15 -> 0 | CS41: 0 | CT41: 0 | CU41: 0 | CV41: 0 | CW41: 0 | CX41: 0 | CY41: 0 | CZ41: 0 | DA41: 0 | DB41: 0 | DC41: 0 | DD41: =$B$15 -> 0 | DE41: 0 | DF41: 0 | DG41: 0 | DH41: 0 | DI41: 0 | DJ41: 0 | DK41: 0 | DL41: 0 | DM41: 0 | DN41: 0 | DO41: 0 | DP41: =$B$15 -> 0 | DQ41: 0 | DR41: 0 | DS41: 0 | DT41: 0 | DU41: 0 | DV41: 0 | DW41: 0
A42: 0.004567722402 | B42: 22 | C42: 0.0042 | D42: 0 | F42: BOM_Expenses | G42: 0 | H42: 0 | I42: 0 | J42: 0 | K42: 0 | L42: =$B$16 -> 0 | M42: 0 | N42: 0 | O42: 0 | P42: 0 | Q42: 0 | R42: 0 | S42: 0 | T42: 0 | U42: 0 | V42: 0 | W42: 0 | X42: =$B$16 -> 0 | Y42: 0 | Z42: 0 | AA42: 0 | AB42: 0 | AC42: 0 | AD42: 0 | AE42: 0 | AF42: 0 | AG42: 0 | AH42: 0 | AI42: 0 | AJ42: =$B$16 -> 0 | AK42: 0 | AL42: 0 | AM42: 0 | AN42: 0 | AO42: 0 | AP42: 0 | AQ42: 0 | AR42: 0 | AS42: 0 | AT42: 0 | AU42: 0 | AV42: =$B$16 -> 0 | AW42: 0 | AX42: 0 | AY42: 0 | AZ42: 0 | BA42: 0 | BB42: 0 | BC42: 0 | BD42: 0 | BE42: 0 | BF42: 0 | BG42: 0 | BH42: =$B$16 -> 0 | BI42: 0 | BJ42: 0 | BK42: 0 | BL42: 0 | BM42: 0 | BN42: 0 | BO42: 0 | BP42: 0 | BQ42: 0 | BR42: 0 | BS42: 0 | BT42: =$B$16 -> 0 | BU42: 0 | BV42: 0 | BW42: 0 | BX42: 0 | BY42: 0 | BZ42: 0 | CA42: 0 | CB42: 0 | CC42: 0 | CD42: 0 | CE42: 0 | CF42: =$B$16 -> 0 | CG42: 0 | CH42: 0 | CI42: 0 | CJ42: 0 | CK42: 0 | CL42: 0 | CM42: 0 | CN42: 0 | CO42: 0 | CP42: 0 | CQ42: 0 | CR42: =$B$16 -> 0 | CS42: 0 | CT42: 0 | CU42: 0 | CV42: 0 | CW42: 0 | CX42: 0 | CY42: 0 | CZ42: 0 | DA42: 0 | DB42: 0 | DC42: 0 | DD42: =$B$16 -> 0 | DE42: 0 | DF42: 0 | DG42: 0 | DH42: 0 | DI42: 0 | DJ42: 0 | DK42: 0 | DL42: 0 | DM42: 0 | DN42: 0 | DO42: 0 | DP42: =$B$16 -> 0 | DQ42: 0 | DR42: 0 | DS42: 0 | DT42: 0 | DU42: 0 | DV42: 0 | DW42: 0
A43: 0.004577051108 | B43: 23 | C43: 0.0044 | D43: 0 | F43: BOM_Post_CF_Balance | G43: 0 | H43: 0 | I43: 0 | J43: 0 | K43: 0 | L43: =L38+L39-L40-L41-L42 -> 1000 | M43: =M38+M39-M40-M41-M42 -> 965.3710506 | N43: =N38+N39-N40-N41-N42 -> 925.7218683 | O43: =O38+O39-O40-O41-O42 -> 939.2335583 | P43: =P38+P39-P40-P41-P42 -> 941.4675778 | Q43: =Q38+Q39-Q40-Q41-Q42 -> 945.0006228 | R43: =R38+R39-R40-R41-R42 -> 897.4679748 | S43: =S38+S39-S40-S41-S42 -> 912.2121736 | T43: =T38+T39-T40-T41-T42 -> 905.9643082 | U43: =U38+U39-U40-U41-U42 -> 912.7476518 | V43: =V38+V39-V40-V41-V42 -> 897.446807 | W43: 926.7992441 | X43: =X38+X39-X40-X41-X42 -> 2050 | Y43: =Y38+Y39-Y40-Y41-Y42 -> 2018.625338 | Z43: =Z38+Z39-Z40-Z41-Z42 -> 1949.820078 | AA43: 1957.253824 | AB43: 2024.286768 | AC43: 2073.838398 | AD43: 2060.804793 | AE43: 2073.911771 | AF43: 2053.687076 | AG43: 1979.16342 | AH43: 2065.796265 | AI43: 2120.762057 | AJ43: =AJ38+AJ39-AJ40-AJ41-AJ42 -> 3152.5 | AK43: =AK38+AK39-AK40-AK41-AK42 -> 3134.811529 | AL43: =AL38+AL39-AL40-AL41-AL42 -> 3309.537106 | AM43: 3220.839615 | AN43: 3203.109271 | AO43: 3264.976312 | AP43: 3262.011573 | AQ43: 3211.458472 | AR43: 3261.468467 | AS43: 3462.7218 | AT43: 3469.581213 | AU43: 3600.589845 | AV43: =AV38+AV39-AV40-AV41-AV42 -> 4435.784888 | AW43: =AW38+AW39-AW40-AW41-AW42 -> 4245.071175 | AX43: =AX38+AX39-AX40-AX41-AX42 -> 4398.425283 | AY43: 4402.917634 | AZ43: 4657.092589 | BA43: 5090.751943 | BB43: 5163.147324 | BC43: 4848.454806 | BD43: 5049.058299 | BE43: 5259.230891 | BF43: 5282.638887 | BG43: 4897.673742 | BH43: =BH38+BH39-BH40-BH41-BH42 -> 5657.574132 | BI43: =BI38+BI39-BI40-BI41-BI42 -> 5828.781896 | BJ43: =BJ38+BJ39-BJ40-BJ41-BJ42 -> 5926.639809 | BK43: 6408.396182 | BL43: 6344.241801 | BM43: 5988.591058 | BN43: 5851.356792 | BO43: 5837.331066 | BP43: 5972.335991 | BQ43: 6223.831257 | BR43: 5907.138892 | BS43: 5305.460094 | BT43: =BT38+BT39-BT40-BT41-BT42 -> 6940.452839 | BU43: =BU38+BU39-BU40-BU41-BU42 -> 6523.576495 | BV43: =BV38+BV39-BV40-BV41-BV42 -> 6473.622676 | BW43: 6469.106772 | BX43: 5783.566168 | BY43: 5362.524176 | BZ43: 5017.259914 | CA43: 4566.6889 | CB43: 4701.273546 | CC43: 4574.169199 | CD43: 4445.607987 | CE43: 4162.64211 | CF43: =CF38+CF39-CF40-CF41-CF42 -> 8287.475481 | CG43: =CG38+CG39-CG40-CG41-CG42 -> 9191.608812 | CH43: =CH38+CH39-CH40-CH41-CH42 -> 9391.317925 | CI43: 9939.909911 | CJ43: 9254.867872 | CK43: 9085.623984 | CL43: 9063.212493 | CM43: 9467.027871 | CN43: 10177.11357 | CO43: 10550.73721 | CP43: 10161.49428 | CQ43: 11479.46812 | CR43: =CR38+CR39-CR40-CR41-CR42 -> 10364.84729 | CS43: =CS38+CS39-CS40-CS41-CS42 -> 10153.48452 | CT43: =CT38+CT39-CT40-CT41-CT42 -> 10837.61229 | CU43: 11860.75055 | CV43: 12226.85334 | CW43: 13251.53051 | CX43: 12291.8874 | CY43: 12404.28657 | CZ43: 12696.97568 | DA43: 12914.8607 | DB43: 12513.27126 | DC43: 13571.7614 | DD43: =DD38+DD39-DD40-DD41-DD42 -> 12712.27744 | DE43: =DE38+DE39-DE40-DE41-DE42 -> 12522.89897 | DF43: =DF38+DF39-DF40-DF41-DF42 -> 14462.25273 | DG43: 14461.57198 | DH43: 14361.21638 | DI43: 16134.03492 | DJ43: 16610.37027 | DK43: 16474.55975 | DL43: =DL38+DL39-DL40-DL41-DL42 -> 18406.2665 | DM43: 18146.96594 | DN43: 19648.98788 | DO43: 19337.08618 | DP43: =DP38+DP39-DP40-DP41-DP42 -> 15364.87351 | DQ43: =DQ38+DQ39-DQ40-DQ41-DQ42 -> 16013.23725 | DR43: =DR38+DR39-DR40-DR41-DR42 -> 15888.40911 | DS43: 16463.19826 | DT43: 16395.49701 | DU43: 16015.25217 | DV43: 16615.63996 | DW43: 17059.84818
A44: 0.004583417535 | B44: 24 | C44: 0.0046 | D44: 0 | F44: BOM_Post_CF_Balance_ADJ | G44: 0 | H44: 0 | I44: 0 | J44: 0 | K44: 0 | L44: =IF(L43<=0,IF(L$103<=0,L$103,0),L43) -> 1000 | M44: =IF(M103<=0,0,IF(M43<=0,0,IF(M11+M51<=0,IF(M11=0,IF(M19=0,IF(M27=0,IF(M35=0,IF(M43+M51<=0,0,M43+M51),M43*M103/(M103-M35-M51)),M43*M103/(M103-M27-M51)),M43*M103/(M103-M19-M51)),M43*M103/(M103-M11-M51)),M43))) -> 965.3710506 | N44: =IF(N103<=0,0,IF(N43<=0,0,IF(N11+N59<=0,IF(N11=0,IF(N19=0,IF(N27=0,IF(N35=0,IF(N43+N59<=0,0,N43+N59),N43*N103/(N103-N35-N59)),N43*N103/(N103-N27-N59)),N43*N103/(N103-N19-N59)),N43*N103/(N103-N11-N59)),N43))) -> 925.7218683 | O44: =IF(O103<=0,0,IF(O43<=0,0,IF(O11+O67<=0,IF(O11=0,IF(O19=0,IF(O27=0,IF(O35=0,IF(O43+O67<=0,0,O43+O67),O43*O103/(O103-O35-O67)),O43*O103/(O103-O27-O67)),O43*O103/(O103-O19-O67)),O43*O103/(O103-O11-O67)),O43))) -> 939.2335583 | P44: =IF(P103<=0,0,IF(P43<=0,0,IF(P11+P75<=0,IF(P11=0,IF(P19=0,IF(P27=0,IF(P35=0,IF(P43+P75<=0,0,P43+P75),P43*P103/(P103-P35-P75)),P43*P103/(P103-P27-P75)),P43*P103/(P103-P19-P75)),P43*P103/(P103-P11-P75)),P43))) -> 941.4675778 | Q44: =IF(Q103<=0,0,IF(Q43<=0,0,IF(Q11+Q83<=0,IF(Q11=0,IF(Q19=0,IF(Q27=0,IF(Q35=0,IF(Q43+Q83<=0,0,Q43+Q83),Q43*Q103/(Q103-Q35-Q83)),Q43*Q103/(Q103-Q27-Q83)),Q43*Q103/(Q103-Q19-Q83)),Q43*Q103/(Q103-Q11-Q83)),Q43))) -> 945.0006228 | R44: =IF(R103<=0,0,IF(R43<=0,0,IF(R11+R91<=0,IF(R11=0,IF(R19=0,IF(R27=0,IF(R35=0,IF(R43+R91<=0,0,R43+R91),R43*R103/(R103-R35-R91)),R43*R103/(R103-R27-R91)),R43*R103/(R103-R19-R91)),R43*R103/(R103-R11-R91)),R43))) -> 897.4679748 | S44: =IF(S103<=0,0,IF(S43<=0,0,IF(S11+S99<=0,IF(S11=0,IF(S19=0,IF(S27=0,IF(S35=0,IF(S43+S99<=0,0,S43+S99),S43*S103/(S103-S35-S99)),S43*S103/(S103-S27-S99)),S43*S103/(S103-S19-S99)),S43*S103/(S103-S11-S99)),S43))) -> 912.2121736 | T44: =IF(T103<=0,0,IF(T43<=0,0,IF(T11+T19<=0,IF(T19=0,IF(T27=0,IF(T35=0,IF(T43+T11<=0,0,T43+T11),T43*T103/(T103-T35-T11)),T43*T103/(T103-T27-T11)),T43*T103/(T103-T11-T19)),T43))) -> 905.9643082 | U44: =IF(U103<=0,0,IF(U43<=0,0,IF(U11+U19<=0,IF(U11=0,IF(U27=0,IF(U35=0,IF(U43+U19<=0,0,U43+U19),U43*U103/(U103-U35-U19)),U43*U103/(U103-U27-U19)),U43*U103/(U103-U11-U19)),U43))) -> 912.7476518 | V44: =IF(V103<=0,0,IF(V43<=0,0,IF(V11+V27<=0,IF(V11=0,IF(V19=0,IF(V35=0,IF(V43+V27<=0,0,V43+V27),V43*V103/(V103-V35-V27)),V43*V103/(V103-V19-V27)),V43*V103/(V103-V11-V27)),V43))) -> 897.446807 | W44: =IF(W103<=0,0,IF(W43<=0,0,IF(W11+W35<=0,IF(W11=0,IF(W19=0,IF(W27=0,IF(W43+W35<=0,0,W43+W35),W43*W103/(W103-W27-W35)),W43*W103/(W103-W19-W35)),W43*W103/(W103-W11-W35)),W43))) -> 926.7992441 | X44: =IF(X43<=0,IF(X$103<=0,X$103,0),X43) -> 2050 | Y44: =IF(Y103<=0,0,IF(Y43<=0,0,IF(Y11+Y51<=0,IF(Y11=0,IF(Y19=0,IF(Y27=0,IF(Y35=0,IF(Y43+Y51<=0,0,Y43+Y51),Y43*Y103/(Y103-Y35-Y51)),Y43*Y103/(Y103-Y27-Y51)),Y43*Y103/(Y103-Y19-Y51)),Y43*Y103/(Y103-Y11-Y51)),Y43))) -> 2018.625338 | Z44: =IF(Z103<=0,0,IF(Z43<=0,0,IF(Z11+Z59<=0,IF(Z11=0,IF(Z19=0,IF(Z27=0,IF(Z35=0,IF(Z43+Z59<=0,0,Z43+Z59),Z43*Z103/(Z103-Z35-Z59)),Z43*Z103/(Z103-Z27-Z59)),Z43*Z103/(Z103-Z19-Z59)),Z43*Z103/(Z103-Z11-Z59)),Z43))) -> 1949.820078 | AA44: =IF(AA103<=0,0,IF(AA43<=0,0,IF(AA11+AA67<=0,IF(AA11=0,IF(AA19=0,IF(AA27=0,IF(AA35=0,IF(AA43+AA67<=0,0,AA43+AA67),AA43*AA103/(AA103-AA35-AA67)),AA43*AA103/(AA103-AA27-AA67)),AA43*AA103/(AA103-AA19-AA67)),AA43*AA103/(AA103-AA11-AA67)),AA43))) -> 1957.253824 | AB44: =IF(AB103<=0,0,IF(AB43<=0,0,IF(AB11+AB75<=0,IF(AB11=0,IF(AB19=0,IF(AB27=0,IF(AB35=0,IF(AB43+AB75<=0,0,AB43+AB75),AB43*AB103/(AB103-AB35-AB75)),AB43*AB103/(AB103-AB27-AB75)),AB43*AB103/(AB103-AB19-AB75)),AB43*AB103/(AB103-AB11-AB75)),AB43))) -> 2024.286768 | AC44: =IF(AC103<=0,0,IF(AC43<=0,0,IF(AC11+AC83<=0,IF(AC11=0,IF(AC19=0,IF(AC27=0,IF(AC35=0,IF(AC43+AC83<=0,0,AC43+AC83),AC43*AC103/(AC103-AC35-AC83)),AC43*AC103/(AC103-AC27-AC83)),AC43*AC103/(AC103-AC19-AC83)),AC43*AC103/(AC103-AC11-AC83)),AC43))) -> 2073.838398 | AD44: =IF(AD103<=0,0,IF(AD43<=0,0,IF(AD11+AD91<=0,IF(AD11=0,IF(AD19=0,IF(AD27=0,IF(AD35=0,IF(AD43+AD91<=0,0,AD43+AD91),AD43*AD103/(AD103-AD35-AD91)),AD43*AD103/(AD103-AD27-AD91)),AD43*AD103/(AD103-AD19-AD91)),AD43*AD103/(AD103-AD11-AD91)),AD43))) -> 2060.804793 | AE44: =IF(AE103<=0,0,IF(AE43<=0,0,IF(AE11+AE99<=0,IF(AE11=0,IF(AE19=0,IF(AE27=0,IF(AE35=0,IF(AE43+AE99<=0,0,AE43+AE99),AE43*AE103/(AE103-AE35-AE99)),AE43*AE103/(AE103-AE27-AE99)),AE43*AE103/(AE103-AE19-AE99)),AE43*AE103/(AE103-AE11-AE99)),AE43))) -> 2073.911771 | AF44: =IF(AF103<=0,0,IF(AF43<=0,0,IF(AF11+AF19<=0,IF(AF19=0,IF(AF27=0,IF(AF35=0,IF(AF43+AF11<=0,0,AF43+AF11),AF43*AF103/(AF103-AF35-AF11)),AF43*AF103/(AF103-AF27-AF11)),AF43*AF103/(AF103-AF11-AF19)),AF43))) -> 2053.687076 | AG44: =IF(AG103<=0,0,IF(AG43<=0,0,IF(AG11+AG19<=0,IF(AG11=0,IF(AG27=0,IF(AG35=0,IF(AG43+AG19<=0,0,AG43+AG19),AG43*AG103/(AG103-AG35-AG19)),AG43*AG103/(AG103-AG27-AG19)),AG43*AG103/(AG103-AG11-AG19)),AG43))) -> 1979.16342 | AH44: =IF(AH103<=0,0,IF(AH43<=0,0,IF(AH11+AH27<=0,IF(AH11=0,IF(AH19=0,IF(AH35=0,IF(AH43+AH27<=0,0,AH43+AH27),AH43*AH103/(AH103-AH35-AH27)),AH43*AH103/(AH103-AH19-AH27)),AH43*AH103/(AH103-AH11-AH27)),AH43))) -> 2065.796265 | AI44: =IF(AI103<=0,0,IF(AI43<=0,0,IF(AI11+AI35<=0,IF(AI11=0,IF(AI19=0,IF(AI27=0,IF(AI43+AI35<=0,0,AI43+AI35),AI43*AI103/(AI103-AI27-AI35)),AI43*AI103/(AI103-AI19-AI35)),AI43*AI103/(AI103-AI11-AI35)),AI43))) -> 2120.762057 | AJ44: =IF(AJ43<=0,IF(AJ$103<=0,AJ$103,0),AJ43) -> 3152.5 | AK44: =IF(AK103<=0,0,IF(AK43<=0,0,IF(AK11+AK51<=0,IF(AK11=0,IF(AK19=0,IF(AK27=0,IF(AK35=0,IF(AK43+AK51<=0,0,AK43+AK51),AK43*AK103/(AK103-AK35-AK51)),AK43*AK103/(AK103-AK27-AK51)),AK43*AK103/(AK103-AK19-AK51)),AK43*AK103/(AK103-AK11-AK51)),AK43))) -> 3134.811529 | AL44: =IF(AL103<=0,0,IF(AL43<=0,0,IF(AL11+AL59<=0,IF(AL11=0,IF(AL19=0,IF(AL27=0,IF(AL35=0,IF(AL43+AL59<=0,0,AL43+AL59),AL43*AL103/(AL103-AL35-AL59)),AL43*AL103/(AL103-AL27-AL59)),AL43*AL103/(AL103-AL19-AL59)),AL43*AL103/(AL103-AL11-AL59)),AL43))) -> 3309.537106 | AM44: =IF(AM103<=0,0,IF(AM43<=0,0,IF(AM11+AM67<=0,IF(AM11=0,IF(AM19=0,IF(AM27=0,IF(AM35=0,IF(AM43+AM67<=0,0,AM43+AM67),AM43*AM103/(AM103-AM35-AM67)),AM43*AM103/(AM103-AM27-AM67)),AM43*AM103/(AM103-AM19-AM67)),AM43*AM103/(AM103-AM11-AM67)),AM43))) -> 3220.839615 | AN44: =IF(AN103<=0,0,IF(AN43<=0,0,IF(AN11+AN75<=0,IF(AN11=0,IF(AN19=0,IF(AN27=0,IF(AN35=0,IF(AN43+AN75<=0,0,AN43+AN75),AN43*AN103/(AN103-AN35-AN75)),AN43*AN103/(AN103-AN27-AN75)),AN43*AN103/(AN103-AN19-AN75)),AN43*AN103/(AN103-AN11-AN75)),AN43))) -> 3203.109271 | AO44: =IF(AO103<=0,0,IF(AO43<=0,0,IF(AO11+AO83<=0,IF(AO11=0,IF(AO19=0,IF(AO27=0,IF(AO35=0,IF(AO43+AO83<=0,0,AO43+AO83),AO43*AO103/(AO103-AO35-AO83)),AO43*AO103/(AO103-AO27-AO83)),AO43*AO103/(AO103-AO19-AO83)),AO43*AO103/(AO103-AO11-AO83)),AO43))) -> 3264.976312 | AP44: =IF(AP103<=0,0,IF(AP43<=0,0,IF(AP11+AP91<=0,IF(AP11=0,IF(AP19=0,IF(AP27=0,IF(AP35=0,IF(AP43+AP91<=0,0,AP43+AP91),AP43*AP103/(AP103-AP35-AP91)),AP43*AP103/(AP103-AP27-AP91)),AP43*AP103/(AP103-AP19-AP91)),AP43*AP103/(AP103-AP11-AP91)),AP43))) -> 3262.011573 | AQ44: =IF(AQ103<=0,0,IF(AQ43<=0,0,IF(AQ11+AQ99<=0,IF(AQ11=0,IF(AQ19=0,IF(AQ27=0,IF(AQ35=0,IF(AQ43+AQ99<=0,0,AQ43+AQ99),AQ43*AQ103/(AQ103-AQ35-AQ99)),AQ43*AQ103/(AQ103-AQ27-AQ99)),AQ43*AQ103/(AQ103-AQ19-AQ99)),AQ43*AQ103/(AQ103-AQ11-AQ99)),AQ43))) -> 3211.458472 | AR44: =IF(AR103<=0,0,IF(AR43<=0,0,IF(AR11+AR19<=0,IF(AR19=0,IF(AR27=0,IF(AR35=0,IF(AR43+AR11<=0,0,AR43+AR11),AR43*AR103/(AR103-AR35-AR11)),AR43*AR103/(AR103-AR27-AR11)),AR43*AR103/(AR103-AR11-AR19)),AR43))) -> 3261.468467 | AS44: =IF(AS103<=0,0,IF(AS43<=0,0,IF(AS11+AS19<=0,IF(AS11=0,IF(AS27=0,IF(AS35=0,IF(AS43+AS19<=0,0,AS43+AS19),AS43*AS103/(AS103-AS35-AS19)),AS43*AS103/(AS103-AS27-AS19)),AS43*AS103/(AS103-AS11-AS19)),AS43))) -> 3462.7218 | AT44: =IF(AT103<=0,0,IF(AT43<=0,0,IF(AT11+AT27<=0,IF(AT11=0,IF(AT19=0,IF(AT35=0,IF(AT43+AT27<=0,0,AT43+AT27),AT43*AT103/(AT103-AT35-AT27)),AT43*AT103/(AT103-AT19-AT27)),AT43*AT103/(AT103-AT11-AT27)),AT43))) -> 3469.581213 | AU44: =IF(AU103<=0,0,IF(AU43<=0,0,IF(AU11+AU35<=0,IF(AU11=0,IF(AU19=0,IF(AU27=0,IF(AU43+AU35<=0,0,AU43+AU35),AU43*AU103/(AU103-AU27-AU35)),AU43*AU103/(AU103-AU19-AU35)),AU43*AU103/(AU103-AU11-AU35)),AU43))) -> 3600.589845 | AV44: =IF(AV43<=0,IF(AV$103<=0,AV$103,0),AV43) -> 4435.784888 | AW44: =IF(AW103<=0,0,IF(AW43<=0,0,IF(AW11+AW51<=0,IF(AW11=0,IF(AW19=0,IF(AW27=0,IF(AW35=0,IF(AW43+AW51<=0,0,AW43+AW51),AW43*AW103/(AW103-AW35-AW51)),AW43*AW103/(AW103-AW27-AW51)),AW43*AW103/(AW103-AW19-AW51)),AW43*AW103/(AW103-AW11-AW51)),AW43))) -> 4245.071175 | AX44: =IF(AX103<=0,0,IF(AX43<=0,0,IF(AX11+AX59<=0,IF(AX11=0,IF(AX19=0,IF(AX27=0,IF(AX35=0,IF(AX43+AX59<=0,0,AX43+AX59),AX43*AX103/(AX103-AX35-AX59)),AX43*AX103/(AX103-AX27-AX59)),AX43*AX103/(AX103-AX19-AX59)),AX43*AX103/(AX103-AX11-AX59)),AX43))) -> 4398.425283 | AY44: =IF(AY103<=0,0,IF(AY43<=0,0,IF(AY11+AY67<=0,IF(AY11=0,IF(AY19=0,IF(AY27=0,IF(AY35=0,IF(AY43+AY67<=0,0,AY43+AY67),AY43*AY103/(AY103-AY35-AY67)),AY43*AY103/(AY103-AY27-AY67)),AY43*AY103/(AY103-AY19-AY67)),AY43*AY103/(AY103-AY11-AY67)),AY43))) -> 4402.917634 | AZ44: =IF(AZ103<=0,0,IF(AZ43<=0,0,IF(AZ11+AZ75<=0,IF(AZ11=0,IF(AZ19=0,IF(AZ27=0,IF(AZ35=0,IF(AZ43+AZ75<=0,0,AZ43+AZ75),AZ43*AZ103/(AZ103-AZ35-AZ75)),AZ43*AZ103/(AZ103-AZ27-AZ75)),AZ43*AZ103/(AZ103-AZ19-AZ75)),AZ43*AZ103/(AZ103-AZ11-AZ75)),AZ43))) -> 4657.092589 | BA44: =IF(BA103<=0,0,IF(BA43<=0,0,IF(BA11+BA83<=0,IF(BA11=0,IF(BA19=0,IF(BA27=0,IF(BA35=0,IF(BA43+BA83<=0,0,BA43+BA83),BA43*BA103/(BA103-BA35-BA83)),BA43*BA103/(BA103-BA27-BA83)),BA43*BA103/(BA103-BA19-BA83)),BA43*BA103/(BA103-BA11-BA83)),BA43))) -> 5090.751943 | BB44: =IF(BB103<=0,0,IF(BB43<=0,0,IF(BB11+BB91<=0,IF(BB11=0,IF(BB19=0,IF(BB27=0,IF(BB35=0,IF(BB43+BB91<=0,0,BB43+BB91),BB43*BB103/(BB103-BB35-BB91)),BB43*BB103/(BB103-BB27-BB91)),BB43*BB103/(BB103-BB19-BB91)),BB43*BB103/(BB103-BB11-BB91)),BB43))) -> 5163.147324 | BC44: =IF(BC103<=0,0,IF(BC43<=0,0,IF(BC11+BC99<=0,IF(BC11=0,IF(BC19=0,IF(BC27=0,IF(BC35=0,IF(BC43+BC99<=0,0,BC43+BC99),BC43*BC103/(BC103-BC35-BC99)),BC43*BC103/(BC103-BC27-BC99)),BC43*BC103/(BC103-BC19-BC99)),BC43*BC103/(BC103-BC11-BC99)),BC43))) -> 4848.454806 | BD44: =IF(BD103<=0,0,IF(BD43<=0,0,IF(BD11+BD19<=0,IF(BD19=0,IF(BD27=0,IF(BD35=0,IF(BD43+BD11<=0,0,BD43+BD11),BD43*BD103/(BD103-BD35-BD11)),BD43*BD103/(BD103-BD27-BD11)),BD43*BD103/(BD103-BD11-BD19)),BD43))) -> 5049.058299 | BE44: =IF(BE103<=0,0,IF(BE43<=0,0,IF(BE11+BE19<=0,IF(BE11=0,IF(BE27=0,IF(BE35=0,IF(BE43+BE19<=0,0,BE43+BE19),BE43*BE103/(BE103-BE35-BE19)),BE43*BE103/(BE103-BE27-BE19)),BE43*BE103/(BE103-BE11-BE19)),BE43))) -> 5259.230891 | BF44: =IF(BF103<=0,0,IF(BF43<=0,0,IF(BF11+BF27<=0,IF(BF11=0,IF(BF19=0,IF(BF35=0,IF(BF43+BF27<=0,0,BF43+BF27),BF43*BF103/(BF103-BF35-BF27)),BF43*BF103/(BF103-BF19-BF27)),BF43*BF103/(BF103-BF11-BF27)),BF43))) -> 5282.638887 | BG44: =IF(BG103<=0,0,IF(BG43<=0,0,IF(BG11+BG35<=0,IF(BG11=0,IF(BG19=0,IF(BG27=0,IF(BG43+BG35<=0,0,BG43+BG35),BG43*BG103/(BG103-BG27-BG35)),BG43*BG103/(BG103-BG19-BG35)),BG43*BG103/(BG103-BG11-BG35)),BG43))) -> 4897.673742 | BH44: =IF(BH43<=0,IF(BH$103<=0,BH$103,0),BH43) -> 5657.574132 | BI44: =IF(BI103<=0,0,IF(BI43<=0,0,IF(BI11+BI51<=0,IF(BI11=0,IF(BI19=0,IF(BI27=0,IF(BI35=0,IF(BI43+BI51<=0,0,BI43+BI51),BI43*BI103/(BI103-BI35-BI51)),BI43*BI103/(BI103-BI27-BI51)),BI43*BI103/(BI103-BI19-BI51)),BI43*BI103/(BI103-BI11-BI51)),BI43))) -> 5828.781896 | BJ44: =IF(BJ103<=0,0,IF(BJ43<=0,0,IF(BJ11+BJ59<=0,IF(BJ11=0,IF(BJ19=0,IF(BJ27=0,IF(BJ35=0,IF(BJ43+BJ59<=0,0,BJ43+BJ59),BJ43*BJ103/(BJ103-BJ35-BJ59)),BJ43*BJ103/(BJ103-BJ27-BJ59)),BJ43*BJ103/(BJ103-BJ19-BJ59)),BJ43*BJ103/(BJ103-BJ11-BJ59)),BJ43))) -> 5926.639809 | BK44: =IF(BK103<=0,0,IF(BK43<=0,0,IF(BK11+BK67<=0,IF(BK11=0,IF(BK19=0,IF(BK27=0,IF(BK35=0,IF(BK43+BK67<=0,0,BK43+BK67),BK43*BK103/(BK103-BK35-BK67)),BK43*BK103/(BK103-BK27-BK67)),BK43*BK103/(BK103-BK19-BK67)),BK43*BK103/(BK103-BK11-BK67)),BK43))) -> 6408.396182 | BL44: =IF(BL103<=0,0,IF(BL43<=0,0,IF(BL11+BL75<=0,IF(BL11=0,IF(BL19=0,IF(BL27=0,IF(BL35=0,IF(BL43+BL75<=0,0,BL43+BL75),BL43*BL103/(BL103-BL35-BL75)),BL43*BL103/(BL103-BL27-BL75)),BL43*BL103/(BL103-BL19-BL75)),BL43*BL103/(BL103-BL11-BL75)),BL43))) -> 6344.241801 | BM44: =IF(BM103<=0,0,IF(BM43<=0,0,IF(BM11+BM83<=0,IF(BM11=0,IF(BM19=0,IF(BM27=0,IF(BM35=0,IF(BM43+BM83<=0,0,BM43+BM83),BM43*BM103/(BM103-BM35-BM83)),BM43*BM103/(BM103-BM27-BM83)),BM43*BM103/(BM103-BM19-BM83)),BM43*BM103/(BM103-BM11-BM83)),BM43))) -> 5988.591058 | BN44: =IF(BN103<=0,0,IF(BN43<=0,0,IF(BN11+BN91<=0,IF(BN11=0,IF(BN19=0,IF(BN27=0,IF(BN35=0,IF(BN43+BN91<=0,0,BN43+BN91),BN43*BN103/(BN103-BN35-BN91)),BN43*BN103/(BN103-BN27-BN91)),BN43*BN103/(BN103-BN19-BN91)),BN43*BN103/(BN103-BN11-BN91)),BN43))) -> 5851.356792 | BO44: =IF(BO103<=0,0,IF(BO43<=0,0,IF(BO11+BO99<=0,IF(BO11=0,IF(BO19=0,IF(BO27=0,IF(BO35=0,IF(BO43+BO99<=0,0,BO43+BO99),BO43*BO103/(BO103-BO35-BO99)),BO43*BO103/(BO103-BO27-BO99)),BO43*BO103/(BO103-BO19-BO99)),BO43*BO103/(BO103-BO11-BO99)),BO43))) -> 5837.331066 | BP44: =IF(BP103<=0,0,IF(BP43<=0,0,IF(BP11+BP19<=0,IF(BP19=0,IF(BP27=0,IF(BP35=0,IF(BP43+BP11<=0,0,BP43+BP11),BP43*BP103/(BP103-BP35-BP11)),BP43*BP103/(BP103-BP27-BP11)),BP43*BP103/(BP103-BP11-BP19)),BP43))) -> 5972.335991 | BQ44: =IF(BQ103<=0,0,IF(BQ43<=0,0,IF(BQ11+BQ19<=0,IF(BQ11=0,IF(BQ27=0,IF(BQ35=0,IF(BQ43+BQ19<=0,0,BQ43+BQ19),BQ43*BQ103/(BQ103-BQ35-BQ19)),BQ43*BQ103/(BQ103-BQ27-BQ19)),BQ43*BQ103/(BQ103-BQ11-BQ19)),BQ43))) -> 6223.831257 | BR44: =IF(BR103<=0,0,IF(BR43<=0,0,IF(BR11+BR27<=0,IF(BR11=0,IF(BR19=0,IF(BR35=0,IF(BR43+BR27<=0,0,BR43+BR27),BR43*BR103/(BR103-BR35-BR27)),BR43*BR103/(BR103-BR19-BR27)),BR43*BR103/(BR103-BR11-BR27)),BR43))) -> 5907.138892 | BS44: =IF(BS103<=0,0,IF(BS43<=0,0,IF(BS11+BS35<=0,IF(BS11=0,IF(BS19=0,IF(BS27=0,IF(BS43+BS35<=0,0,BS43+BS35),BS43*BS103/(BS103-BS27-BS35)),BS43*BS103/(BS103-BS19-BS35)),BS43*BS103/(BS103-BS11-BS35)),BS43))) -> 5305.460094 | BT44: =IF(BT43<=0,IF(BT$103<=0,BT$103,0),BT43) -> 6940.452839 | BU44: =IF(BU103<=0,0,IF(BU43<=0,0,IF(BU11+BU51<=0,IF(BU11=0,IF(BU19=0,IF(BU27=0,IF(BU35=0,IF(BU43+BU51<=0,0,BU43+BU51),BU43*BU103/(BU103-BU35-BU51)),BU43*BU103/(BU103-BU27-BU51)),BU43*BU103/(BU103-BU19-BU51)),BU43*BU103/(BU103-BU11-BU51)),BU43))) -> 6523.576495 | BV44: =IF(BV103<=0,0,IF(BV43<=0,0,IF(BV11+BV59<=0,IF(BV11=0,IF(BV19=0,IF(BV27=0,IF(BV35=0,IF(BV43+BV59<=0,0,BV43+BV59),BV43*BV103/(BV103-BV35-BV59)),BV43*BV103/(BV103-BV27-BV59)),BV43*BV103/(BV103-BV19-BV59)),BV43*BV103/(BV103-BV11-BV59)),BV43))) -> 6473.622676 | BW44: =IF(BW103<=0,0,IF(BW43<=0,0,IF(BW11+BW67<=0,IF(BW11=0,IF(BW19=0,IF(BW27=0,IF(BW35=0,IF(BW43+BW67<=0,0,BW43+BW67),BW43*BW103/(BW103-BW35-BW67)),BW43*BW103/(BW103-BW27-BW67)),BW43*BW103/(BW103-BW19-BW67)),BW43*BW103/(BW103-BW11-BW67)),BW43))) -> 6469.106772 | BX44: =IF(BX103<=0,0,IF(BX43<=0,0,IF(BX11+BX75<=0,IF(BX11=0,IF(BX19=0,IF(BX27=0,IF(BX35=0,IF(BX43+BX75<=0,0,BX43+BX75),BX43*BX103/(BX103-BX35-BX75)),BX43*BX103/(BX103-BX27-BX75)),BX43*BX103/(BX103-BX19-BX75)),BX43*BX103/(BX103-BX11-BX75)),BX43))) -> 5783.566168 | BY44: =IF(BY103<=0,0,IF(BY43<=0,0,IF(BY11+BY83<=0,IF(BY11=0,IF(BY19=0,IF(BY27=0,IF(BY35=0,IF(BY43+BY83<=0,0,BY43+BY83),BY43*BY103/(BY103-BY35-BY83)),BY43*BY103/(BY103-BY27-BY83)),BY43*BY103/(BY103-BY19-BY83)),BY43*BY103/(BY103-BY11-BY83)),BY43))) -> 5362.524176 | BZ44: =IF(BZ103<=0,0,IF(BZ43<=0,0,IF(BZ11+BZ91<=0,IF(BZ11=0,IF(BZ19=0,IF(BZ27=0,IF(BZ35=0,IF(BZ43+BZ91<=0,0,BZ43+BZ91),BZ43*BZ103/(BZ103-BZ35-BZ91)),BZ43*BZ103/(BZ103-BZ27-BZ91)),BZ43*BZ103/(BZ103-BZ19-BZ91)),BZ43*BZ103/(BZ103-BZ11-BZ91)),BZ43))) -> 5017.259914 | CA44: =IF(CA103<=0,0,IF(CA43<=0,0,IF(CA11+CA99<=0,IF(CA11=0,IF(CA19=0,IF(CA27=0,IF(CA35=0,IF(CA43+CA99<=0,0,CA43+CA99),CA43*CA103/(CA103-CA35-CA99)),CA43*CA103/(CA103-CA27-CA99)),CA43*CA103/(CA103-CA19-CA99)),CA43*CA103/(CA103-CA11-CA99)),CA43))) -> 4566.6889 | CB44: =IF(CB103<=0,0,IF(CB43<=0,0,IF(CB11+CB19<=0,IF(CB19=0,IF(CB27=0,IF(CB35=0,IF(CB43+CB11<=0,0,CB43+CB11),CB43*CB103/(CB103-CB35-CB11)),CB43*CB103/(CB103-CB27-CB11)),CB43*CB103/(CB103-CB11-CB19)),CB43))) -> 4701.273546 | CC44: =IF(CC103<=0,0,IF(CC43<=0,0,IF(CC11+CC19<=0,IF(CC11=0,IF(CC27=0,IF(CC35=0,IF(CC43+CC19<=0,0,CC43+CC19),CC43*CC103/(CC103-CC35-CC19)),CC43*CC103/(CC103-CC27-CC19)),CC43*CC103/(CC103-CC11-CC19)),CC43))) -> 4574.169199 | CD44: =IF(CD103<=0,0,IF(CD43<=0,0,IF(CD11+CD27<=0,IF(CD11=0,IF(CD19=0,IF(CD35=0,IF(CD43+CD27<=0,0,CD43+CD27),CD43*CD103/(CD103-CD35-CD27)),CD43*CD103/(CD103-CD19-CD27)),CD43*CD103/(CD103-CD11-CD27)),CD43))) -> 4445.607987 | CE44: =IF(CE103<=0,0,IF(CE43<=0,0,IF(CE11+CE35<=0,IF(CE11=0,IF(CE19=0,IF(CE27=0,IF(CE43+CE35<=0,0,CE43+CE35),CE43*CE103/(CE103-CE27-CE35)),CE43*CE103/(CE103-CE19-CE35)),CE43*CE103/(CE103-CE11-CE35)),CE43))) -> 4162.64211 | CF44: =IF(CF43<=0,IF(CF$103<=0,CF$103,0),CF43) -> 8287.475481 | CG44: =IF(CG103<=0,0,IF(CG43<=0,0,IF(CG11+CG51<=0,IF(CG11=0,IF(CG19=0,IF(CG27=0,IF(CG35=0,IF(CG43+CG51<=0,0,CG43+CG51),CG43*CG103/(CG103-CG35-CG51)),CG43*CG103/(CG103-CG27-CG51)),CG43*CG103/(CG103-CG19-CG51)),CG43*CG103/(CG103-CG11-CG51)),CG43))) -> 9191.608812 | CH44: =IF(CH103<=0,0,IF(CH43<=0,0,IF(CH11+CH59<=0,IF(CH11=0,IF(CH19=0,IF(CH27=0,IF(CH35=0,IF(CH43+CH59<=0,0,CH43+CH59),CH43*CH103/(CH103-CH35-CH59)),CH43*CH103/(CH103-CH27-CH59)),CH43*CH103/(CH103-CH19-CH59)),CH43*CH103/(CH103-CH11-CH59)),CH43))) -> 9391.317925 | CI44: =IF(CI103<=0,0,IF(CI43<=0,0,IF(CI11+CI67<=0,IF(CI11=0,IF(CI19=0,IF(CI27=0,IF(CI35=0,IF(CI43+CI67<=0,0,CI43+CI67),CI43*CI103/(CI103-CI35-CI67)),CI43*CI103/(CI103-CI27-CI67)),CI43*CI103/(CI103-CI19-CI67)),CI43*CI103/(CI103-CI11-CI67)),CI43))) -> 9939.909911 | CJ44: =IF(CJ103<=0,0,IF(CJ43<=0,0,IF(CJ11+CJ75<=0,IF(CJ11=0,IF(CJ19=0,IF(CJ27=0,IF(CJ35=0,IF(CJ43+CJ75<=0,0,CJ43+CJ75),CJ43*CJ103/(CJ103-CJ35-CJ75)),CJ43*CJ103/(CJ103-CJ27-CJ75)),CJ43*CJ103/(CJ103-CJ19-CJ75)),CJ43*CJ103/(CJ103-CJ11-CJ75)),CJ43))) -> 9254.867872 | CK44: =IF(CK103<=0,0,IF(CK43<=0,0,IF(CK11+CK83<=0,IF(CK11=0,IF(CK19=0,IF(CK27=0,IF(CK35=0,IF(CK43+CK83<=0,0,CK43+CK83),CK43*CK103/(CK103-CK35-CK83)),CK43*CK103/(CK103-CK27-CK83)),CK43*CK103/(CK103-CK19-CK83)),CK43*CK103/(CK103-CK11-CK83)),CK43))) -> 9085.623984 | CL44: =IF(CL103<=0,0,IF(CL43<=0,0,IF(CL11+CL91<=0,IF(CL11=0,IF(CL19=0,IF(CL27=0,IF(CL35=0,IF(CL43+CL91<=0,0,CL43+CL91),CL43*CL103/(CL103-CL35-CL91)),CL43*CL103/(CL103-CL27-CL91)),CL43*CL103/(CL103-CL19-CL91)),CL43*CL103/(CL103-CL11-CL91)),CL43))) -> 9063.212493 | CM44: =IF(CM103<=0,0,IF(CM43<=0,0,IF(CM11+CM99<=0,IF(CM11=0,IF(CM19=0,IF(CM27=0,IF(CM35=0,IF(CM43+CM99<=0,0,CM43+CM99),CM43*CM103/(CM103-CM35-CM99)),CM43*CM103/(CM103-CM27-CM99)),CM43*CM103/(CM103-CM19-CM99)),CM43*CM103/(CM103-CM11-CM99)),CM43))) -> 9467.027871 | CN44: =IF(CN103<=0,0,IF(CN43<=0,0,IF(CN11+CN19<=0,IF(CN19=0,IF(CN27=0,IF(CN35=0,IF(CN43+CN11<=0,0,CN43+CN11),CN43*CN103/(CN103-CN35-CN11)),CN43*CN103/(CN103-CN27-CN11)),CN43*CN103/(CN103-CN11-CN19)),CN43))) -> 10177.11357 | CO44: =IF(CO103<=0,0,IF(CO43<=0,0,IF(CO11+CO19<=0,IF(CO11=0,IF(CO27=0,IF(CO35=0,IF(CO43+CO19<=0,0,CO43+CO19),CO43*CO103/(CO103-CO35-CO19)),CO43*CO103/(CO103-CO27-CO19)),CO43*CO103/(CO103-CO11-CO19)),CO43))) -> 10550.73721 | CP44: =IF(CP103<=0,0,IF(CP43<=0,0,IF(CP11+CP27<=0,IF(CP11=0,IF(CP19=0,IF(CP35=0,IF(CP43+CP27<=0,0,CP43+CP27),CP43*CP103/(CP103-CP35-CP27)),CP43*CP103/(CP103-CP19-CP27)),CP43*CP103/(CP103-CP11-CP27)),CP43))) -> 10161.49428 | CQ44: =IF(CQ103<=0,0,IF(CQ43<=0,0,IF(CQ11+CQ35<=0,IF(CQ11=0,IF(CQ19=0,IF(CQ27=0,IF(CQ43+CQ35<=0,0,CQ43+CQ35),CQ43*CQ103/(CQ103-CQ27-CQ35)),CQ43*CQ103/(CQ103-CQ19-CQ35)),CQ43*CQ103/(CQ103-CQ11-CQ35)),CQ43))) -> 11479.46812 | CR44: =IF(CR43<=0,IF(CR$103<=0,CR$103,0),CR43) -> 10364.84729 | CS44: =IF(CS103<=0,0,IF(CS43<=0,0,IF(CS11+CS51<=0,IF(CS11=0,IF(CS19=0,IF(CS27=0,IF(CS35=0,IF(CS43+CS51<=0,0,CS43+CS51),CS43*CS103/(CS103-CS35-CS51)),CS43*CS103/(CS103-CS27-CS51)),CS43*CS103/(CS103-CS19-CS51)),CS43*CS103/(CS103-CS11-CS51)),CS43))) -> 10153.48452 | CT44: =IF(CT103<=0,0,IF(CT43<=0,0,IF(CT11+CT59<=0,IF(CT11=0,IF(CT19=0,IF(CT27=0,IF(CT35=0,IF(CT43+CT59<=0,0,CT43+CT59),CT43*CT103/(CT103-CT35-CT59)),CT43*CT103/(CT103-CT27-CT59)),CT43*CT103/(CT103-CT19-CT59)),CT43*CT103/(CT103-CT11-CT59)),CT43))) -> 10837.61229 | CU44: =IF(CU103<=0,0,IF(CU43<=0,0,IF(CU11+CU67<=0,IF(CU11=0,IF(CU19=0,IF(CU27=0,IF(CU35=0,IF(CU43+CU67<=0,0,CU43+CU67),CU43*CU103/(CU103-CU35-CU67)),CU43*CU103/(CU103-CU27-CU67)),CU43*CU103/(CU103-CU19-CU67)),CU43*CU103/(CU103-CU11-CU67)),CU43))) -> 11860.75055 | CV44: =IF(CV103<=0,0,IF(CV43<=0,0,IF(CV11+CV75<=0,IF(CV11=0,IF(CV19=0,IF(CV27=0,IF(CV35=0,IF(CV43+CV75<=0,0,CV43+CV75),CV43*CV103/(CV103-CV35-CV75)),CV43*CV103/(CV103-CV27-CV75)),CV43*CV103/(CV103-CV19-CV75)),CV43*CV103/(CV103-CV11-CV75)),CV43))) -> 12226.85334 | CW44: =IF(CW103<=0,0,IF(CW43<=0,0,IF(CW11+CW83<=0,IF(CW11=0,IF(CW19=0,IF(CW27=0,IF(CW35=0,IF(CW43+CW83<=0,0,CW43+CW83),CW43*CW103/(CW103-CW35-CW83)),CW43*CW103/(CW103-CW27-CW83)),CW43*CW103/(CW103-CW19-CW83)),CW43*CW103/(CW103-CW11-CW83)),CW43))) -> 13251.53051 | CX44: =IF(CX103<=0,0,IF(CX43<=0,0,IF(CX11+CX91<=0,IF(CX11=0,IF(CX19=0,IF(CX27=0,IF(CX35=0,IF(CX43+CX91<=0,0,CX43+CX91),CX43*CX103/(CX103-CX35-CX91)),CX43*CX103/(CX103-CX27-CX91)),CX43*CX103/(CX103-CX19-CX91)),CX43*CX103/(CX103-CX11-CX91)),CX43))) -> 12291.8874 | CY44: =IF(CY103<=0,0,IF(CY43<=0,0,IF(CY11+CY99<=0,IF(CY11=0,IF(CY19=0,IF(CY27=0,IF(CY35=0,IF(CY43+CY99<=0,0,CY43+CY99),CY43*CY103/(CY103-CY35-CY99)),CY43*CY103/(CY103-CY27-CY99)),CY43*CY103/(CY103-CY19-CY99)),CY43*CY103/(CY103-CY11-CY99)),CY43))) -> 12404.28657 | CZ44: =IF(CZ103<=0,0,IF(CZ43<=0,0,IF(CZ11+CZ19<=0,IF(CZ19=0,IF(CZ27=0,IF(CZ35=0,IF(CZ43+CZ11<=0,0,CZ43+CZ11),CZ43*CZ103/(CZ103-CZ35-CZ11)),CZ43*CZ103/(CZ103-CZ27-CZ11)),CZ43*CZ103/(CZ103-CZ11-CZ19)),CZ43))) -> 12696.97568 | DA44: =IF(DA103<=0,0,IF(DA43<=0,0,IF(DA11+DA19<=0,IF(DA11=0,IF(DA27=0,IF(DA35=0,IF(DA43+DA19<=0,0,DA43+DA19),DA43*DA103/(DA103-DA35-DA19)),DA43*DA103/(DA103-DA27-DA19)),DA43*DA103/(DA103-DA11-DA19)),DA43))) -> 12914.8607 | DB44: =IF(DB103<=0,0,IF(DB43<=0,0,IF(DB11+DB27<=0,IF(DB11=0,IF(DB19=0,IF(DB35=0,IF(DB43+DB27<=0,0,DB43+DB27),DB43*DB103/(DB103-DB35-DB27)),DB43*DB103/(DB103-DB19-DB27)),DB43*DB103/(DB103-DB11-DB27)),DB43))) -> 12513.27126 | DC44: =IF(DC103<=0,0,IF(DC43<=0,0,IF(DC11+DC35<=0,IF(DC11=0,IF(DC19=0,IF(DC27=0,IF(DC43+DC35<=0,0,DC43+DC35),DC43*DC103/(DC103-DC27-DC35)),DC43*DC103/(DC103-DC19-DC35)),DC43*DC103/(DC103-DC11-DC35)),DC43))) -> 13571.7614 | DD44: =IF(DD43<=0,IF(DD$103<=0,DD$103,0),DD43) -> 12712.27744 | DE44: =IF(DE103<=0,0,IF(DE43<=0,0,IF(DE11+DE51<=0,IF(DE11=0,IF(DE19=0,IF(DE27=0,IF(DE35=0,IF(DE43+DE51<=0,0,DE43+DE51),DE43*DE103/(DE103-DE35-DE51)),DE43*DE103/(DE103-DE27-DE51)),DE43*DE103/(DE103-DE19-DE51)),DE43*DE103/(DE103-DE11-DE51)),DE43))) -> 12522.89897 | DF44: =IF(DF103<=0,0,IF(DF43<=0,0,IF(DF11+DF59<=0,IF(DF11=0,IF(DF19=0,IF(DF27=0,IF(DF35=0,IF(DF43+DF59<=0,0,DF43+DF59),DF43*DF103/(DF103-DF35-DF59)),DF43*DF103/(DF103-DF27-DF59)),DF43*DF103/(DF103-DF19-DF59)),DF43*DF103/(DF103-DF11-DF59)),DF43))) -> 14462.25273 | DG44: =IF(DG103<=0,0,IF(DG43<=0,0,IF(DG11+DG67<=0,IF(DG11=0,IF(DG19=0,IF(DG27=0,IF(DG35=0,IF(DG43+DG67<=0,0,DG43+DG67),DG43*DG103/(DG103-DG35-DG67)),DG43*DG103/(DG103-DG27-DG67)),DG43*DG103/(DG103-DG19-DG67)),DG43*DG103/(DG103-DG11-DG67)),DG43))) -> 14461.57198 | DH44: =IF(DH103<=0,0,IF(DH43<=0,0,IF(DH11+DH75<=0,IF(DH11=0,IF(DH19=0,IF(DH27=0,IF(DH35=0,IF(DH43+DH75<=0,0,DH43+DH75),DH43*DH103/(DH103-DH35-DH75)),DH43*DH103/(DH103-DH27-DH75)),DH43*DH103/(DH103-DH19-DH75)),DH43*DH103/(DH103-DH11-DH75)),DH43))) -> 14361.21638 | DI44: =IF(DI103<=0,0,IF(DI43<=0,0,IF(DI11+DI83<=0,IF(DI11=0,IF(DI19=0,IF(DI27=0,IF(DI35=0,IF(DI43+DI83<=0,0,DI43+DI83),DI43*DI103/(DI103-DI35-DI83)),DI43*DI103/(DI103-DI27-DI83)),DI43*DI103/(DI103-DI19-DI83)),DI43*DI103/(DI103-DI11-DI83)),DI43))) -> 16134.03492 | DJ44: =IF(DJ103<=0,0,IF(DJ43<=0,0,IF(DJ11+DJ91<=0,IF(DJ11=0,IF(DJ19=0,IF(DJ27=0,IF(DJ35=0,IF(DJ43+DJ91<=0,0,DJ43+DJ91),DJ43*DJ103/(DJ103-DJ35-DJ91)),DJ43*DJ103/(DJ103-DJ27-DJ91)),DJ43*DJ103/(DJ103-DJ19-DJ91)),DJ43*DJ103/(DJ103-DJ11-DJ91)),DJ43))) -> 16610.37027 | DK44: =IF(DK103<=0,0,IF(DK43<=0,0,IF(DK11+DK99<=0,IF(DK11=0,IF(DK19=0,IF(DK27=0,IF(DK35=0,IF(DK43+DK99<=0,0,DK43+DK99),DK43*DK103/(DK103-DK35-DK99)),DK43*DK103/(DK103-DK27-DK99)),DK43*DK103/(DK103-DK19-DK99)),DK43*DK103/(DK103-DK11-DK99)),DK43))) -> 16474.55975 | DL44: =IF(DL103<=0,0,IF(DL43<=0,0,IF(DL11+DL19<=0,IF(DL19=0,IF(DL27=0,IF(DL35=0,IF(DL43+DL11<=0,0,DL43+DL11),DL43*DL103/(DL103-DL35-DL11)),DL43*DL103/(DL103-DL27-DL11)),DL43*DL103/(DL103-DL11-DL19)),DL43))) -> 18406.2665 | DM44: =IF(DM103<=0,0,IF(DM43<=0,0,IF(DM11+DM19<=0,IF(DM11=0,IF(DM27=0,IF(DM35=0,IF(DM43+DM19<=0,0,DM43+DM19),DM43*DM103/(DM103-DM35-DM19)),DM43*DM103/(DM103-DM27-DM19)),DM43*DM103/(DM103-DM11-DM19)),DM43))) -> 18146.96594 | DN44: =IF(DN103<=0,0,IF(DN43<=0,0,IF(DN11+DN27<=0,IF(DN11=0,IF(DN19=0,IF(DN35=0,IF(DN43+DN27<=0,0,DN43+DN27),DN43*DN103/(DN103-DN35-DN27)),DN43*DN103/(DN103-DN19-DN27)),DN43*DN103/(DN103-DN11-DN27)),DN43))) -> 19648.98788 | DO44: =IF(DO103<=0,0,IF(DO43<=0,0,IF(DO11+DO35<=0,IF(DO11=0,IF(DO19=0,IF(DO27=0,IF(DO43+DO35<=0,0,DO43+DO35),DO43*DO103/(DO103-DO27-DO35)),DO43*DO103/(DO103-DO19-DO35)),DO43*DO103/(DO103-DO11-DO35)),DO43))) -> 19337.08618 | DP44: =IF(DP43<=0,IF(DP$103<=0,DP$103,0),DP43) -> 15364.87351 | DQ44: =IF(DQ103<=0,0,IF(DQ43<=0,0,IF(DQ11+DQ51<=0,IF(DQ11=0,IF(DQ19=0,IF(DQ27=0,IF(DQ35=0,IF(DQ43+DQ51<=0,0,DQ43+DQ51),DQ43*DQ103/(DQ103-DQ35-DQ51)),DQ43*DQ103/(DQ103-DQ27-DQ51)),DQ43*DQ103/(DQ103-DQ19-DQ51)),DQ43*DQ103/(DQ103-DQ11-DQ51)),DQ43))) -> 16013.23725 | DR44: =IF(DR103<=0,0,IF(DR43<=0,0,IF(DR11+DR59<=0,IF(DR11=0,IF(DR19=0,IF(DR27=0,IF(DR35=0,IF(DR43+DR59<=0,0,DR43+DR59),DR43*DR103/(DR103-DR35-DR59)),DR43*DR103/(DR103-DR27-DR59)),DR43*DR103/(DR103-DR19-DR59)),DR43*DR103/(DR103-DR11-DR59)),DR43))) -> 15888.40911 | DS44: =IF(DS103<=0,0,IF(DS43<=0,0,IF(DS11+DS67<=0,IF(DS11=0,IF(DS19=0,IF(DS27=0,IF(DS35=0,IF(DS43+DS67<=0,0,DS43+DS67),DS43*DS103/(DS103-DS35-DS67)),DS43*DS103/(DS103-DS27-DS67)),DS43*DS103/(DS103-DS19-DS67)),DS43*DS103/(DS103-DS11-DS67)),DS43))) -> 16463.19826 | DT44: =IF(DT103<=0,0,IF(DT43<=0,0,IF(DT11+DT75<=0,IF(DT11=0,IF(DT19=0,IF(DT27=0,IF(DT35=0,IF(DT43+DT75<=0,0,DT43+DT75),DT43*DT103/(DT103-DT35-DT75)),DT43*DT103/(DT103-DT27-DT75)),DT43*DT103/(DT103-DT19-DT75)),DT43*DT103/(DT103-DT11-DT75)),DT43))) -> 16395.49701 | DU44: =IF(DU103<=0,0,IF(DU43<=0,0,IF(DU11+DU83<=0,IF(DU11=0,IF(DU19=0,IF(DU27=0,IF(DU35=0,IF(DU43+DU83<=0,0,DU43+DU83),DU43*DU103/(DU103-DU35-DU83)),DU43*DU103/(DU103-DU27-DU83)),DU43*DU103/(DU103-DU19-DU83)),DU43*DU103/(DU103-DU11-DU83)),DU43))) -> 16015.25217 | DV44: =IF(DV103<=0,0,IF(DV43<=0,0,IF(DV11+DV91<=0,IF(DV11=0,IF(DV19=0,IF(DV27=0,IF(DV35=0,IF(DV43+DV91<=0,0,DV43+DV91),DV43*DV103/(DV103-DV35-DV91)),DV43*DV103/(DV103-DV27-DV91)),DV43*DV103/(DV103-DV19-DV91)),DV43*DV103/(DV103-DV11-DV91)),DV43))) -> 16615.63996 | DW44: =IF(DW103<=0,0,IF(DW43<=0,0,IF(DW11+DW99<=0,IF(DW11=0,IF(DW19=0,IF(DW27=0,IF(DW35=0,IF(DW43+DW99<=0,0,DW43+DW99),DW43*DW103/(DW103-DW35-DW99)),DW43*DW103/(DW103-DW27-DW99)),DW43*DW103/(DW103-DW19-DW99)),DW43*DW103/(DW103-DW11-DW99)),DW43))) -> 17059.84818
A45: 0.004592286792 | B45: 25 | C45: 0.0048 | D45: 0 | F45: EOM_Balance | G45: 0 | H45: 0 | I45: 0 | J45: 0 | K45: 0 | L45: =L44*L4 -> 965.3710506 | M45: =M44*M4 -> 925.7218683 | N45: 939.2335583 | O45: =O44*O4 -> 941.4675778 | P45: 945.0006228 | Q45: 897.4679748 | R45: 912.2121736 | S45: 905.9643082 | T45: 912.7476518 | U45: 897.446807 | V45: 926.7992441 | W45: =W44*W5 -> 1050 | X45: =X44*X$4 -> 2018.625338 | Y45: =Y44*Y$4 -> 1949.820078 | Z45: 1957.253824 | AA45: 2024.286768 | AB45: 2073.838398 | AC45: 2060.804793 | AD45: 2073.911771 | AE45: 2053.687076 | AF45: =AF44*AF4 -> 1979.16342 | AG45: 2065.796265 | AH45: 2120.762057 | AI45: =AI44*AI5 -> 2152.5 | AJ45: =AJ44*AJ$4 -> 3134.811529 | AK45: =AK44*AK$4 -> 3309.537106 | AL45: 3220.839615 | AM45: 3203.109271 | AN45: 3264.976312 | AO45: 3262.011573 | AP45: 3211.458472 | AQ45: 3261.468467 | AR45: =AR44*AR4 -> 3462.7218 | AS45: 3469.581213 | AT45: 3600.589845 | AU45: =AU44*AU5 -> 3435.784888 | AV45: =AV44*AV$4 -> 4245.071175 | AW45: =AW44*AW$4 -> 4398.425283 | AX45: 4402.917634 | AY45: 4657.092589 | AZ45: 5090.751943 | BA45: 5163.147324 | BB45: 4848.454806 | BC45: 5049.058299 | BD45: =BD44*BD4 -> 5259.230891 | BE45: 5282.638887 | BF45: 4897.673742 | BG45: =BG44*BG5 -> 4657.574132 | BH45: =BH44*BH$4 -> 5828.781896 | BI45: =BI44*BI$4 -> 5926.639809 | BJ45: 6408.396182 | BK45: 6344.241801 | BL45: 5988.591058 | BM45: 5851.356792 | BN45: 5837.331066 | BO45: 5972.335991 | BP45: =BP44*BP4 -> 6223.831257 | BQ45: 5907.138892 | BR45: 5305.460094 | BS45: =BS44*BS5 -> 5940.452839 | BT45: =BT44*BT$4 -> 6523.576495 | BU45: =BU44*BU$4 -> 6473.622676 | BV45: 6469.106772 | BW45: 5783.566168 | BX45: 5362.524176 | BY45: 5017.259914 | BZ45: 4566.6889 | CA45: 4701.273546 | CB45: =CB44*CB4 -> 4574.169199 | CC45: 4445.607987 | CD45: 4162.64211 | CE45: =CE44*CE5 -> 7287.475481 | CF45: =CF44*CF$4 -> 9191.608812 | CG45: =CG44*CG$4 -> 9391.317925 | CH45: 9939.909911 | CI45: 9254.867872 | CJ45: 9085.623984 | CK45: 9063.212493 | CL45: 9467.027871 | CM45: 10177.11357 | CN45: =CN44*CN4 -> 10550.73721 | CO45: 10161.49428 | CP45: 11479.46812 | CQ45: =CQ44*CQ5 -> 9364.847293 | CR45: =CR44*CR$4 -> 10153.48452 | CS45: =CS44*CS$4 -> 10837.61229 | CT45: 11860.75055 | CU45: 12226.85334 | CV45: 13251.53051 | CW45: 12291.8874 | CX45: 12404.28657 | CY45: 12696.97568 | CZ45: =CZ44*CZ4 -> 12914.8607 | DA45: 12513.27126 | DB45: 13571.7614 | DC45: =DC44*DC5 -> 11712.27744 | DD45: =DD44*DD$4 -> 12522.89897 | DE45: =DE44*DE$4 -> 14462.25273 | DF45: 14461.57198 | DG45: 14361.21638 | DH45: 16134.03492 | DI45: 16610.37027 | DJ45: 16474.55975 | DK45: 18406.2665 | DL45: =DL44*DL4 -> 18146.96594 | DM45: 19648.98788 | DN45: 19337.08618 | DO45: =DO44*DO5 -> 14364.87351 | DP45: =DP44*DP$4 -> 16013.23725 | DQ45: =DQ44*DQ$4 -> 15888.40911 | DR45: 16463.19826 | DS45: 16395.49701 | DT45: 16015.25217 | DU45: 16615.63996 | DV45: 17059.84818 | DW45: =DW44*DX45 -> 16669.19466 | DX45: =IF(PRODUCT(DP4:DW4)>($B$11)^(8/12),($B$11)^(8/12)/PRODUCT(DP4:DV4),IF(PRODUCT(DP4:DW4)<($B$12)^(8/12),($B$12)^(8/12)/PRODUCT(DP4:DV4),DW4)) -> 0.977100997
A46: 0.004603219877 | B46: 26 | C46: 0.005 | D46: 0 | E46: June | F46: BOM_Pre_CF_Balance | G46: 0 | H46: 0 | I46: 0 | J46: 0 | K46: 0 | L46: 0 | M46: 0 | N46: =M53 -> 958.9285567 | O46: =N53 -> 972.9249263 | P46: 975.2390827 | Q46: 978.8988619 | R46: 929.6611642 | S46: 944.934254 | T46: 938.4622706 | U46: 945.4889404 | V46: 929.6392371 | W46: 960.0445792 | X46: =W53 -> 976.7720959 | Y46: =X53 -> 1050 | Z46: =Y53 -> 1980.125328 | AA46: =Z53 -> 1987.674614 | AB46: =AA53 -> 2055.749423 | AC46: =AB53 -> 2106.071214 | AD46: =AC53 -> 2092.835033 | AE46: =AD53 -> 2106.145727 | AF46: =AE53 -> 2085.606688 | AG46: =AF53 -> 2009.924742 | AH46: =AG53 -> 2097.904085 | AI46: =AH53 -> 2153.724188 | AJ46: =AI53 -> 2080.383459 | AK46: =AJ53 -> 2152.5 | AL46: =AK53 -> 3328.211483 | AM46: =AL53 -> 3239.013508 | AN46: =AM53 -> 3221.183118 | AO46: =AN53 -> 3283.39925 | AP46: =AO53 -> 3280.417782 | AQ46: =AP53 -> 3229.579431 | AR46: =AQ53 -> 3279.871612 | AS46: =AR53 -> 3482.260535 | AT46: =AS53 -> 3489.158654 | AU46: =AT53 -> 3620.906514 | AV46: =AU53 -> 3455.171629 | AW46: =AV53 -> 3310.125 | AX46: =AW53 -> 4465.829192 | AY46: =AX53 -> 4470.390387 | AZ46: =AY53 -> 4728.460459 | BA46: =AZ53 -> 5168.765449 | BB46: =BA53 -> 5242.270258 | BC46: =BB53 -> 4922.755217 | BD46: =BC53 -> 5126.432869 | BE46: =BD53 -> 5339.826262 | BF46: =BE53 -> 5363.592976 | BG46: =BF53 -> 4972.728412 | BH46: =BG53 -> 4608.784615 | BI46: =BH53 -> 4748.254233 | BJ46: =BI53 -> 5844.760189 | BK46: =BJ53 -> 6319.860846 | BL46: =BK53 -> 6256.592791 | BM46: =BL53 -> 5905.855549 | BN46: =BM53 -> 5770.517245 | BO46: =BN53 -> 5756.685293 | BP46: =BO53 -> 5889.825054 | BQ46: =BP53 -> 6137.845782 | BR46: =BQ53 -> 5825.528687 | BS46: =BR53 -> 5232.162396 | BT46: =BS53 -> 5585.688849 | BU46: =BT53 -> 6035.666945 | BV46: =BU53 -> 6981.791831 | BW46: =BV53 -> 6976.921435 | BX46: =BW53 -> 6237.566976 | BY46: =BX53 -> 5783.473853 | BZ46: =BY53 -> 5411.106892 | CA46: =BZ53 -> 4925.166765 | CB46: =CA53 -> 5070.316093 | CC46: =CB53 -> 4933.234255 | CD46: =CC53 -> 4794.581192 | CE46: =CD53 -> 4489.40294 | CF46: =CE53 -> 4651.693354 | CG46: =CF53 -> 7387.450292 | CH46: =CG53 -> 8569.687188 | CI46: =CH53 -> 9070.283776 | CJ46: =CI53 -> 8445.174923 | CK46: =CJ53 -> 8290.737899 | CL46: =CK53 -> 8270.287153 | CM46: =CL53 -> 8638.773397 | CN46: =CM53 -> 9286.734883 | CO46: =CN53 -> 9627.670817 | CP46: =CO53 -> 9272.482096 | CQ46: =CP53 -> 10475.14861 | CR46: =CQ53 -> 9547.925834 | CS46: =CR53 -> 9353.221944 | CT46: =CS53 -> 11050.80775 | CU46: =CT53 -> 12094.07299 | CV46: =CU53 -> 12467.37768 | CW46: =CV53 -> 13512.2121 | CX46: =CW53 -> 12533.69108 | CY46: =CX53 -> 12648.30134 | CZ46: =CY53 -> 12946.74818 | DA46: =CZ53 -> 13168.91939 | DB46: =DA53 -> 12759.42996 | DC46: =DB53 -> 13838.74252 | DD46: =DC53 -> 13492.75961 | DE46: =DD53 -> 11699.1408 | DF46: =DE53 -> 14665.78817 | DG46: =DF53 -> 14665.09784 | DH46: =DG53 -> 14563.32988 | DI46: =DH53 -> 16361.0983 | DJ46: =DI53 -> 16844.13738 | DK46: =DJ53 -> 16706.41553 | DL46: =DK53 -> 18665.30828 | DM46: =DL53 -> 18402.35843 | DN46: =DM53 -> 19925.51918 | DO46: =DN53 -> 19609.22791 | DP46: =DO53 -> 20620.04968 | DQ46: =DP53 -> 14350.0291 | DR46: =DQ53 -> 15230.37087 | DS46: =DR53 -> 15781.35441 | DT46: =DS53 -> 15716.4571 | DU46: =DT53 -> 15351.96057 | DV46: =DU53 -> 15927.48255 | DW46: =DV53 -> 16353.29333
A47: 0.004616892412 | B47: 27 | C47: 0.0052 | D47: 0 | F47: BOM_POS_CF | G47: 0 | H47: 0 | I47: 0 | J47: 0 | K47: 0 | L47: 0 | M47: =L39*(1+$C$14) -> 1000 | N47: 0 | O47: 0 | P47: 0 | Q47: 0 | R47: 0 | S47: 0 | T47: 0 | U47: 0 | V47: 0 | W47: 0 | X47: 0 | Y47: =X39*(1+$C$14) -> 1000 | Z47: 0 | AA47: 0 | AB47: 0 | AC47: 0 | AD47: 0 | AE47: 0 | AF47: 0 | AG47: 0 | AH47: 0 | AI47: 0 | AJ47: 0 | AK47: =AJ39*(1+$C$14) -> 1000 | AL47: 0 | AM47: 0 | AN47: 0 | AO47: 0 | AP47: 0 | AQ47: 0 | AR47: 0 | AS47: 0 | AT47: 0 | AU47: 0 | AV47: 0 | AW47: =AV39*(1+$C$14) -> 1000 | AX47: 0 | AY47: 0 | AZ47: 0 | BA47: 0 | BB47: 0 | BC47: 0 | BD47: 0 | BE47: 0 | BF47: 0 | BG47: 0 | BH47: 0 | BI47: =BH39*(1+$C$14) -> 1000 | BJ47: 0 | BK47: 0 | BL47: 0 | BM47: 0 | BN47: 0 | BO47: 0 | BP47: 0 | BQ47: 0 | BR47: 0 | BS47: 0 | BT47: 0 | BU47: =BT39*(1+$C$14) -> 1000 | BV47: 0 | BW47: 0 | BX47: 0 | BY47: 0 | BZ47: 0 | CA47: 0 | CB47: 0 | CC47: 0 | CD47: 0 | CE47: 0 | CF47: 0 | CG47: =CF39*(1+$C$14) -> 1000 | CH47: 0 | CI47: 0 | CJ47: 0 | CK47: 0 | CL47: 0 | CM47: 0 | CN47: 0 | CO47: 0 | CP47: 0 | CQ47: 0 | CR47: 0 | CS47: =CR39*(1+$C$14) -> 1000 | CT47: 0 | CU47: 0 | CV47: 0 | CW47: 0 | CX47: 0 | CY47: 0 | CZ47: 0 | DA47: 0 | DB47: 0 | DC47: 0 | DD47: 0 | DE47: =DD39*(1+$C$14) -> 1000 | DF47: 0 | DG47: 0 | DH47: 0 | DI47: 0 | DJ47: 0 | DK47: 0 | DL47: 0 | DM47: 0 | DN47: 0 | DO47: 0 | DP47: 0 | DQ47: =DP39*(1+$C$14) -> 1000 | DR47: 0 | DS47: 0 | DT47: 0 | DU47: 0 | DV47: 0 | DW47: 0
A48: 0.004618069306 | B48: 28 | C48: 0.0054 | D48: 0 | F48: BOM_NEG_CF | G48: 0 | H48: 0 | I48: 0 | J48: 0 | K48: 0 | L48: 0 | M48: =IF($B$18=0,0,L$102*(1-(1/($B$18+1)))/(1-(1/($B$18+1))^L$1)) -> 0 | N48: 0 | O48: 0 | P48: 0 | Q48: 0 | R48: 0 | S48: 0 | T48: 0 | U48: 0 | V48: 0 | W48: 0 | X48: 0 | Y48: =IF($B$18=0,0,X$102*(1-(1/($B$18+1)))/(1-(1/($B$18+1))^X$1)) -> 0 | Z48: 0 | AA48: 0 | AB48: 0 | AC48: 0 | AD48: 0 | AE48: 0 | AF48: 0 | AG48: 0 | AH48: 0 | AI48: 0 | AJ48: 0 | AK48: =IF($B$18=0,0,AJ$102*(1-(1/($B$18+1)))/(1-(1/($B$18+1))^AJ$1)) -> 0 | AL48: 0 | AM48: 0 | AN48: 0 | AO48: 0 | AP48: 0 | AQ48: 0 | AR48: 0 | AS48: 0 | AT48: 0 | AU48: 0 | AV48: 0 | AW48: =IF($B$18=0,0,AV$102*(1-(1/($B$18+1)))/(1-(1/($B$18+1))^AV$1)) -> 0 | AX48: 0 | AY48: 0 | AZ48: 0 | BA48: 0 | BB48: 0 | BC48: 0 | BD48: 0 | BE48: 0 | BF48: 0 | BG48: 0 | BH48: 0 | BI48: =IF($B$18=0,0,BH$102*(1-(1/($B$18+1)))/(1-(1/($B$18+1))^BH$1)) -> 0 | BJ48: 0 | BK48: 0 | BL48: 0 | BM48: 0 | BN48: 0 | BO48: 0 | BP48: 0 | BQ48: 0 | BR48: 0 | BS48: 0 | BT48: 0 | BU48: =IF($B$18=0,0,BT$102*(1-(1/($B$18+1)))/(1-(1/($B$18+1))^BT$1)) -> 0 | BV48: 0 | BW48: 0 | BX48: 0 | BY48: 0 | BZ48: 0 | CA48: 0 | CB48: 0 | CC48: 0 | CD48: 0 | CE48: 0 | CF48: 0 | CG48: =IF($B$18=0,0,CF$102*(1-(1/($B$18+1)))/(1-(1/($B$18+1))^CF$1)) -> 0 | CH48: 0 | CI48: 0 | CJ48: 0 | CK48: 0 | CL48: 0 | CM48: 0 | CN48: 0 | CO48: 0 | CP48: 0 | CQ48: 0 | CR48: 0 | CS48: =IF($B$18=0,0,CR$102*(1-(1/($B$18+1)))/(1-(1/($B$18+1))^CR$1)) -> 0 | CT48: 0 | CU48: 0 | CV48: 0 | CW48: 0 | CX48: 0 | CY48: 0 | CZ48: 0 | DA48: 0 | DB48: 0 | DC48: 0 | DD48: 0 | DE48: =IF($B$18=0,0,DD$102*(1-(1/($B$18+1)))/(1-(1/($B$18+1))^DD$1)) -> 0 | DF48: 0 | DG48: 0 | DH48: 0 | DI48: 0 | DJ48: 0 | DK48: 0 | DL48: 0 | DM48: 0 | DN48: 0 | DO48: 0 | DP48: 0 | DQ48: =IF($B$18=0,0,DP$102*(1-(1/($B$18+1)))/(1-(1/($B$18+1))^DP$1)) -> 0 | DR48: 0 | DS48: 0 | DT48: 0 | DU48: 0 | DV48: 0 | DW48: 0
A49: 0.004626422909 | B49: 29 | C49: 0.0056 | D49: 0 | F49: BOM_COI | G49: 0 | H49: 0 | I49: 0 | J49: 0 | K49: 0 | L49: 0 | M49: =$B$15 -> 0 | N49: 0 | O49: 0 | P49: 0 | Q49: 0 | R49: 0 | S49: 0 | T49: 0 | U49: 0 | V49: 0 | W49: 0 | X49: 0 | Y49: =$B$15 -> 0 | Z49: 0 | AA49: 0 | AB49: 0 | AC49: 0 | AD49: 0 | AE49: 0 | AF49: 0 | AG49: 0 | AH49: 0 | AI49: 0 | AJ49: 0 | AK49: =$B$15 -> 0 | AL49: 0 | AM49: 0 | AN49: 0 | AO49: 0 | AP49: 0 | AQ49: 0 | AR49: 0 | AS49: 0 | AT49: 0 | AU49: 0 | AV49: 0 | AW49: =$B$15 -> 0 | AX49: 0 | AY49: 0 | AZ49: 0 | BA49: 0 | BB49: 0 | BC49: 0 | BD49: 0 | BE49: 0 | BF49: 0 | BG49: 0 | BH49: 0 | BI49: =$B$15 -> 0 | BJ49: 0 | BK49: 0 | BL49: 0 | BM49: 0 | BN49: 0 | BO49: 0 | BP49: 0 | BQ49: 0 | BR49: 0 | BS49: 0 | BT49: 0 | BU49: =$B$15 -> 0 | BV49: 0 | BW49: 0 | BX49: 0 | BY49: 0 | BZ49: 0 | CA49: 0 | CB49: 0 | CC49: 0 | CD49: 0 | CE49: 0 | CF49: 0 | CG49: =$B$15 -> 0 | CH49: 0 | CI49: 0 | CJ49: 0 | CK49: 0 | CL49: 0 | CM49: 0 | CN49: 0 | CO49: 0 | CP49: 0 | CQ49: 0 | CR49: 0 | CS49: =$B$15 -> 0 | CT49: 0 | CU49: 0 | CV49: 0 | CW49: 0 | CX49: 0 | CY49: 0 | CZ49: 0 | DA49: 0 | DB49: 0 | DC49: 0 | DD49: 0 | DE49: =$B$15 -> 0 | DF49: 0 | DG49: 0 | DH49: 0 | DI49: 0 | DJ49: 0 | DK49: 0 | DL49: 0 | DM49: 0 | DN49: 0 | DO49: 0 | DP49: 0 | DQ49: =$B$15 -> 0 | DR49: 0 | DS49: 0 | DT49: 0 | DU49: 0 | DV49: 0 | DW49: 0
A50: 0.00462740029 | B50: 30 | C50: 0.0058 | D50: 0 | F50: BOM_Expenses | G50: 0 | H50: 0 | I50: 0 | J50: 0 | K50: 0 | L50: 0 | M50: =$B$16 -> 0 | N50: 0 | O50: 0 | P50: 0 | Q50: 0 | R50: 0 | S50: 0 | T50: 0 | U50: 0 | V50: 0 | W50: 0 | X50: 0 | Y50: =$B$16 -> 0 | Z50: 0 | AA50: 0 | AB50: 0 | AC50: 0 | AD50: 0 | AE50: 0 | AF50: 0 | AG50: 0 | AH50: 0 | AI50: 0 | AJ50: 0 | AK50: =$B$16 -> 0 | AL50: 0 | AM50: 0 | AN50: 0 | AO50: 0 | AP50: 0 | AQ50: 0 | AR50: 0 | AS50: 0 | AT50: 0 | AU50: 0 | AV50: 0 | AW50: =$B$16 -> 0 | AX50: 0 | AY50: 0 | AZ50: 0 | BA50: 0 | BB50: 0 | BC50: 0 | BD50: 0 | BE50: 0 | BF50: 0 | BG50: 0 | BH50: 0 | BI50: =$B$16 -> 0 | BJ50: 0 | BK50: 0 | BL50: 0 | BM50: 0 | BN50: 0 | BO50: 0 | BP50: 0 | BQ50: 0 | BR50: 0 | BS50: 0 | BT50: 0 | BU50: =$B$16 -> 0 | BV50: 0 | BW50: 0 | BX50: 0 | BY50: 0 | BZ50: 0 | CA50: 0 | CB50: 0 | CC50: 0 | CD50: 0 | CE50: 0 | CF50: 0 | CG50: =$B$16 -> 0 | CH50: 0 | CI50: 0 | CJ50: 0 | CK50: 0 | CL50: 0 | CM50: 0 | CN50: 0 | CO50: 0 | CP50: 0 | CQ50: 0 | CR50: 0 | CS50: =$B$16 -> 0 | CT50: 0 | CU50: 0 | CV50: 0 | CW50: 0 | CX50: 0 | CY50: 0 | CZ50: 0 | DA50: 0 | DB50: 0 | DC50: 0 | DD50: 0 | DE50: =$B$16 -> 0 | DF50: 0 | DG50: 0 | DH50: 0 | DI50: 0 | DJ50: 0 | DK50: 0 | DL50: 0 | DM50: 0 | DN50: 0 | DO50: 0 | DP50: 0 | DQ50: =$B$16 -> 0 | DR50: 0 | DS50: 0 | DT50: 0 | DU50: 0 | DV50: 0 | DW50: 0
A51: 0.004628857061 | B51: 31 | C51: 0.006 | D51: 0 | F51: BOM_Post_CF_Balance | G51: 0 | H51: 0 | I51: 0 | J51: 0 | K51: 0 | L51: 0 | M51: =M46+M47-M48-M49-M50 -> 1000 | N51: =N46+N47-N48-N49-N50 -> 958.9285567 | O51: =O46+O47-O48-O49-O50 -> 972.9249263 | P51: =P46+P47-P48-P49-P50 -> 975.2390827 | Q51: =Q46+Q47-Q48-Q49-Q50 -> 978.8988619 | R51: =R46+R47-R48-R49-R50 -> 929.6611642 | S51: =S46+S47-S48-S49-S50 -> 944.934254 | T51: =T46+T47-T48-T49-T50 -> 938.4622706 | U51: =U46+U47-U48-U49-U50 -> 945.4889404 | V51: =V46+V47-V48-V49-V50 -> 929.6392371 | W51: =W46+W47-W48-W49-W50 -> 960.0445792 | X51: =X46+X47-X48-X49-X50 -> 976.7720959 | Y51: =Y46+Y47-Y48-Y49-Y50 -> 2050 | Z51: =Z46+Z47-Z48-Z49-Z50 -> 1980.125328 | AA51: =AA46+AA47-AA48-AA49-AA50 -> 1987.674614 | AB51: 2055.749423 | AC51: 2106.071214 | AD51: 2092.835033 | AE51: 2106.145727 | AF51: 2085.606688 | AG51: 2009.924742 | AH51: 2097.904085 | AI51: 2153.724188 | AJ51: =AJ46+AJ47-AJ48-AJ49-AJ50 -> 2080.383459 | AK51: =AK46+AK47-AK48-AK49-AK50 -> 3152.5 | AL51: =AL46+AL47-AL48-AL49-AL50 -> 3328.211483 | AM51: =AM46+AM47-AM48-AM49-AM50 -> 3239.013508 | AN51: 3221.183118 | AO51: 3283.39925 | AP51: 3280.417782 | AQ51: 3229.579431 | AR51: 3279.871612 | AS51: 3482.260535 | AT51: 3489.158654 | AU51: 3620.906514 | AV51: =AV46+AV47-AV48-AV49-AV50 -> 3455.171629 | AW51: =AW46+AW47-AW48-AW49-AW50 -> 4310.125 | AX51: =AX46+AX47-AX48-AX49-AX50 -> 4465.829192 | AY51: =AY46+AY47-AY48-AY49-AY50 -> 4470.390387 | AZ51: 4728.460459 | BA51: 5168.765449 | BB51: 5242.270258 | BC51: 4922.755217 | BD51: 5126.432869 | BE51: 5339.826262 | BF51: 5363.592976 | BG51: 4972.728412 | BH51: =BH46+BH47-BH48-BH49-BH50 -> 4608.784615 | BI51: =BI46+BI47-BI48-BI49-BI50 -> 5748.254233 | BJ51: =BJ46+BJ47-BJ48-BJ49-BJ50 -> 5844.760189 | BK51: =BK46+BK47-BK48-BK49-BK50 -> 6319.860846 | BL51: 6256.592791 | BM51: 5905.855549 | BN51: 5770.517245 | BO51: 5756.685293 | BP51: 5889.825054 | BQ51: 6137.845782 | BR51: 5825.528687 | BS51: 5232.162396 | BT51: =BT46+BT47-BT48-BT49-BT50 -> 5585.688849 | BU51: =BU46+BU47-BU48-BU49-BU50 -> 7035.666945 | BV51: =BV46+BV47-BV48-BV49-BV50 -> 6981.791831 | BW51: =BW46+BW47-BW48-BW49-BW50 -> 6976.921435 | BX51: 6237.566976 | BY51: 5783.473853 | BZ51: 5411.106892 | CA51: 4925.166765 | CB51: 5070.316093 | CC51: 4933.234255 | CD51: 4794.581192 | CE51: 4489.40294 | CF51: =CF46+CF47-CF48-CF49-CF50 -> 4651.693354 | CG51: =CG46+CG47-CG48-CG49-CG50 -> 8387.450292 | CH51: =CH46+CH47-CH48-CH49-CH50 -> 8569.687188 | CI51: =CI46+CI47-CI48-CI49-CI50 -> 9070.283776 | CJ51: 8445.174923 | CK51: 8290.737899 | CL51: 8270.287153 | CM51: 8638.773397 | CN51: 9286.734883 | CO51: 9627.670817 | CP51: 9272.482096 | CQ51: 10475.14861 | CR51: =CR46+CR47-CR48-CR49-CR50 -> 9547.925834 | CS51: =CS46+CS47-CS48-CS49-CS50 -> 10353.22194 | CT51: =CT46+CT47-CT48-CT49-CT50 -> 11050.80775 | CU51: =CU46+CU47-CU48-CU49-CU50 -> 12094.07299 | CV51: 12467.37768 | CW51: 13512.2121 | CX51: 12533.69108 | CY51: 12648.30134 | CZ51: 12946.74818 | DA51: 13168.91939 | DB51: 12759.42996 | DC51: 13838.74252 | DD51: =DD46+DD47-DD48-DD49-DD50 -> 13492.75961 | DE51: =DE46+DE47-DE48-DE49-DE50 -> 12699.1408 | DF51: =DF46+DF47-DF48-DF49-DF50 -> 14665.78817 | DG51: =DG46+DG47-DG48-DG49-DG50 -> 14665.09784 | DH51: 14563.32988 | DI51: 16361.0983 | DJ51: 16844.13738 | DK51: 16706.41553 | DL51: =DL46+DL47-DL48-DL49-DL50 -> 18665.30828 | DM51: 18402.35843 | DN51: 19925.51918 | DO51: 19609.22791 | DP51: =DP46+DP47-DP48-DP49-DP50 -> 20620.04968 | DQ51: =DQ46+DQ47-DQ48-DQ49-DQ50 -> 15350.0291 | DR51: =DR46+DR47-DR48-DR49-DR50 -> 15230.37087 | DS51: =DS46+DS47-DS48-DS49-DS50 -> 15781.35441 | DT51: 15716.4571 | DU51: 15351.96057 | DV51: 15927.48255 | DW51: 16353.29333
A52: 0.004640149755 | B52: 32 | C52: 0.0062 | D52: 0 | F52: BOM_Post_CF_Balance_ADJ | G52: 0 | H52: 0 | I52: 0 | J52: 0 | K52: 0 | L52: 0 | M52: =IF(M51<=0,IF(M$103<=0,M$103,0),M51) -> 1000 | N52: =IF(N103<=0,0,IF(N51<=0,0,IF(N11+N59<=0,IF(N11=0,IF(N19=0,IF(N27=0,IF(N35=0,IF(N43=0,IF(N51+N59<=0,0,N51+N59),N51*N103/(N103-N43-N59)),N51*N103/(N103-N35-N59)),N51*N103/(N103-N27-N59)),N51*N103/(N103-N19-N59)),N51*N103/(N103-N11-N59)),N51))) -> 958.9285567 | O52: =IF(O103<=0,0,IF(O51<=0,0,IF(O11+O67<=0,IF(O11=0,IF(O19=0,IF(O27=0,IF(O35=0,IF(O43=0,IF(O51+O67<=0,0,O51+O67),O51*O103/(O103-O43-O67)),O51*O103/(O103-O35-O67)),O51*O103/(O103-O27-O67)),O51*O103/(O103-O19-O67)),O51*O103/(O103-O11-O67)),O51))) -> 972.9249263 | P52: =IF(P103<=0,0,IF(P51<=0,0,IF(P11+P75<=0,IF(P11=0,IF(P19=0,IF(P27=0,IF(P35=0,IF(P43=0,IF(P51+P75<=0,0,P51+P75),P51*P103/(P103-P43-P75)),P51*P103/(P103-P35-P75)),P51*P103/(P103-P27-P75)),P51*P103/(P103-P19-P75)),P51*P103/(P103-P11-P75)),P51))) -> 975.2390827 | Q52: =IF(Q103<=0,0,IF(Q51<=0,0,IF(Q11+Q83<=0,IF(Q11=0,IF(Q19=0,IF(Q27=0,IF(Q35=0,IF(Q43=0,IF(Q51+Q83<=0,0,Q51+Q83),Q51*Q103/(Q103-Q43-Q83)),Q51*Q103/(Q103-Q35-Q83)),Q51*Q103/(Q103-Q27-Q83)),Q51*Q103/(Q103-Q19-Q83)),Q51*Q103/(Q103-Q11-Q83)),Q51))) -> 978.8988619 | R52: =IF(R103<=0,0,IF(R51<=0,0,IF(R11+R91<=0,IF(R11=0,IF(R19=0,IF(R27=0,IF(R35=0,IF(R43=0,IF(R51+R91<=0,0,R51+R91),R51*R103/(R103-R43-R91)),R51*R103/(R103-R35-R91)),R51*R103/(R103-R27-R91)),R51*R103/(R103-R19-R91)),R51*R103/(R103-R11-R91)),R51))) -> 929.6611642 | S52: =IF(S103<=0,0,IF(S51<=0,0,IF(S11+S99<=0,IF(S11=0,IF(S19=0,IF(S27=0,IF(S35=0,IF(S43=0,IF(S51+S99<=0,0,S51+S99),S51*S103/(S103-S43-S99)),S51*S103/(S103-S35-S99)),S51*S103/(S103-S27-S99)),S51*S103/(S103-S19-S99)),S51*S103/(S103-S11-S99)),S51))) -> 944.934254 | T52: =IF(T103<=0,0,IF(T51<=0,0,IF(T11+T19<=0,IF(T19=0,IF(T27=0,IF(T35=0,IF(T43=0,IF(T51+T11<=0,0,T51+T11),T51*T103/(T103-T43-T11)),T51*T103/(T103-T35-T11)),T51*T103/(T103-T27-T11)),T51*T103/(T103-T11-T19)),T51))) -> 938.4622706 | U52: =IF(U103<=0,0,IF(U51<=0,0,IF(U11+U19<=0,IF(U11=0,IF(U27=0,IF(U35=0,IF(U43=0,IF(U51+U19<=0,0,U51+U19),U51*U103/(U103-U43-U19)),U51*U103/(U103-U35-U19)),U51*U103/(U103-U27-U19)),U51*U103/(U103-U11-U19)),U51))) -> 945.4889404 | V52: =IF(V103<=0,0,IF(V51<=0,0,IF(V11+V27<=0,IF(V11=0,IF(V19=0,IF(V35=0,IF(V43=0,IF(V51+V27<=0,0,V51+V27),V51*V103/(V103-V43-V27)),V51*V103/(V103-V35-V27)),V51*V103/(V103-V19-V27)),V51*V103/(V103-V11-V27)),V51))) -> 929.6392371 | W52: =IF(W103<=0,0,IF(W51<=0,0,IF(W11+W35<=0,IF(W11=0,IF(W19=0,IF(W27=0,IF(W43=0,IF(W51+W35<=0,0,W51+W35),W51*W103/(W103-W43-W35)),W51*W103/(W103-W27-W35)),W51*W103/(W103-W19-W35)),W51*W103/(W103-W11-W35)),W51))) -> 960.0445792 | X52: =IF(X103<=0,0,IF(X51<=0,0,IF(X11+X43<=0,IF(X11=0,IF(X19=0,IF(X27=0,IF(X35=0,IF(X51+X43<=0,0,X51+X43),X51*X103/(X103-X43-X35)),X51*X103/(X103-X27-X43)),X51*X103/(X103-X19-X43)),X51*X103/(X103-X11-X43)),X51))) -> 976.7720959 | Y52: =IF(Y51<=0,IF(Y$103<=0,Y$103,0),Y51) -> 2050 | Z52: =IF(Z103<=0,0,IF(Z51<=0,0,IF(Z11+Z59<=0,IF(Z11=0,IF(Z19=0,IF(Z27=0,IF(Z35=0,IF(Z43=0,IF(Z51+Z59<=0,0,Z51+Z59),Z51*Z103/(Z103-Z43-Z59)),Z51*Z103/(Z103-Z35-Z59)),Z51*Z103/(Z103-Z27-Z59)),Z51*Z103/(Z103-Z19-Z59)),Z51*Z103/(Z103-Z11-Z59)),Z51))) -> 1980.125328 | AA52: =IF(AA103<=0,0,IF(AA51<=0,0,IF(AA11+AA67<=0,IF(AA11=0,IF(AA19=0,IF(AA27=0,IF(AA35=0,IF(AA43=0,IF(AA51+AA67<=0,0,AA51+AA67),AA51*AA103/(AA103-AA43-AA67)),AA51*AA103/(AA103-AA35-AA67)),AA51*AA103/(AA103-AA27-AA67)),AA51*AA103/(AA103-AA19-AA67)),AA51*AA103/(AA103-AA11-AA67)),AA51))) -> 1987.674614 | AB52: =IF(AB103<=0,0,IF(AB51<=0,0,IF(AB11+AB75<=0,IF(AB11=0,IF(AB19=0,IF(AB27=0,IF(AB35=0,IF(AB43=0,IF(AB51+AB75<=0,0,AB51+AB75),AB51*AB103/(AB103-AB43-AB75)),AB51*AB103/(AB103-AB35-AB75)),AB51*AB103/(AB103-AB27-AB75)),AB51*AB103/(AB103-AB19-AB75)),AB51*AB103/(AB103-AB11-AB75)),AB51))) -> 2055.749423 | AC52: =IF(AC103<=0,0,IF(AC51<=0,0,IF(AC11+AC83<=0,IF(AC11=0,IF(AC19=0,IF(AC27=0,IF(AC35=0,IF(AC43=0,IF(AC51+AC83<=0,0,AC51+AC83),AC51*AC103/(AC103-AC43-AC83)),AC51*AC103/(AC103-AC35-AC83)),AC51*AC103/(AC103-AC27-AC83)),AC51*AC103/(AC103-AC19-AC83)),AC51*AC103/(AC103-AC11-AC83)),AC51))) -> 2106.071214 | AD52: =IF(AD103<=0,0,IF(AD51<=0,0,IF(AD11+AD91<=0,IF(AD11=0,IF(AD19=0,IF(AD27=0,IF(AD35=0,IF(AD43=0,IF(AD51+AD91<=0,0,AD51+AD91),AD51*AD103/(AD103-AD43-AD91)),AD51*AD103/(AD103-AD35-AD91)),AD51*AD103/(AD103-AD27-AD91)),AD51*AD103/(AD103-AD19-AD91)),AD51*AD103/(AD103-AD11-AD91)),AD51))) -> 2092.835033 | AE52: =IF(AE103<=0,0,IF(AE51<=0,0,IF(AE11+AE99<=0,IF(AE11=0,IF(AE19=0,IF(AE27=0,IF(AE35=0,IF(AE43=0,IF(AE51+AE99<=0,0,AE51+AE99),AE51*AE103/(AE103-AE43-AE99)),AE51*AE103/(AE103-AE35-AE99)),AE51*AE103/(AE103-AE27-AE99)),AE51*AE103/(AE103-AE19-AE99)),AE51*AE103/(AE103-AE11-AE99)),AE51))) -> 2106.145727 | AF52: =IF(AF103<=0,0,IF(AF51<=0,0,IF(AF11+AF19<=0,IF(AF19=0,IF(AF27=0,IF(AF35=0,IF(AF43=0,IF(AF51+AF11<=0,0,AF51+AF11),AF51*AF103/(AF103-AF43-AF11)),AF51*AF103/(AF103-AF35-AF11)),AF51*AF103/(AF103-AF27-AF11)),AF51*AF103/(AF103-AF11-AF19)),AF51))) -> 2085.606688 | AG52: =IF(AG103<=0,0,IF(AG51<=0,0,IF(AG11+AG19<=0,IF(AG11=0,IF(AG27=0,IF(AG35=0,IF(AG43=0,IF(AG51+AG19<=0,0,AG51+AG19),AG51*AG103/(AG103-AG43-AG19)),AG51*AG103/(AG103-AG35-AG19)),AG51*AG103/(AG103-AG27-AG19)),AG51*AG103/(AG103-AG11-AG19)),AG51))) -> 2009.924742 | AH52: =IF(AH103<=0,0,IF(AH51<=0,0,IF(AH11+AH27<=0,IF(AH11=0,IF(AH19=0,IF(AH35=0,IF(AH43=0,IF(AH51+AH27<=0,0,AH51+AH27),AH51*AH103/(AH103-AH43-AH27)),AH51*AH103/(AH103-AH35-AH27)),AH51*AH103/(AH103-AH19-AH27)),AH51*AH103/(AH103-AH11-AH27)),AH51))) -> 2097.904085 | AI52: =IF(AI103<=0,0,IF(AI51<=0,0,IF(AI11+AI35<=0,IF(AI11=0,IF(AI19=0,IF(AI27=0,IF(AI43=0,IF(AI51+AI35<=0,0,AI51+AI35),AI51*AI103/(AI103-AI43-AI35)),AI51*AI103/(AI103-AI27-AI35)),AI51*AI103/(AI103-AI19-AI35)),AI51*AI103/(AI103-AI11-AI35)),AI51))) -> 2153.724188 | AJ52: =IF(AJ103<=0,0,IF(AJ51<=0,0,IF(AJ11+AJ43<=0,IF(AJ11=0,IF(AJ19=0,IF(AJ27=0,IF(AJ35=0,IF(AJ51+AJ43<=0,0,AJ51+AJ43),AJ51*AJ103/(AJ103-AJ43-AJ35)),AJ51*AJ103/(AJ103-AJ27-AJ43)),AJ51*AJ103/(AJ103-AJ19-AJ43)),AJ51*AJ103/(AJ103-AJ11-AJ43)),AJ51))) -> 2080.383459 | AK52: =IF(AK51<=0,IF(AK$103<=0,AK$103,0),AK51) -> 3152.5 | AL52: =IF(AL103<=0,0,IF(AL51<=0,0,IF(AL11+AL59<=0,IF(AL11=0,IF(AL19=0,IF(AL27=0,IF(AL35=0,IF(AL43=0,IF(AL51+AL59<=0,0,AL51+AL59),AL51*AL103/(AL103-AL43-AL59)),AL51*AL103/(AL103-AL35-AL59)),AL51*AL103/(AL103-AL27-AL59)),AL51*AL103/(AL103-AL19-AL59)),AL51*AL103/(AL103-AL11-AL59)),AL51))) -> 3328.211483 | AM52: =IF(AM103<=0,0,IF(AM51<=0,0,IF(AM11+AM67<=0,IF(AM11=0,IF(AM19=0,IF(AM27=0,IF(AM35=0,IF(AM43=0,IF(AM51+AM67<=0,0,AM51+AM67),AM51*AM103/(AM103-AM43-AM67)),AM51*AM103/(AM103-AM35-AM67)),AM51*AM103/(AM103-AM27-AM67)),AM51*AM103/(AM103-AM19-AM67)),AM51*AM103/(AM103-AM11-AM67)),AM51))) -> 3239.013508 | AN52: =IF(AN103<=0,0,IF(AN51<=0,0,IF(AN11+AN75<=0,IF(AN11=0,IF(AN19=0,IF(AN27=0,IF(AN35=0,IF(AN43=0,IF(AN51+AN75<=0,0,AN51+AN75),AN51*AN103/(AN103-AN43-AN75)),AN51*AN103/(AN103-AN35-AN75)),AN51*AN103/(AN103-AN27-AN75)),AN51*AN103/(AN103-AN19-AN75)),AN51*AN103/(AN103-AN11-AN75)),AN51))) -> 3221.183118 | AO52: =IF(AO103<=0,0,IF(AO51<=0,0,IF(AO11+AO83<=0,IF(AO11=0,IF(AO19=0,IF(AO27=0,IF(AO35=0,IF(AO43=0,IF(AO51+AO83<=0,0,AO51+AO83),AO51*AO103/(AO103-AO43-AO83)),AO51*AO103/(AO103-AO35-AO83)),AO51*AO103/(AO103-AO27-AO83)),AO51*AO103/(AO103-AO19-AO83)),AO51*AO103/(AO103-AO11-AO83)),AO51))) -> 3283.39925 | AP52: =IF(AP103<=0,0,IF(AP51<=0,0,IF(AP11+AP91<=0,IF(AP11=0,IF(AP19=0,IF(AP27=0,IF(AP35=0,IF(AP43=0,IF(AP51+AP91<=0,0,AP51+AP91),AP51*AP103/(AP103-AP43-AP91)),AP51*AP103/(AP103-AP35-AP91)),AP51*AP103/(AP103-AP27-AP91)),AP51*AP103/(AP103-AP19-AP91)),AP51*AP103/(AP103-AP11-AP91)),AP51))) -> 3280.417782 | AQ52: =IF(AQ103<=0,0,IF(AQ51<=0,0,IF(AQ11+AQ99<=0,IF(AQ11=0,IF(AQ19=0,IF(AQ27=0,IF(AQ35=0,IF(AQ43=0,IF(AQ51+AQ99<=0,0,AQ51+AQ99),AQ51*AQ103/(AQ103-AQ43-AQ99)),AQ51*AQ103/(AQ103-AQ35-AQ99)),AQ51*AQ103/(AQ103-AQ27-AQ99)),AQ51*AQ103/(AQ103-AQ19-AQ99)),AQ51*AQ103/(AQ103-AQ11-AQ99)),AQ51))) -> 3229.579431 | AR52: =IF(AR103<=0,0,IF(AR51<=0,0,IF(AR11+AR19<=0,IF(AR19=0,IF(AR27=0,IF(AR35=0,IF(AR43=0,IF(AR51+AR11<=0,0,AR51+AR11),AR51*AR103/(AR103-AR43-AR11)),AR51*AR103/(AR103-AR35-AR11)),AR51*AR103/(AR103-AR27-AR11)),AR51*AR103/(AR103-AR11-AR19)),AR51))) -> 3279.871612 | AS52: =IF(AS103<=0,0,IF(AS51<=0,0,IF(AS11+AS19<=0,IF(AS11=0,IF(AS27=0,IF(AS35=0,IF(AS43=0,IF(AS51+AS19<=0,0,AS51+AS19),AS51*AS103/(AS103-AS43-AS19)),AS51*AS103/(AS103-AS35-AS19)),AS51*AS103/(AS103-AS27-AS19)),AS51*AS103/(AS103-AS11-AS19)),AS51))) -> 3482.260535 | AT52: =IF(AT103<=0,0,IF(AT51<=0,0,IF(AT11+AT27<=0,IF(AT11=0,IF(AT19=0,IF(AT35=0,IF(AT43=0,IF(AT51+AT27<=0,0,AT51+AT27),AT51*AT103/(AT103-AT43-AT27)),AT51*AT103/(AT103-AT35-AT27)),AT51*AT103/(AT103-AT19-AT27)),AT51*AT103/(AT103-AT11-AT27)),AT51))) -> 3489.158654 | AU52: =IF(AU103<=0,0,IF(AU51<=0,0,IF(AU11+AU35<=0,IF(AU11=0,IF(AU19=0,IF(AU27=0,IF(AU43=0,IF(AU51+AU35<=0,0,AU51+AU35),AU51*AU103/(AU103-AU43-AU35)),AU51*AU103/(AU103-AU27-AU35)),AU51*AU103/(AU103-AU19-AU35)),AU51*AU103/(AU103-AU11-AU35)),AU51))) -> 3620.906514 | AV52: =IF(AV103<=0,0,IF(AV51<=0,0,IF(AV11+AV43<=0,IF(AV11=0,IF(AV19=0,IF(AV27=0,IF(AV35=0,IF(AV51+AV43<=0,0,AV51+AV43),AV51*AV103/(AV103-AV43-AV35)),AV51*AV103/(AV103-AV27-AV43)),AV51*AV103/(AV103-AV19-AV43)),AV51*AV103/(AV103-AV11-AV43)),AV51))) -> 3455.171629 | AW52: =IF(AW51<=0,IF(AW$103<=0,AW$103,0),AW51) -> 4310.125 | AX52: =IF(AX103<=0,0,IF(AX51<=0,0,IF(AX11+AX59<=0,IF(AX11=0,IF(AX19=0,IF(AX27=0,IF(AX35=0,IF(AX43=0,IF(AX51+AX59<=0,0,AX51+AX59),AX51*AX103/(AX103-AX43-AX59)),AX51*AX103/(AX103-AX35-AX59)),AX51*AX103/(AX103-AX27-AX59)),AX51*AX103/(AX103-AX19-AX59)),AX51*AX103/(AX103-AX11-AX59)),AX51))) -> 4465.829192 | AY52: =IF(AY103<=0,0,IF(AY51<=0,0,IF(AY11+AY67<=0,IF(AY11=0,IF(AY19=0,IF(AY27=0,IF(AY35=0,IF(AY43=0,IF(AY51+AY67<=0,0,AY51+AY67),AY51*AY103/(AY103-AY43-AY67)),AY51*AY103/(AY103-AY35-AY67)),AY51*AY103/(AY103-AY27-AY67)),AY51*AY103/(AY103-AY19-AY67)),AY51*AY103/(AY103-AY11-AY67)),AY51))) -> 4470.390387 | AZ52: =IF(AZ103<=0,0,IF(AZ51<=0,0,IF(AZ11+AZ75<=0,IF(AZ11=0,IF(AZ19=0,IF(AZ27=0,IF(AZ35=0,IF(AZ43=0,IF(AZ51+AZ75<=0,0,AZ51+AZ75),AZ51*AZ103/(AZ103-AZ43-AZ75)),AZ51*AZ103/(AZ103-AZ35-AZ75)),AZ51*AZ103/(AZ103-AZ27-AZ75)),AZ51*AZ103/(AZ103-AZ19-AZ75)),AZ51*AZ103/(AZ103-AZ11-AZ75)),AZ51))) -> 4728.460459 | BA52: =IF(BA103<=0,0,IF(BA51<=0,0,IF(BA11+BA83<=0,IF(BA11=0,IF(BA19=0,IF(BA27=0,IF(BA35=0,IF(BA43=0,IF(BA51+BA83<=0,0,BA51+BA83),BA51*BA103/(BA103-BA43-BA83)),BA51*BA103/(BA103-BA35-BA83)),BA51*BA103/(BA103-BA27-BA83)),BA51*BA103/(BA103-BA19-BA83)),BA51*BA103/(BA103-BA11-BA83)),BA51))) -> 5168.765449 | BB52: =IF(BB103<=0,0,IF(BB51<=0,0,IF(BB11+BB91<=0,IF(BB11=0,IF(BB19=0,IF(BB27=0,IF(BB35=0,IF(BB43=0,IF(BB51+BB91<=0,0,BB51+BB91),BB51*BB103/(BB103-BB43-BB91)),BB51*BB103/(BB103-BB35-BB91)),BB51*BB103/(BB103-BB27-BB91)),BB51*BB103/(BB103-BB19-BB91)),BB51*BB103/(BB103-BB11-BB91)),BB51))) -> 5242.270258 | BC52: =IF(BC103<=0,0,IF(BC51<=0,0,IF(BC11+BC99<=0,IF(BC11=0,IF(BC19=0,IF(BC27=0,IF(BC35=0,IF(BC43=0,IF(BC51+BC99<=0,0,BC51+BC99),BC51*BC103/(BC103-BC43-BC99)),BC51*BC103/(BC103-BC35-BC99)),BC51*BC103/(BC103-BC27-BC99)),BC51*BC103/(BC103-BC19-BC99)),BC51*BC103/(BC103-BC11-BC99)),BC51))) -> 4922.755217 | BD52: =IF(BD103<=0,0,IF(BD51<=0,0,IF(BD11+BD19<=0,IF(BD19=0,IF(BD27=0,IF(BD35=0,IF(BD43=0,IF(BD51+BD11<=0,0,BD51+BD11),BD51*BD103/(BD103-BD43-BD11)),BD51*BD103/(BD103-BD35-BD11)),BD51*BD103/(BD103-BD27-BD11)),BD51*BD103/(BD103-BD11-BD19)),BD51))) -> 5126.432869 | BE52: =IF(BE103<=0,0,IF(BE51<=0,0,IF(BE11+BE19<=0,IF(BE11=0,IF(BE27=0,IF(BE35=0,IF(BE43=0,IF(BE51+BE19<=0,0,BE51+BE19),BE51*BE103/(BE103-BE43-BE19)),BE51*BE103/(BE103-BE35-BE19)),BE51*BE103/(BE103-BE27-BE19)),BE51*BE103/(BE103-BE11-BE19)),BE51))) -> 5339.826262 | BF52: =IF(BF103<=0,0,IF(BF51<=0,0,IF(BF11+BF27<=0,IF(BF11=0,IF(BF19=0,IF(BF35=0,IF(BF43=0,IF(BF51+BF27<=0,0,BF51+BF27),BF51*BF103/(BF103-BF43-BF27)),BF51*BF103/(BF103-BF35-BF27)),BF51*BF103/(BF103-BF19-BF27)),BF51*BF103/(BF103-BF11-BF27)),BF51))) -> 5363.592976 | BG52: =IF(BG103<=0,0,IF(BG51<=0,0,IF(BG11+BG35<=0,IF(BG11=0,IF(BG19=0,IF(BG27=0,IF(BG43=0,IF(BG51+BG35<=0,0,BG51+BG35),BG51*BG103/(BG103-BG43-BG35)),BG51*BG103/(BG103-BG27-BG35)),BG51*BG103/(BG103-BG19-BG35)),BG51*BG103/(BG103-BG11-BG35)),BG51))) -> 4972.728412 | BH52: =IF(BH103<=0,0,IF(BH51<=0,0,IF(BH11+BH43<=0,IF(BH11=0,IF(BH19=0,IF(BH27=0,IF(BH35=0,IF(BH51+BH43<=0,0,BH51+BH43),BH51*BH103/(BH103-BH43-BH35)),BH51*BH103/(BH103-BH27-BH43)),BH51*BH103/(BH103-BH19-BH43)),BH51*BH103/(BH103-BH11-BH43)),BH51))) -> 4608.784615 | BI52: =IF(BI51<=0,IF(BI$103<=0,BI$103,0),BI51) -> 5748.254233 | BJ52: =IF(BJ103<=0,0,IF(BJ51<=0,0,IF(BJ11+BJ59<=0,IF(BJ11=0,IF(BJ19=0,IF(BJ27=0,IF(BJ35=0,IF(BJ43=0,IF(BJ51+BJ59<=0,0,BJ51+BJ59),BJ51*BJ103/(BJ103-BJ43-BJ59)),BJ51*BJ103/(BJ103-BJ35-BJ59)),BJ51*BJ103/(BJ103-BJ27-BJ59)),BJ51*BJ103/(BJ103-BJ19-BJ59)),BJ51*BJ103/(BJ103-BJ11-BJ59)),BJ51))) -> 5844.760189 | BK52: =IF(BK103<=0,0,IF(BK51<=0,0,IF(BK11+BK67<=0,IF(BK11=0,IF(BK19=0,IF(BK27=0,IF(BK35=0,IF(BK43=0,IF(BK51+BK67<=0,0,BK51+BK67),BK51*BK103/(BK103-BK43-BK67)),BK51*BK103/(BK103-BK35-BK67)),BK51*BK103/(BK103-BK27-BK67)),BK51*BK103/(BK103-BK19-BK67)),BK51*BK103/(BK103-BK11-BK67)),BK51))) -> 6319.860846 | BL52: =IF(BL103<=0,0,IF(BL51<=0,0,IF(BL11+BL75<=0,IF(BL11=0,IF(BL19=0,IF(BL27=0,IF(BL35=0,IF(BL43=0,IF(BL51+BL75<=0,0,BL51+BL75),BL51*BL103/(BL103-BL43-BL75)),BL51*BL103/(BL103-BL35-BL75)),BL51*BL103/(BL103-BL27-BL75)),BL51*BL103/(BL103-BL19-BL75)),BL51*BL103/(BL103-BL11-BL75)),BL51))) -> 6256.592791 | BM52: =IF(BM103<=0,0,IF(BM51<=0,0,IF(BM11+BM83<=0,IF(BM11=0,IF(BM19=0,IF(BM27=0,IF(BM35=0,IF(BM43=0,IF(BM51+BM83<=0,0,BM51+BM83),BM51*BM103/(BM103-BM43-BM83)),BM51*BM103/(BM103-BM35-BM83)),BM51*BM103/(BM103-BM27-BM83)),BM51*BM103/(BM103-BM19-BM83)),BM51*BM103/(BM103-BM11-BM83)),BM51))) -> 5905.855549 | BN52: =IF(BN103<=0,0,IF(BN51<=0,0,IF(BN11+BN91<=0,IF(BN11=0,IF(BN19=0,IF(BN27=0,IF(BN35=0,IF(BN43=0,IF(BN51+BN91<=0,0,BN51+BN91),BN51*BN103/(BN103-BN43-BN91)),BN51*BN103/(BN103-BN35-BN91)),BN51*BN103/(BN103-BN27-BN91)),BN51*BN103/(BN103-BN19-BN91)),BN51*BN103/(BN103-BN11-BN91)),BN51))) -> 5770.517245 | BO52: =IF(BO103<=0,0,IF(BO51<=0,0,IF(BO11+BO99<=0,IF(BO11=0,IF(BO19=0,IF(BO27=0,IF(BO35=0,IF(BO43=0,IF(BO51+BO99<=0,0,BO51+BO99),BO51*BO103/(BO103-BO43-BO99)),BO51*BO103/(BO103-BO35-BO99)),BO51*BO103/(BO103-BO27-BO99)),BO51*BO103/(BO103-BO19-BO99)),BO51*BO103/(BO103-BO11-BO99)),BO51))) -> 5756.685293 | BP52: =IF(BP103<=0,0,IF(BP51<=0,0,IF(BP11+BP19<=0,IF(BP19=0,IF(BP27=0,IF(BP35=0,IF(BP43=0,IF(BP51+BP11<=0,0,BP51+BP11),BP51*BP103/(BP103-BP43-BP11)),BP51*BP103/(BP103-BP35-BP11)),BP51*BP103/(BP103-BP27-BP11)),BP51*BP103/(BP103-BP11-BP19)),BP51))) -> 5889.825054 | BQ52: =IF(BQ103<=0,0,IF(BQ51<=0,0,IF(BQ11+BQ19<=0,IF(BQ11=0,IF(BQ27=0,IF(BQ35=0,IF(BQ43=0,IF(BQ51+BQ19<=0,0,BQ51+BQ19),BQ51*BQ103/(BQ103-BQ43-BQ19)),BQ51*BQ103/(BQ103-BQ35-BQ19)),BQ51*BQ103/(BQ103-BQ27-BQ19)),BQ51*BQ103/(BQ103-BQ11-BQ19)),BQ51))) -> 6137.845782 | BR52: =IF(BR103<=0,0,IF(BR51<=0,0,IF(BR11+BR27<=0,IF(BR11=0,IF(BR19=0,IF(BR35=0,IF(BR43=0,IF(BR51+BR27<=0,0,BR51+BR27),BR51*BR103/(BR103-BR43-BR27)),BR51*BR103/(BR103-BR35-BR27)),BR51*BR103/(BR103-BR19-BR27)),BR51*BR103/(BR103-BR11-BR27)),BR51))) -> 5825.528687 | BS52: =IF(BS103<=0,0,IF(BS51<=0,0,IF(BS11+BS35<=0,IF(BS11=0,IF(BS19=0,IF(BS27=0,IF(BS43=0,IF(BS51+BS35<=0,0,BS51+BS35),BS51*BS103/(BS103-BS43-BS35)),BS51*BS103/(BS103-BS27-BS35)),BS51*BS103/(BS103-BS19-BS35)),BS51*BS103/(BS103-BS11-BS35)),BS51))) -> 5232.162396 | BT52: =IF(BT103<=0,0,IF(BT51<=0,0,IF(BT11+BT43<=0,IF(BT11=0,IF(BT19=0,IF(BT27=0,IF(BT35=0,IF(BT51+BT43<=0,0,BT51+BT43),BT51*BT103/(BT103-BT43-BT35)),BT51*BT103/(BT103-BT27-BT43)),BT51*BT103/(BT103-BT19-BT43)),BT51*BT103/(BT103-BT11-BT43)),BT51))) -> 5585.688849 | BU52: =IF(BU51<=0,IF(BU$103<=0,BU$103,0),BU51) -> 7035.666945 | BV52: =IF(BV103<=0,0,IF(BV51<=0,0,IF(BV11+BV59<=0,IF(BV11=0,IF(BV19=0,IF(BV27=0,IF(BV35=0,IF(BV43=0,IF(BV51+BV59<=0,0,BV51+BV59),BV51*BV103/(BV103-BV43-BV59)),BV51*BV103/(BV103-BV35-BV59)),BV51*BV103/(BV103-BV27-BV59)),BV51*BV103/(BV103-BV19-BV59)),BV51*BV103/(BV103-BV11-BV59)),BV51))) -> 6981.791831 | BW52: =IF(BW103<=0,0,IF(BW51<=0,0,IF(BW11+BW67<=0,IF(BW11=0,IF(BW19=0,IF(BW27=0,IF(BW35=0,IF(BW43=0,IF(BW51+BW67<=0,0,BW51+BW67),BW51*BW103/(BW103-BW43-BW67)),BW51*BW103/(BW103-BW35-BW67)),BW51*BW103/(BW103-BW27-BW67)),BW51*BW103/(BW103-BW19-BW67)),BW51*BW103/(BW103-BW11-BW67)),BW51))) -> 6976.921435 | BX52: =IF(BX103<=0,0,IF(BX51<=0,0,IF(BX11+BX75<=0,IF(BX11=0,IF(BX19=0,IF(BX27=0,IF(BX35=0,IF(BX43=0,IF(BX51+BX75<=0,0,BX51+BX75),BX51*BX103/(BX103-BX43-BX75)),BX51*BX103/(BX103-BX35-BX75)),BX51*BX103/(BX103-BX27-BX75)),BX51*BX103/(BX103-BX19-BX75)),BX51*BX103/(BX103-BX11-BX75)),BX51))) -> 6237.566976 | BY52: =IF(BY103<=0,0,IF(BY51<=0,0,IF(BY11+BY83<=0,IF(BY11=0,IF(BY19=0,IF(BY27=0,IF(BY35=0,IF(BY43=0,IF(BY51+BY83<=0,0,BY51+BY83),BY51*BY103/(BY103-BY43-BY83)),BY51*BY103/(BY103-BY35-BY83)),BY51*BY103/(BY103-BY27-BY83)),BY51*BY103/(BY103-BY19-BY83)),BY51*BY103/(BY103-BY11-BY83)),BY51))) -> 5783.473853 | BZ52: =IF(BZ103<=0,0,IF(BZ51<=0,0,IF(BZ11+BZ91<=0,IF(BZ11=0,IF(BZ19=0,IF(BZ27=0,IF(BZ35=0,IF(BZ43=0,IF(BZ51+BZ91<=0,0,BZ51+BZ91),BZ51*BZ103/(BZ103-BZ43-BZ91)),BZ51*BZ103/(BZ103-BZ35-BZ91)),BZ51*BZ103/(BZ103-BZ27-BZ91)),BZ51*BZ103/(BZ103-BZ19-BZ91)),BZ51*BZ103/(BZ103-BZ11-BZ91)),BZ51))) -> 5411.106892 | CA52: =IF(CA103<=0,0,IF(CA51<=0,0,IF(CA11+CA99<=0,IF(CA11=0,IF(CA19=0,IF(CA27=0,IF(CA35=0,IF(CA43=0,IF(CA51+CA99<=0,0,CA51+CA99),CA51*CA103/(CA103-CA43-CA99)),CA51*CA103/(CA103-CA35-CA99)),CA51*CA103/(CA103-CA27-CA99)),CA51*CA103/(CA103-CA19-CA99)),CA51*CA103/(CA103-CA11-CA99)),CA51))) -> 4925.166765 | CB52: =IF(CB103<=0,0,IF(CB51<=0,0,IF(CB11+CB19<=0,IF(CB19=0,IF(CB27=0,IF(CB35=0,IF(CB43=0,IF(CB51+CB11<=0,0,CB51+CB11),CB51*CB103/(CB103-CB43-CB11)),CB51*CB103/(CB103-CB35-CB11)),CB51*CB103/(CB103-CB27-CB11)),CB51*CB103/(CB103-CB11-CB19)),CB51))) -> 5070.316093 | CC52: =IF(CC103<=0,0,IF(CC51<=0,0,IF(CC11+CC19<=0,IF(CC11=0,IF(CC27=0,IF(CC35=0,IF(CC43=0,IF(CC51+CC19<=0,0,CC51+CC19),CC51*CC103/(CC103-CC43-CC19)),CC51*CC103/(CC103-CC35-CC19)),CC51*CC103/(CC103-CC27-CC19)),CC51*CC103/(CC103-CC11-CC19)),CC51))) -> 4933.234255 | CD52: =IF(CD103<=0,0,IF(CD51<=0,0,IF(CD11+CD27<=0,IF(CD11=0,IF(CD19=0,IF(CD35=0,IF(CD43=0,IF(CD51+CD27<=0,0,CD51+CD27),CD51*CD103/(CD103-CD43-CD27)),CD51*CD103/(CD103-CD35-CD27)),CD51*CD103/(CD103-CD19-CD27)),CD51*CD103/(CD103-CD11-CD27)),CD51))) -> 4794.581192 | CE52: =IF(CE103<=0,0,IF(CE51<=0,0,IF(CE11+CE35<=0,IF(CE11=0,IF(CE19=0,IF(CE27=0,IF(CE43=0,IF(CE51+CE35<=0,0,CE51+CE35),CE51*CE103/(CE103-CE43-CE35)),CE51*CE103/(CE103-CE27-CE35)),CE51*CE103/(CE103-CE19-CE35)),CE51*CE103/(CE103-CE11-CE35)),CE51))) -> 4489.40294 | CF52: =IF(CF103<=0,0,IF(CF51<=0,0,IF(CF11+CF43<=0,IF(CF11=0,IF(CF19=0,IF(CF27=0,IF(CF35=0,IF(CF51+CF43<=0,0,CF51+CF43),CF51*CF103/(CF103-CF43-CF35)),CF51*CF103/(CF103-CF27-CF43)),CF51*CF103/(CF103-CF19-CF43)),CF51*CF103/(CF103-CF11-CF43)),CF51))) -> 4651.693354 | CG52: =IF(CG51<=0,IF(CG$103<=0,CG$103,0),CG51) -> 8387.450292 | CH52: =IF(CH103<=0,0,IF(CH51<=0,0,IF(CH11+CH59<=0,IF(CH11=0,IF(CH19=0,IF(CH27=0,IF(CH35=0,IF(CH43=0,IF(CH51+CH59<=0,0,CH51+CH59),CH51*CH103/(CH103-CH43-CH59)),CH51*CH103/(CH103-CH35-CH59)),CH51*CH103/(CH103-CH27-CH59)),CH51*CH103/(CH103-CH19-CH59)),CH51*CH103/(CH103-CH11-CH59)),CH51))) -> 8569.687188 | CI52: =IF(CI103<=0,0,IF(CI51<=0,0,IF(CI11+CI67<=0,IF(CI11=0,IF(CI19=0,IF(CI27=0,IF(CI35=0,IF(CI43=0,IF(CI51+CI67<=0,0,CI51+CI67),CI51*CI103/(CI103-CI43-CI67)),CI51*CI103/(CI103-CI35-CI67)),CI51*CI103/(CI103-CI27-CI67)),CI51*CI103/(CI103-CI19-CI67)),CI51*CI103/(CI103-CI11-CI67)),CI51))) -> 9070.283776 | CJ52: =IF(CJ103<=0,0,IF(CJ51<=0,0,IF(CJ11+CJ75<=0,IF(CJ11=0,IF(CJ19=0,IF(CJ27=0,IF(CJ35=0,IF(CJ43=0,IF(CJ51+CJ75<=0,0,CJ51+CJ75),CJ51*CJ103/(CJ103-CJ43-CJ75)),CJ51*CJ103/(CJ103-CJ35-CJ75)),CJ51*CJ103/(CJ103-CJ27-CJ75)),CJ51*CJ103/(CJ103-CJ19-CJ75)),CJ51*CJ103/(CJ103-CJ11-CJ75)),CJ51))) -> 8445.174923 | CK52: =IF(CK103<=0,0,IF(CK51<=0,0,IF(CK11+CK83<=0,IF(CK11=0,IF(CK19=0,IF(CK27=0,IF(CK35=0,IF(CK43=0,IF(CK51+CK83<=0,0,CK51+CK83),CK51*CK103/(CK103-CK43-CK83)),CK51*CK103/(CK103-CK35-CK83)),CK51*CK103/(CK103-CK27-CK83)),CK51*CK103/(CK103-CK19-CK83)),CK51*CK103/(CK103-CK11-CK83)),CK51))) -> 8290.737899 | CL52: =IF(CL103<=0,0,IF(CL51<=0,0,IF(CL11+CL91<=0,IF(CL11=0,IF(CL19=0,IF(CL27=0,IF(CL35=0,IF(CL43=0,IF(CL51+CL91<=0,0,CL51+CL91),CL51*CL103/(CL103-CL43-CL91)),CL51*CL103/(CL103-CL35-CL91)),CL51*CL103/(CL103-CL27-CL91)),CL51*CL103/(CL103-CL19-CL91)),CL51*CL103/(CL103-CL11-CL91)),CL51))) -> 8270.287153 | CM52: =IF(CM103<=0,0,IF(CM51<=0,0,IF(CM11+CM99<=0,IF(CM11=0,IF(CM19=0,IF(CM27=0,IF(CM35=0,IF(CM43=0,IF(CM51+CM99<=0,0,CM51+CM99),CM51*CM103/(CM103-CM43-CM99)),CM51*CM103/(CM103-CM35-CM99)),CM51*CM103/(CM103-CM27-CM99)),CM51*CM103/(CM103-CM19-CM99)),CM51*CM103/(CM103-CM11-CM99)),CM51))) -> 8638.773397 | CN52: =IF(CN103<=0,0,IF(CN51<=0,0,IF(CN11+CN19<=0,IF(CN19=0,IF(CN27=0,IF(CN35=0,IF(CN43=0,IF(CN51+CN11<=0,0,CN51+CN11),CN51*CN103/(CN103-CN43-CN11)),CN51*CN103/(CN103-CN35-CN11)),CN51*CN103/(CN103-CN27-CN11)),CN51*CN103/(CN103-CN11-CN19)),CN51))) -> 9286.734883 | CO52: =IF(CO103<=0,0,IF(CO51<=0,0,IF(CO11+CO19<=0,IF(CO11=0,IF(CO27=0,IF(CO35=0,IF(CO43=0,IF(CO51+CO19<=0,0,CO51+CO19),CO51*CO103/(CO103-CO43-CO19)),CO51*CO103/(CO103-CO35-CO19)),CO51*CO103/(CO103-CO27-CO19)),CO51*CO103/(CO103-CO11-CO19)),CO51))) -> 9627.670817 | CP52: =IF(CP103<=0,0,IF(CP51<=0,0,IF(CP11+CP27<=0,IF(CP11=0,IF(CP19=0,IF(CP35=0,IF(CP43=0,IF(CP51+CP27<=0,0,CP51+CP27),CP51*CP103/(CP103-CP43-CP27)),CP51*CP103/(CP103-CP35-CP27)),CP51*CP103/(CP103-CP19-CP27)),CP51*CP103/(CP103-CP11-CP27)),CP51))) -> 9272.482096 | CQ52: =IF(CQ103<=0,0,IF(CQ51<=0,0,IF(CQ11+CQ35<=0,IF(CQ11=0,IF(CQ19=0,IF(CQ27=0,IF(CQ43=0,IF(CQ51+CQ35<=0,0,CQ51+CQ35),CQ51*CQ103/(CQ103-CQ43-CQ35)),CQ51*CQ103/(CQ103-CQ27-CQ35)),CQ51*CQ103/(CQ103-CQ19-CQ35)),CQ51*CQ103/(CQ103-CQ11-CQ35)),CQ51))) -> 10475.14861 | CR52: =IF(CR103<=0,0,IF(CR51<=0,0,IF(CR11+CR43<=0,IF(CR11=0,IF(CR19=0,IF(CR27=0,IF(CR35=0,IF(CR51+CR43<=0,0,CR51+CR43),CR51*CR103/(CR103-CR43-CR35)),CR51*CR103/(CR103-CR27-CR43)),CR51*CR103/(CR103-CR19-CR43)),CR51*CR103/(CR103-CR11-CR43)),CR51))) -> 9547.925834 | CS52: =IF(CS51<=0,IF(CS$103<=0,CS$103,0),CS51) -> 10353.22194 | CT52: =IF(CT103<=0,0,IF(CT51<=0,0,IF(CT11+CT59<=0,IF(CT11=0,IF(CT19=0,IF(CT27=0,IF(CT35=0,IF(CT43=0,IF(CT51+CT59<=0,0,CT51+CT59),CT51*CT103/(CT103-CT43-CT59)),CT51*CT103/(CT103-CT35-CT59)),CT51*CT103/(CT103-CT27-CT59)),CT51*CT103/(CT103-CT19-CT59)),CT51*CT103/(CT103-CT11-CT59)),CT51))) -> 11050.80775 | CU52: =IF(CU103<=0,0,IF(CU51<=0,0,IF(CU11+CU67<=0,IF(CU11=0,IF(CU19=0,IF(CU27=0,IF(CU35=0,IF(CU43=0,IF(CU51+CU67<=0,0,CU51+CU67),CU51*CU103/(CU103-CU43-CU67)),CU51*CU103/(CU103-CU35-CU67)),CU51*CU103/(CU103-CU27-CU67)),CU51*CU103/(CU103-CU19-CU67)),CU51*CU103/(CU103-CU11-CU67)),CU51))) -> 12094.07299 | CV52: =IF(CV103<=0,0,IF(CV51<=0,0,IF(CV11+CV75<=0,IF(CV11=0,IF(CV19=0,IF(CV27=0,IF(CV35=0,IF(CV43=0,IF(CV51+CV75<=0,0,CV51+CV75),CV51*CV103/(CV103-CV43-CV75)),CV51*CV103/(CV103-CV35-CV75)),CV51*CV103/(CV103-CV27-CV75)),CV51*CV103/(CV103-CV19-CV75)),CV51*CV103/(CV103-CV11-CV75)),CV51))) -> 12467.37768 | CW52: =IF(CW103<=0,0,IF(CW51<=0,0,IF(CW11+CW83<=0,IF(CW11=0,IF(CW19=0,IF(CW27=0,IF(CW35=0,IF(CW43=0,IF(CW51+CW83<=0,0,CW51+CW83),CW51*CW103/(CW103-CW43-CW83)),CW51*CW103/(CW103-CW35-CW83)),CW51*CW103/(CW103-CW27-CW83)),CW51*CW103/(CW103-CW19-CW83)),CW51*CW103/(CW103-CW11-CW83)),CW51))) -> 13512.2121 | CX52: =IF(CX103<=0,0,IF(CX51<=0,0,IF(CX11+CX91<=0,IF(CX11=0,IF(CX19=0,IF(CX27=0,IF(CX35=0,IF(CX43=0,IF(CX51+CX91<=0,0,CX51+CX91),CX51*CX103/(CX103-CX43-CX91)),CX51*CX103/(CX103-CX35-CX91)),CX51*CX103/(CX103-CX27-CX91)),CX51*CX103/(CX103-CX19-CX91)),CX51*CX103/(CX103-CX11-CX91)),CX51))) -> 12533.69108 | CY52: =IF(CY103<=0,0,IF(CY51<=0,0,IF(CY11+CY99<=0,IF(CY11=0,IF(CY19=0,IF(CY27=0,IF(CY35=0,IF(CY43=0,IF(CY51+CY99<=0,0,CY51+CY99),CY51*CY103/(CY103-CY43-CY99)),CY51*CY103/(CY103-CY35-CY99)),CY51*CY103/(CY103-CY27-CY99)),CY51*CY103/(CY103-CY19-CY99)),CY51*CY103/(CY103-CY11-CY99)),CY51))) -> 12648.30134 | CZ52: =IF(CZ103<=0,0,IF(CZ51<=0,0,IF(CZ11+CZ19<=0,IF(CZ19=0,IF(CZ27=0,IF(CZ35=0,IF(CZ43=0,IF(CZ51+CZ11<=0,0,CZ51+CZ11),CZ51*CZ103/(CZ103-CZ43-CZ11)),CZ51*CZ103/(CZ103-CZ35-CZ11)),CZ51*CZ103/(CZ103-CZ27-CZ11)),CZ51*CZ103/(CZ103-CZ11-CZ19)),CZ51))) -> 12946.74818 | DA52: =IF(DA103<=0,0,IF(DA51<=0,0,IF(DA11+DA19<=0,IF(DA11=0,IF(DA27=0,IF(DA35=0,IF(DA43=0,IF(DA51+DA19<=0,0,DA51+DA19),DA51*DA103/(DA103-DA43-DA19)),DA51*DA103/(DA103-DA35-DA19)),DA51*DA103/(DA103-DA27-DA19)),DA51*DA103/(DA103-DA11-DA19)),DA51))) -> 13168.91939 | DB52: =IF(DB103<=0,0,IF(DB51<=0,0,IF(DB11+DB27<=0,IF(DB11=0,IF(DB19=0,IF(DB35=0,IF(DB43=0,IF(DB51+DB27<=0,0,DB51+DB27),DB51*DB103/(DB103-DB43-DB27)),DB51*DB103/(DB103-DB35-DB27)),DB51*DB103/(DB103-DB19-DB27)),DB51*DB103/(DB103-DB11-DB27)),DB51))) -> 12759.42996 | DC52: =IF(DC103<=0,0,IF(DC51<=0,0,IF(DC11+DC35<=0,IF(DC11=0,IF(DC19=0,IF(DC27=0,IF(DC43=0,IF(DC51+DC35<=0,0,DC51+DC35),DC51*DC103/(DC103-DC43-DC35)),DC51*DC103/(DC103-DC27-DC35)),DC51*DC103/(DC103-DC19-DC35)),DC51*DC103/(DC103-DC11-DC35)),DC51))) -> 13838.74252 | DD52: =IF(DD103<=0,0,IF(DD51<=0,0,IF(DD11+DD43<=0,IF(DD11=0,IF(DD19=0,IF(DD27=0,IF(DD35=0,IF(DD51+DD43<=0,0,DD51+DD43),DD51*DD103/(DD103-DD43-DD35)),DD51*DD103/(DD103-DD27-DD43)),DD51*DD103/(DD103-DD19-DD43)),DD51*DD103/(DD103-DD11-DD43)),DD51))) -> 13492.75961 | DE52: =IF(DE51<=0,IF(DE$103<=0,DE$103,0),DE51) -> 12699.1408 | DF52: =IF(DF103<=0,0,IF(DF51<=0,0,IF(DF11+DF59<=0,IF(DF11=0,IF(DF19=0,IF(DF27=0,IF(DF35=0,IF(DF43=0,IF(DF51+DF59<=0,0,DF51+DF59),DF51*DF103/(DF103-DF43-DF59)),DF51*DF103/(DF103-DF35-DF59)),DF51*DF103/(DF103-DF27-DF59)),DF51*DF103/(DF103-DF19-DF59)),DF51*DF103/(DF103-DF11-DF59)),DF51))) -> 14665.78817 | DG52: =IF(DG103<=0,0,IF(DG51<=0,0,IF(DG11+DG67<=0,IF(DG11=0,IF(DG19=0,IF(DG27=0,IF(DG35=0,IF(DG43=0,IF(DG51+DG67<=0,0,DG51+DG67),DG51*DG103/(DG103-DG43-DG67)),DG51*DG103/(DG103-DG35-DG67)),DG51*DG103/(DG103-DG27-DG67)),DG51*DG103/(DG103-DG19-DG67)),DG51*DG103/(DG103-DG11-DG67)),DG51))) -> 14665.09784 | DH52: =IF(DH103<=0,0,IF(DH51<=0,0,IF(DH11+DH75<=0,IF(DH11=0,IF(DH19=0,IF(DH27=0,IF(DH35=0,IF(DH43=0,IF(DH51+DH75<=0,0,DH51+DH75),DH51*DH103/(DH103-DH43-DH75)),DH51*DH103/(DH103-DH35-DH75)),DH51*DH103/(DH103-DH27-DH75)),DH51*DH103/(DH103-DH19-DH75)),DH51*DH103/(DH103-DH11-DH75)),DH51))) -> 14563.32988 | DI52: =IF(DI103<=0,0,IF(DI51<=0,0,IF(DI11+DI83<=0,IF(DI11=0,IF(DI19=0,IF(DI27=0,IF(DI35=0,IF(DI43=0,IF(DI51+DI83<=0,0,DI51+DI83),DI51*DI103/(DI103-DI43-DI83)),DI51*DI103/(DI103-DI35-DI83)),DI51*DI103/(DI103-DI27-DI83)),DI51*DI103/(DI103-DI19-DI83)),DI51*DI103/(DI103-DI11-DI83)),DI51))) -> 16361.0983 | DJ52: =IF(DJ103<=0,0,IF(DJ51<=0,0,IF(DJ11+DJ91<=0,IF(DJ11=0,IF(DJ19=0,IF(DJ27=0,IF(DJ35=0,IF(DJ43=0,IF(DJ51+DJ91<=0,0,DJ51+DJ91),DJ51*DJ103/(DJ103-DJ43-DJ91)),DJ51*DJ103/(DJ103-DJ35-DJ91)),DJ51*DJ103/(DJ103-DJ27-DJ91)),DJ51*DJ103/(DJ103-DJ19-DJ91)),DJ51*DJ103/(DJ103-DJ11-DJ91)),DJ51))) -> 16844.13738 | DK52: =IF(DK103<=0,0,IF(DK51<=0,0,IF(DK11+DK99<=0,IF(DK11=0,IF(DK19=0,IF(DK27=0,IF(DK35=0,IF(DK43=0,IF(DK51+DK99<=0,0,DK51+DK99),DK51*DK103/(DK103-DK43-DK99)),DK51*DK103/(DK103-DK35-DK99)),DK51*DK103/(DK103-DK27-DK99)),DK51*DK103/(DK103-DK19-DK99)),DK51*DK103/(DK103-DK11-DK99)),DK51))) -> 16706.41553 | DL52: =IF(DL103<=0,0,IF(DL51<=0,0,IF(DL11+DL19<=0,IF(DL19=0,IF(DL27=0,IF(DL35=0,IF(DL43=0,IF(DL51+DL11<=0,0,DL51+DL11),DL51*DL103/(DL103-DL43-DL11)),DL51*DL103/(DL103-DL35-DL11)),DL51*DL103/(DL103-DL27-DL11)),DL51*DL103/(DL103-DL11-DL19)),DL51))) -> 18665.30828 | DM52: =IF(DM103<=0,0,IF(DM51<=0,0,IF(DM11+DM19<=0,IF(DM11=0,IF(DM27=0,IF(DM35=0,IF(DM43=0,IF(DM51+DM19<=0,0,DM51+DM19),DM51*DM103/(DM103-DM43-DM19)),DM51*DM103/(DM103-DM35-DM19)),DM51*DM103/(DM103-DM27-DM19)),DM51*DM103/(DM103-DM11-DM19)),DM51))) -> 18402.35843 | DN52: =IF(DN103<=0,0,IF(DN51<=0,0,IF(DN11+DN27<=0,IF(DN11=0,IF(DN19=0,IF(DN35=0,IF(DN43=0,IF(DN51+DN27<=0,0,DN51+DN27),DN51*DN103/(DN103-DN43-DN27)),DN51*DN103/(DN103-DN35-DN27)),DN51*DN103/(DN103-DN19-DN27)),DN51*DN103/(DN103-DN11-DN27)),DN51))) -> 19925.51918 | DO52: =IF(DO103<=0,0,IF(DO51<=0,0,IF(DO11+DO35<=0,IF(DO11=0,IF(DO19=0,IF(DO27=0,IF(DO43=0,IF(DO51+DO35<=0,0,DO51+DO35),DO51*DO103/(DO103-DO43-DO35)),DO51*DO103/(DO103-DO27-DO35)),DO51*DO103/(DO103-DO19-DO35)),DO51*DO103/(DO103-DO11-DO35)),DO51))) -> 19609.22791 | DP52: =IF(DP103<=0,0,IF(DP51<=0,0,IF(DP11+DP43<=0,IF(DP11=0,IF(DP19=0,IF(DP27=0,IF(DP35=0,IF(DP51+DP43<=0,0,DP51+DP43),DP51*DP103/(DP103-DP43-DP35)),DP51*DP103/(DP103-DP27-DP43)),DP51*DP103/(DP103-DP19-DP43)),DP51*DP103/(DP103-DP11-DP43)),DP51))) -> 20620.04968 | DQ52: =IF(DQ51<=0,IF(DQ$103<=0,DQ$103,0),DQ51) -> 15350.0291 | DR52: =IF(DR103<=0,0,IF(DR51<=0,0,IF(DR11+DR59<=0,IF(DR11=0,IF(DR19=0,IF(DR27=0,IF(DR35=0,IF(DR43=0,IF(DR51+DR59<=0,0,DR51+DR59),DR51*DR103/(DR103-DR43-DR59)),DR51*DR103/(DR103-DR35-DR59)),DR51*DR103/(DR103-DR27-DR59)),DR51*DR103/(DR103-DR19-DR59)),DR51*DR103/(DR103-DR11-DR59)),DR51))) -> 15230.37087 | DS52: =IF(DS103<=0,0,IF(DS51<=0,0,IF(DS11+DS67<=0,IF(DS11=0,IF(DS19=0,IF(DS27=0,IF(DS35=0,IF(DS43=0,IF(DS51+DS67<=0,0,DS51+DS67),DS51*DS103/(DS103-DS43-DS67)),DS51*DS103/(DS103-DS35-DS67)),DS51*DS103/(DS103-DS27-DS67)),DS51*DS103/(DS103-DS19-DS67)),DS51*DS103/(DS103-DS11-DS67)),DS51))) -> 15781.35441 | DT52: =IF(DT103<=0,0,IF(DT51<=0,0,IF(DT11+DT75<=0,IF(DT11=0,IF(DT19=0,IF(DT27=0,IF(DT35=0,IF(DT43=0,IF(DT51+DT75<=0,0,DT51+DT75),DT51*DT103/(DT103-DT43-DT75)),DT51*DT103/(DT103-DT35-DT75)),DT51*DT103/(DT103-DT27-DT75)),DT51*DT103/(DT103-DT19-DT75)),DT51*DT103/(DT103-DT11-DT75)),DT51))) -> 15716.4571 | DU52: =IF(DU103<=0,0,IF(DU51<=0,0,IF(DU11+DU83<=0,IF(DU11=0,IF(DU19=0,IF(DU27=0,IF(DU35=0,IF(DU43=0,IF(DU51+DU83<=0,0,DU51+DU83),DU51*DU103/(DU103-DU43-DU83)),DU51*DU103/(DU103-DU35-DU83)),DU51*DU103/(DU103-DU27-DU83)),DU51*DU103/(DU103-DU19-DU83)),DU51*DU103/(DU103-DU11-DU83)),DU51))) -> 15351.96057 | DV52: =IF(DV103<=0,0,IF(DV51<=0,0,IF(DV11+DV91<=0,IF(DV11=0,IF(DV19=0,IF(DV27=0,IF(DV35=0,IF(DV43=0,IF(DV51+DV91<=0,0,DV51+DV91),DV51*DV103/(DV103-DV43-DV91)),DV51*DV103/(DV103-DV35-DV91)),DV51*DV103/(DV103-DV27-DV91)),DV51*DV103/(DV103-DV19-DV91)),DV51*DV103/(DV103-DV11-DV91)),DV51))) -> 15927.48255 | DW52: =IF(DW103<=0,0,IF(DW51<=0,0,IF(DW11+DW99<=0,IF(DW11=0,IF(DW19=0,IF(DW27=0,IF(DW35=0,IF(DW43=0,IF(DW51+DW99<=0,0,DW51+DW99),DW51*DW103/(DW103-DW43-DW99)),DW51*DW103/(DW103-DW35-DW99)),DW51*DW103/(DW103-DW27-DW99)),DW51*DW103/(DW103-DW19-DW99)),DW51*DW103/(DW103-DW11-DW99)),DW51))) -> 16353.29333
A53: 0.004647211459 | B53: 33 | C53: 0.0064 | D53: 0 | F53: EOM_Balance | G53: 0 | H53: 0 | I53: 0 | J53: 0 | K53: 0 | L53: 0 | M53: =M52*M4 -> 958.9285567 | N53: =N52*N4 -> 972.9249263 | O53: 975.2390827 | P53: 978.8988619 | Q53: 929.6611642 | R53: 944.934254 | S53: 938.4622706 | T53: 945.4889404 | U53: 929.6392371 | V53: 960.0445792 | W53: =W52*W4 -> 976.7720959 | X53: =X52*X5 -> 1050 | Y53: =Y52*Y$4 -> 1980.125328 | Z53: =Z52*Z$4 -> 1987.674614 | AA53: 2055.749423 | AB53: 2106.071214 | AC53: 2092.835033 | AD53: 2106.145727 | AE53: 2085.606688 | AF53: =AF52*AF4 -> 2009.924742 | AG53: 2097.904085 | AH53: 2153.724188 | AI53: =AI52*AI4 -> 2080.383459 | AJ53: =AJ52*AJ5 -> 2152.5 | AK53: =AK52*AK$4 -> 3328.211483 | AL53: =AL52*AL$4 -> 3239.013508 | AM53: 3221.183118 | AN53: 3283.39925 | AO53: 3280.417782 | AP53: 3229.579431 | AQ53: 3279.871612 | AR53: =AR52*AR4 -> 3482.260535 | AS53: 3489.158654 | AT53: 3620.906514 | AU53: =AU52*AU4 -> 3455.171629 | AV53: =AV52*AV5 -> 3310.125 | AW53: =AW52*AW$4 -> 4465.829192 | AX53: =AX52*AX$4 -> 4470.390387 | AY53: 4728.460459 | AZ53: 5168.765449 | BA53: 5242.270258 | BB53: 4922.755217 | BC53: 5126.432869 | BD53: =BD52*BD4 -> 5339.826262 | BE53: 5363.592976 | BF53: 4972.728412 | BG53: =BG52*BG4 -> 4608.784615 | BH53: =BH52*BH5 -> 4748.254233 | BI53: =BI52*BI$4 -> 5844.760189 | BJ53: =BJ52*BJ$4 -> 6319.860846 | BK53: 6256.592791 | BL53: 5905.855549 | BM53: 5770.517245 | BN53: 5756.685293 | BO53: 5889.825054 | BP53: =BP52*BP4 -> 6137.845782 | BQ53: 5825.528687 | BR53: 5232.162396 | BS53: =BS52*BS4 -> 5585.688849 | BT53: =BT52*BT5 -> 6035.666945 | BU53: =BU52*BU$4 -> 6981.791831 | BV53: =BV52*BV$4 -> 6976.921435 | BW53: 6237.566976 | BX53: 5783.473853 | BY53: 5411.106892 | BZ53: 4925.166765 | CA53: 5070.316093 | CB53: =CB52*CB4 -> 4933.234255 | CC53: 4794.581192 | CD53: 4489.40294 | CE53: =CE52*CE4 -> 4651.693354 | CF53: =CF52*CF5 -> 7387.450292 | CG53: =CG52*CG$4 -> 8569.687188 | CH53: =CH52*CH$4 -> 9070.283776 | CI53: 8445.174923 | CJ53: 8290.737899 | CK53: 8270.287153 | CL53: 8638.773397 | CM53: 9286.734883 | CN53: =CN52*CN4 -> 9627.670817 | CO53: 9272.482096 | CP53: 10475.14861 | CQ53: =CQ52*CQ4 -> 9547.925834 | CR53: =CR52*CR5 -> 9353.221944 | CS53: =CS52*CS$4 -> 11050.80775 | CT53: =CT52*CT$4 -> 12094.07299 | CU53: 12467.37768 | CV53: 13512.2121 | CW53: 12533.69108 | CX53: 12648.30134 | CY53: 12946.74818 | CZ53: =CZ52*CZ4 -> 13168.91939 | DA53: 12759.42996 | DB53: 13838.74252 | DC53: =DC52*DC4 -> 13492.75961 | DD53: =DD52*DD5 -> 11699.1408 | DE53: =DE52*DE$4 -> 14665.78817 | DF53: =DF52*DF$4 -> 14665.09784 | DG53: 14563.32988 | DH53: 16361.0983 | DI53: 16844.13738 | DJ53: 16706.41553 | DK53: 18665.30828 | DL53: =DL52*DL4 -> 18402.35843 | DM53: 19925.51918 | DN53: 19609.22791 | DO53: =DO52*DO4 -> 20620.04968 | DP53: =DP52*DP5 -> 14350.0291 | DQ53: =DQ52*DQ$4 -> 15230.37087 | DR53: =DR52*DR$4 -> 15781.35441 | DS53: 15716.4571 | DT53: 15351.96057 | DU53: 15927.48255 | DV53: 16353.29333 | DW53: =DW52*DX53 -> 16484.34247 | DX53: =IF(PRODUCT(DQ4:DW4)>($B$11)^(7/12),($B$11)^(7/12)/PRODUCT(DQ4:DV4),IF(PRODUCT(DQ4:DW4)<($B$12)^(7/12),($B$12)^(7/12)/PRODUCT(DQ4:DV4),DW4)) -> 1.008013623
A54: 0.004648208004 | B54: 34 | C54: 0.0066 | D54: 0 | E54: July | F54: BOM_Pre_CF_Balance | G54: 0 | H54: 0 | I54: 0 | J54: 0 | K54: 0 | L54: 0 | M54: 0 | N54: 0 | O54: =N61 -> 1014.595842 | P54: =O61 -> 1017.009115 | Q54: =P61 -> 1020.825644 | R54: =Q61 -> 969.4790688 | S54: =R61 -> 985.4063136 | T54: 978.6571315 | U54: 985.9847575 | V54: 969.4562025 | W54: 1001.163822 | X54: 1018.607788 | Y54: 1003.018288 | Z54: 1050 | AA54: =Z61 -> 2057.815684 | AB54: =AA61 -> 2128.292718 | AC54: =AB61 -> 2180.390264 | AD54: =AC61 -> 2166.687006 | AE54: =AD61 -> 2180.467407 | AF54: =AE61 -> 2159.203587 | AG54: =AF61 -> 2080.850975 | AH54: =AG61 -> 2171.934934 | AI54: =AH61 -> 2229.724818 | AJ54: =AI61 -> 2153.79604 | AK54: =AJ61 -> 2141.711231 | AL54: =AK61 -> 2261.084191 | AM54: =AL61 -> 3173.685266 | AN54: =AM61 -> 3156.214501 | AO54: =AN61 -> 3217.175784 | AP54: =AO61 -> 3214.25445 | AQ54: =AP61 -> 3164.441467 | AR54: =AQ61 -> 3213.719296 | AS54: =AR61 -> 3412.026201 | AT54: =AS61 -> 3418.78519 | AU54: =AT61 -> 3547.875804 | AV54: =AU61 -> 3385.483656 | AW54: =AV61 -> 3239.926967 | AX54: =AW61 -> 3424.138401 | AY54: =AX61 -> 4428.657014 | AZ54: =AY61 -> 4684.317872 | BA54: =AZ61 -> 5120.51239 | BB54: =BA61 -> 5193.330994 | BC54: =BB61 -> 4876.798788 | BD54: =BC61 -> 5078.575006 | BE54: =BD61 -> 5289.976263 | BF54: =BE61 -> 5313.521102 | BG54: =BF61 -> 4926.305458 | BH54: =BG61 -> 4565.759262 | BI54: =BH61 -> 4703.926861 | BJ54: =BI61 -> 4782.899874 | BK54: =BJ61 -> 6252.972116 | BL54: =BK61 -> 6190.373684 | BM54: =BL61 -> 5843.348607 | BN54: =BM61 -> 5709.44271 | BO54: =BN61 -> 5695.757153 | BP54: =BO61 -> 5827.487777 | BQ54: =BP61 -> 6072.88348 | BR54: =BQ61 -> 5763.871916 | BS54: =BR61 -> 5176.78575 | BT54: =BS61 -> 5526.570517 | BU54: =BT61 -> 5194.618616 | BV54: =BU61 -> 6072.044867 | BW54: =BV61 -> 7067.111512 | BX54: =BW61 -> 6318.199481 | BY54: =BX61 -> 5858.236334 | BZ54: =BY61 -> 5481.055816 | CA54: =BZ61 -> 4988.833982 | CB54: =CA61 -> 5135.859643 | CC54: =CB61 -> 4997.00576 | CD54: =CC61 -> 4856.56034 | CE54: =CD61 -> 4547.437075 | CF54: =CE61 -> 4711.825403 | CG54: =CF61 -> 5225.868359 | CH54: =CG61 -> 7425.647111 | CI54: =CH61 -> 8917.829626 | CJ54: =CI61 -> 8303.227659 | CK54: =CJ61 -> 8151.386427 | CL54: =CK61 -> 8131.279418 | CM54: =CL61 -> 8493.572113 | CN54: =CM61 -> 9130.642603 | CO54: =CN61 -> 9465.848055 | CP54: =CO61 -> 9116.629378 | CQ54: =CP61 -> 10299.08136 | CR54: =CQ61 -> 9387.443433 | CS54: =CR61 -> 9196.012144 | CT54: =CS61 -> 9520.981235 | CU54: =CT61 -> 11514.22755 | CV54: =CU61 -> 11869.63429 | CW54: =CV61 -> 12864.37456 | CX54: =CW61 -> 11932.76832 | CY54: =CX61 -> 12041.88365 | CZ54: =CY61 -> 12326.02157 | DA54: =CZ61 -> 12537.54087 | DB54: =DA61 -> 12147.68425 | DC54: =DB61 -> 13175.2496 | DD54: =DC61 -> 12845.8547 | DE54: =DD61 -> 12654.4863 | DF54: =DE61 -> 11888.7088 | DG54: =DF61 -> 12888.10211 | DH54: =DG61 -> 12798.66556 | DI54: =DH61 -> 14378.59521 | DJ54: =DI61 -> 14803.1036 | DK54: =DJ61 -> 14682.06974 | DL54: =DK61 -> 16403.60001 | DM54: =DL61 -> 16172.51226 | DN54: =DM61 -> 17511.10894 | DO54: =DN61 -> 17233.14324 | DP54: =DO61 -> 18121.48196 | DQ54: =DP61 -> 18886.16849 | DR54: =DQ61 -> 14564.24094 | DS54: =DR61 -> 16127.30278 | DT54: =DS61 -> 16060.98282 | DU54: =DT61 -> 15688.49605 | DV54: =DU61 -> 16276.63424 | DW54: =DV61 -> 16711.77936
A55: 0.004661674865 | B55: 35 | C55: 0.0068 | D55: 0 | F55: BOM_POS_CF | G55: 0 | H55: 0 | I55: 0 | J55: 0 | K55: 0 | L55: 0 | M55: 0 | N55: =M47*(1+$C$14) -> 1000 | O55: 0 | P55: 0 | Q55: 0 | R55: 0 | S55: 0 | T55: 0 | U55: 0 | V55: 0 | W55: 0 | X55: 0 | Y55: 0 | Z55: =Y47*(1+$C$14) -> 1000 | AA55: 0 | AB55: 0 | AC55: 0 | AD55: 0 | AE55: 0 | AF55: 0 | AG55: 0 | AH55: 0 | AI55: 0 | AJ55: 0 | AK55: 0 | AL55: =AK47*(1+$C$14) -> 1000 | AM55: 0 | AN55: 0 | AO55: 0 | AP55: 0 | AQ55: 0 | AR55: 0 | AS55: 0 | AT55: 0 | AU55: 0 | AV55: 0 | AW55: 0 | AX55: =AW47*(1+$C$14) -> 1000 | AY55: 0 | AZ55: 0 | BA55: 0 | BB55: 0 | BC55: 0 | BD55: 0 | BE55: 0 | BF55: 0 | BG55: 0 | BH55: 0 | BI55: 0 | BJ55: =BI47*(1+$C$14) -> 1000 | BK55: 0 | BL55: 0 | BM55: 0 | BN55: 0 | BO55: 0 | BP55: 0 | BQ55: 0 | BR55: 0 | BS55: 0 | BT55: 0 | BU55: 0 | BV55: =BU47*(1+$C$14) -> 1000 | BW55: 0 | BX55: 0 | BY55: 0 | BZ55: 0 | CA55: 0 | CB55: 0 | CC55: 0 | CD55: 0 | CE55: 0 | CF55: 0 | CG55: 0 | CH55: =CG47*(1+$C$14) -> 1000 | CI55: 0 | CJ55: 0 | CK55: 0 | CL55: 0 | CM55: 0 | CN55: 0 | CO55: 0 | CP55: 0 | CQ55: 0 | CR55: 0 | CS55: 0 | CT55: =CS47*(1+$C$14) -> 1000 | CU55: 0 | CV55: 0 | CW55: 0 | CX55: 0 | CY55: 0 | CZ55: 0 | DA55: 0 | DB55: 0 | DC55: 0 | DD55: 0 | DE55: 0 | DF55: =DE47*(1+$C$14) -> 1000 | DG55: 0 | DH55: 0 | DI55: 0 | DJ55: 0 | DK55: 0 | DL55: 0 | DM55: 0 | DN55: 0 | DO55: 0 | DP55: 0 | DQ55: 0 | DR55: =DQ47*(1+$C$14) -> 1000 | DS55: 0 | DT55: 0 | DU55: 0 | DV55: 0 | DW55: 0
A56: 0.004662997561 | B56: 36 | C56: 0.007 | D56: 0 | F56: BOM_NEG_CF | G56: 0 | H56: 0 | I56: 0 | J56: 0 | K56: 0 | L56: 0 | M56: 0 | N56: =IF($B$18=0,0,M$102*(1-(1/($B$18+1)))/(1-(1/($B$18+1))^M$1)) -> 0 | O56: 0 | P56: 0 | Q56: 0 | R56: 0 | S56: 0 | T56: 0 | U56: 0 | V56: 0 | W56: 0 | X56: 0 | Y56: 0 | Z56: =IF($B$18=0,0,Y$102*(1-(1/($B$18+1)))/(1-(1/($B$18+1))^Y$1)) -> 0 | AA56: 0 | AB56: 0 | AC56: 0 | AD56: 0 | AE56: 0 | AF56: 0 | AG56: 0 | AH56: 0 | AI56: 0 | AJ56: 0 | AK56: 0 | AL56: =IF($B$18=0,0,AK$102*(1-(1/($B$18+1)))/(1-(1/($B$18+1))^AK$1)) -> 0 | AM56: 0 | AN56: 0 | AO56: 0 | AP56: 0 | AQ56: 0 | AR56: 0 | AS56: 0 | AT56: 0 | AU56: 0 | AV56: 0 | AW56: 0 | AX56: =IF($B$18=0,0,AW$102*(1-(1/($B$18+1)))/(1-(1/($B$18+1))^AW$1)) -> 0 | AY56: 0 | AZ56: 0 | BA56: 0 | BB56: 0 | BC56: 0 | BD56: 0 | BE56: 0 | BF56: 0 | BG56: 0 | BH56: 0 | BI56: 0 | BJ56: =IF($B$18=0,0,BI$102*(1-(1/($B$18+1)))/(1-(1/($B$18+1))^BI$1)) -> 0 | BK56: 0 | BL56: 0 | BM56: 0 | BN56: 0 | BO56: 0 | BP56: 0 | BQ56: 0 | BR56: 0 | BS56: 0 | BT56: 0 | BU56: 0 | BV56: =IF($B$18=0,0,BU$102*(1-(1/($B$18+1)))/(1-(1/($B$18+1))^BU$1)) -> 0 | BW56: 0 | BX56: 0 | BY56: 0 | BZ56: 0 | CA56: 0 | CB56: 0 | CC56: 0 | CD56: 0 | CE56: 0 | CF56: 0 | CG56: 0 | CH56: =IF($B$18=0,0,CG$102*(1-(1/($B$18+1)))/(1-(1/($B$18+1))^CG$1)) -> 0 | CI56: 0 | CJ56: 0 | CK56: 0 | CL56: 0 | CM56: 0 | CN56: 0 | CO56: 0 | CP56: 0 | CQ56: 0 | CR56: 0 | CS56: 0 | CT56: =IF($B$18=0,0,CS$102*(1-(1/($B$18+1)))/(1-(1/($B$18+1))^CS$1)) -> 0 | CU56: 0 | CV56: 0 | CW56: 0 | CX56: 0 | CY56: 0 | CZ56: 0 | DA56: 0 | DB56: 0 | DC56: 0 | DD56: 0 | DE56: 0 | DF56: =IF($B$18=0,0,DE$102*(1-(1/($B$18+1)))/(1-(1/($B$18+1))^DE$1)) -> 0 | DG56: 0 | DH56: 0 | DI56: 0 | DJ56: 0 | DK56: 0 | DL56: 0 | DM56: 0 | DN56: 0 | DO56: 0 | DP56: 0 | DQ56: 0 | DR56: =IF($B$18=0,0,DQ$102*(1-(1/($B$18+1)))/(1-(1/($B$18+1))^DQ$1)) -> 0 | DS56: 0 | DT56: 0 | DU56: 0 | DV56: 0 | DW56: 0
A57: 0.00466406218 | B57: 37 | C57: 0.0072 | D57: 0 | F57: BOM_COI | G57: 0 | H57: 0 | I57: 0 | J57: 0 | K57: 0 | L57: 0 | M57: 0 | N57: =$B$15 -> 0 | O57: 0 | P57: 0 | Q57: 0 | R57: 0 | S57: 0 | T57: 0 | U57: 0 | V57: 0 | W57: 0 | X57: 0 | Y57: 0 | Z57: =$B$15 -> 0 | AA57: 0 | AB57: 0 | AC57: 0 | AD57: 0 | AE57: 0 | AF57: 0 | AG57: 0 | AH57: 0 | AI57: 0 | AJ57: 0 | AK57: 0 | AL57: =$B$15 -> 0 | AM57: 0 | AN57: 0 | AO57: 0 | AP57: 0 | AQ57: 0 | AR57: 0 | AS57: 0 | AT57: 0 | AU57: 0 | AV57: 0 | AW57: 0 | AX57: =$B$15 -> 0 | AY57: 0 | AZ57: 0 | BA57: 0 | BB57: 0 | BC57: 0 | BD57: 0 | BE57: 0 | BF57: 0 | BG57: 0 | BH57: 0 | BI57: 0 | BJ57: =$B$15 -> 0 | BK57: 0 | BL57: 0 | BM57: 0 | BN57: 0 | BO57: 0 | BP57: 0 | BQ57: 0 | BR57: 0 | BS57: 0 | BT57: 0 | BU57: 0 | BV57: =$B$15 -> 0 | BW57: 0 | BX57: 0 | BY57: 0 | BZ57: 0 | CA57: 0 | CB57: 0 | CC57: 0 | CD57: 0 | CE57: 0 | CF57: 0 | CG57: 0 | CH57: =$B$15 -> 0 | CI57: 0 | CJ57: 0 | CK57: 0 | CL57: 0 | CM57: 0 | CN57: 0 | CO57: 0 | CP57: 0 | CQ57: 0 | CR57: 0 | CS57: 0 | CT57: =$B$15 -> 0 | CU57: 0 | CV57: 0 | CW57: 0 | CX57: 0 | CY57: 0 | CZ57: 0 | DA57: 0 | DB57: 0 | DC57: 0 | DD57: 0 | DE57: 0 | DF57: =$B$15 -> 0 | DG57: 0 | DH57: 0 | DI57: 0 | DJ57: 0 | DK57: 0 | DL57: 0 | DM57: 0 | DN57: 0 | DO57: 0 | DP57: 0 | DQ57: 0 | DR57: =$B$15 -> 0 | DS57: 0 | DT57: 0 | DU57: 0 | DV57: 0 | DW57: 0
A58: 0.004672944879 | B58: 38 | C58: 0.0074 | D58: 0 | F58: BOM_Expenses | G58: 0 | H58: 0 | I58: 0 | J58: 0 | K58: 0 | L58: 0 | M58: 0 | N58: =$B$16 -> 0 | O58: 0 | P58: 0 | Q58: 0 | R58: 0 | S58: 0 | T58: 0 | U58: 0 | V58: 0 | W58: 0 | X58: 0 | Y58: 0 | Z58: =$B$16 -> 0 | AA58: 0 | AB58: 0 | AC58: 0 | AD58: 0 | AE58: 0 | AF58: 0 | AG58: 0 | AH58: 0 | AI58: 0 | AJ58: 0 | AK58: 0 | AL58: =$B$16 -> 0 | AM58: 0 | AN58: 0 | AO58: 0 | AP58: 0 | AQ58: 0 | AR58: 0 | AS58: 0 | AT58: 0 | AU58: 0 | AV58: 0 | AW58: 0 | AX58: =$B$16 -> 0 | AY58: 0 | AZ58: 0 | BA58: 0 | BB58: 0 | BC58: 0 | BD58: 0 | BE58: 0 | BF58: 0 | BG58: 0 | BH58: 0 | BI58: 0 | BJ58: =$B$16 -> 0 | BK58: 0 | BL58: 0 | BM58: 0 | BN58: 0 | BO58: 0 | BP58: 0 | BQ58: 0 | BR58: 0 | BS58: 0 | BT58: 0 | BU58: 0 | BV58: =$B$16 -> 0 | BW58: 0 | BX58: 0 | BY58: 0 | BZ58: 0 | CA58: 0 | CB58: 0 | CC58: 0 | CD58: 0 | CE58: 0 | CF58: 0 | CG58: 0 | CH58: =$B$16 -> 0 | CI58: 0 | CJ58: 0 | CK58: 0 | CL58: 0 | CM58: 0 | CN58: 0 | CO58: 0 | CP58: 0 | CQ58: 0 | CR58: 0 | CS58: 0 | CT58: =$B$16 -> 0 | CU58: 0 | CV58: 0 | CW58: 0 | CX58: 0 | CY58: 0 | CZ58: 0 | DA58: 0 | DB58: 0 | DC58: 0 | DD58: 0 | DE58: 0 | DF58: =$B$16 -> 0 | DG58: 0 | DH58: 0 | DI58: 0 | DJ58: 0 | DK58: 0 | DL58: 0 | DM58: 0 | DN58: 0 | DO58: 0 | DP58: 0 | DQ58: 0 | DR58: =$B$16 -> 0 | DS58: 0 | DT58: 0 | DU58: 0 | DV58: 0 | DW58: 0
A59: 0.0046737999 | B59: 39 | C59: 0.0076 | D59: 0 | F59: BOM_Post_CF_Balance | G59: 0 | H59: 0 | I59: 0 | J59: 0 | K59: 0 | L59: 0 | M59: 0 | N59: =N54+N55-N56-N57-N58 -> 1000 | O59: 1014.595842 | P59: 1017.009115 | Q59: 1020.825644 | R59: 969.4790688 | S59: 985.4063136 | T59: =T54+T55-T56-T57-T58 -> 978.6571315 | U59: =U54+U55-U56-U57-U58 -> 985.9847575 | V59: =V54+V55-V56-V57-V58 -> 969.4562025 | W59: =W54+W55-W56-W57-W58 -> 1001.163822 | X59: =X54+X55-X56-X57-X58 -> 1018.607788 | Y59: 1003.018288 | Z59: =Z54+Z55-Z56-Z57-Z58 -> 2050 | AA59: =AA54+AA55-AA56-AA57-AA58 -> 2057.815684 | AB59: 2128.292718 | AC59: 2180.390264 | AD59: 2166.687006 | AE59: 2180.467407 | AF59: 2159.203587 | AG59: 2080.850975 | AH59: 2171.934934 | AI59: 2229.724818 | AJ59: 2153.79604 | AK59: 2141.711231 | AL59: =AL54+AL55-AL56-AL57-AL58 -> 3261.084191 | AM59: =AM54+AM55-AM56-AM57-AM58 -> 3173.685266 | AN59: 3156.214501 | AO59: 3217.175784 | AP59: 3214.25445 | AQ59: 3164.441467 | AR59: 3213.719296 | AS59: 3412.026201 | AT59: 3418.78519 | AU59: 3547.875804 | AV59: 3385.483656 | AW59: 3239.926967 | AX59: =AX54+AX55-AX56-AX57-AX58 -> 4424.138401 | AY59: =AY54+AY55-AY56-AY57-AY58 -> 4428.657014 | AZ59: 4684.317872 | BA59: 5120.51239 | BB59: 5193.330994 | BC59: 4876.798788 | BD59: 5078.575006 | BE59: 5289.976263 | BF59: 5313.521102 | BG59: 4926.305458 | BH59: 4565.759262 | BI59: 4703.926861 | BJ59: =BJ54+BJ55-BJ56-BJ57-BJ58 -> 5782.899874 | BK59: =BK54+BK55-BK56-BK57-BK58 -> 6252.972116 | BL59: 6190.373684 | BM59: 5843.348607 | BN59: 5709.44271 | BO59: 5695.757153 | BP59: 5827.487777 | BQ59: 6072.88348 | BR59: 5763.871916 | BS59: 5176.78575 | BT59: 5526.570517 | BU59: 5194.618616 | BV59: =BV54+BV55-BV56-BV57-BV58 -> 7072.044867 | BW59: =BW54+BW55-BW56-BW57-BW58 -> 7067.111512 | BX59: 6318.199481 | BY59: 5858.236334 | BZ59: 5481.055816 | CA59: 4988.833982 | CB59: 5135.859643 | CC59: 4997.00576 | CD59: 4856.56034 | CE59: 4547.437075 | CF59: 4711.825403 | CG59: 5225.868359 | CH59: =CH54+CH55-CH56-CH57-CH58 -> 8425.647111 | CI59: =CI54+CI55-CI56-CI57-CI58 -> 8917.829626 | CJ59: 8303.227659 | CK59: 8151.386427 | CL59: 8131.279418 | CM59: 8493.572113 | CN59: 9130.642603 | CO59: 9465.848055 | CP59: 9116.629378 | CQ59: 10299.08136 | CR59: 9387.443433 | CS59: 9196.012144 | CT59: =CT54+CT55-CT56-CT57-CT58 -> 10520.98123 | CU59: =CU54+CU55-CU56-CU57-CU58 -> 11514.22755 | CV59: 11869.63429 | CW59: 12864.37456 | CX59: 11932.76832 | CY59: 12041.88365 | CZ59: 12326.02157 | DA59: 12537.54087 | DB59: 12147.68425 | DC59: 13175.2496 | DD59: 12845.8547 | DE59: 12654.4863 | DF59: =DF54+DF55-DF56-DF57-DF58 -> 12888.7088 | DG59: =DG54+DG55-DG56-DG57-DG58 -> 12888.10211 | DH59: 12798.66556 | DI59: 14378.59521 | DJ59: 14803.1036 | DK59: 14682.06974 | DL59: =DL54+DL55-DL56-DL57-DL58 -> 16403.60001 | DM59: 16172.51226 | DN59: 17511.10894 | DO59: 17233.14324 | DP59: 18121.48196 | DQ59: 18886.16849 | DR59: =DR54+DR55-DR56-DR57-DR58 -> 15564.24094 | DS59: =DS54+DS55-DS56-DS57-DS58 -> 16127.30278 | DT59: 16060.98282 | DU59: 15688.49605 | DV59: 16276.63424 | DW59: 16711.77936
A60: 0.004680837532 | B60: 40 | C60: 0.0078 | D60: 0 | F60: BOM_Post_CF_Balance_ADJ | G60: 0 | H60: 0 | I60: 0 | J60: 0 | K60: 0 | L60: 0 | M60: 0 | N60: =IF(N59<=0,IF(N$103<=0,N$103,0),N59) -> 1000 | O60: =IF(O103<=0,0,IF(O59<=0,0,IF(O11+O67<=0,IF(O11=0,IF(O19=0,IF(O27=0,IF(O35=0,IF(O43=0,IF(O51=0,IF(O59+O67<=0,0,O59+O67),O59*O103/(O103-O51-O67)),O59*O103/(O103-O43-O67)),O59*O103/(O103-O35-O67)),O59*O103/(O103-O27-O67)),O59*O103/(O103-O19-O67)),O59*O103/(O103-O11-O67)),O59))) -> 1014.595842 | P60: =IF(P103<=0,0,IF(P59<=0,0,IF(P11+P75<=0,IF(P11=0,IF(P19=0,IF(P27=0,IF(P35=0,IF(P43=0,IF(P51=0,IF(P59+P75<=0,0,P59+P75),P59*P103/(P103-P51-P75)),P59*P103/(P103-P43-P75)),P59*P103/(P103-P35-P75)),P59*P103/(P103-P27-P75)),P59*P103/(P103-P19-P75)),P59*P103/(P103-P11-P75)),P59))) -> 1017.009115 | Q60: =IF(Q103<=0,0,IF(Q59<=0,0,IF(Q11+Q83<=0,IF(Q11=0,IF(Q19=0,IF(Q27=0,IF(Q35=0,IF(Q43=0,IF(Q51=0,IF(Q59+Q83<=0,0,Q59+Q83),Q59*Q103/(Q103-Q51-Q83)),Q59*Q103/(Q103-Q43-Q83)),Q59*Q103/(Q103-Q35-Q83)),Q59*Q103/(Q103-Q27-Q83)),Q59*Q103/(Q103-Q19-Q83)),Q59*Q103/(Q103-Q11-Q83)),Q59))) -> 1020.825644 | R60: =IF(R103<=0,0,IF(R59<=0,0,IF(R11+R91<=0,IF(R11=0,IF(R19=0,IF(R27=0,IF(R35=0,IF(R43=0,IF(R51=0,IF(R59+R91<=0,0,R59+R91),R59*R103/(R103-R51-R91)),R59*R103/(R103-R43-R91)),R59*R103/(R103-R35-R91)),R59*R103/(R103-R27-R91)),R59*R103/(R103-R19-R91)),R59*R103/(R103-R11-R91)),R59))) -> 969.4790688 | S60: =IF(S103<=0,0,IF(S59<=0,0,IF(S11+S99<=0,IF(S11=0,IF(S19=0,IF(S27=0,IF(S35=0,IF(S43=0,IF(S51=0,IF(S59+S99<=0,0,S59+S99),S59*S103/(S103-S51-S99)),S59*S103/(S103-S43-S99)),S59*S103/(S103-S35-S99)),S59*S103/(S103-S27-S99)),S59*S103/(S103-S19-S99)),S59*S103/(S103-S11-S99)),S59))) -> 985.4063136 | T60: =IF(T103<=0,0,IF(T59<=0,0,IF(T11+T19<=0,IF(T19=0,IF(T27=0,IF(T35=0,IF(T43=0,IF(T51=0,IF(T59+T11<=0,0,T59+T11),T59*T103/(T103-T51-T11)),T59*T103/(T103-T43-T11)),T59*T103/(T103-T35-T11)),T59*T103/(T103-T27-T11)),T59*T103/(T103-T11-T19)),T59))) -> 978.6571315 | U60: =IF(U103<=0,0,IF(U59<=0,0,IF(U11+U19<=0,IF(U11=0,IF(U27=0,IF(U35=0,IF(U43=0,IF(U51=0,IF(U59+U19<=0,0,U59+U19),U59*U103/(U103-U51-U19)),U59*U103/(U103-U43-U19)),U59*U103/(U103-U35-U19)),U59*U103/(U103-U27-U19)),U59*U103/(U103-U11-U19)),U59))) -> 985.9847575 | V60: =IF(V103<=0,0,IF(V59<=0,0,IF(V11+V27<=0,IF(V11=0,IF(V19=0,IF(V35=0,IF(V43=0,IF(V51=0,IF(V59+V27<=0,0,V59+V27),V59*V103/(V103-V51-V27)),V59*V103/(V103-V43-V27)),V59*V103/(V103-V35-V27)),V59*V103/(V103-V19-V27)),V59*V103/(V103-V11-V27)),V59))) -> 969.4562025 | W60: =IF(W103<=0,0,IF(W59<=0,0,IF(W11+W35<=0,IF(W11=0,IF(W19=0,IF(W27=0,IF(W43=0,IF(W51=0,IF(W59+W35<=0,0,W59+W35),W59*W103/(W103-W51-W35)),W59*W103/(W103-W43-W35)),W59*W103/(W103-W27-W35)),W59*W103/(W103-W19-W35)),W59*W103/(W103-W11-W35)),W59))) -> 1001.163822 | X60: =IF(X103<=0,0,IF(X59<=0,0,IF(X11+X43<=0,IF(X11=0,IF(X19=0,IF(X27=0,IF(X35=0,IF(X51=0,IF(X59+X43<=0,0,X59+X43),X59*X103/(X103-X51-X43)),X59*X103/(X103-X43-X35)),X59*X103/(X103-X27-X43)),X59*X103/(X103-X19-X43)),X59*X103/(X103-X11-X43)),X59))) -> 1018.607788 | Y60: =IF(Y103<=0,0,IF(Y59<=0,0,IF(Y11+Y51<=0,IF(Y11=0,IF(Y19=0,IF(Y27=0,IF(Y35=0,IF(Y43=0,IF(Y59+Y51<=0,0,Y59+Y51),Y59*Y103/(Y103-Y43-Y51)),Y59*Y103/(Y103-Y35-Y51)),Y59*Y103/(Y103-Y27-Y51)),Y59*Y103/(Y103-Y19-Y51)),Y59*Y103/(Y103-Y11-Y51)),Y59))) -> 1003.018288 | Z60: =IF(Z59<=0,IF(Z$103<=0,Z$103,0),Z59) -> 2050 | AA60: =IF(AA103<=0,0,IF(AA59<=0,0,IF(AA11+AA67<=0,IF(AA11=0,IF(AA19=0,IF(AA27=0,IF(AA35=0,IF(AA43=0,IF(AA51=0,IF(AA59+AA67<=0,0,AA59+AA67),AA59*AA103/(AA103-AA51-AA67)),AA59*AA103/(AA103-AA43-AA67)),AA59*AA103/(AA103-AA35-AA67)),AA59*AA103/(AA103-AA27-AA67)),AA59*AA103/(AA103-AA19-AA67)),AA59*AA103/(AA103-AA11-AA67)),AA59))) -> 2057.815684 | AB60: =IF(AB103<=0,0,IF(AB59<=0,0,IF(AB11+AB75<=0,IF(AB11=0,IF(AB19=0,IF(AB27=0,IF(AB35=0,IF(AB43=0,IF(AB51=0,IF(AB59+AB75<=0,0,AB59+AB75),AB59*AB103/(AB103-AB51-AB75)),AB59*AB103/(AB103-AB43-AB75)),AB59*AB103/(AB103-AB35-AB75)),AB59*AB103/(AB103-AB27-AB75)),AB59*AB103/(AB103-AB19-AB75)),AB59*AB103/(AB103-AB11-AB75)),AB59))) -> 2128.292718 | AC60: =IF(AC103<=0,0,IF(AC59<=0,0,IF(AC11+AC83<=0,IF(AC11=0,IF(AC19=0,IF(AC27=0,IF(AC35=0,IF(AC43=0,IF(AC51=0,IF(AC59+AC83<=0,0,AC59+AC83),AC59*AC103/(AC103-AC51-AC83)),AC59*AC103/(AC103-AC43-AC83)),AC59*AC103/(AC103-AC35-AC83)),AC59*AC103/(AC103-AC27-AC83)),AC59*AC103/(AC103-AC19-AC83)),AC59*AC103/(AC103-AC11-AC83)),AC59))) -> 2180.390264 | AD60: =IF(AD103<=0,0,IF(AD59<=0,0,IF(AD11+AD91<=0,IF(AD11=0,IF(AD19=0,IF(AD27=0,IF(AD35=0,IF(AD43=0,IF(AD51=0,IF(AD59+AD91<=0,0,AD59+AD91),AD59*AD103/(AD103-AD51-AD91)),AD59*AD103/(AD103-AD43-AD91)),AD59*AD103/(AD103-AD35-AD91)),AD59*AD103/(AD103-AD27-AD91)),AD59*AD103/(AD103-AD19-AD91)),AD59*AD103/(AD103-AD11-AD91)),AD59))) -> 2166.687006 | AE60: =IF(AE103<=0,0,IF(AE59<=0,0,IF(AE11+AE99<=0,IF(AE11=0,IF(AE19=0,IF(AE27=0,IF(AE35=0,IF(AE43=0,IF(AE51=0,IF(AE59+AE99<=0,0,AE59+AE99),AE59*AE103/(AE103-AE51-AE99)),AE59*AE103/(AE103-AE43-AE99)),AE59*AE103/(AE103-AE35-AE99)),AE59*AE103/(AE103-AE27-AE99)),AE59*AE103/(AE103-AE19-AE99)),AE59*AE103/(AE103-AE11-AE99)),AE59))) -> 2180.467407 | AF60: =IF(AF103<=0,0,IF(AF59<=0,0,IF(AF11+AF19<=0,IF(AF19=0,IF(AF27=0,IF(AF35=0,IF(AF43=0,IF(AF51=0,IF(AF59+AF11<=0,0,AF59+AF11),AF59*AF103/(AF103-AF51-AF11)),AF59*AF103/(AF103-AF43-AF11)),AF59*AF103/(AF103-AF35-AF11)),AF59*AF103/(AF103-AF27-AF11)),AF59*AF103/(AF103-AF11-AF19)),AF59))) -> 2159.203587 | AG60: =IF(AG103<=0,0,IF(AG59<=0,0,IF(AG11+AG19<=0,IF(AG11=0,IF(AG27=0,IF(AG35=0,IF(AG43=0,IF(AG51=0,IF(AG59+AG19<=0,0,AG59+AG19),AG59*AG103/(AG103-AG51-AG19)),AG59*AG103/(AG103-AG43-AG19)),AG59*AG103/(AG103-AG35-AG19)),AG59*AG103/(AG103-AG27-AG19)),AG59*AG103/(AG103-AG11-AG19)),AG59))) -> 2080.850975 | AH60: =IF(AH103<=0,0,IF(AH59<=0,0,IF(AH11+AH27<=0,IF(AH11=0,IF(AH19=0,IF(AH35=0,IF(AH43=0,IF(AH51=0,IF(AH59+AH27<=0,0,AH59+AH27),AH59*AH103/(AH103-AH51-AH27)),AH59*AH103/(AH103-AH43-AH27)),AH59*AH103/(AH103-AH35-AH27)),AH59*AH103/(AH103-AH19-AH27)),AH59*AH103/(AH103-AH11-AH27)),AH59))) -> 2171.934934 | AI60: =IF(AI103<=0,0,IF(AI59<=0,0,IF(AI11+AI35<=0,IF(AI11=0,IF(AI19=0,IF(AI27=0,IF(AI43=0,IF(AI51=0,IF(AI59+AI35<=0,0,AI59+AI35),AI59*AI103/(AI103-AI51-AI35)),AI59*AI103/(AI103-AI43-AI35)),AI59*AI103/(AI103-AI27-AI35)),AI59*AI103/(AI103-AI19-AI35)),AI59*AI103/(AI103-AI11-AI35)),AI59))) -> 2229.724818 | AJ60: =IF(AJ103<=0,0,IF(AJ59<=0,0,IF(AJ11+AJ43<=0,IF(AJ11=0,IF(AJ19=0,IF(AJ27=0,IF(AJ35=0,IF(AJ51=0,IF(AJ59+AJ43<=0,0,AJ59+AJ43),AJ59*AJ103/(AJ103-AJ51-AJ43)),AJ59*AJ103/(AJ103-AJ43-AJ35)),AJ59*AJ103/(AJ103-AJ27-AJ43)),AJ59*AJ103/(AJ103-AJ19-AJ43)),AJ59*AJ103/(AJ103-AJ11-AJ43)),AJ59))) -> 2153.79604 | AK60: =IF(AK103<=0,0,IF(AK59<=0,0,IF(AK11+AK51<=0,IF(AK11=0,IF(AK19=0,IF(AK27=0,IF(AK35=0,IF(AK43=0,IF(AK59+AK51<=0,0,AK59+AK51),AK59*AK103/(AK103-AK43-AK51)),AK59*AK103/(AK103-AK35-AK51)),AK59*AK103/(AK103-AK27-AK51)),AK59*AK103/(AK103-AK19-AK51)),AK59*AK103/(AK103-AK11-AK51)),AK59))) -> 2141.711231 | AL60: =IF(AL59<=0,IF(AL$103<=0,AL$103,0),AL59) -> 3261.084191 | AM60: =IF(AM103<=0,0,IF(AM59<=0,0,IF(AM11+AM67<=0,IF(AM11=0,IF(AM19=0,IF(AM27=0,IF(AM35=0,IF(AM43=0,IF(AM51=0,IF(AM59+AM67<=0,0,AM59+AM67),AM59*AM103/(AM103-AM51-AM67)),AM59*AM103/(AM103-AM43-AM67)),AM59*AM103/(AM103-AM35-AM67)),AM59*AM103/(AM103-AM27-AM67)),AM59*AM103/(AM103-AM19-AM67)),AM59*AM103/(AM103-AM11-AM67)),AM59))) -> 3173.685266 | AN60: =IF(AN103<=0,0,IF(AN59<=0,0,IF(AN11+AN75<=0,IF(AN11=0,IF(AN19=0,IF(AN27=0,IF(AN35=0,IF(AN43=0,IF(AN51=0,IF(AN59+AN75<=0,0,AN59+AN75),AN59*AN103/(AN103-AN51-AN75)),AN59*AN103/(AN103-AN43-AN75)),AN59*AN103/(AN103-AN35-AN75)),AN59*AN103/(AN103-AN27-AN75)),AN59*AN103/(AN103-AN19-AN75)),AN59*AN103/(AN103-AN11-AN75)),AN59))) -> 3156.214501 | AO60: =IF(AO103<=0,0,IF(AO59<=0,0,IF(AO11+AO83<=0,IF(AO11=0,IF(AO19=0,IF(AO27=0,IF(AO35=0,IF(AO43=0,IF(AO51=0,IF(AO59+AO83<=0,0,AO59+AO83),AO59*AO103/(AO103-AO51-AO83)),AO59*AO103/(AO103-AO43-AO83)),AO59*AO103/(AO103-AO35-AO83)),AO59*AO103/(AO103-AO27-AO83)),AO59*AO103/(AO103-AO19-AO83)),AO59*AO103/(AO103-AO11-AO83)),AO59))) -> 3217.175784 | AP60: =IF(AP103<=0,0,IF(AP59<=0,0,IF(AP11+AP91<=0,IF(AP11=0,IF(AP19=0,IF(AP27=0,IF(AP35=0,IF(AP43=0,IF(AP51=0,IF(AP59+AP91<=0,0,AP59+AP91),AP59*AP103/(AP103-AP51-AP91)),AP59*AP103/(AP103-AP43-AP91)),AP59*AP103/(AP103-AP35-AP91)),AP59*AP103/(AP103-AP27-AP91)),AP59*AP103/(AP103-AP19-AP91)),AP59*AP103/(AP103-AP11-AP91)),AP59))) -> 3214.25445 | AQ60: =IF(AQ103<=0,0,IF(AQ59<=0,0,IF(AQ11+AQ99<=0,IF(AQ11=0,IF(AQ19=0,IF(AQ27=0,IF(AQ35=0,IF(AQ43=0,IF(AQ51=0,IF(AQ59+AQ99<=0,0,AQ59+AQ99),AQ59*AQ103/(AQ103-AQ51-AQ99)),AQ59*AQ103/(AQ103-AQ43-AQ99)),AQ59*AQ103/(AQ103-AQ35-AQ99)),AQ59*AQ103/(AQ103-AQ27-AQ99)),AQ59*AQ103/(AQ103-AQ19-AQ99)),AQ59*AQ103/(AQ103-AQ11-AQ99)),AQ59))) -> 3164.441467 | AR60: =IF(AR103<=0,0,IF(AR59<=0,0,IF(AR11+AR19<=0,IF(AR19=0,IF(AR27=0,IF(AR35=0,IF(AR43=0,IF(AR51=0,IF(AR59+AR11<=0,0,AR59+AR11),AR59*AR103/(AR103-AR51-AR11)),AR59*AR103/(AR103-AR43-AR11)),AR59*AR103/(AR103-AR35-AR11)),AR59*AR103/(AR103-AR27-AR11)),AR59*AR103/(AR103-AR11-AR19)),AR59))) -> 3213.719296 | AS60: =IF(AS103<=0,0,IF(AS59<=0,0,IF(AS11+AS19<=0,IF(AS11=0,IF(AS27=0,IF(AS35=0,IF(AS43=0,IF(AS51=0,IF(AS59+AS19<=0,0,AS59+AS19),AS59*AS103/(AS103-AS51-AS19)),AS59*AS103/(AS103-AS43-AS19)),AS59*AS103/(AS103-AS35-AS19)),AS59*AS103/(AS103-AS27-AS19)),AS59*AS103/(AS103-AS11-AS19)),AS59))) -> 3412.026201 | AT60: =IF(AT103<=0,0,IF(AT59<=0,0,IF(AT11+AT27<=0,IF(AT11=0,IF(AT19=0,IF(AT35=0,IF(AT43=0,IF(AT51=0,IF(AT59+AT27<=0,0,AT59+AT27),AT59*AT103/(AT103-AT51-AT27)),AT59*AT103/(AT103-AT43-AT27)),AT59*AT103/(AT103-AT35-AT27)),AT59*AT103/(AT103-AT19-AT27)),AT59*AT103/(AT103-AT11-AT27)),AT59))) -> 3418.78519 | AU60: =IF(AU103<=0,0,IF(AU59<=0,0,IF(AU11+AU35<=0,IF(AU11=0,IF(AU19=0,IF(AU27=0,IF(AU43=0,IF(AU51=0,IF(AU59+AU35<=0,0,AU59+AU35),AU59*AU103/(AU103-AU51-AU35)),AU59*AU103/(AU103-AU43-AU35)),AU59*AU103/(AU103-AU27-AU35)),AU59*AU103/(AU103-AU19-AU35)),AU59*AU103/(AU103-AU11-AU35)),AU59))) -> 3547.875804 | AV60: =IF(AV103<=0,0,IF(AV59<=0,0,IF(AV11+AV43<=0,IF(AV11=0,IF(AV19=0,IF(AV27=0,IF(AV35=0,IF(AV51=0,IF(AV59+AV43<=0,0,AV59+AV43),AV59*AV103/(AV103-AV51-AV43)),AV59*AV103/(AV103-AV43-AV35)),AV59*AV103/(AV103-AV27-AV43)),AV59*AV103/(AV103-AV19-AV43)),AV59*AV103/(AV103-AV11-AV43)),AV59))) -> 3385.483656 | AW60: =IF(AW103<=0,0,IF(AW59<=0,0,IF(AW11+AW51<=0,IF(AW11=0,IF(AW19=0,IF(AW27=0,IF(AW35=0,IF(AW43=0,IF(AW59+AW51<=0,0,AW59+AW51),AW59*AW103/(AW103-AW43-AW51)),AW59*AW103/(AW103-AW35-AW51)),AW59*AW103/(AW103-AW27-AW51)),AW59*AW103/(AW103-AW19-AW51)),AW59*AW103/(AW103-AW11-AW51)),AW59))) -> 3239.926967 | AX60: =IF(AX59<=0,IF(AX$103<=0,AX$103,0),AX59) -> 4424.138401 | AY60: =IF(AY103<=0,0,IF(AY59<=0,0,IF(AY11+AY67<=0,IF(AY11=0,IF(AY19=0,IF(AY27=0,IF(AY35=0,IF(AY43=0,IF(AY51=0,IF(AY59+AY67<=0,0,AY59+AY67),AY59*AY103/(AY103-AY51-AY67)),AY59*AY103/(AY103-AY43-AY67)),AY59*AY103/(AY103-AY35-AY67)),AY59*AY103/(AY103-AY27-AY67)),AY59*AY103/(AY103-AY19-AY67)),AY59*AY103/(AY103-AY11-AY67)),AY59))) -> 4428.657014 | AZ60: =IF(AZ103<=0,0,IF(AZ59<=0,0,IF(AZ11+AZ75<=0,IF(AZ11=0,IF(AZ19=0,IF(AZ27=0,IF(AZ35=0,IF(AZ43=0,IF(AZ51=0,IF(AZ59+AZ75<=0,0,AZ59+AZ75),AZ59*AZ103/(AZ103-AZ51-AZ75)),AZ59*AZ103/(AZ103-AZ43-AZ75)),AZ59*AZ103/(AZ103-AZ35-AZ75)),AZ59*AZ103/(AZ103-AZ27-AZ75)),AZ59*AZ103/(AZ103-AZ19-AZ75)),AZ59*AZ103/(AZ103-AZ11-AZ75)),AZ59))) -> 4684.317872 | BA60: =IF(BA103<=0,0,IF(BA59<=0,0,IF(BA11+BA83<=0,IF(BA11=0,IF(BA19=0,IF(BA27=0,IF(BA35=0,IF(BA43=0,IF(BA51=0,IF(BA59+BA83<=0,0,BA59+BA83),BA59*BA103/(BA103-BA51-BA83)),BA59*BA103/(BA103-BA43-BA83)),BA59*BA103/(BA103-BA35-BA83)),BA59*BA103/(BA103-BA27-BA83)),BA59*BA103/(BA103-BA19-BA83)),BA59*BA103/(BA103-BA11-BA83)),BA59))) -> 5120.51239 | BB60: =IF(BB103<=0,0,IF(BB59<=0,0,IF(BB11+BB91<=0,IF(BB11=0,IF(BB19=0,IF(BB27=0,IF(BB35=0,IF(BB43=0,IF(BB51=0,IF(BB59+BB91<=0,0,BB59+BB91),BB59*BB103/(BB103-BB51-BB91)),BB59*BB103/(BB103-BB43-BB91)),BB59*BB103/(BB103-BB35-BB91)),BB59*BB103/(BB103-BB27-BB91)),BB59*BB103/(BB103-BB19-BB91)),BB59*BB103/(BB103-BB11-BB91)),BB59))) -> 5193.330994 | BC60: =IF(BC103<=0,0,IF(BC59<=0,0,IF(BC11+BC99<=0,IF(BC11=0,IF(BC19=0,IF(BC27=0,IF(BC35=0,IF(BC43=0,IF(BC51=0,IF(BC59+BC99<=0,0,BC59+BC99),BC59*BC103/(BC103-BC51-BC99)),BC59*BC103/(BC103-BC43-BC99)),BC59*BC103/(BC103-BC35-BC99)),BC59*BC103/(BC103-BC27-BC99)),BC59*BC103/(BC103-BC19-BC99)),BC59*BC103/(BC103-BC11-BC99)),BC59))) -> 4876.798788 | BD60: =IF(BD103<=0,0,IF(BD59<=0,0,IF(BD11+BD19<=0,IF(BD19=0,IF(BD27=0,IF(BD35=0,IF(BD43=0,IF(BD51=0,IF(BD59+BD11<=0,0,BD59+BD11),BD59*BD103/(BD103-BD51-BD11)),BD59*BD103/(BD103-BD43-BD11)),BD59*BD103/(BD103-BD35-BD11)),BD59*BD103/(BD103-BD27-BD11)),BD59*BD103/(BD103-BD11-BD19)),BD59))) -> 5078.575006 | BE60: =IF(BE103<=0,0,IF(BE59<=0,0,IF(BE11+BE19<=0,IF(BE11=0,IF(BE27=0,IF(BE35=0,IF(BE43=0,IF(BE51=0,IF(BE59+BE19<=0,0,BE59+BE19),BE59*BE103/(BE103-BE51-BE19)),BE59*BE103/(BE103-BE43-BE19)),BE59*BE103/(BE103-BE35-BE19)),BE59*BE103/(BE103-BE27-BE19)),BE59*BE103/(BE103-BE11-BE19)),BE59))) -> 5289.976263 | BF60: =IF(BF103<=0,0,IF(BF59<=0,0,IF(BF11+BF27<=0,IF(BF11=0,IF(BF19=0,IF(BF35=0,IF(BF43=0,IF(BF51=0,IF(BF59+BF27<=0,0,BF59+BF27),BF59*BF103/(BF103-BF51-BF27)),BF59*BF103/(BF103-BF43-BF27)),BF59*BF103/(BF103-BF35-BF27)),BF59*BF103/(BF103-BF19-BF27)),BF59*BF103/(BF103-BF11-BF27)),BF59))) -> 5313.521102 | BG60: =IF(BG103<=0,0,IF(BG59<=0,0,IF(BG11+BG35<=0,IF(BG11=0,IF(BG19=0,IF(BG27=0,IF(BG43=0,IF(BG51=0,IF(BG59+BG35<=0,0,BG59+BG35),BG59*BG103/(BG103-BG51-BG35)),BG59*BG103/(BG103-BG43-BG35)),BG59*BG103/(BG103-BG27-BG35)),BG59*BG103/(BG103-BG19-BG35)),BG59*BG103/(BG103-BG11-BG35)),BG59))) -> 4926.305458 | BH60: =IF(BH103<=0,0,IF(BH59<=0,0,IF(BH11+BH43<=0,IF(BH11=0,IF(BH19=0,IF(BH27=0,IF(BH35=0,IF(BH51=0,IF(BH59+BH43<=0,0,BH59+BH43),BH59*BH103/(BH103-BH51-BH43)),BH59*BH103/(BH103-BH43-BH35)),BH59*BH103/(BH103-BH27-BH43)),BH59*BH103/(BH103-BH19-BH43)),BH59*BH103/(BH103-BH11-BH43)),BH59))) -> 4565.759262 | BI60: =IF(BI103<=0,0,IF(BI59<=0,0,IF(BI11+BI51<=0,IF(BI11=0,IF(BI19=0,IF(BI27=0,IF(BI35=0,IF(BI43=0,IF(BI59+BI51<=0,0,BI59+BI51),BI59*BI103/(BI103-BI43-BI51)),BI59*BI103/(BI103-BI35-BI51)),BI59*BI103/(BI103-BI27-BI51)),BI59*BI103/(BI103-BI19-BI51)),BI59*BI103/(BI103-BI11-BI51)),BI59))) -> 4703.926861 | BJ60: =IF(BJ59<=0,IF(BJ$103<=0,BJ$103,0),BJ59) -> 5782.899874 | BK60: =IF(BK103<=0,0,IF(BK59<=0,0,IF(BK11+BK67<=0,IF(BK11=0,IF(BK19=0,IF(BK27=0,IF(BK35=0,IF(BK43=0,IF(BK51=0,IF(BK59+BK67<=0,0,BK59+BK67),BK59*BK103/(BK103-BK51-BK67)),BK59*BK103/(BK103-BK43-BK67)),BK59*BK103/(BK103-BK35-BK67)),BK59*BK103/(BK103-BK27-BK67)),BK59*BK103/(BK103-BK19-BK67)),BK59*BK103/(BK103-BK11-BK67)),BK59))) -> 6252.972116 | BL60: =IF(BL103<=0,0,IF(BL59<=0,0,IF(BL11+BL75<=0,IF(BL11=0,IF(BL19=0,IF(BL27=0,IF(BL35=0,IF(BL43=0,IF(BL51=0,IF(BL59+BL75<=0,0,BL59+BL75),BL59*BL103/(BL103-BL51-BL75)),BL59*BL103/(BL103-BL43-BL75)),BL59*BL103/(BL103-BL35-BL75)),BL59*BL103/(BL103-BL27-BL75)),BL59*BL103/(BL103-BL19-BL75)),BL59*BL103/(BL103-BL11-BL75)),BL59))) -> 6190.373684 | BM60: =IF(BM103<=0,0,IF(BM59<=0,0,IF(BM11+BM83<=0,IF(BM11=0,IF(BM19=0,IF(BM27=0,IF(BM35=0,IF(BM43=0,IF(BM51=0,IF(BM59+BM83<=0,0,BM59+BM83),BM59*BM103/(BM103-BM51-BM83)),BM59*BM103/(BM103-BM43-BM83)),BM59*BM103/(BM103-BM35-BM83)),BM59*BM103/(BM103-BM27-BM83)),BM59*BM103/(BM103-BM19-BM83)),BM59*BM103/(BM103-BM11-BM83)),BM59))) -> 5843.348607 | BN60: =IF(BN103<=0,0,IF(BN59<=0,0,IF(BN11+BN91<=0,IF(BN11=0,IF(BN19=0,IF(BN27=0,IF(BN35=0,IF(BN43=0,IF(BN51=0,IF(BN59+BN91<=0,0,BN59+BN91),BN59*BN103/(BN103-BN51-BN91)),BN59*BN103/(BN103-BN43-BN91)),BN59*BN103/(BN103-BN35-BN91)),BN59*BN103/(BN103-BN27-BN91)),BN59*BN103/(BN103-BN19-BN91)),BN59*BN103/(BN103-BN11-BN91)),BN59))) -> 5709.44271 | BO60: =IF(BO103<=0,0,IF(BO59<=0,0,IF(BO11+BO99<=0,IF(BO11=0,IF(BO19=0,IF(BO27=0,IF(BO35=0,IF(BO43=0,IF(BO51=0,IF(BO59+BO99<=0,0,BO59+BO99),BO59*BO103/(BO103-BO51-BO99)),BO59*BO103/(BO103-BO43-BO99)),BO59*BO103/(BO103-BO35-BO99)),BO59*BO103/(BO103-BO27-BO99)),BO59*BO103/(BO103-BO19-BO99)),BO59*BO103/(BO103-BO11-BO99)),BO59))) -> 5695.757153 | BP60: =IF(BP103<=0,0,IF(BP59<=0,0,IF(BP11+BP19<=0,IF(BP19=0,IF(BP27=0,IF(BP35=0,IF(BP43=0,IF(BP51=0,IF(BP59+BP11<=0,0,BP59+BP11),BP59*BP103/(BP103-BP51-BP11)),BP59*BP103/(BP103-BP43-BP11)),BP59*BP103/(BP103-BP35-BP11)),BP59*BP103/(BP103-BP27-BP11)),BP59*BP103/(BP103-BP11-BP19)),BP59))) -> 5827.487777 | BQ60: =IF(BQ103<=0,0,IF(BQ59<=0,0,IF(BQ11+BQ19<=0,IF(BQ11=0,IF(BQ27=0,IF(BQ35=0,IF(BQ43=0,IF(BQ51=0,IF(BQ59+BQ19<=0,0,BQ59+BQ19),BQ59*BQ103/(BQ103-BQ51-BQ19)),BQ59*BQ103/(BQ103-BQ43-BQ19)),BQ59*BQ103/(BQ103-BQ35-BQ19)),BQ59*BQ103/(BQ103-BQ27-BQ19)),BQ59*BQ103/(BQ103-BQ11-BQ19)),BQ59))) -> 6072.88348 | BR60: =IF(BR103<=0,0,IF(BR59<=0,0,IF(BR11+BR27<=0,IF(BR11=0,IF(BR19=0,IF(BR35=0,IF(BR43=0,IF(BR51=0,IF(BR59+BR27<=0,0,BR59+BR27),BR59*BR103/(BR103-BR51-BR27)),BR59*BR103/(BR103-BR43-BR27)),BR59*BR103/(BR103-BR35-BR27)),BR59*BR103/(BR103-BR19-BR27)),BR59*BR103/(BR103-BR11-BR27)),BR59))) -> 5763.871916 | BS60: =IF(BS103<=0,0,IF(BS59<=0,0,IF(BS11+BS35<=0,IF(BS11=0,IF(BS19=0,IF(BS27=0,IF(BS43=0,IF(BS51=0,IF(BS59+BS35<=0,0,BS59+BS35),BS59*BS103/(BS103-BS51-BS35)),BS59*BS103/(BS103-BS43-BS35)),BS59*BS103/(BS103-BS27-BS35)),BS59*BS103/(BS103-BS19-BS35)),BS59*BS103/(BS103-BS11-BS35)),BS59))) -> 5176.78575 | BT60: =IF(BT103<=0,0,IF(BT59<=0,0,IF(BT11+BT43<=0,IF(BT11=0,IF(BT19=0,IF(BT27=0,IF(BT35=0,IF(BT51=0,IF(BT59+BT43<=0,0,BT59+BT43),BT59*BT103/(BT103-BT51-BT43)),BT59*BT103/(BT103-BT43-BT35)),BT59*BT103/(BT103-BT27-BT43)),BT59*BT103/(BT103-BT19-BT43)),BT59*BT103/(BT103-BT11-BT43)),BT59))) -> 5526.570517 | BU60: =IF(BU103<=0,0,IF(BU59<=0,0,IF(BU11+BU51<=0,IF(BU11=0,IF(BU19=0,IF(BU27=0,IF(BU35=0,IF(BU43=0,IF(BU59+BU51<=0,0,BU59+BU51),BU59*BU103/(BU103-BU43-BU51)),BU59*BU103/(BU103-BU35-BU51)),BU59*BU103/(BU103-BU27-BU51)),BU59*BU103/(BU103-BU19-BU51)),BU59*BU103/(BU103-BU11-BU51)),BU59))) -> 5194.618616 | BV60: =IF(BV59<=0,IF(BV$103<=0,BV$103,0),BV59) -> 7072.044867 | BW60: =IF(BW103<=0,0,IF(BW59<=0,0,IF(BW11+BW67<=0,IF(BW11=0,IF(BW19=0,IF(BW27=0,IF(BW35=0,IF(BW43=0,IF(BW51=0,IF(BW59+BW67<=0,0,BW59+BW67),BW59*BW103/(BW103-BW51-BW67)),BW59*BW103/(BW103-BW43-BW67)),BW59*BW103/(BW103-BW35-BW67)),BW59*BW103/(BW103-BW27-BW67)),BW59*BW103/(BW103-BW19-BW67)),BW59*BW103/(BW103-BW11-BW67)),BW59))) -> 7067.111512 | BX60: =IF(BX103<=0,0,IF(BX59<=0,0,IF(BX11+BX75<=0,IF(BX11=0,IF(BX19=0,IF(BX27=0,IF(BX35=0,IF(BX43=0,IF(BX51=0,IF(BX59+BX75<=0,0,BX59+BX75),BX59*BX103/(BX103-BX51-BX75)),BX59*BX103/(BX103-BX43-BX75)),BX59*BX103/(BX103-BX35-BX75)),BX59*BX103/(BX103-BX27-BX75)),BX59*BX103/(BX103-BX19-BX75)),BX59*BX103/(BX103-BX11-BX75)),BX59))) -> 6318.199481 | BY60: =IF(BY103<=0,0,IF(BY59<=0,0,IF(BY11+BY83<=0,IF(BY11=0,IF(BY19=0,IF(BY27=0,IF(BY35=0,IF(BY43=0,IF(BY51=0,IF(BY59+BY83<=0,0,BY59+BY83),BY59*BY103/(BY103-BY51-BY83)),BY59*BY103/(BY103-BY43-BY83)),BY59*BY103/(BY103-BY35-BY83)),BY59*BY103/(BY103-BY27-BY83)),BY59*BY103/(BY103-BY19-BY83)),BY59*BY103/(BY103-BY11-BY83)),BY59))) -> 5858.236334 | BZ60: =IF(BZ103<=0,0,IF(BZ59<=0,0,IF(BZ11+BZ91<=0,IF(BZ11=0,IF(BZ19=0,IF(BZ27=0,IF(BZ35=0,IF(BZ43=0,IF(BZ51=0,IF(BZ59+BZ91<=0,0,BZ59+BZ91),BZ59*BZ103/(BZ103-BZ51-BZ91)),BZ59*BZ103/(BZ103-BZ43-BZ91)),BZ59*BZ103/(BZ103-BZ35-BZ91)),BZ59*BZ103/(BZ103-BZ27-BZ91)),BZ59*BZ103/(BZ103-BZ19-BZ91)),BZ59*BZ103/(BZ103-BZ11-BZ91)),BZ59))) -> 5481.055816 | CA60: =IF(CA103<=0,0,IF(CA59<=0,0,IF(CA11+CA99<=0,IF(CA11=0,IF(CA19=0,IF(CA27=0,IF(CA35=0,IF(CA43=0,IF(CA51=0,IF(CA59+CA99<=0,0,CA59+CA99),CA59*CA103/(CA103-CA51-CA99)),CA59*CA103/(CA103-CA43-CA99)),CA59*CA103/(CA103-CA35-CA99)),CA59*CA103/(CA103-CA27-CA99)),CA59*CA103/(CA103-CA19-CA99)),CA59*CA103/(CA103-CA11-CA99)),CA59))) -> 4988.833982 | CB60: =IF(CB103<=0,0,IF(CB59<=0,0,IF(CB11+CB19<=0,IF(CB19=0,IF(CB27=0,IF(CB35=0,IF(CB43=0,IF(CB51=0,IF(CB59+CB11<=0,0,CB59+CB11),CB59*CB103/(CB103-CB51-CB11)),CB59*CB103/(CB103-CB43-CB11)),CB59*CB103/(CB103-CB35-CB11)),CB59*CB103/(CB103-CB27-CB11)),CB59*CB103/(CB103-CB11-CB19)),CB59))) -> 5135.859643 | CC60: =IF(CC103<=0,0,IF(CC59<=0,0,IF(CC11+CC19<=0,IF(CC11=0,IF(CC27=0,IF(CC35=0,IF(CC43=0,IF(CC51=0,IF(CC59+CC19<=0,0,CC59+CC19),CC59*CC103/(CC103-CC51-CC19)),CC59*CC103/(CC103-CC43-CC19)),CC59*CC103/(CC103-CC35-CC19)),CC59*CC103/(CC103-CC27-CC19)),CC59*CC103/(CC103-CC11-CC19)),CC59))) -> 4997.00576 | CD60: =IF(CD103<=0,0,IF(CD59<=0,0,IF(CD11+CD27<=0,IF(CD11=0,IF(CD19=0,IF(CD35=0,IF(CD43=0,IF(CD51=0,IF(CD59+CD27<=0,0,CD59+CD27),CD59*CD103/(CD103-CD51-CD27)),CD59*CD103/(CD103-CD43-CD27)),CD59*CD103/(CD103-CD35-CD27)),CD59*CD103/(CD103-CD19-CD27)),CD59*CD103/(CD103-CD11-CD27)),CD59))) -> 4856.56034 | CE60: =IF(CE103<=0,0,IF(CE59<=0,0,IF(CE11+CE35<=0,IF(CE11=0,IF(CE19=0,IF(CE27=0,IF(CE43=0,IF(CE51=0,IF(CE59+CE35<=0,0,CE59+CE35),CE59*CE103/(CE103-CE51-CE35)),CE59*CE103/(CE103-CE43-CE35)),CE59*CE103/(CE103-CE27-CE35)),CE59*CE103/(CE103-CE19-CE35)),CE59*CE103/(CE103-CE11-CE35)),CE59))) -> 4547.437075 | CF60: =IF(CF103<=0,0,IF(CF59<=0,0,IF(CF11+CF43<=0,IF(CF11=0,IF(CF19=0,IF(CF27=0,IF(CF35=0,IF(CF51=0,IF(CF59+CF43<=0,0,CF59+CF43),CF59*CF103/(CF103-CF51-CF43)),CF59*CF103/(CF103-CF43-CF35)),CF59*CF103/(CF103-CF27-CF43)),CF59*CF103/(CF103-CF19-CF43)),CF59*CF103/(CF103-CF11-CF43)),CF59))) -> 4711.825403 | CG60: =IF(CG103<=0,0,IF(CG59<=0,0,IF(CG11+CG51<=0,IF(CG11=0,IF(CG19=0,IF(CG27=0,IF(CG35=0,IF(CG43=0,IF(CG59+CG51<=0,0,CG59+CG51),CG59*CG103/(CG103-CG43-CG51)),CG59*CG103/(CG103-CG35-CG51)),CG59*CG103/(CG103-CG27-CG51)),CG59*CG103/(CG103-CG19-CG51)),CG59*CG103/(CG103-CG11-CG51)),CG59))) -> 5225.868359 | CH60: =IF(CH59<=0,IF(CH$103<=0,CH$103,0),CH59) -> 8425.647111 | CI60: =IF(CI103<=0,0,IF(CI59<=0,0,IF(CI11+CI67<=0,IF(CI11=0,IF(CI19=0,IF(CI27=0,IF(CI35=0,IF(CI43=0,IF(CI51=0,IF(CI59+CI67<=0,0,CI59+CI67),CI59*CI103/(CI103-CI51-CI67)),CI59*CI103/(CI103-CI43-CI67)),CI59*CI103/(CI103-CI35-CI67)),CI59*CI103/(CI103-CI27-CI67)),CI59*CI103/(CI103-CI19-CI67)),CI59*CI103/(CI103-CI11-CI67)),CI59))) -> 8917.829626 | CJ60: =IF(CJ103<=0,0,IF(CJ59<=0,0,IF(CJ11+CJ75<=0,IF(CJ11=0,IF(CJ19=0,IF(CJ27=0,IF(CJ35=0,IF(CJ43=0,IF(CJ51=0,IF(CJ59+CJ75<=0,0,CJ59+CJ75),CJ59*CJ103/(CJ103-CJ51-CJ75)),CJ59*CJ103/(CJ103-CJ43-CJ75)),CJ59*CJ103/(CJ103-CJ35-CJ75)),CJ59*CJ103/(CJ103-CJ27-CJ75)),CJ59*CJ103/(CJ103-CJ19-CJ75)),CJ59*CJ103/(CJ103-CJ11-CJ75)),CJ59))) -> 8303.227659 | CK60: =IF(CK103<=0,0,IF(CK59<=0,0,IF(CK11+CK83<=0,IF(CK11=0,IF(CK19=0,IF(CK27=0,IF(CK35=0,IF(CK43=0,IF(CK51=0,IF(CK59+CK83<=0,0,CK59+CK83),CK59*CK103/(CK103-CK51-CK83)),CK59*CK103/(CK103-CK43-CK83)),CK59*CK103/(CK103-CK35-CK83)),CK59*CK103/(CK103-CK27-CK83)),CK59*CK103/(CK103-CK19-CK83)),CK59*CK103/(CK103-CK11-CK83)),CK59))) -> 8151.386427 | CL60: =IF(CL103<=0,0,IF(CL59<=0,0,IF(CL11+CL91<=0,IF(CL11=0,IF(CL19=0,IF(CL27=0,IF(CL35=0,IF(CL43=0,IF(CL51=0,IF(CL59+CL91<=0,0,CL59+CL91),CL59*CL103/(CL103-CL51-CL91)),CL59*CL103/(CL103-CL43-CL91)),CL59*CL103/(CL103-CL35-CL91)),CL59*CL103/(CL103-CL27-CL91)),CL59*CL103/(CL103-CL19-CL91)),CL59*CL103/(CL103-CL11-CL91)),CL59))) -> 8131.279418 | CM60: =IF(CM103<=0,0,IF(CM59<=0,0,IF(CM11+CM99<=0,IF(CM11=0,IF(CM19=0,IF(CM27=0,IF(CM35=0,IF(CM43=0,IF(CM51=0,IF(CM59+CM99<=0,0,CM59+CM99),CM59*CM103/(CM103-CM51-CM99)),CM59*CM103/(CM103-CM43-CM99)),CM59*CM103/(CM103-CM35-CM99)),CM59*CM103/(CM103-CM27-CM99)),CM59*CM103/(CM103-CM19-CM99)),CM59*CM103/(CM103-CM11-CM99)),CM59))) -> 8493.572113 | CN60: =IF(CN103<=0,0,IF(CN59<=0,0,IF(CN11+CN19<=0,IF(CN19=0,IF(CN27=0,IF(CN35=0,IF(CN43=0,IF(CN51=0,IF(CN59+CN11<=0,0,CN59+CN11),CN59*CN103/(CN103-CN51-CN11)),CN59*CN103/(CN103-CN43-CN11)),CN59*CN103/(CN103-CN35-CN11)),CN59*CN103/(CN103-CN27-CN11)),CN59*CN103/(CN103-CN11-CN19)),CN59))) -> 9130.642603 | CO60: =IF(CO103<=0,0,IF(CO59<=0,0,IF(CO11+CO19<=0,IF(CO11=0,IF(CO27=0,IF(CO35=0,IF(CO43=0,IF(CO51=0,IF(CO59+CO19<=0,0,CO59+CO19),CO59*CO103/(CO103-CO51-CO19)),CO59*CO103/(CO103-CO43-CO19)),CO59*CO103/(CO103-CO35-CO19)),CO59*CO103/(CO103-CO27-CO19)),CO59*CO103/(CO103-CO11-CO19)),CO59))) -> 9465.848055 | CP60: =IF(CP103<=0,0,IF(CP59<=0,0,IF(CP11+CP27<=0,IF(CP11=0,IF(CP19=0,IF(CP35=0,IF(CP43=0,IF(CP51=0,IF(CP59+CP27<=0,0,CP59+CP27),CP59*CP103/(CP103-CP51-CP27)),CP59*CP103/(CP103-CP43-CP27)),CP59*CP103/(CP103-CP35-CP27)),CP59*CP103/(CP103-CP19-CP27)),CP59*CP103/(CP103-CP11-CP27)),CP59))) -> 9116.629378 | CQ60: =IF(CQ103<=0,0,IF(CQ59<=0,0,IF(CQ11+CQ35<=0,IF(CQ11=0,IF(CQ19=0,IF(CQ27=0,IF(CQ43=0,IF(CQ51=0,IF(CQ59+CQ35<=0,0,CQ59+CQ35),CQ59*CQ103/(CQ103-CQ51-CQ35)),CQ59*CQ103/(CQ103-CQ43-CQ35)),CQ59*CQ103/(CQ103-CQ27-CQ35)),CQ59*CQ103/(CQ103-CQ19-CQ35)),CQ59*CQ103/(CQ103-CQ11-CQ35)),CQ59))) -> 10299.08136 | CR60: =IF(CR103<=0,0,IF(CR59<=0,0,IF(CR11+CR43<=0,IF(CR11=0,IF(CR19=0,IF(CR27=0,IF(CR35=0,IF(CR51=0,IF(CR59+CR43<=0,0,CR59+CR43),CR59*CR103/(CR103-CR51-CR43)),CR59*CR103/(CR103-CR43-CR35)),CR59*CR103/(CR103-CR27-CR43)),CR59*CR103/(CR103-CR19-CR43)),CR59*CR103/(CR103-CR11-CR43)),CR59))) -> 9387.443433 | CS60: =IF(CS103<=0,0,IF(CS59<=0,0,IF(CS11+CS51<=0,IF(CS11=0,IF(CS19=0,IF(CS27=0,IF(CS35=0,IF(CS43=0,IF(CS59+CS51<=0,0,CS59+CS51),CS59*CS103/(CS103-CS43-CS51)),CS59*CS103/(CS103-CS35-CS51)),CS59*CS103/(CS103-CS27-CS51)),CS59*CS103/(CS103-CS19-CS51)),CS59*CS103/(CS103-CS11-CS51)),CS59))) -> 9196.012144 | CT60: =IF(CT59<=0,IF(CT$103<=0,CT$103,0),CT59) -> 10520.98123 | CU60: =IF(CU103<=0,0,IF(CU59<=0,0,IF(CU11+CU67<=0,IF(CU11=0,IF(CU19=0,IF(CU27=0,IF(CU35=0,IF(CU43=0,IF(CU51=0,IF(CU59+CU67<=0,0,CU59+CU67),CU59*CU103/(CU103-CU51-CU67)),CU59*CU103/(CU103-CU43-CU67)),CU59*CU103/(CU103-CU35-CU67)),CU59*CU103/(CU103-CU27-CU67)),CU59*CU103/(CU103-CU19-CU67)),CU59*CU103/(CU103-CU11-CU67)),CU59))) -> 11514.22755 | CV60: =IF(CV103<=0,0,IF(CV59<=0,0,IF(CV11+CV75<=0,IF(CV11=0,IF(CV19=0,IF(CV27=0,IF(CV35=0,IF(CV43=0,IF(CV51=0,IF(CV59+CV75<=0,0,CV59+CV75),CV59*CV103/(CV103-CV51-CV75)),CV59*CV103/(CV103-CV43-CV75)),CV59*CV103/(CV103-CV35-CV75)),CV59*CV103/(CV103-CV27-CV75)),CV59*CV103/(CV103-CV19-CV75)),CV59*CV103/(CV103-CV11-CV75)),CV59))) -> 11869.63429 | CW60: =IF(CW103<=0,0,IF(CW59<=0,0,IF(CW11+CW83<=0,IF(CW11=0,IF(CW19=0,IF(CW27=0,IF(CW35=0,IF(CW43=0,IF(CW51=0,IF(CW59+CW83<=0,0,CW59+CW83),CW59*CW103/(CW103-CW51-CW83)),CW59*CW103/(CW103-CW43-CW83)),CW59*CW103/(CW103-CW35-CW83)),CW59*CW103/(CW103-CW27-CW83)),CW59*CW103/(CW103-CW19-CW83)),CW59*CW103/(CW103-CW11-CW83)),CW59))) -> 12864.37456 | CX60: =IF(CX103<=0,0,IF(CX59<=0,0,IF(CX11+CX91<=0,IF(CX11=0,IF(CX19=0,IF(CX27=0,IF(CX35=0,IF(CX43=0,IF(CX51=0,IF(CX59+CX91<=0,0,CX59+CX91),CX59*CX103/(CX103-CX51-CX91)),CX59*CX103/(CX103-CX43-CX91)),CX59*CX103/(CX103-CX35-CX91)),CX59*CX103/(CX103-CX27-CX91)),CX59*CX103/(CX103-CX19-CX91)),CX59*CX103/(CX103-CX11-CX91)),CX59))) -> 11932.76832 | CY60: =IF(CY103<=0,0,IF(CY59<=0,0,IF(CY11+CY99<=0,IF(CY11=0,IF(CY19=0,IF(CY27=0,IF(CY35=0,IF(CY43=0,IF(CY51=0,IF(CY59+CY99<=0,0,CY59+CY99),CY59*CY103/(CY103-CY51-CY99)),CY59*CY103/(CY103-CY43-CY99)),CY59*CY103/(CY103-CY35-CY99)),CY59*CY103/(CY103-CY27-CY99)),CY59*CY103/(CY103-CY19-CY99)),CY59*CY103/(CY103-CY11-CY99)),CY59))) -> 12041.88365 | CZ60: =IF(CZ103<=0,0,IF(CZ59<=0,0,IF(CZ11+CZ19<=0,IF(CZ19=0,IF(CZ27=0,IF(CZ35=0,IF(CZ43=0,IF(CZ51=0,IF(CZ59+CZ11<=0,0,CZ59+CZ11),CZ59*CZ103/(CZ103-CZ51-CZ11)),CZ59*CZ103/(CZ103-CZ43-CZ11)),CZ59*CZ103/(CZ103-CZ35-CZ11)),CZ59*CZ103/(CZ103-CZ27-CZ11)),CZ59*CZ103/(CZ103-CZ11-CZ19)),CZ59))) -> 12326.02157 | DA60: =IF(DA103<=0,0,IF(DA59<=0,0,IF(DA11+DA19<=0,IF(DA11=0,IF(DA27=0,IF(DA35=0,IF(DA43=0,IF(DA51=0,IF(DA59+DA19<=0,0,DA59+DA19),DA59*DA103/(DA103-DA51-DA19)),DA59*DA103/(DA103-DA43-DA19)),DA59*DA103/(DA103-DA35-DA19)),DA59*DA103/(DA103-DA27-DA19)),DA59*DA103/(DA103-DA11-DA19)),DA59))) -> 12537.54087 | DB60: =IF(DB103<=0,0,IF(DB59<=0,0,IF(DB11+DB27<=0,IF(DB11=0,IF(DB19=0,IF(DB35=0,IF(DB43=0,IF(DB51=0,IF(DB59+DB27<=0,0,DB59+DB27),DB59*DB103/(DB103-DB51-DB27)),DB59*DB103/(DB103-DB43-DB27)),DB59*DB103/(DB103-DB35-DB27)),DB59*DB103/(DB103-DB19-DB27)),DB59*DB103/(DB103-DB11-DB27)),DB59))) -> 12147.68425 | DC60: =IF(DC103<=0,0,IF(DC59<=0,0,IF(DC11+DC35<=0,IF(DC11=0,IF(DC19=0,IF(DC27=0,IF(DC43=0,IF(DC51=0,IF(DC59+DC35<=0,0,DC59+DC35),DC59*DC103/(DC103-DC51-DC35)),DC59*DC103/(DC103-DC43-DC35)),DC59*DC103/(DC103-DC27-DC35)),DC59*DC103/(DC103-DC19-DC35)),DC59*DC103/(DC103-DC11-DC35)),DC59))) -> 13175.2496 | DD60: =IF(DD103<=0,0,IF(DD59<=0,0,IF(DD11+DD43<=0,IF(DD11=0,IF(DD19=0,IF(DD27=0,IF(DD35=0,IF(DD51=0,IF(DD59+DD43<=0,0,DD59+DD43),DD59*DD103/(DD103-DD51-DD43)),DD59*DD103/(DD103-DD43-DD35)),DD59*DD103/(DD103-DD27-DD43)),DD59*DD103/(DD103-DD19-DD43)),DD59*DD103/(DD103-DD11-DD43)),DD59))) -> 12845.8547 | DE60: =IF(DE103<=0,0,IF(DE59<=0,0,IF(DE11+DE51<=0,IF(DE11=0,IF(DE19=0,IF(DE27=0,IF(DE35=0,IF(DE43=0,IF(DE59+DE51<=0,0,DE59+DE51),DE59*DE103/(DE103-DE43-DE51)),DE59*DE103/(DE103-DE35-DE51)),DE59*DE103/(DE103-DE27-DE51)),DE59*DE103/(DE103-DE19-DE51)),DE59*DE103/(DE103-DE11-DE51)),DE59))) -> 12654.4863 | DF60: =IF(DF59<=0,IF(DF$103<=0,DF$103,0),DF59) -> 12888.7088 | DG60: =IF(DG103<=0,0,IF(DG59<=0,0,IF(DG11+DG67<=0,IF(DG11=0,IF(DG19=0,IF(DG27=0,IF(DG35=0,IF(DG43=0,IF(DG51=0,IF(DG59+DG67<=0,0,DG59+DG67),DG59*DG103/(DG103-DG51-DG67)),DG59*DG103/(DG103-DG43-DG67)),DG59*DG103/(DG103-DG35-DG67)),DG59*DG103/(DG103-DG27-DG67)),DG59*DG103/(DG103-DG19-DG67)),DG59*DG103/(DG103-DG11-DG67)),DG59))) -> 12888.10211 | DH60: =IF(DH103<=0,0,IF(DH59<=0,0,IF(DH11+DH75<=0,IF(DH11=0,IF(DH19=0,IF(DH27=0,IF(DH35=0,IF(DH43=0,IF(DH51=0,IF(DH59+DH75<=0,0,DH59+DH75),DH59*DH103/(DH103-DH51-DH75)),DH59*DH103/(DH103-DH43-DH75)),DH59*DH103/(DH103-DH35-DH75)),DH59*DH103/(DH103-DH27-DH75)),DH59*DH103/(DH103-DH19-DH75)),DH59*DH103/(DH103-DH11-DH75)),DH59))) -> 12798.66556 | DI60: =IF(DI103<=0,0,IF(DI59<=0,0,IF(DI11+DI83<=0,IF(DI11=0,IF(DI19=0,IF(DI27=0,IF(DI35=0,IF(DI43=0,IF(DI51=0,IF(DI59+DI83<=0,0,DI59+DI83),DI59*DI103/(DI103-DI51-DI83)),DI59*DI103/(DI103-DI43-DI83)),DI59*DI103/(DI103-DI35-DI83)),DI59*DI103/(DI103-DI27-DI83)),DI59*DI103/(DI103-DI19-DI83)),DI59*DI103/(DI103-DI11-DI83)),DI59))) -> 14378.59521 | DJ60: =IF(DJ103<=0,0,IF(DJ59<=0,0,IF(DJ11+DJ91<=0,IF(DJ11=0,IF(DJ19=0,IF(DJ27=0,IF(DJ35=0,IF(DJ43=0,IF(DJ51=0,IF(DJ59+DJ91<=0,0,DJ59+DJ91),DJ59*DJ103/(DJ103-DJ51-DJ91)),DJ59*DJ103/(DJ103-DJ43-DJ91)),DJ59*DJ103/(DJ103-DJ35-DJ91)),DJ59*DJ103/(DJ103-DJ27-DJ91)),DJ59*DJ103/(DJ103-DJ19-DJ91)),DJ59*DJ103/(DJ103-DJ11-DJ91)),DJ59))) -> 14803.1036 | DK60: =IF(DK103<=0,0,IF(DK59<=0,0,IF(DK11+DK99<=0,IF(DK11=0,IF(DK19=0,IF(DK27=0,IF(DK35=0,IF(DK43=0,IF(DK51=0,IF(DK59+DK99<=0,0,DK59+DK99),DK59*DK103/(DK103-DK51-DK99)),DK59*DK103/(DK103-DK43-DK99)),DK59*DK103/(DK103-DK35-DK99)),DK59*DK103/(DK103-DK27-DK99)),DK59*DK103/(DK103-DK19-DK99)),DK59*DK103/(DK103-DK11-DK99)),DK59))) -> 14682.06974 | DL60: =IF(DL103<=0,0,IF(DL59<=0,0,IF(DL11+DL19<=0,IF(DL19=0,IF(DL27=0,IF(DL35=0,IF(DL43=0,IF(DL51=0,IF(DL59+DL11<=0,0,DL59+DL11),DL59*DL103/(DL103-DL51-DL11)),DL59*DL103/(DL103-DL43-DL11)),DL59*DL103/(DL103-DL35-DL11)),DL59*DL103/(DL103-DL27-DL11)),DL59*DL103/(DL103-DL11-DL19)),DL59))) -> 16403.60001 | DM60: =IF(DM103<=0,0,IF(DM59<=0,0,IF(DM11+DM19<=0,IF(DM11=0,IF(DM27=0,IF(DM35=0,IF(DM43=0,IF(DM51=0,IF(DM59+DM19<=0,0,DM59+DM19),DM59*DM103/(DM103-DM51-DM19)),DM59*DM103/(DM103-DM43-DM19)),DM59*DM103/(DM103-DM35-DM19)),DM59*DM103/(DM103-DM27-DM19)),DM59*DM103/(DM103-DM11-DM19)),DM59))) -> 16172.51226 | DN60: =IF(DN103<=0,0,IF(DN59<=0,0,IF(DN11+DN27<=0,IF(DN11=0,IF(DN19=0,IF(DN35=0,IF(DN43=0,IF(DN51=0,IF(DN59+DN27<=0,0,DN59+DN27),DN59*DN103/(DN103-DN51-DN27)),DN59*DN103/(DN103-DN43-DN27)),DN59*DN103/(DN103-DN35-DN27)),DN59*DN103/(DN103-DN19-DN27)),DN59*DN103/(DN103-DN11-DN27)),DN59))) -> 17511.10894 | DO60: =IF(DO103<=0,0,IF(DO59<=0,0,IF(DO11+DO35<=0,IF(DO11=0,IF(DO19=0,IF(DO27=0,IF(DO43=0,IF(DO51=0,IF(DO59+DO35<=0,0,DO59+DO35),DO59*DO103/(DO103-DO51-DO35)),DO59*DO103/(DO103-DO43-DO35)),DO59*DO103/(DO103-DO27-DO35)),DO59*DO103/(DO103-DO19-DO35)),DO59*DO103/(DO103-DO11-DO35)),DO59))) -> 17233.14324 | DP60: =IF(DP103<=0,0,IF(DP59<=0,0,IF(DP11+DP43<=0,IF(DP11=0,IF(DP19=0,IF(DP27=0,IF(DP35=0,IF(DP51=0,IF(DP59+DP43<=0,0,DP59+DP43),DP59*DP103/(DP103-DP51-DP43)),DP59*DP103/(DP103-DP43-DP35)),DP59*DP103/(DP103-DP27-DP43)),DP59*DP103/(DP103-DP19-DP43)),DP59*DP103/(DP103-DP11-DP43)),DP59))) -> 18121.48196 | DQ60: =IF(DQ103<=0,0,IF(DQ59<=0,0,IF(DQ11+DQ51<=0,IF(DQ11=0,IF(DQ19=0,IF(DQ27=0,IF(DQ35=0,IF(DQ43=0,IF(DQ59+DQ51<=0,0,DQ59+DQ51),DQ59*DQ103/(DQ103-DQ43-DQ51)),DQ59*DQ103/(DQ103-DQ35-DQ51)),DQ59*DQ103/(DQ103-DQ27-DQ51)),DQ59*DQ103/(DQ103-DQ19-DQ51)),DQ59*DQ103/(DQ103-DQ11-DQ51)),DQ59))) -> 18886.16849 | DR60: =IF(DR59<=0,IF(DR$103<=0,DR$103,0),DR59) -> 15564.24094 | DS60: =IF(DS103<=0,0,IF(DS59<=0,0,IF(DS11+DS67<=0,IF(DS11=0,IF(DS19=0,IF(DS27=0,IF(DS35=0,IF(DS43=0,IF(DS51=0,IF(DS59+DS67<=0,0,DS59+DS67),DS59*DS103/(DS103-DS51-DS67)),DS59*DS103/(DS103-DS43-DS67)),DS59*DS103/(DS103-DS35-DS67)),DS59*DS103/(DS103-DS27-DS67)),DS59*DS103/(DS103-DS19-DS67)),DS59*DS103/(DS103-DS11-DS67)),DS59))) -> 16127.30278 | DT60: =IF(DT103<=0,0,IF(DT59<=0,0,IF(DT11+DT75<=0,IF(DT11=0,IF(DT19=0,IF(DT27=0,IF(DT35=0,IF(DT43=0,IF(DT51=0,IF(DT59+DT75<=0,0,DT59+DT75),DT59*DT103/(DT103-DT51-DT75)),DT59*DT103/(DT103-DT43-DT75)),DT59*DT103/(DT103-DT35-DT75)),DT59*DT103/(DT103-DT27-DT75)),DT59*DT103/(DT103-DT19-DT75)),DT59*DT103/(DT103-DT11-DT75)),DT59))) -> 16060.98282 | DU60: =IF(DU103<=0,0,IF(DU59<=0,0,IF(DU11+DU83<=0,IF(DU11=0,IF(DU19=0,IF(DU27=0,IF(DU35=0,IF(DU43=0,IF(DU51=0,IF(DU59+DU83<=0,0,DU59+DU83),DU59*DU103/(DU103-DU51-DU83)),DU59*DU103/(DU103-DU43-DU83)),DU59*DU103/(DU103-DU35-DU83)),DU59*DU103/(DU103-DU27-DU83)),DU59*DU103/(DU103-DU19-DU83)),DU59*DU103/(DU103-DU11-DU83)),DU59))) -> 15688.49605 | DV60: =IF(DV103<=0,0,IF(DV59<=0,0,IF(DV11+DV91<=0,IF(DV11=0,IF(DV19=0,IF(DV27=0,IF(DV35=0,IF(DV43=0,IF(DV51=0,IF(DV59+DV91<=0,0,DV59+DV91),DV59*DV103/(DV103-DV51-DV91)),DV59*DV103/(DV103-DV43-DV91)),DV59*DV103/(DV103-DV35-DV91)),DV59*DV103/(DV103-DV27-DV91)),DV59*DV103/(DV103-DV19-DV91)),DV59*DV103/(DV103-DV11-DV91)),DV59))) -> 16276.63424 | DW60: =IF(DW103<=0,0,IF(DW59<=0,0,IF(DW11+DW99<=0,IF(DW11=0,IF(DW19=0,IF(DW27=0,IF(DW35=0,IF(DW43=0,IF(DW51=0,IF(DW59+DW99<=0,0,DW59+DW99),DW59*DW103/(DW103-DW51-DW99)),DW59*DW103/(DW103-DW43-DW99)),DW59*DW103/(DW103-DW35-DW99)),DW59*DW103/(DW103-DW27-DW99)),DW59*DW103/(DW103-DW19-DW99)),DW59*DW103/(DW103-DW11-DW99)),DW59))) -> 16711.77936
A61: 0.004686500233 | B61: 41 | C61: 0.008 | D61: 0 | F61: EOM_Balance | G61: 0 | H61: 0 | I61: 0 | J61: 0 | K61: 0 | L61: 0 | M61: 0 | N61: =N60*N4 -> 1014.595842 | O61: =O60*O4 -> 1017.009115 | P61: =P60*P4 -> 1020.825644 | Q61: 969.4790688 | R61: 985.4063136 | S61: 978.6571315 | T61: 985.9847575 | U61: 969.4562025 | V61: 1001.163822 | W61: 1018.607788 | X61: 1003.018288 | Y61: =Y60*Y5 -> 1050 | Z61: =Z60*Z$4 -> 2057.815684 | AA61: =AA60*AA$4 -> 2128.292718 | AB61: 2180.390264 | AC61: 2166.687006 | AD61: 2180.467407 | AE61: 2159.203587 | AF61: =AF60*AF4 -> 2080.850975 | AG61: 2171.934934 | AH61: 2229.724818 | AI61: 2153.79604 | AJ61: 2141.711231 | AK61: =AK60*AK5 -> 2261.084191 | AL61: =AL60*AL$4 -> 3173.685266 | AM61: =AM60*AM$4 -> 3156.214501 | AN61: 3217.175784 | AO61: 3214.25445 | AP61: 3164.441467 | AQ61: 3213.719296 | AR61: =AR60*AR4 -> 3412.026201 | AS61: 3418.78519 | AT61: 3547.875804 | AU61: 3385.483656 | AV61: 3239.926967 | AW61: =AW60*AW5 -> 3424.138401 | AX61: =AX60*AX$4 -> 4428.657014 | AY61: =AY60*AY$4 -> 4684.317872 | AZ61: 5120.51239 | BA61: 5193.330994 | BB61: 4876.798788 | BC61: 5078.575006 | BD61: =BD60*BD4 -> 5289.976263 | BE61: 5313.521102 | BF61: 4926.305458 | BG61: 4565.759262 | BH61: 4703.926861 | BI61: =BI60*BI5 -> 4782.899874 | BJ61: =BJ60*BJ$4 -> 6252.972116 | BK61: =BK60*BK$4 -> 6190.373684 | BL61: 5843.348607 | BM61: 5709.44271 | BN61: 5695.757153 | BO61: 5827.487777 | BP61: =BP60*BP4 -> 6072.88348 | BQ61: 5763.871916 | BR61: 5176.78575 | BS61: 5526.570517 | BT61: 5194.618616 | BU61: =BU60*BU5 -> 6072.044867 | BV61: =BV60*BV$4 -> 7067.111512 | BW61: =BW60*BW$4 -> 6318.199481 | BX61: 5858.236334 | BY61: 5481.055816 | BZ61: 4988.833982 | CA61: 5135.859643 | CB61: =CB60*CB4 -> 4997.00576 | CC61: 4856.56034 | CD61: 4547.437075 | CE61: 4711.825403 | CF61: 5225.868359 | CG61: =CG60*CG5 -> 7425.647111 | CH61: =CH60*CH$4 -> 8917.829626 | CI61: =CI60*CI$4 -> 8303.227659 | CJ61: 8151.386427 | CK61: 8131.279418 | CL61: 8493.572113 | CM61: 9130.642603 | CN61: =CN60*CN4 -> 9465.848055 | CO61: 9116.629378 | CP61: 10299.08136 | CQ61: 9387.443433 | CR61: 9196.012144 | CS61: =CS60*CS5 -> 9520.981235 | CT61: =CT60*CT$4 -> 11514.22755 | CU61: =CU60*CU$4 -> 11869.63429 | CV61: 12864.37456 | CW61: 11932.76832 | CX61: 12041.88365 | CY61: 12326.02157 | CZ61: =CZ60*CZ4 -> 12537.54087 | DA61: 12147.68425 | DB61: 13175.2496 | DC61: 12845.8547 | DD61: 12654.4863 | DE61: =DE60*DE5 -> 11888.7088 | DF61: =DF60*DF$4 -> 12888.10211 | DG61: =DG60*DG$4 -> 12798.66556 | DH61: 14378.59521 | DI61: 14803.1036 | DJ61: 14682.06974 | DK61: 16403.60001 | DL61: =DL60*DL4 -> 16172.51226 | DM61: 17511.10894 | DN61: 17233.14324 | DO61: 18121.48196 | DP61: 18886.16849 | DQ61: =DQ60*DQ5 -> 14564.24094 | DR61: =DR60*DR$4 -> 16127.30278 | DS61: =DS60*DS$4 -> 16060.98282 | DT61: 15688.49605 | DU61: 16276.63424 | DV61: 16711.77936 | DW61: =DW60*DX61 -> 16545.01506 | DX61: =IF(PRODUCT(DR4:DW4)>($B$11)^(6/12),($B$11)^(6/12)/PRODUCT(DR4:DV4),IF(PRODUCT(DR4:DW4)<($B$12)^(6/12),($B$12)^(6/12)/PRODUCT(DR4:DV4),DW4)) -> 0.9900211525
A62: 0.004695497877 | B62: 42 | C62: 0.0082 | D62: 0 | E62: Aug | F62: BOM_Pre_CF_Balance | G62: 0 | H62: 0 | I62: 0 | J62: 0 | K62: 0 | L62: 0 | M62: 0 | N62: 0 | O62: 0 | P62: =O69 -> 1002.378556 | Q62: =P69 -> 1006.140181 | R62: 955.5322708 | S62: 971.2303884 | T62: 964.5782992 | U62: 971.8005109 | V62: 955.5097335 | W62: 986.7612117 | X62: 1003.954231 | Y62: 988.5889991 | Z62: =Y69 -> 954.8927397 | AA62: 1050 | AB62: =AA69 -> 2120.209359 | AC62: =AB69 -> 2172.109036 | AD62: =AC69 -> 2158.457823 | AE62: =AD69 -> 2172.185885 | AF62: =AE69 -> 2151.002826 | AG62: =AF69 -> 2072.947802 | AH62: =AG69 -> 2163.685819 | AI62: =AH69 -> 2221.256214 | AJ62: =AI69 -> 2145.615817 | AK62: =AJ69 -> 2133.576908 | AL62: =AK69 -> 2252.496483 | AM62: =AL69 -> 2192.128286 | AN62: =AM69 -> 3174.555994 | AO62: =AN69 -> 3235.871538 | AP62: =AO69 -> 3232.933227 | AQ62: =AP69 -> 3182.830769 | AR62: =AQ69 -> 3232.394963 | AS62: =AR69 -> 3431.854276 | AT62: =AS69 -> 3438.652543 | AU62: =AT69 -> 3568.493332 | AV62: =AU69 -> 3405.157486 | AW62: =AV69 -> 3258.754934 | AX62: =AW69 -> 3376.478156 | AY62: =AX69 -> 3379.926737 | AZ62: =AY69 -> 4632.774456 | BA62: =AZ69 -> 5064.169352 | BB62: =BA69 -> 5136.186704 | BC62: =BB69 -> 4823.137429 | BD62: =BC69 -> 5022.693422 | BE62: =BD69 -> 5231.768547 | BF62: =BE69 -> 5255.054313 | BG62: =BF69 -> 4872.099356 | BH62: =BG69 -> 4515.520394 | BI62: =BH69 -> 4652.16768 | BJ62: =BI69 -> 4730.271721 | BK62: =BJ69 -> 4949.317213 | BL62: =BK69 -> 5889.758666 | BM62: =BL69 -> 5559.585714 | BN62: =BM69 -> 5432.182514 | BO62: =BN69 -> 5419.16155 | BP62: =BO69 -> 5544.495113 | BQ62: =BP69 -> 5777.973985 | BR62: =BQ69 -> 5483.968545 | BS62: =BR69 -> 4925.392277 | BT62: =BS69 -> 5258.190904 | BU62: =BT69 -> 4942.359149 | BV62: =BU69 -> 4904.513389 | BW62: =BV69 -> 6246.783073 | BX62: =BW69 -> 6478.830987 | BY62: =BX69 -> 6007.173912 | BZ62: =BY69 -> 5620.404099 | CA62: =BZ69 -> 5115.668204 | CB62: =CA69 -> 5266.43179 | CC62: =CB69 -> 5124.047739 | CD62: =CC69 -> 4980.031687 | CE62: =CD69 -> 4663.049389 | CF62: =CE69 -> 4831.617064 | CG62: =CF69 -> 5358.728854 | CH62: =CG69 -> 5475.159721 | CI62: =CH69 -> 7609.122227 | CJ62: =CI69 -> 8015.79586 | CK62: =CJ69 -> 7869.210897 | CL62: =CK69 -> 7849.79993 | CM62: =CL69 -> 8199.551183 | CN62: =CM69 -> 8814.568284 | CO62: =CN69 -> 9138.169971 | CP62: =CO69 -> 8801.040153 | CQ62: =CP69 -> 9942.559343 | CR62: =CQ69 -> 9062.479471 | CS62: =CR69 -> 8877.674935 | CT62: =CS69 -> 9475.840416 | CU62: =CT69 -> 9728.308117 | CV62: =CU69 -> 11059.45609 | CW62: =CV69 -> 11986.29898 | CX62: =CW69 -> 11118.28082 | CY62: =CX69 -> 11219.94832 | CZ62: =CY69 -> 11484.69202 | DA62: =CZ69 -> 11681.77378 | DB62: =DA69 -> 11318.52736 | DC62: =DB69 -> 12275.95483 | DD62: =DC69 -> 11969.04323 | DE62: =DD69 -> 11790.73693 | DF62: =DE69 -> 13616.7047 | DG62: =DF69 -> 12122.98817 | DH62: =DG69 -> 13031.92163 | DI62: =DH69 -> 14640.64555 | DJ62: =DI69 -> 15072.89062 | DK62: =DJ69 -> 14949.65092 | DL62: =DK69 -> 16702.55613 | DM62: =DL69 -> 16467.2568 | DN62: =DM69 -> 17830.24944 | DO62: =DN69 -> 17547.2178 | DP62: =DO69 -> 18451.74653 | DQ62: =DP69 -> 19230.36949 | DR62: =DQ69 -> 19080.46281 | DS62: =DR69 -> 14828.97663 | DT62: =DS69 -> 15763.88348 | DU62: =DT69 -> 15398.28704 | DV62: =DU69 -> 15975.54573 | DW62: =DV69 -> 16402.64145
